Workbook

Sheet Introduction
C4: Joint Monitoring Programme for Water Supply, Sanitation and Hygiene
C6: Estimates on household water, sanitation and hygiene by wealth quintile and sub-national region in
C7: =+Water!B5 -> Kenya
C9: Updated May 2021
C11: Follow the links below to find the following information:
C13: JMP Estimates
C14: WASH status and trends by wealth quintile (customized quintiles made without water and sanitation assets)
C15: Water
C16: Sanitation
C17: Hygiene
C19: Data inputs
C20: customized wealth quintiles and subnational data:
C21: =IF(INDIRECT(CONCATENATE("Water","!B105"))=0,"",INDIRECT(CONCATENATE("Water","!B105"))) -> MICS00
C22: =IF(INDIRECT(CONCATENATE("Water","!B106"))=0,"",INDIRECT(CONCATENATE("Water","!B106"))) -> DHS03
C23: =IF(INDIRECT(CONCATENATE("Water","!B107"))=0,"",INDIRECT(CONCATENATE("Water","!B107"))) -> DHS09
C24: =IF(INDIRECT(CONCATENATE("Water","!B108"))=0,"",INDIRECT(CONCATENATE("Water","!B108"))) -> DHS14
C25: =IF(INDIRECT(CONCATENATE("Water","!B109"))=0,"",INDIRECT(CONCATENATE("Water","!B109"))) -> MIS15
C26: =IF(INDIRECT(CONCATENATE("Water","!B110"))=0,"",INDIRECT(CONCATENATE("Water","!B110"))) -> 
C27: =IF(INDIRECT(CONCATENATE("Water","!B111"))=0,"",INDIRECT(CONCATENATE("Water","!B111"))) -> 
C28: =IF(INDIRECT(CONCATENATE("Water","!B112"))=0,"",INDIRECT(CONCATENATE("Water","!B112"))) -> 
C29: =IF(INDIRECT(CONCATENATE("Water","!B113"))=0,"",INDIRECT(CONCATENATE("Water","!B113"))) -> 
C30: =IF(INDIRECT(CONCATENATE("Water","!B114"))=0,"",INDIRECT(CONCATENATE("Water","!B114"))) -> 
C31: =IF(INDIRECT(CONCATENATE("Water","!B115"))=0,"",INDIRECT(CONCATENATE("Water","!B115"))) -> 
C32: =IF(INDIRECT(CONCATENATE("Water","!B116"))=0,"",INDIRECT(CONCATENATE("Water","!B116"))) -> 
L55: =+IF(ISNUMBER(M48), "", "Insufficient data to estimate safely managed sanitation services at national level") -> Insufficient data to estimate safely managed sanitation services at national level

Sheet Water
A1: BGD
B4: Summary of trends in use of drinking water by wealth quintile (%)
B5: =IF(ISERROR(INDIRECT(CONCATENATE($B105,"!A2"))),"",INDIRECT(CONCATENATE($B105,"!A2"))) -> Kenya
B7: =B118 -> National use of drinking water sources, 2000–2020 | J7: =B218 -> Urban use of drinking water sources, 2000–2020 | R7: =B318 -> Rural use of drinking water sources, 2000–2020
B31: =IF(ISERROR(INDIRECT(CONCATENATE($B105,"!A2"))),"",INDIRECT(CONCATENATE($B105,"!A2"))) -> Kenya | F31: Poorest | J31: Poor | N31: Middle | R31: Rich | V31: Richest
F32: Basic | G32: Limited | H32: Unimproved | I32: Surface water | J32: Basic | K32: Limited | L32: Unimproved | M32: Surface water | N32: Basic | O32: Limited | P32: Unimproved | Q32: Surface water | R32: Basic | S32: Limited | T32: Unimproved | U32: Surface water | V32: Basic | W32: Limited | X32: Unimproved | Y32: Surface water
B33: NATIONAL | D33: Estimate | E33: =C99 -> 2000 | F33: =E99 -> 26.50316259 | G33: =F99 -> 8.998913712 | H33: 20.87033521 | I33: 43.62758849 | J33: =J99 -> 28.88267587 | K33: =K99 -> 6.442138005 | L33: 24.3147573 | M33: 40.36042883 | N33: =O99 -> 37.06670249 | O33: =P99 -> 6.188535911 | P33: 19.16889343 | Q33: 37.57586817 | R33: =T99 -> 57.86777136 | S33: =U99 -> 4.874727591 | T33: 13.36444864 | U33: 23.89305241 | V33: =Y99 -> 89.44995902 | W33: =Z99 -> 3.099141332 | X33: 2.968541108 | Y33: 4.48235854
E34: =C100 -> 2020 | F34: =E100 -> 37.07599561 | G34: 12.58882536 | H34: 13.62872534 | I34: 36.7064537 | J34: =J100 -> 52.32451209 | K34: 11.67072364 | L34: 10.61744331 | M34: 25.38732096 | N34: =O100 -> 60.99567271 | O34: 10.18363884 | P34: 9.921527867 | Q34: 18.89916059 | R34: =T100 -> 78.8672358 | S34: 6.643703072 | T34: 5.755020073 | U34: 8.734041053 | V34: =Y100 -> 92.2280953 | W34: 3.195394444 | X34: 2.508936718 | Y34: 2.067573537
B36: URBAN | D36: Estimate | E36: =C199 -> 2000 | F36: =E199 -> 85.8058632 | G36: =F199 -> 7.615544665 | H36: 5.443526716 | I36: 1.13506542 | J36: =J199 -> 88.92107452 | K36: =K199 -> 5.339917499 | L36: 3.666375757 | M36: 2.072632223 | N36: =O199 -> 92.27489919 | O36: =P199 -> 2.89156869 | P36: 3.663011757 | Q36: 1.170520365 | R36: =T199 -> 95.50305854 | S36: =U199 -> 2.554358891 | T36: 1.907729228 | U36: 0.03485334221 | V36: =Y199 -> 97.73351408 | W36: =Z199 -> 2.266485918 | X36: 0 | Y36: 0
E37: =C200 -> 2020 | F37: =E200 -> 60.87284911 | G37: 5.402659958 | H37: 13.53364017 | I37: 20.19085077 | J37: =J200 -> 84.82212652 | K37: 5.093766131 | L37: 4.040435839 | M37: 6.043671509 | N37: =O200 -> 92.72047423 | O37: 2.905531435 | P37: 2.283464171 | Q37: 2.090530161 | R37: =T200 -> 93.69911576 | S37: 2.506109994 | T37: 2.644041318 | U37: 1.150732928 | V37: =Y200 -> 96.29925598 | W37: 2.233224802 | X37: 1.388752423 | Y37: 0.07876679708
B39: RURAL | D39: Estimate | E39: =C299 -> 2000 | F39: =E299 -> 24.05382162 | G39: =F299 -> 9.859921312 | H39: 21.25504789 | I39: 44.83120918 | J39: =J299 -> 29.78643907 | K39: =K299 -> 7.083064999 | L39: 22.49422637 | M39: 40.63626956 | N39: =O299 -> 32.96358958 | O39: =P299 -> 6.86393386 | P39: 24.46842052 | Q39: 35.70405604 | R39: =T299 -> 36.48268437 | S39: =U299 -> 6.175422045 | T39: 18.40245396 | U39: 38.93943962 | V39: =Y299 -> 56.99957848 | W39: =Z299 -> 5.10262737 | X39: 11.24566215 | Y39: 26.652132
E40: =C300 -> 2020 | F40: =E300 -> 33.38991499 | G40: 13.68688684 | H40: 13.52831517 | I40: 39.39488301 | J40: =J300 -> 45.59446302 | K40: 10.84213337 | L40: 12.80519032 | M40: 30.75821329 | N40: =O300 -> 53.56739987 | O40: 11.15421878 | P40: 10.07758779 | Q40: 25.20079356 | R40: =T300 -> 59.35405125 | S40: 10.0468571 | T40: 10.94204074 | U40: 19.6570509 | V40: =Y300 -> 76.41442882 | W40: 6.840653323 | X40: 6.500928406 | Y40: 10.24398945
A97: NATIONAL | D97: Poorest | I97: Poor | N97: Middle | S97: Rich | X97: Richest
D98: Improved | E98: Basic | F98: Limited | G98: Unimproved | H98: Surface water | I98: Improved | J98: Basic | K98: Limited | L98: Unimproved | M98: Surface water | N98: Improved | O98: Basic | P98: Limited | Q98: Unimproved | R98: Surface water | S98: Improved | T98: Basic | U98: Limited | V98: Unimproved | W98: Surface water | X98: Improved | Y98: Basic | Z98: Limited | AA98: Unimproved | AB98: Surface water
A99: Forecast period: | C99: =MinBase(C105:C116) -> 2000 | D99: =IF((D101+H101)>100,D101*100/(D101+H101),D101) -> 35.5020763 | E99: =D99*AVERAGEIF(E105:E116,">0")/100 -> 26.50316259 | F99: =D99*(100-AVERAGEIF(E105:E116,">0"))/100 -> 8.998913712 | G99: =100-(E99+F99+H99) -> 20.87033521 | H99: =IF((D101+H101)>100,H101*100/(D101+H101),H101) -> 43.62758849 | I99: =IF((I101+M101)>100,I101*100/(I101+M101),I101) -> 35.32481387 | J99: =I99*AVERAGEIF(J105:J116,">0")/100 -> 28.88267587 | K99: =I99*(100-AVERAGEIF(J105:J116,">0"))/100 -> 6.442138005 | L99: =100-(J99+K99+M99) -> 24.3147573 | M99: =IF((I101+M101)>100,M101*100/(I101+M101),M101) -> 40.36042883 | N99: =IF((N101+R101)>100,N101*100/(N101+R101),N101) -> 43.2552384 | O99: =N99*AVERAGEIF(O105:O116,">0")/100 -> 37.06670249 | P99: =N99*(100-AVERAGEIF(O105:O116,">0"))/100 -> 6.188535911 | Q99: =100-(O99+P99+R99) -> 19.16889343 | R99: =IF((N101+R101)>100,R101*100/(N101+R101),R101) -> 37.57586817 | S99: =IF((S101+W101)>100,S101*100/(S101+W101),S101) -> 62.74249895 | T99: =S99*AVERAGEIF(T105:T116,">0")/100 -> 57.86777136 | U99: =S99*(100-AVERAGEIF(T105:T116,">0"))/100 -> 4.874727591 | V99: =100-(T99+U99+W99) -> 13.36444864 | W99: =IF((S101+W101)>100,W101*100/(S101+W101),W101) -> 23.89305241 | X99: =IF((X101+AB101)>100,X101*100/(X101+AB101),X101) -> 92.54910035 | Y99: =X99*AVERAGEIF(Y105:Y116,">0")/100 -> 89.44995902 | Z99: =X99*(100-AVERAGEIF(Y105:Y116,">0"))/100 -> 3.099141332 | AA99: =100-(Y99+Z99+AB99) -> 2.968541108 | AB99: =IF((X101+AB101)>100,AB101*100/(X101+AB101),AB101) -> 4.48235854
C100: =MaxTarget(C105:C116) -> 2020 | D100: =IF((D102+H102)>100,D102*100/(D102+H102),D102) -> 49.66482097 | E100: =D100*AVERAGEIF(E105:E116,">0")/100 -> 37.07599561 | F100: =D100*(100-AVERAGEIF(E105:E116,">0"))/100 -> 12.58882536 | G100: =100-(E100+F100+H100) -> 13.62872534 | H100: =IF((D102+H102)>100,H102*100/(D102+H102),H102) -> 36.7064537 | I100: =IF((I102+M102)>100,I102*100/(I102+M102),I102) -> 63.99523573 | J100: =I100*AVERAGEIF(J105:J116,">0")/100 -> 52.32451209 | K100: =I100*(100-AVERAGEIF(J105:J116,">0"))/100 -> 11.67072364 | L100: =100-(J100+K100+M100) -> 10.61744331 | M100: =IF((I102+M102)>100,M102*100/(I102+M102),M102) -> 25.38732096 | N100: =IF((N102+R102)>100,N102*100/(N102+R102),N102) -> 71.17931154 | O100: =N100*AVERAGEIF(O105:O116,">0")/100 -> 60.99567271 | P100: =N100*(100-AVERAGEIF(O105:O116,">0"))/100 -> 10.18363884 | Q100: =100-(O100+P100+R100) -> 9.921527867 | R100: =IF((N102+R102)>100,R102*100/(N102+R102),R102) -> 18.89916059 | S100: =IF((S102+W102)>100,S102*100/(S102+W102),S102) -> 85.51093887 | T100: =S100*AVERAGEIF(T105:T116,">0")/100 -> 78.8672358 | U100: =S100*(100-AVERAGEIF(T105:T116,">0"))/100 -> 6.643703072 | V100: =100-(T100+U100+W100) -> 5.755020073 | W100: =IF((S102+W102)>100,W102*100/(S102+W102),W102) -> 8.734041053 | X100: =IF((X102+AB102)>100,X102*100/(X102+AB102),X102) -> 95.42348975 | Y100: =X100*AVERAGEIF(Y105:Y116,">0")/100 -> 92.2280953 | Z100: =X100*(100-AVERAGEIF(Y105:Y116,">0"))/100 -> 3.195394444 | AA100: =100-(Y100+Z100+AB100) -> 2.508936718 | AB100: =IF((X102+AB102)>100,AB102*100/(X102+AB102),AB102) -> 2.067573537
A101: Regression period: | C101: =MinRegYear(C99,C105:C116) -> 2000 | D101: =IF(MAX(C105:C116)-MIN(C105:C116)<5,AVERAGEIF(C105:C116,">0",D105:D116), IF(FORECAST($C101,D$105:D$116,$C$105:$C$116)<0,0, IF(FORECAST($C101,D$105:D$116,$C$105:$C$116)>100,100, FORECAST($C101,D$105:D$116,$C$105:$C$116)))) -> 35.5020763 | H101: =IF(MAX(C105:C116)-MIN(C105:C116)<5,AVERAGEIF(C105:C116,">0",H105:H116), IF(FORECAST($C101,H$105:H$116,$C$105:$C$116)<0,0, IF(FORECAST($C101,H$105:H$116,$C$105:$C$116)>100,100, FORECAST($C101,H$105:H$116,$C$105:$C$116)))) -> 43.62758849 | I101: =IF(MAX(C105:C116)-MIN(C105:C116)<5,AVERAGEIF(C105:C116,">0",I105:I116), IF(FORECAST($C101,I$105:I$116,$C$105:$C$116)<0,0, IF(FORECAST($C101,I$105:I$116,$C$105:$C$116)>100,100, FORECAST($C101,I$105:I$116,$C$105:$C$116)))) -> 35.32481387 | M101: =IF(MAX(C105:C116)-MIN(C105:C116)<5,AVERAGEIF(C105:C116,">0",M105:M116), IF(FORECAST($C101,M$105:M$116,$C$105:$C$116)<0,0, IF(FORECAST($C101,M$105:M$116,$C$105:$C$116)>100,100, FORECAST($C101,M$105:M$116,$C$105:$C$116)))) -> 40.36042883 | N101: =IF(MAX(C105:C116)-MIN(C105:C116)<5,AVERAGEIF(C105:C116,">0",N105:N116), IF(FORECAST($C101,N$105:N$116,$C$105:$C$116)<0,0, IF(FORECAST($C101,N$105:N$116,$C$105:$C$116)>100,100, FORECAST($C101,N$105:N$116,$C$105:$C$116)))) -> 43.2552384 | R101: =IF(MAX(C105:C116)-MIN(C105:C116)<5,AVERAGEIF(C105:C116,">0",R105:R116), IF(FORECAST($C101,R$105:R$116,$C$105:$C$116)<0,0, IF(FORECAST($C101,R$105:R$116,$C$105:$C$116)>100,100, FORECAST($C101,R$105:R$116,$C$105:$C$116)))) -> 37.57586817 | S101: =IF(MAX(C105:C116)-MIN(C105:C116)<5,AVERAGEIF(C105:C116,">0",S105:S116), IF(FORECAST($C101,S$105:S$116,$C$105:$C$116)<0,0, IF(FORECAST($C101,S$105:S$116,$C$105:$C$116)>100,100, FORECAST($C101,S$105:S$116,$C$105:$C$116)))) -> 62.74249895 | W101: =IF(MAX(C105:C116)-MIN(C105:C116)<5,AVERAGEIF(C105:C116,">0",W105:W116), IF(FORECAST($C101,W$105:W$116,$C$105:$C$116)<0,0, IF(FORECAST($C101,W$105:W$116,$C$105:$C$116)>100,100, FORECAST($C101,W$105:W$116,$C$105:$C$116)))) -> 23.89305241 | X101: =IF(MAX(C105:C116)-MIN(C105:C116)<5,AVERAGEIF(C105:C116,">0",X105:X116), IF(FORECAST($C101,X$105:X$116,$C$105:$C$116)<0,0, IF(FORECAST($C101,X$105:X$116,$C$105:$C$116)>100,100, FORECAST($C101,X$105:X$116,$C$105:$C$116)))) -> 92.54910035 | AB101: =IF(MAX(C105:C116)-MIN(C105:C116)<5,AVERAGEIF(C105:C116,">0",AB105:AB116), IF(FORECAST($C101,AB$105:AB$116,$C$105:$C$116)<0,0, IF(FORECAST($C101,AB$105:AB$116,$C$105:$C$116)>100,100, FORECAST($C101,AB$105:AB$116,$C$105:$C$116)))) -> 4.48235854
C102: =MaxRegYear(C100,C105:C116) -> 2017 | D102: =IF(MAX(C105:C116)-MIN(C105:C116)<5,AVERAGEIF(C105:C116,">0",D105:D116), IF(FORECAST($C102,D$105:D$116,$C$105:$C$116)<0,0, IF(FORECAST($C102,D$105:D$116,$C$105:$C$116)>100,100, FORECAST($C102,D$105:D$116,$C$105:$C$116)))) -> 49.66482097 | H102: =IF(MAX(C105:C116)-MIN(C105:C116)<5,AVERAGEIF(C105:C116,">0",H105:H116), IF(FORECAST($C102,H$105:H$116,$C$105:$C$116)<0,0, IF(FORECAST($C102,H$105:H$116,$C$105:$C$116)>100,100, FORECAST($C102,H$105:H$116,$C$105:$C$116)))) -> 36.7064537 | I102: =IF(MAX(C105:C116)-MIN(C105:C116)<5,AVERAGEIF(C105:C116,">0",I105:I116), IF(FORECAST($C102,I$105:I$116,$C$105:$C$116)<0,0, IF(FORECAST($C102,I$105:I$116,$C$105:$C$116)>100,100, FORECAST($C102,I$105:I$116,$C$105:$C$116)))) -> 63.99523573 | M102: =IF(MAX(C105:C116)-MIN(C105:C116)<5,AVERAGEIF(C105:C116,">0",M105:M116), IF(FORECAST($C102,M$105:M$116,$C$105:$C$116)<0,0, IF(FORECAST($C102,M$105:M$116,$C$105:$C$116)>100,100, FORECAST($C102,M$105:M$116,$C$105:$C$116)))) -> 25.38732096 | N102: =IF(MAX(C105:C116)-MIN(C105:C116)<5,AVERAGEIF(C105:C116,">0",N105:N116), IF(FORECAST($C102,N$105:N$116,$C$105:$C$116)<0,0, IF(FORECAST($C102,N$105:N$116,$C$105:$C$116)>100,100, FORECAST($C102,N$105:N$116,$C$105:$C$116)))) -> 71.17931154 | R102: =IF(MAX(C105:C116)-MIN(C105:C116)<5,AVERAGEIF(C105:C116,">0",R105:R116), IF(FORECAST($C102,R$105:R$116,$C$105:$C$116)<0,0, IF(FORECAST($C102,R$105:R$116,$C$105:$C$116)>100,100, FORECAST($C102,R$105:R$116,$C$105:$C$116)))) -> 18.89916059 | S102: =IF(MAX(C105:C116)-MIN(C105:C116)<5,AVERAGEIF(C105:C116,">0",S105:S116), IF(FORECAST($C102,S$105:S$116,$C$105:$C$116)<0,0, IF(FORECAST($C102,S$105:S$116,$C$105:$C$116)>100,100, FORECAST($C102,S$105:S$116,$C$105:$C$116)))) -> 85.51093887 | W102: =IF(MAX(C105:C116)-MIN(C105:C116)<5,AVERAGEIF(C105:C116,">0",W105:W116), IF(FORECAST($C102,W$105:W$116,$C$105:$C$116)<0,0, IF(FORECAST($C102,W$105:W$116,$C$105:$C$116)>100,100, FORECAST($C102,W$105:W$116,$C$105:$C$116)))) -> 8.734041053 | X102: =IF(MAX(C105:C116)-MIN(C105:C116)<5,AVERAGEIF(C105:C116,">0",X105:X116), IF(FORECAST($C102,X$105:X$116,$C$105:$C$116)<0,0, IF(FORECAST($C102,X$105:X$116,$C$105:$C$116)>100,100, FORECAST($C102,X$105:X$116,$C$105:$C$116)))) -> 95.42348975 | AB102: =IF(MAX(C105:C116)-MIN(C105:C116)<5,AVERAGEIF(C105:C116,">0",AB105:AB116), IF(FORECAST($C102,AB$105:AB$116,$C$105:$C$116)<0,0, IF(FORECAST($C102,AB$105:AB$116,$C$105:$C$116)>100,100, FORECAST($C102,AB$105:AB$116,$C$105:$C$116)))) -> 2.067573537
B104: Survey | C104: Year | D104: Improved | E104: % Improved < = 30min | H104: Surface water | I104: Improved | J104: % Improved < = 30min | M104: Surface water | N104: Improved | O104: % Improved < = 30min | R104: Surface water | S104: Improved | T104: % Improved < = 30min | W104: Surface water | X104: Improved | Y104: % Improved < = 30min | AB104: Surface water
B105: MICS00 | C105: 2000 | D105: =IF(ISERROR(INDIRECT(CONCATENATE($B105,"!C16"))),"",INDIRECT(CONCATENATE($B105,"!C16"))) -> 35.22727488 | E105: =IF(ISERROR(INDIRECT(CONCATENATE($B105,"!C23"))),"",INDIRECT(CONCATENATE($B105,"!C23"))) -> 76.7730551 | H105: =IF(ISERROR(INDIRECT(CONCATENATE($B105,"!C21"))),"",INDIRECT(CONCATENATE($B105,"!C21"))) -> 43.39107147 | I105: =IF(ISERROR(INDIRECT(CONCATENATE($B105,"!D16"))),"",INDIRECT(CONCATENATE($B105,"!D16"))) -> 36.33130036 | J105: =IF(ISERROR(INDIRECT(CONCATENATE($B105,"!D23"))),"",INDIRECT(CONCATENATE($B105,"!D23"))) -> 80.51671346 | M105: =IF(ISERROR(INDIRECT(CONCATENATE($B105,"!D21"))),"",INDIRECT(CONCATENATE($B105,"!D21"))) -> 39.35644792 | N105: =IF(ISERROR(INDIRECT(CONCATENATE($B105,"!E16"))),"",INDIRECT(CONCATENATE($B105,"!E16"))) -> 44.89403712 | O105: =IF(ISERROR(INDIRECT(CONCATENATE($B105,"!E23"))),"",INDIRECT(CONCATENATE($B105,"!E23"))) -> 79.03077003 | R105: =IF(ISERROR(INDIRECT(CONCATENATE($B105,"!E21"))),"",INDIRECT(CONCATENATE($B105,"!E21"))) -> 36.50841316 | S105: =IF(ISERROR(INDIRECT(CONCATENATE($B105,"!F16"))),"",INDIRECT(CONCATENATE($B105,"!F16"))) -> 64.10618021 | T105: =IF(ISERROR(INDIRECT(CONCATENATE($B105,"!F23"))),"",INDIRECT(CONCATENATE($B105,"!F23"))) -> 87.83930766 | W105: =IF(ISERROR(INDIRECT(CONCATENATE($B105,"!F21"))),"",INDIRECT(CONCATENATE($B105,"!F21"))) -> 24.02719676 | X105: =IF(ISERROR(INDIRECT(CONCATENATE($B105,"!G16"))),"",INDIRECT(CONCATENATE($B105,"!G16"))) -> 93.65159144 | Y105: =IF(ISERROR(INDIRECT(CONCATENATE($B105,"!G23"))),"",INDIRECT(CONCATENATE($B105,"!G23"))) -> 94.06620619 | AB105: =IF(ISERROR(INDIRECT(CONCATENATE($B105,"!G221"))),"",INDIRECT(CONCATENATE($B105,"!G21"))) -> 3.972670838
B106: DHS03 | D106: 24.96639832 | E106: N/A | H106: 53.55036654 | I106: 41.67809545 | J106: N/A | M106: 39.34427588 | N106: 43.97652751 | O106: N/A | R106: 36.75631774 | S106: 55.02574756 | T106: N/A | W106: 24.76245494 | X106: 85.19261016 | Y106: N/A | AB106: 4.424833785
B107: DHS09 | C107: 2009 | D107: 44 | E107: 70.5 | H107: 41.1 | I107: 48.7 | J107: 80.7 | M107: 35.4 | N107: 54.1 | O107: 87.1 | R107: 30.8 | S107: 71.4 | T107: 92.4 | W107: 15.7 | X107: 91.2 | Y107: 97.5 | AB107: 4.6
B108: DHS14 | C108: 2014 | D108: 45.28753408 | E108: 74.23148665 | H108: 34.6563356 | I108: 54.6580872 | J108: 80.59120741 | M108: 25.29028401 | N108: 65.30098051 | O108: 86.87767864 | R108: 19.53607192 | S108: 81.41603349 | T108: 93.31945209 | W108: 10.40315609 | X108: 95.6038937 | Y108: 97.06669417 | AB108: 1.762685301
B109: MIS15 | C109: 2015 | D109: 49.15139609 | E109: 77.10517746 | H109: 39.892175 | I109: 65.69669325 | J109: 85.24462605 | M109: 27.92568345 | N109: 71.14445241 | O109: 89.76346854 | R109: 21.711053 | S109: 84.94194193 | T109: 95.36356453 | W109: 11.55700787 | X109: 96.16602197 | Y109: 97.97251744 | AB109: 2.196323308
D111: =IF(ISERROR(INDIRECT(CONCATENATE($B111,"!C16"))),"",INDIRECT(CONCATENATE($B111,"!C16"))) ->  | E111: =IF(ISERROR(INDIRECT(CONCATENATE($B111,"!C23"))),"",INDIRECT(CONCATENATE($B111,"!C23"))) ->  | H111: =IF(ISERROR(INDIRECT(CONCATENATE($B111,"!C21"))),"",INDIRECT(CONCATENATE($B111,"!C21"))) ->  | I111: =IF(ISERROR(INDIRECT(CONCATENATE($B111,"!D16"))),"",INDIRECT(CONCATENATE($B111,"!D16"))) ->  | J111: =IF(ISERROR(INDIRECT(CONCATENATE($B111,"!D23"))),"",INDIRECT(CONCATENATE($B111,"!D23"))) ->  | M111: =IF(ISERROR(INDIRECT(CONCATENATE($B111,"!D21"))),"",INDIRECT(CONCATENATE($B111,"!D21"))) ->  | N111: =IF(ISERROR(INDIRECT(CONCATENATE($B111,"!E16"))),"",INDIRECT(CONCATENATE($B111,"!E16"))) ->  | O111: =IF(ISERROR(INDIRECT(CONCATENATE($B111,"!E23"))),"",INDIRECT(CONCATENATE($B111,"!E23"))) ->  | R111: =IF(ISERROR(INDIRECT(CONCATENATE($B111,"!E21"))),"",INDIRECT(CONCATENATE($B111,"!E21"))) ->  | S111: =IF(ISERROR(INDIRECT(CONCATENATE($B111,"!F16"))),"",INDIRECT(CONCATENATE($B111,"!F16"))) ->  | T111: =IF(ISERROR(INDIRECT(CONCATENATE($B111,"!F23"))),"",INDIRECT(CONCATENATE($B111,"!F23"))) ->  | W111: =IF(ISERROR(INDIRECT(CONCATENATE($B111,"!F21"))),"",INDIRECT(CONCATENATE($B111,"!F21"))) ->  | X111: =IF(ISERROR(INDIRECT(CONCATENATE($B111,"!G16"))),"",INDIRECT(CONCATENATE($B111,"!G16"))) ->  | Y111: =IF(ISERROR(INDIRECT(CONCATENATE($B111,"!G23"))),"",INDIRECT(CONCATENATE($B111,"!G23"))) ->  | AB111: =IF(ISERROR(INDIRECT(CONCATENATE($B111,"!G221"))),"",INDIRECT(CONCATENATE($B111,"!G21"))) -> 
D112: =IF(ISERROR(INDIRECT(CONCATENATE($B112,"!C16"))),"",INDIRECT(CONCATENATE($B112,"!C16"))) ->  | E112: =IF(ISERROR(INDIRECT(CONCATENATE($B112,"!C23"))),"",INDIRECT(CONCATENATE($B112,"!C23"))) ->  | H112: =IF(ISERROR(INDIRECT(CONCATENATE($B112,"!C21"))),"",INDIRECT(CONCATENATE($B112,"!C21"))) ->  | I112: =IF(ISERROR(INDIRECT(CONCATENATE($B112,"!D16"))),"",INDIRECT(CONCATENATE($B112,"!D16"))) ->  | J112: =IF(ISERROR(INDIRECT(CONCATENATE($B112,"!D23"))),"",INDIRECT(CONCATENATE($B112,"!D23"))) ->  | M112: =IF(ISERROR(INDIRECT(CONCATENATE($B112,"!D21"))),"",INDIRECT(CONCATENATE($B112,"!D21"))) ->  | N112: =IF(ISERROR(INDIRECT(CONCATENATE($B112,"!E16"))),"",INDIRECT(CONCATENATE($B112,"!E16"))) ->  | O112: =IF(ISERROR(INDIRECT(CONCATENATE($B112,"!E23"))),"",INDIRECT(CONCATENATE($B112,"!E23"))) ->  | R112: =IF(ISERROR(INDIRECT(CONCATENATE($B112,"!E21"))),"",INDIRECT(CONCATENATE($B112,"!E21"))) ->  | S112: =IF(ISERROR(INDIRECT(CONCATENATE($B112,"!F16"))),"",INDIRECT(CONCATENATE($B112,"!F16"))) ->  | T112: =IF(ISERROR(INDIRECT(CONCATENATE($B112,"!F23"))),"",INDIRECT(CONCATENATE($B112,"!F23"))) ->  | W112: =IF(ISERROR(INDIRECT(CONCATENATE($B112,"!F21"))),"",INDIRECT(CONCATENATE($B112,"!F21"))) ->  | X112: =IF(ISERROR(INDIRECT(CONCATENATE($B112,"!G16"))),"",INDIRECT(CONCATENATE($B112,"!G16"))) ->  | Y112: =IF(ISERROR(INDIRECT(CONCATENATE($B112,"!G23"))),"",INDIRECT(CONCATENATE($B112,"!G23"))) ->  | AB112: =IF(ISERROR(INDIRECT(CONCATENATE($B112,"!G221"))),"",INDIRECT(CONCATENATE($B112,"!G21"))) -> 
B118: =CONCATENATE("National use of drinking water sources, ",C99,"–",C100) -> National use of drinking water sources, 2000–2020 | S118: Data points used for regression
E153: =IF(ISERROR(INDIRECT(CONCATENATE($B153,"!M18"))),"",INDIRECT(CONCATENATE($B153,"!M18"))) ->  | F153: =IF(ISERROR(INDIRECT(CONCATENATE($B153,"!M19"))),"",INDIRECT(CONCATENATE($B153,"!M19"))) ->  | G153: =IF(ISERROR(INDIRECT(CONCATENATE($B153,"!M20"))),"",INDIRECT(CONCATENATE($B153,"!M20"))) ->  | H153: =IF(ISERROR(INDIRECT(CONCATENATE($B153,"!M21"))),"",INDIRECT(CONCATENATE($B153,"!M21"))) ->  | J153: =IF(ISERROR(INDIRECT(CONCATENATE($B153,"!N18"))),"",INDIRECT(CONCATENATE($B153,"!N18"))) ->  | K153: =IF(ISERROR(INDIRECT(CONCATENATE($B153,"!N19"))),"",INDIRECT(CONCATENATE($B153,"!N19"))) ->  | L153: =IF(ISERROR(INDIRECT(CONCATENATE($B153,"!N20"))),"",INDIRECT(CONCATENATE($B153,"!N20"))) ->  | M153: =IF(ISERROR(INDIRECT(CONCATENATE($B153,"!N21"))),"",INDIRECT(CONCATENATE($B153,"!N21"))) ->  | O153: =IF(ISERROR(INDIRECT(CONCATENATE($B153,"!O18"))),"",INDIRECT(CONCATENATE($B153,"!O18"))) ->  | P153: =IF(ISERROR(INDIRECT(CONCATENATE($B153,"!O19"))),"",INDIRECT(CONCATENATE($B153,"!O19"))) ->  | Q153: =IF(ISERROR(INDIRECT(CONCATENATE($B153,"!O20"))),"",INDIRECT(CONCATENATE($B153,"!O20"))) ->  | R153: =IF(ISERROR(INDIRECT(CONCATENATE($B153,"!O21"))),"",INDIRECT(CONCATENATE($B153,"!O21"))) ->  | T153: =IF(ISERROR(INDIRECT(CONCATENATE($B153,"!P18"))),"",INDIRECT(CONCATENATE($B153,"!P18"))) ->  | U153: =IF(ISERROR(INDIRECT(CONCATENATE($B153,"!P19"))),"",INDIRECT(CONCATENATE($B153,"!P19"))) ->  | V153: =IF(ISERROR(INDIRECT(CONCATENATE($B153,"!P20"))),"",INDIRECT(CONCATENATE($B153,"!P20"))) ->  | W153: =IF(ISERROR(INDIRECT(CONCATENATE($B153,"!P21"))),"",INDIRECT(CONCATENATE($B153,"!P21"))) ->  | Y153: =IF(ISERROR(INDIRECT(CONCATENATE($B153,"!Q18"))),"",INDIRECT(CONCATENATE($B153,"!Q18"))) ->  | Z153: =IF(ISERROR(INDIRECT(CONCATENATE($B153,"!Q19"))),"",INDIRECT(CONCATENATE($B153,"!Q19"))) ->  | AA153: =IF(ISERROR(INDIRECT(CONCATENATE($B153,"!Q20"))),"",INDIRECT(CONCATENATE($B153,"!Q20"))) ->  | AB153: =IF(ISERROR(INDIRECT(CONCATENATE($B153,"!Q21"))),"",INDIRECT(CONCATENATE($B153,"!Q1"))) -> 
A197: URBAN | D197: Poorest | I197: Poor | N197: Middle | S197: Rich | X197: Richest
D198: Improved | E198: Basic | F198: Limited | G198: Unimproved | H198: Surface water | I198: Improved | J198: Basic | K198: Limited | L198: Unimproved | M198: Surface water | N198: Improved | O198: Basic | P198: Limited | Q198: Unimproved | R198: Surface water | S198: Improved | T198: Basic | U198: Limited | V198: Unimproved | W198: Surface water | X198: Improved | Y198: Basic | Z198: Limited | AA198: Unimproved | AB198: Surface water
A199: Forecast period: | C199: =MinBase(C205:C216) -> 2000 | D199: =IF((D201+H201)>100,D201*100/(D201+H201),D201) -> 93.42140786 | E199: =D199*AVERAGEIF(E205:E216,">0")/100 -> 85.8058632 | F199: =D199*(100-AVERAGEIF(E205:E216,">0"))/100 -> 7.615544665 | G199: =100-(E199+F199+H199) -> 5.443526716 | H199: =IF((D201+H201)>100,H201*100/(D201+H201),H201) -> 1.13506542 | I199: =IF((I201+M201)>100,I201*100/(I201+M201),I201) -> 94.26099202 | J199: =I199*AVERAGEIF(J205:J216,">0")/100 -> 88.92107452 | K199: =I199*(100-AVERAGEIF(J205:J216,">0"))/100 -> 5.339917499 | L199: =100-(J199+K199+M199) -> 3.666375757 | M199: =IF((I201+M201)>100,M201*100/(I201+M201),M201) -> 2.072632223 | N199: =IF((N201+R201)>100,N201*100/(N201+R201),N201) -> 95.16646788 | O199: =N199*AVERAGEIF(O205:O216,">0")/100 -> 92.27489919 | P199: =N199*(100-AVERAGEIF(O205:O216,">0"))/100 -> 2.89156869 | Q199: =100-(O199+P199+R199) -> 3.663011757 | R199: =IF((N201+R201)>100,R201*100/(N201+R201),R201) -> 1.170520365 | S199: =IF((S201+W201)>100,S201*100/(S201+W201),S201) -> 98.05741743 | T199: =S199*AVERAGEIF(T205:T216,">0")/100 -> 95.50305854 | U199: =S199*(100-AVERAGEIF(T205:T216,">0"))/100 -> 2.554358891 | V199: =100-(T199+U199+W199) -> 1.907729228 | W199: =IF((S201+W201)>100,W201*100/(S201+W201),W201) -> 0.03485334221 | X199: =IF((X201+AB201)>100,X201*100/(X201+AB201),X201) -> 100 | Y199: =X199*AVERAGEIF(Y205:Y216,">0")/100 -> 97.73351408 | Z199: =X199*(100-AVERAGEIF(Y205:Y216,">0"))/100 -> 2.266485918 | AA199: =100-(Y199+Z199+AB199) -> 0 | AB199: =IF((X201+AB201)>100,AB201*100/(X201+AB201),AB201) -> 0
C200: =MaxTarget(C205:C216) -> 2020 | D200: =IF((D202+H202)>100,D202*100/(D202+H202),D202) -> 66.27550906 | E200: =D200*AVERAGEIF(E205:E216,">0")/100 -> 60.87284911 | F200: =D200*(100-AVERAGEIF(E205:E216,">0"))/100 -> 5.402659958 | G200: =100-(E200+F200+H200) -> 13.53364017 | H200: =IF((D202+H202)>100,H202*100/(D202+H202),H202) -> 20.19085077 | I200: =IF((I202+M202)>100,I202*100/(I202+M202),I202) -> 89.91589265 | J200: =I200*AVERAGEIF(J205:J216,">0")/100 -> 84.82212652 | K200: =I200*(100-AVERAGEIF(J205:J216,">0"))/100 -> 5.093766131 | L200: =100-(J200+K200+M200) -> 4.040435839 | M200: =IF((I202+M202)>100,M202*100/(I202+M202),M202) -> 6.043671509 | N200: =IF((N202+R202)>100,N202*100/(N202+R202),N202) -> 95.62600567 | O200: =N200*AVERAGEIF(O205:O216,">0")/100 -> 92.72047423 | P200: =N200*(100-AVERAGEIF(O205:O216,">0"))/100 -> 2.905531435 | Q200: =100-(O200+P200+R200) -> 2.283464171 | R200: =IF((N202+R202)>100,R202*100/(N202+R202),R202) -> 2.090530161 | S200: =IF((S202+W202)>100,S202*100/(S202+W202),S202) -> 96.20522575 | T200: =S200*AVERAGEIF(T205:T216,">0")/100 -> 93.69911576 | U200: =S200*(100-AVERAGEIF(T205:T216,">0"))/100 -> 2.506109994 | V200: =100-(T200+U200+W200) -> 2.644041318 | W200: =IF((S202+W202)>100,W202*100/(S202+W202),W202) -> 1.150732928 | X200: =IF((X202+AB202)>100,X202*100/(X202+AB202),X202) -> 98.53248078 | Y200: =X200*AVERAGEIF(Y205:Y216,">0")/100 -> 96.29925598 | Z200: =X200*(100-AVERAGEIF(Y205:Y216,">0"))/100 -> 2.233224802 | AA200: =100-(Y200+Z200+AB200) -> 1.388752423 | AB200: =IF((X202+AB202)>100,AB202*100/(X202+AB202),AB202) -> 0.07876679708
A201: Regression period: | C201: =MinRegYear(C199,C205:C216) -> 2000 | D201: =IF(MAX(C205:C216)-MIN(C205:C216)<5,AVERAGEIF(C205:C216,">0",D205:D216), IF(FORECAST($C201,D$205:D$216,$C$205:$C$216)<0,0, IF(FORECAST($C201,D$205:D$216,$C$205:$C$216)>100,100, FORECAST($C201,D$205:D$216,$C$205:$C$216)))) -> 93.42140786 | H201: =IF(MAX(C205:C216)-MIN(C205:C216)<5,AVERAGEIF(C205:C216,">0",H205:H216), IF(FORECAST($C201,H$205:H$216,$C$205:$C$216)<0,0, IF(FORECAST($C201,H$205:H$216,$C$205:$C$216)>100,100, FORECAST($C201,H$205:H$216,$C$205:$C$216)))) -> 1.13506542 | I201: =IF(MAX(C205:C216)-MIN(C205:C216)<5,AVERAGEIF(C205:C216,">0",I205:I216), IF(FORECAST($C201,I$205:I$216,$C$205:$C$216)<0,0, IF(FORECAST($C201,I$205:I$216,$C$205:$C$216)>100,100, FORECAST($C201,I$205:I$216,$C$205:$C$216)))) -> 94.26099202 | M201: =IF(MAX(C205:C216)-MIN(C205:C216)<5,AVERAGEIF(C205:C216,">0",M205:M216), IF(FORECAST($C201,M$205:M$216,$C$205:$C$216)<0,0, IF(FORECAST($C201,M$205:M$216,$C$205:$C$216)>100,100, FORECAST($C201,M$205:M$216,$C$205:$C$216)))) -> 2.072632223 | N201: =IF(MAX(C205:C216)-MIN(C205:C216)<5,AVERAGEIF(C205:C216,">0",N205:N216), IF(FORECAST($C201,N$205:N$216,$C$205:$C$216)<0,0, IF(FORECAST($C201,N$205:N$216,$C$205:$C$216)>100,100, FORECAST($C201,N$205:N$216,$C$205:$C$216)))) -> 95.16646788 | R201: =IF(MAX(C205:C216)-MIN(C205:C216)<5,AVERAGEIF(C205:C216,">0",R205:R216), IF(FORECAST($C201,R$205:R$216,$C$205:$C$216)<0,0, IF(FORECAST($C201,R$205:R$216,$C$205:$C$216)>100,100, FORECAST($C201,R$205:R$216,$C$205:$C$216)))) -> 1.170520365 | S201: =IF(MAX(C205:C216)-MIN(C205:C216)<5,AVERAGEIF(C205:C216,">0",S205:S216), IF(FORECAST($C201,S$205:S$216,$C$205:$C$216)<0,0, IF(FORECAST($C201,S$205:S$216,$C$205:$C$216)>100,100, FORECAST($C201,S$205:S$216,$C$205:$C$216)))) -> 98.05741743 | W201: =IF(MAX(C205:C216)-MIN(C205:C216)<5,AVERAGEIF(C205:C216,">0",W205:W216), IF(FORECAST($C201,W$205:W$216,$C$205:$C$216)<0,0, IF(FORECAST($C201,W$205:W$216,$C$205:$C$216)>100,100, FORECAST($C201,W$205:W$216,$C$205:$C$216)))) -> 0.03485334221 | X201: =IF(MAX(C205:C216)-MIN(C205:C216)<5,AVERAGEIF(C205:C216,">0",X205:X216), IF(FORECAST($C201,X$205:X$216,$C$205:$C$216)<0,0, IF(FORECAST($C201,X$205:X$216,$C$205:$C$216)>100,100, FORECAST($C201,X$205:X$216,$C$205:$C$216)))) -> 100 | AB201: =IF(MAX(C205:C216)-MIN(C205:C216)<5,AVERAGEIF(C205:C216,">0",AB205:AB216), IF(FORECAST($C201,AB$205:AB$216,$C$205:$C$216)<0,0, IF(FORECAST($C201,AB$205:AB$216,$C$205:$C$216)>100,100, FORECAST($C201,AB$205:AB$216,$C$205:$C$216)))) -> 0
C202: =MaxRegYear(C200,C205:C216) -> 2017 | D202: =IF(MAX(C205:C216)-MIN(C205:C216)<5,AVERAGEIF(C205:C216,">0",D205:D216), IF(FORECAST($C202,D$205:D$216,$C$205:$C$216)<0,0, IF(FORECAST($C202,D$205:D$216,$C$205:$C$216)>100,100, FORECAST($C202,D$205:D$216,$C$205:$C$216)))) -> 66.27550906 | H202: =IF(MAX(C205:C216)-MIN(C205:C216)<5,AVERAGEIF(C205:C216,">0",H205:H216), IF(FORECAST($C202,H$205:H$216,$C$205:$C$216)<0,0, IF(FORECAST($C202,H$205:H$216,$C$205:$C$216)>100,100, FORECAST($C202,H$205:H$216,$C$205:$C$216)))) -> 20.19085077 | I202: =IF(MAX(C205:C216)-MIN(C205:C216)<5,AVERAGEIF(C205:C216,">0",I205:I216), IF(FORECAST($C202,I$205:I$216,$C$205:$C$216)<0,0, IF(FORECAST($C202,I$205:I$216,$C$205:$C$216)>100,100, FORECAST($C202,I$205:I$216,$C$205:$C$216)))) -> 89.91589265 | M202: =IF(MAX(C205:C216)-MIN(C205:C216)<5,AVERAGEIF(C205:C216,">0",M205:M216), IF(FORECAST($C202,M$205:M$216,$C$205:$C$216)<0,0, IF(FORECAST($C202,M$205:M$216,$C$205:$C$216)>100,100, FORECAST($C202,M$205:M$216,$C$205:$C$216)))) -> 6.043671509 | N202: =IF(MAX(C205:C216)-MIN(C205:C216)<5,AVERAGEIF(C205:C216,">0",N205:N216), IF(FORECAST($C202,N$205:N$216,$C$205:$C$216)<0,0, IF(FORECAST($C202,N$205:N$216,$C$205:$C$216)>100,100, FORECAST($C202,N$205:N$216,$C$205:$C$216)))) -> 95.62600567 | R202: =IF(MAX(C205:C216)-MIN(C205:C216)<5,AVERAGEIF(C205:C216,">0",R205:R216), IF(FORECAST($C202,R$205:R$216,$C$205:$C$216)<0,0, IF(FORECAST($C202,R$205:R$216,$C$205:$C$216)>100,100, FORECAST($C202,R$205:R$216,$C$205:$C$216)))) -> 2.090530161 | S202: =IF(MAX(C205:C216)-MIN(C205:C216)<5,AVERAGEIF(C205:C216,">0",S205:S216), IF(FORECAST($C202,S$205:S$216,$C$205:$C$216)<0,0, IF(FORECAST($C202,S$205:S$216,$C$205:$C$216)>100,100, FORECAST($C202,S$205:S$216,$C$205:$C$216)))) -> 96.20522575 | W202: =IF(MAX(C205:C216)-MIN(C205:C216)<5,AVERAGEIF(C205:C216,">0",W205:W216), IF(FORECAST($C202,W$205:W$216,$C$205:$C$216)<0,0, IF(FORECAST($C202,W$205:W$216,$C$205:$C$216)>100,100, FORECAST($C202,W$205:W$216,$C$205:$C$216)))) -> 1.150732928 | X202: =IF(MAX(C205:C216)-MIN(C205:C216)<5,AVERAGEIF(C205:C216,">0",X205:X216), IF(FORECAST($C202,X$205:X$216,$C$205:$C$216)<0,0, IF(FORECAST($C202,X$205:X$216,$C$205:$C$216)>100,100, FORECAST($C202,X$205:X$216,$C$205:$C$216)))) -> 98.53248078 | AB202: =IF(MAX(C205:C216)-MIN(C205:C216)<5,AVERAGEIF(C205:C216,">0",AB205:AB216), IF(FORECAST($C202,AB$205:AB$216,$C$205:$C$216)<0,0, IF(FORECAST($C202,AB$205:AB$216,$C$205:$C$216)>100,100, FORECAST($C202,AB$205:AB$216,$C$205:$C$216)))) -> 0.07876679708
B204: Survey | C204: Year | D204: Improved | E204: % Improved < = 30min | H204: Surface water | I204: Improved | J204: % Improved < = 30min | M204: Surface water | N204: Improved | O204: % Improved < = 30min | R204: Surface water | S204: Improved | T204: % Improved < = 30min | W204: Surface water | X204: Improved | Y204: % Improved < = 30min | AB204: Surface water
B205: MICS00 | C205: 2000 | D205: =IF(ISERROR(INDIRECT(CONCATENATE($B205,"!H16"))),"",INDIRECT(CONCATENATE($B205,"!H16"))) -> 92.30391587 | E205: =IF(ISERROR(INDIRECT(CONCATENATE($B205,"!H23"))),"",INDIRECT(CONCATENATE($B205,"!H23"))) -> 93.36443405 | H205: =IF(ISERROR(INDIRECT(CONCATENATE($B205,"!H21"))),"",INDIRECT(CONCATENATE($B205,"!H21"))) -> 3.128436394 | I205: =IF(ISERROR(INDIRECT(CONCATENATE($B205,"!I16"))),"",INDIRECT(CONCATENATE($B205,"!I16"))) -> 94.15680288 | J205: =IF(ISERROR(INDIRECT(CONCATENATE($B205,"!I23"))),"",INDIRECT(CONCATENATE($B205,"!I23"))) -> 90.16995629 | M205: =IF(ISERROR(INDIRECT(CONCATENATE($B205,"!I21"))),"",INDIRECT(CONCATENATE($B205,"!I21"))) -> 2.881704769 | N205: =IF(ISERROR(INDIRECT(CONCATENATE($B205,"!J16"))),"",INDIRECT(CONCATENATE($B205,"!J16"))) -> 94.92557925 | O205: =IF(ISERROR(INDIRECT(CONCATENATE($B205,"!J23"))),"",INDIRECT(CONCATENATE($B205,"!J23"))) -> 94.35627029 | R205: =IF(ISERROR(INDIRECT(CONCATENATE($B205,"!J21"))),"",INDIRECT(CONCATENATE($B205,"!J21"))) -> 1.430909008 | S205: =IF(ISERROR(INDIRECT(CONCATENATE($B205,"!K16"))),"",INDIRECT(CONCATENATE($B205,"!K16"))) -> 99.46685068 | T205: =IF(ISERROR(INDIRECT(CONCATENATE($B205,"!K23"))),"",INDIRECT(CONCATENATE($B205,"!K23"))) -> 94.04991679 | W205: =IF(ISERROR(INDIRECT(CONCATENATE($B205,"!K21"))),"",INDIRECT(CONCATENATE($B205,"!K21"))) -> 0.05696678778 | X205: =IF(ISERROR(INDIRECT(CONCATENATE($B205,"!L16"))),"",INDIRECT(CONCATENATE($B205,"!L16"))) -> 100 | Y205: =IF(ISERROR(INDIRECT(CONCATENATE($B205,"!L23"))),"",INDIRECT(CONCATENATE($B205,"!L23"))) -> 98.30668862 | AB205: =IF(ISERROR(INDIRECT(CONCATENATE($B205,"!L221"))),"",INDIRECT(CONCATENATE($B205,"!L21"))) -> 0
B206: DHS03 | D206: 49.25431596 | E206: N/A | H206: 14.15802824 | I206: 75.01841 | J206: N/A | M206: 3.679368264 | N206: 80.71428535 | O206: N/A | R206: 2.06735039 | S206: 94.66996055 | T206: N/A | W206: 0.07693579099 | X206: 96.93168968 | Y206: N/A | AB206: 0
B207: DHS09 | C207: 2009 | D207: 82.7 | E207: 95.9 | H207: 6.1 | I207: 92.7 | J207: 95.3 | M207: 2 | N207: 96.4 | O207: 99.2 | R207: 1 | S207: 93.4 | T207: 99 | W207: 0.6 | X207: 99.5 | Y207: 98.3 | AB207: 0
B208: DHS14 | C208: 2014 | D208: 65.92863982 | E208: 89.95010088 | H208: 17.66803471 | I208: 87.80938373 | J208: 95.51601112 | M208: 6.256494515 | N208: 93.21675574 | O208: 96.3678938 | R208: 1.967852086 | S208: 97.45165656 | T208: 97.41810629 | W208: 0.7757900545 | X208: 99.28625394 | Y208: 97.70845682 | AB208: 0.1609582375
B209: MIS15 | C209: 2015 | D209: 72.07400787 | E209: 88.17818655 | H209: 20.23907547 | I209: 92.66520641 | J209: 96.35389552 | M209: 6.028770366 | N209: 97.15073864 | O209: 97.92210674 | R209: 2.339812851 | S209: 97.77096932 | T209: 99.11212717 | W209: 1.2009756 | X209: 98.14481397 | Y209: 96.61891088 | AB209: 0
B218: =CONCATENATE("Urban use of drinking water sources, ",C199,"–",C200) -> Urban use of drinking water sources, 2000–2020 | S218: Data points used for regression
E253: =IF(ISERROR(INDIRECT(CONCATENATE($B253,"!M18"))),"",INDIRECT(CONCATENATE($B253,"!M18"))) ->  | F253: =IF(ISERROR(INDIRECT(CONCATENATE($B253,"!M19"))),"",INDIRECT(CONCATENATE($B253,"!M19"))) ->  | G253: =IF(ISERROR(INDIRECT(CONCATENATE($B253,"!M20"))),"",INDIRECT(CONCATENATE($B253,"!M20"))) ->  | H253: =IF(ISERROR(INDIRECT(CONCATENATE($B253,"!M21"))),"",INDIRECT(CONCATENATE($B253,"!M21"))) ->  | J253: =IF(ISERROR(INDIRECT(CONCATENATE($B253,"!N18"))),"",INDIRECT(CONCATENATE($B253,"!N18"))) ->  | K253: =IF(ISERROR(INDIRECT(CONCATENATE($B253,"!N19"))),"",INDIRECT(CONCATENATE($B253,"!N19"))) ->  | L253: =IF(ISERROR(INDIRECT(CONCATENATE($B253,"!N20"))),"",INDIRECT(CONCATENATE($B253,"!N20"))) ->  | M253: =IF(ISERROR(INDIRECT(CONCATENATE($B253,"!N21"))),"",INDIRECT(CONCATENATE($B253,"!N21"))) ->  | O253: =IF(ISERROR(INDIRECT(CONCATENATE($B253,"!O18"))),"",INDIRECT(CONCATENATE($B253,"!O18"))) ->  | P253: =IF(ISERROR(INDIRECT(CONCATENATE($B253,"!O19"))),"",INDIRECT(CONCATENATE($B253,"!O19"))) ->  | Q253: =IF(ISERROR(INDIRECT(CONCATENATE($B253,"!O20"))),"",INDIRECT(CONCATENATE($B253,"!O20"))) ->  | R253: =IF(ISERROR(INDIRECT(CONCATENATE($B253,"!O21"))),"",INDIRECT(CONCATENATE($B253,"!O21"))) ->  | T253: =IF(ISERROR(INDIRECT(CONCATENATE($B253,"!P18"))),"",INDIRECT(CONCATENATE($B253,"!P18"))) ->  | U253: =IF(ISERROR(INDIRECT(CONCATENATE($B253,"!P19"))),"",INDIRECT(CONCATENATE($B253,"!P19"))) ->  | V253: =IF(ISERROR(INDIRECT(CONCATENATE($B253,"!P20"))),"",INDIRECT(CONCATENATE($B253,"!P20"))) ->  | W253: =IF(ISERROR(INDIRECT(CONCATENATE($B253,"!P21"))),"",INDIRECT(CONCATENATE($B253,"!P21"))) ->  | Y253: =IF(ISERROR(INDIRECT(CONCATENATE($B253,"!Q18"))),"",INDIRECT(CONCATENATE($B253,"!Q18"))) ->  | Z253: =IF(ISERROR(INDIRECT(CONCATENATE($B253,"!Q19"))),"",INDIRECT(CONCATENATE($B253,"!Q19"))) ->  | AA253: =IF(ISERROR(INDIRECT(CONCATENATE($B253,"!Q20"))),"",INDIRECT(CONCATENATE($B253,"!Q20"))) ->  | AB253: =IF(ISERROR(INDIRECT(CONCATENATE($B253,"!Q21"))),"",INDIRECT(CONCATENATE($B253,"!Q1"))) -> 
E254: =IF(ISERROR(INDIRECT(CONCATENATE($B254,"!M18"))),"",INDIRECT(CONCATENATE($B254,"!M18"))) ->  | F254: =IF(ISERROR(INDIRECT(CONCATENATE($B254,"!M19"))),"",INDIRECT(CONCATENATE($B254,"!M19"))) ->  | G254: =IF(ISERROR(INDIRECT(CONCATENATE($B254,"!M20"))),"",INDIRECT(CONCATENATE($B254,"!M20"))) ->  | H254: =IF(ISERROR(INDIRECT(CONCATENATE($B254,"!M21"))),"",INDIRECT(CONCATENATE($B254,"!M21"))) ->  | J254: =IF(ISERROR(INDIRECT(CONCATENATE($B254,"!N18"))),"",INDIRECT(CONCATENATE($B254,"!N18"))) ->  | K254: =IF(ISERROR(INDIRECT(CONCATENATE($B254,"!N19"))),"",INDIRECT(CONCATENATE($B254,"!N19"))) ->  | L254: =IF(ISERROR(INDIRECT(CONCATENATE($B254,"!N20"))),"",INDIRECT(CONCATENATE($B254,"!N20"))) ->  | M254: =IF(ISERROR(INDIRECT(CONCATENATE($B254,"!N21"))),"",INDIRECT(CONCATENATE($B254,"!N21"))) ->  | O254: =IF(ISERROR(INDIRECT(CONCATENATE($B254,"!O18"))),"",INDIRECT(CONCATENATE($B254,"!O18"))) ->  | P254: =IF(ISERROR(INDIRECT(CONCATENATE($B254,"!O19"))),"",INDIRECT(CONCATENATE($B254,"!O19"))) ->  | Q254: =IF(ISERROR(INDIRECT(CONCATENATE($B254,"!O20"))),"",INDIRECT(CONCATENATE($B254,"!O20"))) ->  | R254: =IF(ISERROR(INDIRECT(CONCATENATE($B254,"!O21"))),"",INDIRECT(CONCATENATE($B254,"!O21"))) ->  | T254: =IF(ISERROR(INDIRECT(CONCATENATE($B254,"!P18"))),"",INDIRECT(CONCATENATE($B254,"!P18"))) ->  | U254: =IF(ISERROR(INDIRECT(CONCATENATE($B254,"!P19"))),"",INDIRECT(CONCATENATE($B254,"!P19"))) ->  | V254: =IF(ISERROR(INDIRECT(CONCATENATE($B254,"!P20"))),"",INDIRECT(CONCATENATE($B254,"!P20"))) ->  | W254: =IF(ISERROR(INDIRECT(CONCATENATE($B254,"!P21"))),"",INDIRECT(CONCATENATE($B254,"!P21"))) ->  | Y254: =IF(ISERROR(INDIRECT(CONCATENATE($B254,"!Q18"))),"",INDIRECT(CONCATENATE($B254,"!Q18"))) ->  | Z254: =IF(ISERROR(INDIRECT(CONCATENATE($B254,"!Q19"))),"",INDIRECT(CONCATENATE($B254,"!Q19"))) ->  | AA254: =IF(ISERROR(INDIRECT(CONCATENATE($B254,"!Q20"))),"",INDIRECT(CONCATENATE($B254,"!Q20"))) ->  | AB254: =IF(ISERROR(INDIRECT(CONCATENATE($B254,"!Q21"))),"",INDIRECT(CONCATENATE($B254,"!Q1"))) -> 
E255: =IF(ISERROR(INDIRECT(CONCATENATE($B255,"!M18"))),"",INDIRECT(CONCATENATE($B255,"!M18"))) ->  | F255: =IF(ISERROR(INDIRECT(CONCATENATE($B255,"!M19"))),"",INDIRECT(CONCATENATE($B255,"!M19"))) ->  | G255: =IF(ISERROR(INDIRECT(CONCATENATE($B255,"!M20"))),"",INDIRECT(CONCATENATE($B255,"!M20"))) ->  | H255: =IF(ISERROR(INDIRECT(CONCATENATE($B255,"!M21"))),"",INDIRECT(CONCATENATE($B255,"!M21"))) ->  | J255: =IF(ISERROR(INDIRECT(CONCATENATE($B255,"!N18"))),"",INDIRECT(CONCATENATE($B255,"!N18"))) ->  | K255: =IF(ISERROR(INDIRECT(CONCATENATE($B255,"!N19"))),"",INDIRECT(CONCATENATE($B255,"!N19"))) ->  | L255: =IF(ISERROR(INDIRECT(CONCATENATE($B255,"!N20"))),"",INDIRECT(CONCATENATE($B255,"!N20"))) ->  | M255: =IF(ISERROR(INDIRECT(CONCATENATE($B255,"!N21"))),"",INDIRECT(CONCATENATE($B255,"!N21"))) ->  | O255: =IF(ISERROR(INDIRECT(CONCATENATE($B255,"!O18"))),"",INDIRECT(CONCATENATE($B255,"!O18"))) ->  | P255: =IF(ISERROR(INDIRECT(CONCATENATE($B255,"!O19"))),"",INDIRECT(CONCATENATE($B255,"!O19"))) ->  | Q255: =IF(ISERROR(INDIRECT(CONCATENATE($B255,"!O20"))),"",INDIRECT(CONCATENATE($B255,"!O20"))) ->  | R255: =IF(ISERROR(INDIRECT(CONCATENATE($B255,"!O21"))),"",INDIRECT(CONCATENATE($B255,"!O21"))) ->  | T255: =IF(ISERROR(INDIRECT(CONCATENATE($B255,"!P18"))),"",INDIRECT(CONCATENATE($B255,"!P18"))) ->  | U255: =IF(ISERROR(INDIRECT(CONCATENATE($B255,"!P19"))),"",INDIRECT(CONCATENATE($B255,"!P19"))) ->  | V255: =IF(ISERROR(INDIRECT(CONCATENATE($B255,"!P20"))),"",INDIRECT(CONCATENATE($B255,"!P20"))) ->  | W255: =IF(ISERROR(INDIRECT(CONCATENATE($B255,"!P21"))),"",INDIRECT(CONCATENATE($B255,"!P21"))) ->  | Y255: =IF(ISERROR(INDIRECT(CONCATENATE($B255,"!Q18"))),"",INDIRECT(CONCATENATE($B255,"!Q18"))) ->  | Z255: =IF(ISERROR(INDIRECT(CONCATENATE($B255,"!Q19"))),"",INDIRECT(CONCATENATE($B255,"!Q19"))) ->  | AA255: =IF(ISERROR(INDIRECT(CONCATENATE($B255,"!Q20"))),"",INDIRECT(CONCATENATE($B255,"!Q20"))) ->  | AB255: =IF(ISERROR(INDIRECT(CONCATENATE($B255,"!Q21"))),"",INDIRECT(CONCATENATE($B255,"!Q1"))) -> 
E256: =IF(ISERROR(INDIRECT(CONCATENATE($B256,"!M18"))),"",INDIRECT(CONCATENATE($B256,"!M18"))) ->  | F256: =IF(ISERROR(INDIRECT(CONCATENATE($B256,"!M19"))),"",INDIRECT(CONCATENATE($B256,"!M19"))) ->  | G256: =IF(ISERROR(INDIRECT(CONCATENATE($B256,"!M20"))),"",INDIRECT(CONCATENATE($B256,"!M20"))) ->  | H256: =IF(ISERROR(INDIRECT(CONCATENATE($B256,"!M21"))),"",INDIRECT(CONCATENATE($B256,"!M21"))) ->  | J256: =IF(ISERROR(INDIRECT(CONCATENATE($B256,"!N18"))),"",INDIRECT(CONCATENATE($B256,"!N18"))) ->  | K256: =IF(ISERROR(INDIRECT(CONCATENATE($B256,"!N19"))),"",INDIRECT(CONCATENATE($B256,"!N19"))) ->  | L256: =IF(ISERROR(INDIRECT(CONCATENATE($B256,"!N20"))),"",INDIRECT(CONCATENATE($B256,"!N20"))) ->  | M256: =IF(ISERROR(INDIRECT(CONCATENATE($B256,"!N21"))),"",INDIRECT(CONCATENATE($B256,"!N21"))) ->  | O256: =IF(ISERROR(INDIRECT(CONCATENATE($B256,"!O18"))),"",INDIRECT(CONCATENATE($B256,"!O18"))) ->  | P256: =IF(ISERROR(INDIRECT(CONCATENATE($B256,"!O19"))),"",INDIRECT(CONCATENATE($B256,"!O19"))) ->  | Q256: =IF(ISERROR(INDIRECT(CONCATENATE($B256,"!O20"))),"",INDIRECT(CONCATENATE($B256,"!O20"))) ->  | R256: =IF(ISERROR(INDIRECT(CONCATENATE($B256,"!O21"))),"",INDIRECT(CONCATENATE($B256,"!O21"))) ->  | T256: =IF(ISERROR(INDIRECT(CONCATENATE($B256,"!P18"))),"",INDIRECT(CONCATENATE($B256,"!P18"))) ->  | U256: =IF(ISERROR(INDIRECT(CONCATENATE($B256,"!P19"))),"",INDIRECT(CONCATENATE($B256,"!P19"))) ->  | V256: =IF(ISERROR(INDIRECT(CONCATENATE($B256,"!P20"))),"",INDIRECT(CONCATENATE($B256,"!P20"))) ->  | W256: =IF(ISERROR(INDIRECT(CONCATENATE($B256,"!P21"))),"",INDIRECT(CONCATENATE($B256,"!P21"))) ->  | Y256: =IF(ISERROR(INDIRECT(CONCATENATE($B256,"!Q18"))),"",INDIRECT(CONCATENATE($B256,"!Q18"))) ->  | Z256: =IF(ISERROR(INDIRECT(CONCATENATE($B256,"!Q19"))),"",INDIRECT(CONCATENATE($B256,"!Q19"))) ->  | AA256: =IF(ISERROR(INDIRECT(CONCATENATE($B256,"!Q20"))),"",INDIRECT(CONCATENATE($B256,"!Q20"))) ->  | AB256: =IF(ISERROR(INDIRECT(CONCATENATE($B256,"!Q21"))),"",INDIRECT(CONCATENATE($B256,"!Q1"))) -> 
E257: =IF(ISERROR(INDIRECT(CONCATENATE($B257,"!M18"))),"",INDIRECT(CONCATENATE($B257,"!M18"))) ->  | F257: =IF(ISERROR(INDIRECT(CONCATENATE($B257,"!M19"))),"",INDIRECT(CONCATENATE($B257,"!M19"))) ->  | G257: =IF(ISERROR(INDIRECT(CONCATENATE($B257,"!M20"))),"",INDIRECT(CONCATENATE($B257,"!M20"))) ->  | H257: =IF(ISERROR(INDIRECT(CONCATENATE($B257,"!M21"))),"",INDIRECT(CONCATENATE($B257,"!M21"))) ->  | J257: =IF(ISERROR(INDIRECT(CONCATENATE($B257,"!N18"))),"",INDIRECT(CONCATENATE($B257,"!N18"))) ->  | K257: =IF(ISERROR(INDIRECT(CONCATENATE($B257,"!N19"))),"",INDIRECT(CONCATENATE($B257,"!N19"))) ->  | L257: =IF(ISERROR(INDIRECT(CONCATENATE($B257,"!N20"))),"",INDIRECT(CONCATENATE($B257,"!N20"))) ->  | M257: =IF(ISERROR(INDIRECT(CONCATENATE($B257,"!N21"))),"",INDIRECT(CONCATENATE($B257,"!N21"))) ->  | O257: =IF(ISERROR(INDIRECT(CONCATENATE($B257,"!O18"))),"",INDIRECT(CONCATENATE($B257,"!O18"))) ->  | P257: =IF(ISERROR(INDIRECT(CONCATENATE($B257,"!O19"))),"",INDIRECT(CONCATENATE($B257,"!O19"))) ->  | Q257: =IF(ISERROR(INDIRECT(CONCATENATE($B257,"!O20"))),"",INDIRECT(CONCATENATE($B257,"!O20"))) ->  | R257: =IF(ISERROR(INDIRECT(CONCATENATE($B257,"!O21"))),"",INDIRECT(CONCATENATE($B257,"!O21"))) ->  | T257: =IF(ISERROR(INDIRECT(CONCATENATE($B257,"!P18"))),"",INDIRECT(CONCATENATE($B257,"!P18"))) ->  | U257: =IF(ISERROR(INDIRECT(CONCATENATE($B257,"!P19"))),"",INDIRECT(CONCATENATE($B257,"!P19"))) ->  | V257: =IF(ISERROR(INDIRECT(CONCATENATE($B257,"!P20"))),"",INDIRECT(CONCATENATE($B257,"!P20"))) ->  | W257: =IF(ISERROR(INDIRECT(CONCATENATE($B257,"!P21"))),"",INDIRECT(CONCATENATE($B257,"!P21"))) ->  | Y257: =IF(ISERROR(INDIRECT(CONCATENATE($B257,"!Q18"))),"",INDIRECT(CONCATENATE($B257,"!Q18"))) ->  | Z257: =IF(ISERROR(INDIRECT(CONCATENATE($B257,"!Q19"))),"",INDIRECT(CONCATENATE($B257,"!Q19"))) ->  | AA257: =IF(ISERROR(INDIRECT(CONCATENATE($B257,"!Q20"))),"",INDIRECT(CONCATENATE($B257,"!Q20"))) ->  | AB257: =IF(ISERROR(INDIRECT(CONCATENATE($B257,"!Q21"))),"",INDIRECT(CONCATENATE($B257,"!Q1"))) -> 
A297: RURAL | D297: Poorest | I297: Poor | N297: Middle | S297: Rich | X297: Richest
D298: Improved | E298: Basic | F298: Limited | G298: Unimproved | H298: Surface water | I298: Improved | J298: Basic | K298: Limited | L298: Unimproved | M298: Surface water | N298: Improved | O298: Basic | P298: Limited | Q298: Unimproved | R298: Surface water | S298: Improved | T298: Basic | U298: Limited | V298: Unimproved | W298: Surface water | X298: Improved | Y298: Basic | Z298: Limited | AA298: Unimproved | AB298: Surface water
A299: Forecast period: | C299: 2000 | D299: =IF((D301+H301)>100,D301*100/(D301+H301),D301) -> 33.91374293 | E299: =D299*AVERAGEIF(E305:E316,">0")/100 -> 24.05382162 | F299: =D299*(100-AVERAGEIF(E305:E316,">0"))/100 -> 9.859921312 | G299: =100-(E299+F299+H299) -> 21.25504789 | H299: =IF((D301+H301)>100,H301*100/(D301+H301),H301) -> 44.83120918 | I299: =IF((I301+M301)>100,I301*100/(I301+M301),I301) -> 36.86950407 | J299: =I299*AVERAGEIF(J305:J316,">0")/100 -> 29.78643907 | K299: =I299*(100-AVERAGEIF(J305:J316,">0"))/100 -> 7.083064999 | L299: =100-(J299+K299+M299) -> 22.49422637 | M299: =IF((I301+M301)>100,M301*100/(I301+M301),M301) -> 40.63626956 | N299: =IF((N301+R301)>100,N301*100/(N301+R301),N301) -> 39.82752344 | O299: =N299*AVERAGEIF(O305:O316,">0")/100 -> 32.96358958 | P299: =N299*(100-AVERAGEIF(O305:O316,">0"))/100 -> 6.86393386 | Q299: =100-(O299+P299+R299) -> 24.46842052 | R299: =IF((N301+R301)>100,R301*100/(N301+R301),R301) -> 35.70405604 | S299: =IF((S301+W301)>100,S301*100/(S301+W301),S301) -> 42.65810641 | T299: =S299*AVERAGEIF(T305:T316,">0")/100 -> 36.48268437 | U299: =S299*(100-AVERAGEIF(T305:T316,">0"))/100 -> 6.175422045 | V299: =100-(T299+U299+W299) -> 18.40245396 | W299: =IF((S301+W301)>100,W301*100/(S301+W301),W301) -> 38.93943962 | X299: =IF((X301+AB301)>100,X301*100/(X301+AB301),X301) -> 62.10220585 | Y299: =X299*AVERAGEIF(Y305:Y316,">0")/100 -> 56.99957848 | Z299: =X299*(100-AVERAGEIF(Y305:Y316,">0"))/100 -> 5.10262737 | AA299: =100-(Y299+Z299+AB299) -> 11.24566215 | AB299: =IF((X301+AB301)>100,AB301*100/(X301+AB301),AB301) -> 26.652132
C300: 2020 | D300: =IF((D302+H302)>100,D302*100/(D302+H302),D302) -> 47.07680183 | E300: =D300*AVERAGEIF(E305:E316,">0")/100 -> 33.38991499 | F300: =D300*(100-AVERAGEIF(E305:E316,">0"))/100 -> 13.68688684 | G300: =100-(E300+F300+H300) -> 13.52831517 | H300: =IF((D302+H302)>100,H302*100/(D302+H302),H302) -> 39.39488301 | I300: =IF((I302+M302)>100,I302*100/(I302+M302),I302) -> 56.43659639 | J300: =I300*AVERAGEIF(J305:J316,">0")/100 -> 45.59446302 | K300: =I300*(100-AVERAGEIF(J305:J316,">0"))/100 -> 10.84213337 | L300: =100-(J300+K300+M300) -> 12.80519032 | M300: =IF((I302+M302)>100,M302*100/(I302+M302),M302) -> 30.75821329 | N300: =IF((N302+R302)>100,N302*100/(N302+R302),N302) -> 64.72161865 | O300: =N300*AVERAGEIF(O305:O316,">0")/100 -> 53.56739987 | P300: =N300*(100-AVERAGEIF(O305:O316,">0"))/100 -> 11.15421878 | Q300: =100-(O300+P300+R300) -> 10.07758779 | R300: =IF((N302+R302)>100,R302*100/(N302+R302),R302) -> 25.20079356 | S300: =IF((S302+W302)>100,S302*100/(S302+W302),S302) -> 69.40090836 | T300: =S300*AVERAGEIF(T305:T316,">0")/100 -> 59.35405125 | U300: =S300*(100-AVERAGEIF(T305:T316,">0"))/100 -> 10.0468571 | V300: =100-(T300+U300+W300) -> 10.94204074 | W300: =IF((S302+W302)>100,W302*100/(S302+W302),W302) -> 19.6570509 | X300: =IF((X302+AB302)>100,X302*100/(X302+AB302),X302) -> 83.25508214 | Y300: =X300*AVERAGEIF(Y305:Y316,">0")/100 -> 76.41442882 | Z300: =X300*(100-AVERAGEIF(Y305:Y316,">0"))/100 -> 6.840653323 | AA300: =100-(Y300+Z300+AB300) -> 6.500928406 | AB300: =IF((X302+AB302)>100,AB302*100/(X302+AB302),AB302) -> 10.24398945
A301: Regression period: | C301: =MinRegYear(C299,C305:C316) -> 2000 | D301: =IF(MAX(C305:C316)-MIN(C305:C316)<5,AVERAGEIF(C305:C316,">0",D305:D316), IF(FORECAST($C301,D$305:D$316,$C$305:$C$316)<0,0, IF(FORECAST($C301,D$305:D$316,$C$305:$C$316)>100,100, FORECAST($C301,D$305:D$316,$C$305:$C$316)))) -> 33.91374293 | H301: =IF(MAX(C305:C316)-MIN(C305:C316)<5,AVERAGEIF(C305:C316,">0",H305:H316), IF(FORECAST($C301,H$305:H$316,$C$305:$C$316)<0,0, IF(FORECAST($C301,H$305:H$316,$C$305:$C$316)>100,100, FORECAST($C301,H$305:H$316,$C$305:$C$316)))) -> 44.83120918 | I301: =IF(MAX(C305:C316)-MIN(C305:C316)<5,AVERAGEIF(C305:C316,">0",I305:I316), IF(FORECAST($C301,I$305:I$316,$C$305:$C$316)<0,0, IF(FORECAST($C301,I$305:I$316,$C$305:$C$316)>100,100, FORECAST($C301,I$305:I$316,$C$305:$C$316)))) -> 36.86950407 | M301: =IF(MAX(C305:C316)-MIN(C305:C316)<5,AVERAGEIF(C305:C316,">0",M305:M316), IF(FORECAST($C301,M$305:M$316,$C$305:$C$316)<0,0, IF(FORECAST($C301,M$305:M$316,$C$305:$C$316)>100,100, FORECAST($C301,M$305:M$316,$C$305:$C$316)))) -> 40.63626956 | N301: =IF(MAX(C305:C316)-MIN(C305:C316)<5,AVERAGEIF(C305:C316,">0",N305:N316), IF(FORECAST($C301,N$305:N$316,$C$305:$C$316)<0,0, IF(FORECAST($C301,N$305:N$316,$C$305:$C$316)>100,100, FORECAST($C301,N$305:N$316,$C$305:$C$316)))) -> 39.82752344 | R301: =IF(MAX(C305:C316)-MIN(C305:C316)<5,AVERAGEIF(C305:C316,">0",R305:R316), IF(FORECAST($C301,R$305:R$316,$C$305:$C$316)<0,0, IF(FORECAST($C301,R$305:R$316,$C$305:$C$316)>100,100, FORECAST($C301,R$305:R$316,$C$305:$C$316)))) -> 35.70405604 | S301: =IF(MAX(C305:C316)-MIN(C305:C316)<5,AVERAGEIF(C305:C316,">0",S305:S316), IF(FORECAST($C301,S$305:S$316,$C$305:$C$316)<0,0, IF(FORECAST($C301,S$305:S$316,$C$305:$C$316)>100,100, FORECAST($C301,S$305:S$316,$C$305:$C$316)))) -> 42.65810641 | W301: =IF(MAX(C305:C316)-MIN(C305:C316)<5,AVERAGEIF(C305:C316,">0",W305:W316), IF(FORECAST($C301,W$305:W$316,$C$305:$C$316)<0,0, IF(FORECAST($C301,W$305:W$316,$C$305:$C$316)>100,100, FORECAST($C301,W$305:W$316,$C$305:$C$316)))) -> 38.93943962 | X301: =IF(MAX(C305:C316)-MIN(C305:C316)<5,AVERAGEIF(C305:C316,">0",X305:X316), IF(FORECAST($C301,X$305:X$316,$C$305:$C$316)<0,0, IF(FORECAST($C301,X$305:X$316,$C$305:$C$316)>100,100, FORECAST($C301,X$305:X$316,$C$305:$C$316)))) -> 62.10220585 | AB301: =IF(MAX(C305:C316)-MIN(C305:C316)<5,AVERAGEIF(C305:C316,">0",AB305:AB316), IF(FORECAST($C301,AB$305:AB$316,$C$305:$C$316)<0,0, IF(FORECAST($C301,AB$305:AB$316,$C$305:$C$316)>100,100, FORECAST($C301,AB$305:AB$316,$C$305:$C$316)))) -> 26.652132
C302: =MaxRegYear(C300,C305:C316) -> 2017 | D302: =IF(MAX(C305:C316)-MIN(C305:C316)<5,AVERAGEIF(C305:C316,">0",D305:D316), IF(FORECAST($C302,D$305:D$316,$C$305:$C$316)<0,0, IF(FORECAST($C302,D$305:D$316,$C$305:$C$316)>100,100, FORECAST($C302,D$305:D$316,$C$305:$C$316)))) -> 47.07680183 | H302: =IF(MAX(C305:C316)-MIN(C305:C316)<5,AVERAGEIF(C305:C316,">0",H305:H316), IF(FORECAST($C302,H$305:H$316,$C$305:$C$316)<0,0, IF(FORECAST($C302,H$305:H$316,$C$305:$C$316)>100,100, FORECAST($C302,H$305:H$316,$C$305:$C$316)))) -> 39.39488301 | I302: =IF(MAX(C305:C316)-MIN(C305:C316)<5,AVERAGEIF(C305:C316,">0",I305:I316), IF(FORECAST($C302,I$305:I$316,$C$305:$C$316)<0,0, IF(FORECAST($C302,I$305:I$316,$C$305:$C$316)>100,100, FORECAST($C302,I$305:I$316,$C$305:$C$316)))) -> 56.43659639 | M302: =IF(MAX(C305:C316)-MIN(C305:C316)<5,AVERAGEIF(C305:C316,">0",M305:M316), IF(FORECAST($C302,M$305:M$316,$C$305:$C$316)<0,0, IF(FORECAST($C302,M$305:M$316,$C$305:$C$316)>100,100, FORECAST($C302,M$305:M$316,$C$305:$C$316)))) -> 30.75821329 | N302: =IF(MAX(C305:C316)-MIN(C305:C316)<5,AVERAGEIF(C305:C316,">0",N305:N316), IF(FORECAST($C302,N$305:N$316,$C$305:$C$316)<0,0, IF(FORECAST($C302,N$305:N$316,$C$305:$C$316)>100,100, FORECAST($C302,N$305:N$316,$C$305:$C$316)))) -> 64.72161865 | R302: =IF(MAX(C305:C316)-MIN(C305:C316)<5,AVERAGEIF(C305:C316,">0",R305:R316), IF(FORECAST($C302,R$305:R$316,$C$305:$C$316)<0,0, IF(FORECAST($C302,R$305:R$316,$C$305:$C$316)>100,100, FORECAST($C302,R$305:R$316,$C$305:$C$316)))) -> 25.20079356 | S302: =IF(MAX(C305:C316)-MIN(C305:C316)<5,AVERAGEIF(C305:C316,">0",S305:S316), IF(FORECAST($C302,S$305:S$316,$C$305:$C$316)<0,0, IF(FORECAST($C302,S$305:S$316,$C$305:$C$316)>100,100, FORECAST($C302,S$305:S$316,$C$305:$C$316)))) -> 69.40090836 | W302: =IF(MAX(C305:C316)-MIN(C305:C316)<5,AVERAGEIF(C305:C316,">0",W305:W316), IF(FORECAST($C302,W$305:W$316,$C$305:$C$316)<0,0, IF(FORECAST($C302,W$305:W$316,$C$305:$C$316)>100,100, FORECAST($C302,W$305:W$316,$C$305:$C$316)))) -> 19.6570509 | X302: =IF(MAX(C305:C316)-MIN(C305:C316)<5,AVERAGEIF(C305:C316,">0",X305:X316), IF(FORECAST($C302,X$305:X$316,$C$305:$C$316)<0,0, IF(FORECAST($C302,X$305:X$316,$C$305:$C$316)>100,100, FORECAST($C302,X$305:X$316,$C$305:$C$316)))) -> 83.25508214 | AB302: =IF(MAX(C305:C316)-MIN(C305:C316)<5,AVERAGEIF(C305:C316,">0",AB305:AB316), IF(FORECAST($C302,AB$305:AB$316,$C$305:$C$316)<0,0, IF(FORECAST($C302,AB$305:AB$316,$C$305:$C$316)>100,100, FORECAST($C302,AB$305:AB$316,$C$305:$C$316)))) -> 10.24398945
B304: Survey | C304: Year | D304: Improved | E304: % Improved < = 30min | H304: Surface water | I304: Improved | J304: % Improved < = 30min | M304: Surface water | N304: Improved | O304: % Improved < = 30min | R304: Surface water | S304: Improved | T304: % Improved < = 30min | W304: Surface water | X304: Improved | Y304: % Improved < = 30min | AB304: Surface water
B305: MICS00 | C305: 2000 | D305: =IF(ISERROR(INDIRECT(CONCATENATE($B305,"!M16"))),"",INDIRECT(CONCATENATE($B305,"!M16"))) -> 33.68414787 | E305: =IF(ISERROR(INDIRECT(CONCATENATE($B305,"!M23"))),"",INDIRECT(CONCATENATE($B305,"!M23"))) -> 74.81194531 | H305: =IF(ISERROR(INDIRECT(CONCATENATE($B305,"!M21"))),"",INDIRECT(CONCATENATE($B305,"!M21"))) -> 44.41840321 | I305: =IF(ISERROR(INDIRECT(CONCATENATE($B305,"!N16"))),"",INDIRECT(CONCATENATE($B305,"!N16"))) -> 36.28925214 | J305: =IF(ISERROR(INDIRECT(CONCATENATE($B305,"!N23"))),"",INDIRECT(CONCATENATE($B305,"!N23"))) -> 80.51847404 | M305: =IF(ISERROR(INDIRECT(CONCATENATE($B305,"!N21"))),"",INDIRECT(CONCATENATE($B305,"!N21"))) -> 40.79246357 | N305: =IF(ISERROR(INDIRECT(CONCATENATE($B305,"!O16"))),"",INDIRECT(CONCATENATE($B305,"!O16"))) -> 41.10433044 | O305: =IF(ISERROR(INDIRECT(CONCATENATE($B305,"!O23"))),"",INDIRECT(CONCATENATE($B305,"!O23"))) -> 83.06138053 | R305: =IF(ISERROR(INDIRECT(CONCATENATE($B305,"!O21"))),"",INDIRECT(CONCATENATE($B305,"!O21"))) -> 34.61266706 | S305: =IF(ISERROR(INDIRECT(CONCATENATE($B305,"!P16"))),"",INDIRECT(CONCATENATE($B305,"!P16"))) -> 43.72602421 | T305: =IF(ISERROR(INDIRECT(CONCATENATE($B305,"!P23"))),"",INDIRECT(CONCATENATE($B305,"!P23"))) -> 75.76709797 | W305: =IF(ISERROR(INDIRECT(CONCATENATE($B305,"!P21"))),"",INDIRECT(CONCATENATE($B305,"!P21"))) -> 39.29129351 | X305: =IF(ISERROR(INDIRECT(CONCATENATE($B305,"!Q16"))),"",INDIRECT(CONCATENATE($B305,"!Q16"))) -> 61.18207091 | Y305: =IF(ISERROR(INDIRECT(CONCATENATE($B305,"!Q23"))),"",INDIRECT(CONCATENATE($B305,"!Q23"))) -> 87.2920952 | AB305: =IF(ISERROR(INDIRECT(CONCATENATE($B305,"!Q221"))),"",INDIRECT(CONCATENATE($B305,"!Q21"))) -> 27.54903551
B306: DHS03 | D306: 22.27355505 | E306: N/A | H306: 55.58965906 | I306: 39.24706379 | J306: N/A | M306: 42.51212359 | N306: 44.86162053 | O306: N/A | R306: 36.32791464 | S306: 42.64626209 | T306: N/A | W306: 38.9983248 | X306: 65.33566585 | Y306: N/A | AB306: 20.09480887
B307: DHS09 | C307: 2009 | D307: 41.9 | E307: 67 | H307: 43.3 | I307: 49.1 | J307: 83.6 | M307: 35.8 | N307: 50.5 | O307: 80 | R307: 33.3 | S307: 54.4 | T307: 88.6 | W307: 28.1 | X307: 76 | Y307: 93.3 | AB307: 15.7
B308: DHS14 | C308: 2014 | D308: 42.09236204 | E308: 68.84141004 | H308: 38.46524907 | I308: 50.45867677 | J308: 78.13219458 | M308: 27.79875168 | N308: 56.21693991 | O308: 81.32318482 | R308: 24.48617711 | S308: 63.15918572 | T308: 85.8309781 | W308: 21.56871411 | X308: 77.12897018 | Y308: 92.03640272 | AB308: 13.27880122
B309: MIS15 | C309: 2015 | D309: 47.40176993 | E309: 73.05253541 | H309: 40.98939651 | I309: 55.36829374 | J309: 80.90463083 | M309: 36.07350191 | N309: 67.13444798 | O309: 86.67884741 | R309: 26.93949916 | S309: 69.12524359 | T309: 91.89572449 | W309: 23.69594079 | X309: 81.38068226 | Y309: 94.50550449 | AB309: 13.40366676
B318: =CONCATENATE("Rural use of drinking water sources, ",C299,"–",C300) -> Rural use of drinking water sources, 2000–2020 | S318: Data points used for regression

Sheet Sanitation
B4: Summary of trends in use of sanitation facilities by wealth quintile (%)
B5: =IF(ISERROR(INDIRECT(CONCATENATE($B105,"!A2"))),"",INDIRECT(CONCATENATE($B105,"!A2"))) -> Kenya
B7: =B118 -> National use of sanitation facilities, 2000–2020 | J7: =B218 -> Urban use of sanitation facilities, 2000–2020 | R7: =B318 -> Rural use of sanitation facilities, 2000–2020
B31: =IF(ISERROR(INDIRECT(CONCATENATE($B105,"!A2"))),"",INDIRECT(CONCATENATE($B105,"!A2"))) -> Kenya | F31: Poorest | J31: Poor | N31: Middle | R31: Rich | V31: Richest
F32: Basic | G32: Limited | H32: Unimproved | I32: Open defecation | J32: Basic | K32: Limited | L32: Unimproved | M32: Open defecation | N32: Basic | O32: Limited | P32: Unimproved | Q32: Open defecation | R32: Basic | S32: Limited | T32: Unimproved | U32: Open defecation | V32: Basic | W32: Limited | X32: Unimproved | Y32: Open defecation
B33: NATIONAL | D33: Estimate | E33: =C99 -> 2000 | F33: =E99 -> 5.197402615 | G33: =F99 -> 5.340998935 | H33: 42.5934193 | I33: 46.86817915 | J33: =J99 -> 9.382521968 | K33: =K99 -> 6.601216249 | L33: 65.21950814 | M33: 18.79675364 | N33: =O99 -> 13.53837752 | O33: =P99 -> 10.3375101 | P33: 65.0171685 | Q33: 11.10694388 | R33: =T99 -> 25.79210113 | S33: =U99 -> 27.21115617 | T33: 41.84036153 | U33: 5.156381176 | V33: =Y99 -> 48.6128895 | W33: =Z99 -> 35.65358986 | X33: 14.95262623 | Y33: 0.7808944007
E34: =C100 -> 2020 | F34: =E100 -> 10.54869037 | G34: 10.84013462 | H34: 35.65255171 | I34: 42.9586233 | J34: =J100 -> 19.20861532 | K34: 13.5145139 | L34: 59.98502151 | M34: 7.291849258 | N34: =O100 -> 26.46720558 | O34: 20.20958602 | P34: 49.64642018 | Q34: 3.676788218 | R34: =T100 -> 35.43277899 | S34: 37.38225427 | T34: 26.36571943 | U34: 0.8192473082 | V34: =Y100 -> 51.02214232 | W34: 37.42058032 | X34: 11.51159999 | Y34: 0.04567737147
B36: URBAN | D36: Estimate | E36: =C199 -> 2000 | F36: =E199 -> 13.55913214 | G36: =F199 -> 35.43567441 | H36: 42.98150923 | I36: 8.023684227 | J36: =J199 -> 14.69868905 | K36: =K199 -> 49.30842978 | L36: 34.3852762 | M36: 1.60760497 | N36: =O199 -> 20.40838617 | O36: =P199 -> 64.12093959 | P36: 14.7989363 | Q36: 0.6717379417 | R36: =T199 -> 43.84408205 | S36: =U199 -> 44.6360972 | T36: 11.32675478 | U36: 0.1930659676 | V36: =Y199 -> 82.08022809 | W36: =Z199 -> 15.8338127 | X36: 1.874641726 | Y36: 0.2113174853
E37: =C200 -> 2020 | F37: =E200 -> 12.89688215 | G37: 33.70493864 | H37: 42.10057772 | I37: 11.29760149 | J37: =J200 -> 17.24208094 | K37: 57.84052811 | L37: 24.30016204 | M37: 0.6172289162 | N37: =O200 -> 20.34651299 | O37: 63.92654074 | P37: 15.69392825 | Q37: 0.03301801792 | R37: =T200 -> 43.00686976 | S37: 43.78376122 | T37: 13.20936902 | U37: 0 | V37: =Y200 -> 80.16561282 | W37: 15.4644709 | X37: 4.369916283 | Y37: 0
B39: RURAL | D39: Estimate | E39: =C299 -> 2000 | F39: =E299 -> 4.571428741 | G39: =F299 -> 5.138620413 | H39: 39.98704555 | I39: 50.30290529 | J39: =J299 -> 8.512806151 | K39: =K299 -> 5.870545747 | L39: 60.23371298 | M39: 25.38293512 | N39: =O299 -> 13.41410891 | O39: =P299 -> 7.925212866 | P39: 68.45384537 | Q39: 10.20683286 | R39: =T299 -> 22.48273829 | S39: =U299 -> 11.41038691 | T39: 55.06412949 | U39: 11.04274531 | V39: =Y299 -> 43.00314225 | W39: =Z299 -> 22.22064738 | X39: 31.99705051 | Y39: 2.779159855
E40: =C300 -> 2020 | F40: =E300 -> 8.677808969 | G40: 9.754492268 | H40: 28.17864361 | I40: 53.38905515 | J40: =J300 -> 15.98506247 | K40: 11.02351432 | L40: 59.65212837 | M40: 13.33929484 | N40: =O300 -> 21.51128386 | O40: 12.70911879 | P40: 60.01198445 | Q40: 5.767612898 | R40: =T300 -> 30.52301873 | S40: 15.49097129 | T40: 50.4340752 | U40: 3.551934777 | V40: =Y300 -> 46.28674994 | W40: 23.91735802 | X40: 28.70993338 | Y40: 1.085958664
A97: NATIONAL | D97: Poorest | I97: Poor | N97: Middle | S97: Rich | X97: Richest
D98: Improved | E98: Basic | F98: Limited | G98: Unimproved | H98: Open defecation | I98: Improved | J98: Basic | K98: Limited | L98: Unimproved | M98: Open defecation | N98: Improved | O98: Basic | P98: Limited | Q98: Unimproved | R98: Open defecation | S98: Improved | T98: Basic | U98: Limited | V98: Unimproved | W98: Open defecation | X98: Improved | Y98: Basic | Z98: Limited | AA98: Unimproved | AB98: Open defecation
A99: Forecast period: | C99: 2000 | D99: =IF((D101+H101)>100,D101*100/(D101+H101),D101) -> 10.53840155 | E99: =D99*AVERAGEIF(E105:E116,">0")/100 -> 5.197402615 | F99: =D99*(100-AVERAGEIF(E105:E116,">0"))/100 -> 5.340998935 | G99: =100-(E99+F99+H99) -> 42.5934193 | H99: =IF((D101+H101)>100,H101*100/(D101+H101),H101) -> 46.86817915 | I99: =IF((I101+M101)>100,I101*100/(I101+M101),I101) -> 15.98373822 | J99: =I99*AVERAGEIF(J105:J116,">0")/100 -> 9.382521968 | K99: =I99*(100-AVERAGEIF(J105:J116,">0"))/100 -> 6.601216249 | L99: =100-(J99+K99+M99) -> 65.21950814 | M99: =IF((I101+M101)>100,M101*100/(I101+M101),M101) -> 18.79675364 | N99: =IF((N101+R101)>100,N101*100/(N101+R101),N101) -> 23.87588762 | O99: =N99*AVERAGEIF(O105:O116,">0")/100 -> 13.53837752 | P99: =N99*(100-AVERAGEIF(O105:O116,">0"))/100 -> 10.3375101 | Q99: =100-(O99+P99+R99) -> 65.0171685 | R99: =IF((N101+R101)>100,R101*100/(N101+R101),R101) -> 11.10694388 | S99: =IF((S101+W101)>100,S101*100/(S101+W101),S101) -> 53.00325729 | T99: =S99*AVERAGEIF(T105:T116,">0")/100 -> 25.79210113 | U99: =S99*(100-AVERAGEIF(T105:T116,">0"))/100 -> 27.21115617 | V99: =100-(T99+U99+W99) -> 41.84036153 | W99: =IF((S101+W101)>100,W101*100/(S101+W101),W101) -> 5.156381176 | X99: =IF((X101+AB101)>100,X101*100/(X101+AB101),X101) -> 84.26647937 | Y99: =X99*AVERAGEIF(Y105:Y116,">0")/100 -> 48.6128895 | Z99: =X99*(100-AVERAGEIF(Y105:Y116,">0"))/100 -> 35.65358986 | AA99: =100-(Y99+Z99+AB99) -> 14.95262623 | AB99: =IF((X101+AB101)>100,AB101*100/(X101+AB101),AB101) -> 0.7808944007
C100: 2020 | D100: =IF((D102+H102)>100,D102*100/(D102+H102),D102) -> 21.38882498 | E100: =D100*AVERAGEIF(E105:E116,">0")/100 -> 10.54869037 | F100: =D100*(100-AVERAGEIF(E105:E116,">0"))/100 -> 10.84013462 | G100: =100-(E100+F100+H100) -> 35.65255171 | H100: =IF((D102+H102)>100,H102*100/(D102+H102),H102) -> 42.9586233 | I100: =IF((I102+M102)>100,I102*100/(I102+M102),I102) -> 32.72312923 | J100: =I100*AVERAGEIF(J105:J116,">0")/100 -> 19.20861532 | K100: =I100*(100-AVERAGEIF(J105:J116,">0"))/100 -> 13.5145139 | L100: =100-(J100+K100+M100) -> 59.98502151 | M100: =IF((I102+M102)>100,M102*100/(I102+M102),M102) -> 7.291849258 | N100: =IF((N102+R102)>100,N102*100/(N102+R102),N102) -> 46.6767916 | O100: =N100*AVERAGEIF(O105:O116,">0")/100 -> 26.46720558 | P100: =N100*(100-AVERAGEIF(O105:O116,">0"))/100 -> 20.20958602 | Q100: =100-(O100+P100+R100) -> 49.64642018 | R100: =IF((N102+R102)>100,R102*100/(N102+R102),R102) -> 3.676788218 | S100: =IF((S102+W102)>100,S102*100/(S102+W102),S102) -> 72.81503326 | T100: =S100*AVERAGEIF(T105:T116,">0")/100 -> 35.43277899 | U100: =S100*(100-AVERAGEIF(T105:T116,">0"))/100 -> 37.38225427 | V100: =100-(T100+U100+W100) -> 26.36571943 | W100: =IF((S102+W102)>100,W102*100/(S102+W102),W102) -> 0.8192473082 | X100: =IF((X102+AB102)>100,X102*100/(X102+AB102),X102) -> 88.44272264 | Y100: =X100*AVERAGEIF(Y105:Y116,">0")/100 -> 51.02214232 | Z100: =X100*(100-AVERAGEIF(Y105:Y116,">0"))/100 -> 37.42058032 | AA100: =100-(Y100+Z100+AB100) -> 11.51159999 | AB100: =IF((X102+AB102)>100,AB102*100/(X102+AB102),AB102) -> 0.04567737147
A101: Regression period: | C101: =MinRegYear(C99,C105:C116) -> 2000 | D101: =IF(MAX(C105:C116)-MIN(C105:C116)<5,AVERAGEIF(C105:C116,">0",D105:D116), IF(FORECAST($C101,D$105:D$116,$C$105:$C$116)<0,0, IF(FORECAST($C101,D$105:D$116,$C$105:$C$116)>100,100, FORECAST($C101,D$105:D$116,$C$105:$C$116)))) -> 10.53840155 | H101: =IF(MAX(C105:C116)-MIN(C105:C116)<5,AVERAGEIF(C105:C116,">0",H105:H116), IF(FORECAST($C101,H$105:H$116,$C$105:$C$116)<0,0, IF(FORECAST($C101,H$105:H$116,$C$105:$C$116)>100,100, FORECAST($C101,H$105:H$116,$C$105:$C$116)))) -> 46.86817915 | I101: =IF(MAX(C105:C116)-MIN(C105:C116)<5,AVERAGEIF(C105:C116,">0",I105:I116), IF(FORECAST($C101,I$105:I$116,$C$105:$C$116)<0,0, IF(FORECAST($C101,I$105:I$116,$C$105:$C$116)>100,100, FORECAST($C101,I$105:I$116,$C$105:$C$116)))) -> 15.98373822 | M101: =IF(MAX(C105:C116)-MIN(C105:C116)<5,AVERAGEIF(C105:C116,">0",M105:M116), IF(FORECAST($C101,M$105:M$116,$C$105:$C$116)<0,0, IF(FORECAST($C101,M$105:M$116,$C$105:$C$116)>100,100, FORECAST($C101,M$105:M$116,$C$105:$C$116)))) -> 18.79675364 | N101: =IF(MAX(C105:C116)-MIN(C105:C116)<5,AVERAGEIF(C105:C116,">0",N105:N116), IF(FORECAST($C101,N$105:N$116,$C$105:$C$116)<0,0, IF(FORECAST($C101,N$105:N$116,$C$105:$C$116)>100,100, FORECAST($C101,N$105:N$116,$C$105:$C$116)))) -> 23.87588762 | R101: =IF(MAX(C105:C116)-MIN(C105:C116)<5,AVERAGEIF(C105:C116,">0",R105:R116), IF(FORECAST($C101,R$105:R$116,$C$105:$C$116)<0,0, IF(FORECAST($C101,R$105:R$116,$C$105:$C$116)>100,100, FORECAST($C101,R$105:R$116,$C$105:$C$116)))) -> 11.10694388 | S101: =IF(MAX(C105:C116)-MIN(C105:C116)<5,AVERAGEIF(C105:C116,">0",S105:S116), IF(FORECAST($C101,S$105:S$116,$C$105:$C$116)<0,0, IF(FORECAST($C101,S$105:S$116,$C$105:$C$116)>100,100, FORECAST($C101,S$105:S$116,$C$105:$C$116)))) -> 53.00325729 | W101: =IF(MAX(C105:C116)-MIN(C105:C116)<5,AVERAGEIF(C105:C116,">0",W105:W116), IF(FORECAST($C101,W$105:W$116,$C$105:$C$116)<0,0, IF(FORECAST($C101,W$105:W$116,$C$105:$C$116)>100,100, FORECAST($C101,W$105:W$116,$C$105:$C$116)))) -> 5.156381176 | X101: =IF(MAX(C105:C116)-MIN(C105:C116)<5,AVERAGEIF(C105:C116,">0",X105:X116), IF(FORECAST($C101,X$105:X$116,$C$105:$C$116)<0,0, IF(FORECAST($C101,X$105:X$116,$C$105:$C$116)>100,100, FORECAST($C101,X$105:X$116,$C$105:$C$116)))) -> 84.26647937 | AB101: =IF(MAX(C105:C116)-MIN(C105:C116)<5,AVERAGEIF(C105:C116,">0",AB105:AB116), IF(FORECAST($C101,AB$105:AB$116,$C$105:$C$116)<0,0, IF(FORECAST($C101,AB$105:AB$116,$C$105:$C$116)>100,100, FORECAST($C101,AB$105:AB$116,$C$105:$C$116)))) -> 0.7808944007
C102: =MaxRegYear(C100,C105:C116) -> 2017 | D102: =IF(MAX(C105:C116)-MIN(C105:C116)<5,AVERAGEIF(C105:C116,">0",D105:D116), IF(FORECAST($C102,D$105:D$116,$C$105:$C$116)<0,0, IF(FORECAST($C102,D$105:D$116,$C$105:$C$116)>100,100, FORECAST($C102,D$105:D$116,$C$105:$C$116)))) -> 21.38882498 | H102: =IF(MAX(C105:C116)-MIN(C105:C116)<5,AVERAGEIF(C105:C116,">0",H105:H116), IF(FORECAST($C102,H$105:H$116,$C$105:$C$116)<0,0, IF(FORECAST($C102,H$105:H$116,$C$105:$C$116)>100,100, FORECAST($C102,H$105:H$116,$C$105:$C$116)))) -> 42.9586233 | I102: =IF(MAX(C105:C116)-MIN(C105:C116)<5,AVERAGEIF(C105:C116,">0",I105:I116), IF(FORECAST($C102,I$105:I$116,$C$105:$C$116)<0,0, IF(FORECAST($C102,I$105:I$116,$C$105:$C$116)>100,100, FORECAST($C102,I$105:I$116,$C$105:$C$116)))) -> 32.72312923 | M102: =IF(MAX(C105:C116)-MIN(C105:C116)<5,AVERAGEIF(C105:C116,">0",M105:M116), IF(FORECAST($C102,M$105:M$116,$C$105:$C$116)<0,0, IF(FORECAST($C102,M$105:M$116,$C$105:$C$116)>100,100, FORECAST($C102,M$105:M$116,$C$105:$C$116)))) -> 7.291849258 | N102: =IF(MAX(C105:C116)-MIN(C105:C116)<5,AVERAGEIF(C105:C116,">0",N105:N116), IF(FORECAST($C102,N$105:N$116,$C$105:$C$116)<0,0, IF(FORECAST($C102,N$105:N$116,$C$105:$C$116)>100,100, FORECAST($C102,N$105:N$116,$C$105:$C$116)))) -> 46.6767916 | R102: =IF(MAX(C105:C116)-MIN(C105:C116)<5,AVERAGEIF(C105:C116,">0",R105:R116), IF(FORECAST($C102,R$105:R$116,$C$105:$C$116)<0,0, IF(FORECAST($C102,R$105:R$116,$C$105:$C$116)>100,100, FORECAST($C102,R$105:R$116,$C$105:$C$116)))) -> 3.676788218 | S102: =IF(MAX(C105:C116)-MIN(C105:C116)<5,AVERAGEIF(C105:C116,">0",S105:S116), IF(FORECAST($C102,S$105:S$116,$C$105:$C$116)<0,0, IF(FORECAST($C102,S$105:S$116,$C$105:$C$116)>100,100, FORECAST($C102,S$105:S$116,$C$105:$C$116)))) -> 72.81503326 | W102: =IF(MAX(C105:C116)-MIN(C105:C116)<5,AVERAGEIF(C105:C116,">0",W105:W116), IF(FORECAST($C102,W$105:W$116,$C$105:$C$116)<0,0, IF(FORECAST($C102,W$105:W$116,$C$105:$C$116)>100,100, FORECAST($C102,W$105:W$116,$C$105:$C$116)))) -> 0.8192473082 | X102: =IF(MAX(C105:C116)-MIN(C105:C116)<5,AVERAGEIF(C105:C116,">0",X105:X116), IF(FORECAST($C102,X$105:X$116,$C$105:$C$116)<0,0, IF(FORECAST($C102,X$105:X$116,$C$105:$C$116)>100,100, FORECAST($C102,X$105:X$116,$C$105:$C$116)))) -> 88.44272264 | AB102: =IF(MAX(C105:C116)-MIN(C105:C116)<5,AVERAGEIF(C105:C116,">0",AB105:AB116), IF(FORECAST($C102,AB$105:AB$116,$C$105:$C$116)<0,0, IF(FORECAST($C102,AB$105:AB$116,$C$105:$C$116)>100,100, FORECAST($C102,AB$105:AB$116,$C$105:$C$116)))) -> 0.04567737147
B104: Survey | C104: Year | D104: Improved | E104: Not shared | H104: Open defecation | I104: Improved | J104: Not shared | M104: Open defecation | N104: Improved | O104: Not shared | R104: Open defecation | S104: Improved | T104: Not shared | W104: Open defecation | X104: Improved | Y104: Not shared | AB104: Open defecation
B105: MICS00 | C105: 2000 | D105: =IF(ISERROR(INDIRECT(CONCATENATE($B105,"!C122"))),"",INDIRECT(CONCATENATE($B105,"!C122"))) -> 13.26213474 | E105: =IF(ISERROR(INDIRECT(CONCATENATE($B105,"!C129"))),"",INDIRECT(CONCATENATE($B105,"!C129"))) -> N/A | H105: =IF(ISERROR(INDIRECT(CONCATENATE($B105,"!C127"))),"",INDIRECT(CONCATENATE($B105,"!C127"))) -> 39.90789477 | I105: =IF(ISERROR(INDIRECT(CONCATENATE($B105,"!D122"))),"",INDIRECT(CONCATENATE($B105,"!D122"))) -> 19.2880099 | J105: =IF(ISERROR(INDIRECT(CONCATENATE($B105,"!D129"))),"",INDIRECT(CONCATENATE($B105,"!D129"))) -> N/A | M105: =IF(ISERROR(INDIRECT(CONCATENATE($B105,"!D127"))),"",INDIRECT(CONCATENATE($B105,"!D127"))) -> 17.83789954 | N105: =IF(ISERROR(INDIRECT(CONCATENATE($B105,"!E122"))),"",INDIRECT(CONCATENATE($B105,"!E122"))) -> 26.93365409 | O105: =IF(ISERROR(INDIRECT(CONCATENATE($B105,"!E129"))),"",INDIRECT(CONCATENATE($B105,"!E129"))) -> N/A | R105: =IF(ISERROR(INDIRECT(CONCATENATE($B105,"!E127"))),"",INDIRECT(CONCATENATE($B105,"!E127"))) -> 8.601828255 | S105: =IF(ISERROR(INDIRECT(CONCATENATE($B105,"!F122"))),"",INDIRECT(CONCATENATE($B105,"!F122"))) -> 55.34859595 | T105: =IF(ISERROR(INDIRECT(CONCATENATE($B105,"!F129"))),"",INDIRECT(CONCATENATE($B105,"!F129"))) -> N/A | W105: =IF(ISERROR(INDIRECT(CONCATENATE($B105,"!F127"))),"",INDIRECT(CONCATENATE($B105,"!F127"))) -> 3.565512939 | X105: =IF(ISERROR(INDIRECT(CONCATENATE($B105,"!G122"))),"",INDIRECT(CONCATENATE($B105,"!G122"))) -> 85.20126014 | Y105: =IF(ISERROR(INDIRECT(CONCATENATE($B105,"!G129"))),"",INDIRECT(CONCATENATE($B105,"!G129"))) -> N/A | AB105: =IF(ISERROR(INDIRECT(CONCATENATE($B105,"!G2127"))),"",INDIRECT(CONCATENATE($B105,"!G127"))) -> 0.1771035242
B106: DHS03 | C106: 2003 | D106: 8.492381941 | E106: N/A | H106: 53.87367552 | I106: 16.03691079 | J106: N/A | M106: 17.42944541 | N106: 24.73888625 | O106: N/A | R106: 12.69299597 | S106: 54.34970186 | T106: N/A | W106: 5.997324399 | X106: 83.98028508 | Y106: N/A | AB106: 1.495902608
B107: DHS09 | C107: 2009 | D107: 17.41662609 | E107: 48.60388614 | H107: 46.5883444 | I107: 22.78334252 | J107: 64.68641238 | M107: 13.58636792 | N107: 35.15772063 | O107: 63.76117972 | R107: 7.843492322 | S107: 62.32973419 | T107: 53.11182641 | W107: 3.709952322 | X107: 86.26378838 | Y107: 51.08709508 | AB107: 0.2358128514
B108: DHS14 | C108: 2014 | D108: 19.34435282 | E108: 47.81641394 | H108: 44.96821423 | I108: 27.38965248 | J108: 53.0393716 | M108: 10.46663395 | N108: 39.45029199 | O108: 53.64911987 | R108: 3.776692649 | S108: 66.90843422 | T108: 44.70428705 | W108: 1.073604938 | X108: 87.2440275 | Y108: 56.91986985 | AB108: 0.03035006662
B109: MIS15 | C109: 2015 | D109: 20.34518045 | E109: 51.53579907 | H109: 39.57383804 | I109: 34.79224784 | J109: 58.37548546 | M109: 6.916299068 | N109: 48.08930061 | O109: 52.69911459 | R109: 4.699923025 | S109: 73.86116228 | T109: 48.16793984 | W109: 0.9753648961 | X109: 88.71515186 | Y109: 65.06145991 | AB109: 0.1921324716
B118: =CONCATENATE("National use of sanitation facilities, ",C99,"–",C100) -> National use of sanitation facilities, 2000–2020 | S118: Data points used for regression
A197: URBAN | D197: Poorest | I197: Poor | N197: Middle | S197: Rich | X197: Richest
D198: Improved | E198: Basic | F198: Limited | G198: Unimproved | H198: Open defecation | I198: Improved | J198: Basic | K198: Limited | L198: Unimproved | M198: Open defecation | N198: Improved | O198: Basic | P198: Limited | Q198: Unimproved | R198: Open defecation | S198: Improved | T198: Basic | U198: Limited | V198: Unimproved | W198: Open defecation | X198: Improved | Y198: Basic | Z198: Limited | AA198: Unimproved | AB198: Open defecation
A199: Forecast period: | C199: 2000 | D199: =IF((D201+H201)>100,D201*100/(D201+H201),D201) -> 48.99480654 | E199: =D199*AVERAGEIF(E205:E216,">0")/100 -> 13.55913214 | F199: =D199*(100-AVERAGEIF(E205:E216,">0"))/100 -> 35.43567441 | G199: =100-(E199+F199+H199) -> 42.98150923 | H199: =IF((D201+H201)>100,H201*100/(D201+H201),H201) -> 8.023684227 | I199: =IF((I201+M201)>100,I201*100/(I201+M201),I201) -> 64.00711883 | J199: =I199*AVERAGEIF(J205:J216,">0")/100 -> 14.69868905 | K199: =I199*(100-AVERAGEIF(J205:J216,">0"))/100 -> 49.30842978 | L199: =100-(J199+K199+M199) -> 34.3852762 | M199: =IF((I201+M201)>100,M201*100/(I201+M201),M201) -> 1.60760497 | N199: =IF((N201+R201)>100,N201*100/(N201+R201),N201) -> 84.52932576 | O199: =N199*AVERAGEIF(O205:O216,">0")/100 -> 20.40838617 | P199: =N199*(100-AVERAGEIF(O205:O216,">0"))/100 -> 64.12093959 | Q199: =100-(O199+P199+R199) -> 14.7989363 | R199: =IF((N201+R201)>100,R201*100/(N201+R201),R201) -> 0.6717379417 | S199: =IF((S201+W201)>100,S201*100/(S201+W201),S201) -> 88.48017925 | T199: =S199*AVERAGEIF(T205:T216,">0")/100 -> 43.84408205 | U199: =S199*(100-AVERAGEIF(T205:T216,">0"))/100 -> 44.6360972 | V199: =100-(T199+U199+W199) -> 11.32675478 | W199: =IF((S201+W201)>100,W201*100/(S201+W201),W201) -> 0.1930659676 | X199: =IF((X201+AB201)>100,X201*100/(X201+AB201),X201) -> 97.91404079 | Y199: =X199*AVERAGEIF(Y205:Y216,">0")/100 -> 82.08022809 | Z199: =X199*(100-AVERAGEIF(Y205:Y216,">0"))/100 -> 15.8338127 | AA199: =100-(Y199+Z199+AB199) -> 1.874641726 | AB199: =IF((X201+AB201)>100,AB201*100/(X201+AB201),AB201) -> 0.2113174853
C200: 2020 | D200: =IF((D202+H202)>100,D202*100/(D202+H202),D202) -> 46.60182079 | E200: =D200*AVERAGEIF(E205:E216,">0")/100 -> 12.89688215 | F200: =D200*(100-AVERAGEIF(E205:E216,">0"))/100 -> 33.70493864 | G200: =100-(E200+F200+H200) -> 42.10057772 | H200: =IF((D202+H202)>100,H202*100/(D202+H202),H202) -> 11.29760149 | I200: =IF((I202+M202)>100,I202*100/(I202+M202),I202) -> 75.08260905 | J200: =I200*AVERAGEIF(J205:J216,">0")/100 -> 17.24208094 | K200: =I200*(100-AVERAGEIF(J205:J216,">0"))/100 -> 57.84052811 | L200: =100-(J200+K200+M200) -> 24.30016204 | M200: =IF((I202+M202)>100,M202*100/(I202+M202),M202) -> 0.6172289162 | N200: =IF((N202+R202)>100,N202*100/(N202+R202),N202) -> 84.27305373 | O200: =N200*AVERAGEIF(O205:O216,">0")/100 -> 20.34651299 | P200: =N200*(100-AVERAGEIF(O205:O216,">0"))/100 -> 63.92654074 | Q200: =100-(O200+P200+R200) -> 15.69392825 | R200: =IF((N202+R202)>100,R202*100/(N202+R202),R202) -> 0.03301801792 | S200: =IF((S202+W202)>100,S202*100/(S202+W202),S202) -> 86.79063098 | T200: =S200*AVERAGEIF(T205:T216,">0")/100 -> 43.00686976 | U200: =S200*(100-AVERAGEIF(T205:T216,">0"))/100 -> 43.78376122 | V200: =100-(T200+U200+W200) -> 13.20936902 | W200: =IF((S202+W202)>100,W202*100/(S202+W202),W202) -> 0 | X200: =IF((X202+AB202)>100,X202*100/(X202+AB202),X202) -> 95.63008372 | Y200: =X200*AVERAGEIF(Y205:Y216,">0")/100 -> 80.16561282 | Z200: =X200*(100-AVERAGEIF(Y205:Y216,">0"))/100 -> 15.4644709 | AA200: =100-(Y200+Z200+AB200) -> 4.369916283 | AB200: =IF((X202+AB202)>100,AB202*100/(X202+AB202),AB202) -> 0
A201: Regression period: | C201: =MinRegYear(C199,C205:C216) -> 2000 | D201: =IF(MAX(C205:C216)-MIN(C205:C216)<5,AVERAGEIF(C205:C216,">0",D205:D216), IF(FORECAST($C201,D$205:D$216,$C$205:$C$216)<0,0, IF(FORECAST($C201,D$205:D$216,$C$205:$C$216)>100,100, FORECAST($C201,D$205:D$216,$C$205:$C$216)))) -> 48.99480654 | H201: =IF(MAX(C205:C216)-MIN(C205:C216)<5,AVERAGEIF(C205:C216,">0",H205:H216), IF(FORECAST($C201,H$205:H$216,$C$205:$C$216)<0,0, IF(FORECAST($C201,H$205:H$216,$C$205:$C$216)>100,100, FORECAST($C201,H$205:H$216,$C$205:$C$216)))) -> 8.023684227 | I201: =IF(MAX(C205:C216)-MIN(C205:C216)<5,AVERAGEIF(C205:C216,">0",I205:I216), IF(FORECAST($C201,I$205:I$216,$C$205:$C$216)<0,0, IF(FORECAST($C201,I$205:I$216,$C$205:$C$216)>100,100, FORECAST($C201,I$205:I$216,$C$205:$C$216)))) -> 64.00711883 | M201: =IF(MAX(C205:C216)-MIN(C205:C216)<5,AVERAGEIF(C205:C216,">0",M205:M216), IF(FORECAST($C201,M$205:M$216,$C$205:$C$216)<0,0, IF(FORECAST($C201,M$205:M$216,$C$205:$C$216)>100,100, FORECAST($C201,M$205:M$216,$C$205:$C$216)))) -> 1.60760497 | N201: =IF(MAX(C205:C216)-MIN(C205:C216)<5,AVERAGEIF(C205:C216,">0",N205:N216), IF(FORECAST($C201,N$205:N$216,$C$205:$C$216)<0,0, IF(FORECAST($C201,N$205:N$216,$C$205:$C$216)>100,100, FORECAST($C201,N$205:N$216,$C$205:$C$216)))) -> 84.52932576 | R201: =IF(MAX(C205:C216)-MIN(C205:C216)<5,AVERAGEIF(C205:C216,">0",R205:R216), IF(FORECAST($C201,R$205:R$216,$C$205:$C$216)<0,0, IF(FORECAST($C201,R$205:R$216,$C$205:$C$216)>100,100, FORECAST($C201,R$205:R$216,$C$205:$C$216)))) -> 0.6717379417 | S201: =IF(MAX(C205:C216)-MIN(C205:C216)<5,AVERAGEIF(C205:C216,">0",S205:S216), IF(FORECAST($C201,S$205:S$216,$C$205:$C$216)<0,0, IF(FORECAST($C201,S$205:S$216,$C$205:$C$216)>100,100, FORECAST($C201,S$205:S$216,$C$205:$C$216)))) -> 88.48017925 | W201: =IF(MAX(C205:C216)-MIN(C205:C216)<5,AVERAGEIF(C205:C216,">0",W205:W216), IF(FORECAST($C201,W$205:W$216,$C$205:$C$216)<0,0, IF(FORECAST($C201,W$205:W$216,$C$205:$C$216)>100,100, FORECAST($C201,W$205:W$216,$C$205:$C$216)))) -> 0.1930659676 | X201: =IF(MAX(C205:C216)-MIN(C205:C216)<5,AVERAGEIF(C205:C216,">0",X205:X216), IF(FORECAST($C201,X$205:X$216,$C$205:$C$216)<0,0, IF(FORECAST($C201,X$205:X$216,$C$205:$C$216)>100,100, FORECAST($C201,X$205:X$216,$C$205:$C$216)))) -> 97.91404079 | AB201: =IF(MAX(C205:C216)-MIN(C205:C216)<5,AVERAGEIF(C205:C216,">0",AB205:AB216), IF(FORECAST($C201,AB$205:AB$216,$C$205:$C$216)<0,0, IF(FORECAST($C201,AB$205:AB$216,$C$205:$C$216)>100,100, FORECAST($C201,AB$205:AB$216,$C$205:$C$216)))) -> 0.2113174853
C202: =MaxRegYear(C200,C205:C216) -> 2017 | D202: =IF(MAX(C205:C216)-MIN(C205:C216)<5,AVERAGEIF(C205:C216,">0",D205:D216), IF(FORECAST($C202,D$205:D$216,$C$205:$C$216)<0,0, IF(FORECAST($C202,D$205:D$216,$C$205:$C$216)>100,100, FORECAST($C202,D$205:D$216,$C$205:$C$216)))) -> 46.60182079 | H202: =IF(MAX(C205:C216)-MIN(C205:C216)<5,AVERAGEIF(C205:C216,">0",H205:H216), IF(FORECAST($C202,H$205:H$216,$C$205:$C$216)<0,0, IF(FORECAST($C202,H$205:H$216,$C$205:$C$216)>100,100, FORECAST($C202,H$205:H$216,$C$205:$C$216)))) -> 11.29760149 | I202: =IF(MAX(C205:C216)-MIN(C205:C216)<5,AVERAGEIF(C205:C216,">0",I205:I216), IF(FORECAST($C202,I$205:I$216,$C$205:$C$216)<0,0, IF(FORECAST($C202,I$205:I$216,$C$205:$C$216)>100,100, FORECAST($C202,I$205:I$216,$C$205:$C$216)))) -> 75.08260905 | M202: =IF(MAX(C205:C216)-MIN(C205:C216)<5,AVERAGEIF(C205:C216,">0",M205:M216), IF(FORECAST($C202,M$205:M$216,$C$205:$C$216)<0,0, IF(FORECAST($C202,M$205:M$216,$C$205:$C$216)>100,100, FORECAST($C202,M$205:M$216,$C$205:$C$216)))) -> 0.6172289162 | N202: =IF(MAX(C205:C216)-MIN(C205:C216)<5,AVERAGEIF(C205:C216,">0",N205:N216), IF(FORECAST($C202,N$205:N$216,$C$205:$C$216)<0,0, IF(FORECAST($C202,N$205:N$216,$C$205:$C$216)>100,100, FORECAST($C202,N$205:N$216,$C$205:$C$216)))) -> 84.27305373 | R202: =IF(MAX(C205:C216)-MIN(C205:C216)<5,AVERAGEIF(C205:C216,">0",R205:R216), IF(FORECAST($C202,R$205:R$216,$C$205:$C$216)<0,0, IF(FORECAST($C202,R$205:R$216,$C$205:$C$216)>100,100, FORECAST($C202,R$205:R$216,$C$205:$C$216)))) -> 0.03301801792 | S202: =IF(MAX(C205:C216)-MIN(C205:C216)<5,AVERAGEIF(C205:C216,">0",S205:S216), IF(FORECAST($C202,S$205:S$216,$C$205:$C$216)<0,0, IF(FORECAST($C202,S$205:S$216,$C$205:$C$216)>100,100, FORECAST($C202,S$205:S$216,$C$205:$C$216)))) -> 86.79063098 | W202: =IF(MAX(C205:C216)-MIN(C205:C216)<5,AVERAGEIF(C205:C216,">0",W205:W216), IF(FORECAST($C202,W$205:W$216,$C$205:$C$216)<0,0, IF(FORECAST($C202,W$205:W$216,$C$205:$C$216)>100,100, FORECAST($C202,W$205:W$216,$C$205:$C$216)))) -> 0 | X202: =IF(MAX(C205:C216)-MIN(C205:C216)<5,AVERAGEIF(C205:C216,">0",X205:X216), IF(FORECAST($C202,X$205:X$216,$C$205:$C$216)<0,0, IF(FORECAST($C202,X$205:X$216,$C$205:$C$216)>100,100, FORECAST($C202,X$205:X$216,$C$205:$C$216)))) -> 95.63008372 | AB202: =IF(MAX(C205:C216)-MIN(C205:C216)<5,AVERAGEIF(C205:C216,">0",AB205:AB216), IF(FORECAST($C202,AB$205:AB$216,$C$205:$C$216)<0,0, IF(FORECAST($C202,AB$205:AB$216,$C$205:$C$216)>100,100, FORECAST($C202,AB$205:AB$216,$C$205:$C$216)))) -> 0
B204: Survey | C204: Year | D204: Improved | E204: Not shared | H204: Open defecation | I204: Improved | J204: Not shared | M204: Open defecation | N204: Improved | O204: Not shared | R204: Open defecation | S204: Improved | T204: Not shared | W204: Open defecation | X204: Improved | Y204: Not shared | AB204: Open defecation
B205: MICS00 | C205: 2000 | D205: =IF(ISERROR(INDIRECT(CONCATENATE($B205,"!H122"))),"",INDIRECT(CONCATENATE($B205,"!H122"))) -> 45.41027312 | E205: =IF(ISERROR(INDIRECT(CONCATENATE($B205,"!H129"))),"",INDIRECT(CONCATENATE($B205,"!H129"))) -> N/A | H205: =IF(ISERROR(INDIRECT(CONCATENATE($B205,"!H127"))),"",INDIRECT(CONCATENATE($B205,"!H127"))) -> 5.630651167 | I205: =IF(ISERROR(INDIRECT(CONCATENATE($B205,"!I122"))),"",INDIRECT(CONCATENATE($B205,"!I122"))) -> 65.5687628 | J205: =IF(ISERROR(INDIRECT(CONCATENATE($B205,"!I129"))),"",INDIRECT(CONCATENATE($B205,"!I129"))) -> N/A | M205: =IF(ISERROR(INDIRECT(CONCATENATE($B205,"!I127"))),"",INDIRECT(CONCATENATE($B205,"!I127"))) -> 0.1602681134 | N205: =IF(ISERROR(INDIRECT(CONCATENATE($B205,"!J122"))),"",INDIRECT(CONCATENATE($B205,"!J122"))) -> 84.80623786 | O205: =IF(ISERROR(INDIRECT(CONCATENATE($B205,"!J129"))),"",INDIRECT(CONCATENATE($B205,"!J129"))) -> N/A | R205: =IF(ISERROR(INDIRECT(CONCATENATE($B205,"!J127"))),"",INDIRECT(CONCATENATE($B205,"!J127"))) -> 0 | S205: =IF(ISERROR(INDIRECT(CONCATENATE($B205,"!K122"))),"",INDIRECT(CONCATENATE($B205,"!K122"))) -> 88.51439948 | T205: =IF(ISERROR(INDIRECT(CONCATENATE($B205,"!K129"))),"",INDIRECT(CONCATENATE($B205,"!K129"))) -> N/A | W205: =IF(ISERROR(INDIRECT(CONCATENATE($B205,"!K127"))),"",INDIRECT(CONCATENATE($B205,"!K127"))) -> 0 | X205: =IF(ISERROR(INDIRECT(CONCATENATE($B205,"!L122"))),"",INDIRECT(CONCATENATE($B205,"!L122"))) -> 97.72097043 | Y205: =IF(ISERROR(INDIRECT(CONCATENATE($B205,"!L129"))),"",INDIRECT(CONCATENATE($B205,"!L129"))) -> N/A | AB205: =IF(ISERROR(INDIRECT(CONCATENATE($B205,"!L2127"))),"",INDIRECT(CONCATENATE($B205,"!L127"))) -> 0.3543009006
B206: DHS03 | C206: 2003 | D206: 43.05135889 | E206: N/A | H206: 14.89738716 | I206: 62.56024211 | J206: N/A | M206: 3.038423305 | N206: 83.77215475 | O206: N/A | R206: 1.391749849 | S206: 87.73555527 | T206: N/A | W206: 0.4348960199 | X206: 97.02553792 | Y206: N/A | AB206: 0
B207: DHS09 | C207: 2009 | D207: 68.26556156 | E207: 4.926753852 | H207: 3.661009535 | I207: 73.16847972 | J207: 16.16735496 | M207: 1.476484309 | N207: 85.75945912 | O207: 20.52310191 | R207: 0.3608262146 | S207: 88.57418622 | T207: 55.72913644 | W207: 0 | X207: 98.28119737 | Y207: 94.2693709 | AB207: 0.02566001395
B208: DHS14 | C208: 2014 | D208: 43.82020745 | E208: 37.1737158 | H208: 7.639463456 | I208: 70.73275466 | J208: 25.0607696 | M208: 0.8757906083 | N208: 80.51311431 | O208: 21.40895736 | R208: 0.06567147546 | S208: 86.00226178 | T208: 34.63665137 | W208: 0 | X208: 95.29674786 | Y208: 77.05144405 | AB208: 0
B209: MIS15 | C209: 2015 | D209: 38.65531312 | E209: 40.92342468 | H209: 16.18582793 | I209: 74.71683126 | J209: 27.66431735 | M209: 0.0985045016 | N209: 87.17759492 | O209: 30.49861253 | R209: 0 | S209: 87.49970063 | T209: 58.29151291 | W209: 0 | X209: 95.73738331 | Y209: 80.16577705 | AB209: 0
B218: =CONCATENATE("Urban use of sanitation facilities, ",C199,"–",C200) -> Urban use of sanitation facilities, 2000–2020 | S218: Data points used for regression
A297: RURAL | D297: Poorest | I297: Poor | N297: Middle | S297: Rich | X297: Richest
D298: Improved | E298: Basic | F298: Limited | G298: Unimproved | H298: Open defecation | I298: Improved | J298: Basic | K298: Limited | L298: Unimproved | M298: Open defecation | N298: Improved | O298: Basic | P298: Limited | Q298: Unimproved | R298: Open defecation | S298: Improved | T298: Basic | U298: Limited | V298: Unimproved | W298: Open defecation | X298: Improved | Y298: Basic | Z298: Limited | AA298: Unimproved | AB298: Open defecation
A299: Forecast period: | C299: 2000 | D299: =IF((D301+H301)>100,D301*100/(D301+H301),D301) -> 9.710049153 | E299: =D299*AVERAGEIF(E305:E316,">0")/100 -> 4.571428741 | F299: =D299*(100-AVERAGEIF(E305:E316,">0"))/100 -> 5.138620413 | G299: =100-(E299+F299+H299) -> 39.98704555 | H299: =IF((D301+H301)>100,H301*100/(D301+H301),H301) -> 50.30290529 | I299: =IF((I301+M301)>100,I301*100/(I301+M301),I301) -> 14.3833519 | J299: =I299*AVERAGEIF(J305:J316,">0")/100 -> 8.512806151 | K299: =I299*(100-AVERAGEIF(J305:J316,">0"))/100 -> 5.870545747 | L299: =100-(J299+K299+M299) -> 60.23371298 | M299: =IF((I301+M301)>100,M301*100/(I301+M301),M301) -> 25.38293512 | N299: =IF((N301+R301)>100,N301*100/(N301+R301),N301) -> 21.33932177 | O299: =N299*AVERAGEIF(O305:O316,">0")/100 -> 13.41410891 | P299: =N299*(100-AVERAGEIF(O305:O316,">0"))/100 -> 7.925212866 | Q299: =100-(O299+P299+R299) -> 68.45384537 | R299: =IF((N301+R301)>100,R301*100/(N301+R301),R301) -> 10.20683286 | S299: =IF((S301+W301)>100,S301*100/(S301+W301),S301) -> 33.8931252 | T299: =S299*AVERAGEIF(T305:T316,">0")/100 -> 22.48273829 | U299: =S299*(100-AVERAGEIF(T305:T316,">0"))/100 -> 11.41038691 | V299: =100-(T299+U299+W299) -> 55.06412949 | W299: =IF((S301+W301)>100,W301*100/(S301+W301),W301) -> 11.04274531 | X299: =IF((X301+AB301)>100,X301*100/(X301+AB301),X301) -> 65.22378963 | Y299: =X299*AVERAGEIF(Y305:Y316,">0")/100 -> 43.00314225 | Z299: =X299*(100-AVERAGEIF(Y305:Y316,">0"))/100 -> 22.22064738 | AA299: =100-(Y299+Z299+AB299) -> 31.99705051 | AB299: =IF((X301+AB301)>100,AB301*100/(X301+AB301),AB301) -> 2.779159855
C300: 2020 | D300: =IF((D302+H302)>100,D302*100/(D302+H302),D302) -> 18.43230124 | E300: =D300*AVERAGEIF(E305:E316,">0")/100 -> 8.677808969 | F300: =D300*(100-AVERAGEIF(E305:E316,">0"))/100 -> 9.754492268 | G300: =100-(E300+F300+H300) -> 28.17864361 | H300: =IF((D302+H302)>100,H302*100/(D302+H302),H302) -> 53.38905515 | I300: =IF((I302+M302)>100,I302*100/(I302+M302),I302) -> 27.00857679 | J300: =I300*AVERAGEIF(J305:J316,">0")/100 -> 15.98506247 | K300: =I300*(100-AVERAGEIF(J305:J316,">0"))/100 -> 11.02351432 | L300: =100-(J300+K300+M300) -> 59.65212837 | M300: =IF((I302+M302)>100,M302*100/(I302+M302),M302) -> 13.33929484 | N300: =IF((N302+R302)>100,N302*100/(N302+R302),N302) -> 34.22040265 | O300: =N300*AVERAGEIF(O305:O316,">0")/100 -> 21.51128386 | P300: =N300*(100-AVERAGEIF(O305:O316,">0"))/100 -> 12.70911879 | Q300: =100-(O300+P300+R300) -> 60.01198445 | R300: =IF((N302+R302)>100,R302*100/(N302+R302),R302) -> 5.767612898 | S300: =IF((S302+W302)>100,S302*100/(S302+W302),S302) -> 46.01399002 | T300: =S300*AVERAGEIF(T305:T316,">0")/100 -> 30.52301873 | U300: =S300*(100-AVERAGEIF(T305:T316,">0"))/100 -> 15.49097129 | V300: =100-(T300+U300+W300) -> 50.4340752 | W300: =IF((S302+W302)>100,W302*100/(S302+W302),W302) -> 3.551934777 | X300: =IF((X302+AB302)>100,X302*100/(X302+AB302),X302) -> 70.20410796 | Y300: =X300*AVERAGEIF(Y305:Y316,">0")/100 -> 46.28674994 | Z300: =X300*(100-AVERAGEIF(Y305:Y316,">0"))/100 -> 23.91735802 | AA300: =100-(Y300+Z300+AB300) -> 28.70993338 | AB300: =IF((X302+AB302)>100,AB302*100/(X302+AB302),AB302) -> 1.085958664
A301: Regression period: | C301: =MinRegYear(C299,C305:C316) -> 2000 | D301: =IF(MAX(C305:C316)-MIN(C305:C316)<5,AVERAGEIF(C305:C316,">0",D305:D316), IF(FORECAST($C301,D$305:D$316,$C$305:$C$316)<0,0, IF(FORECAST($C301,D$305:D$316,$C$305:$C$316)>100,100, FORECAST($C301,D$305:D$316,$C$305:$C$316)))) -> 9.710049153 | H301: =IF(MAX(C305:C316)-MIN(C305:C316)<5,AVERAGEIF(C305:C316,">0",H305:H316), IF(FORECAST($C301,H$305:H$316,$C$305:$C$316)<0,0, IF(FORECAST($C301,H$305:H$316,$C$305:$C$316)>100,100, FORECAST($C301,H$305:H$316,$C$305:$C$316)))) -> 50.30290529 | I301: =IF(MAX(C305:C316)-MIN(C305:C316)<5,AVERAGEIF(C305:C316,">0",I305:I316), IF(FORECAST($C301,I$305:I$316,$C$305:$C$316)<0,0, IF(FORECAST($C301,I$305:I$316,$C$305:$C$316)>100,100, FORECAST($C301,I$305:I$316,$C$305:$C$316)))) -> 14.3833519 | M301: =IF(MAX(C305:C316)-MIN(C305:C316)<5,AVERAGEIF(C305:C316,">0",M305:M316), IF(FORECAST($C301,M$305:M$316,$C$305:$C$316)<0,0, IF(FORECAST($C301,M$305:M$316,$C$305:$C$316)>100,100, FORECAST($C301,M$305:M$316,$C$305:$C$316)))) -> 25.38293512 | N301: =IF(MAX(C305:C316)-MIN(C305:C316)<5,AVERAGEIF(C305:C316,">0",N305:N316), IF(FORECAST($C301,N$305:N$316,$C$305:$C$316)<0,0, IF(FORECAST($C301,N$305:N$316,$C$305:$C$316)>100,100, FORECAST($C301,N$305:N$316,$C$305:$C$316)))) -> 21.33932177 | R301: =IF(MAX(C305:C316)-MIN(C305:C316)<5,AVERAGEIF(C305:C316,">0",R305:R316), IF(FORECAST($C301,R$305:R$316,$C$305:$C$316)<0,0, IF(FORECAST($C301,R$305:R$316,$C$305:$C$316)>100,100, FORECAST($C301,R$305:R$316,$C$305:$C$316)))) -> 10.20683286 | S301: =IF(MAX(C305:C316)-MIN(C305:C316)<5,AVERAGEIF(C305:C316,">0",S305:S316), IF(FORECAST($C301,S$305:S$316,$C$305:$C$316)<0,0, IF(FORECAST($C301,S$305:S$316,$C$305:$C$316)>100,100, FORECAST($C301,S$305:S$316,$C$305:$C$316)))) -> 33.8931252 | W301: =IF(MAX(C305:C316)-MIN(C305:C316)<5,AVERAGEIF(C305:C316,">0",W305:W316), IF(FORECAST($C301,W$305:W$316,$C$305:$C$316)<0,0, IF(FORECAST($C301,W$305:W$316,$C$305:$C$316)>100,100, FORECAST($C301,W$305:W$316,$C$305:$C$316)))) -> 11.04274531 | X301: =IF(MAX(C305:C316)-MIN(C305:C316)<5,AVERAGEIF(C305:C316,">0",X305:X316), IF(FORECAST($C301,X$305:X$316,$C$305:$C$316)<0,0, IF(FORECAST($C301,X$305:X$316,$C$305:$C$316)>100,100, FORECAST($C301,X$305:X$316,$C$305:$C$316)))) -> 65.22378963 | AB301: =IF(MAX(C305:C316)-MIN(C305:C316)<5,AVERAGEIF(C305:C316,">0",AB305:AB316), IF(FORECAST($C301,AB$305:AB$316,$C$305:$C$316)<0,0, IF(FORECAST($C301,AB$305:AB$316,$C$305:$C$316)>100,100, FORECAST($C301,AB$305:AB$316,$C$305:$C$316)))) -> 2.779159855
C302: =MaxRegYear(C300,C305:C316) -> 2017 | D302: =IF(MAX(C305:C316)-MIN(C305:C316)<5,AVERAGEIF(C305:C316,">0",D305:D316), IF(FORECAST($C302,D$305:D$316,$C$305:$C$316)<0,0, IF(FORECAST($C302,D$305:D$316,$C$305:$C$316)>100,100, FORECAST($C302,D$305:D$316,$C$305:$C$316)))) -> 18.43230124 | H302: =IF(MAX(C305:C316)-MIN(C305:C316)<5,AVERAGEIF(C305:C316,">0",H305:H316), IF(FORECAST($C302,H$305:H$316,$C$305:$C$316)<0,0, IF(FORECAST($C302,H$305:H$316,$C$305:$C$316)>100,100, FORECAST($C302,H$305:H$316,$C$305:$C$316)))) -> 53.38905515 | I302: =IF(MAX(C305:C316)-MIN(C305:C316)<5,AVERAGEIF(C305:C316,">0",I305:I316), IF(FORECAST($C302,I$305:I$316,$C$305:$C$316)<0,0, IF(FORECAST($C302,I$305:I$316,$C$305:$C$316)>100,100, FORECAST($C302,I$305:I$316,$C$305:$C$316)))) -> 27.00857679 | M302: =IF(MAX(C305:C316)-MIN(C305:C316)<5,AVERAGEIF(C305:C316,">0",M305:M316), IF(FORECAST($C302,M$305:M$316,$C$305:$C$316)<0,0, IF(FORECAST($C302,M$305:M$316,$C$305:$C$316)>100,100, FORECAST($C302,M$305:M$316,$C$305:$C$316)))) -> 13.33929484 | N302: =IF(MAX(C305:C316)-MIN(C305:C316)<5,AVERAGEIF(C305:C316,">0",N305:N316), IF(FORECAST($C302,N$305:N$316,$C$305:$C$316)<0,0, IF(FORECAST($C302,N$305:N$316,$C$305:$C$316)>100,100, FORECAST($C302,N$305:N$316,$C$305:$C$316)))) -> 34.22040265 | R302: =IF(MAX(C305:C316)-MIN(C305:C316)<5,AVERAGEIF(C305:C316,">0",R305:R316), IF(FORECAST($C302,R$305:R$316,$C$305:$C$316)<0,0, IF(FORECAST($C302,R$305:R$316,$C$305:$C$316)>100,100, FORECAST($C302,R$305:R$316,$C$305:$C$316)))) -> 5.767612898 | S302: =IF(MAX(C305:C316)-MIN(C305:C316)<5,AVERAGEIF(C305:C316,">0",S305:S316), IF(FORECAST($C302,S$305:S$316,$C$305:$C$316)<0,0, IF(FORECAST($C302,S$305:S$316,$C$305:$C$316)>100,100, FORECAST($C302,S$305:S$316,$C$305:$C$316)))) -> 46.01399002 | W302: =IF(MAX(C305:C316)-MIN(C305:C316)<5,AVERAGEIF(C305:C316,">0",W305:W316), IF(FORECAST($C302,W$305:W$316,$C$305:$C$316)<0,0, IF(FORECAST($C302,W$305:W$316,$C$305:$C$316)>100,100, FORECAST($C302,W$305:W$316,$C$305:$C$316)))) -> 3.551934777 | X302: =IF(MAX(C305:C316)-MIN(C305:C316)<5,AVERAGEIF(C305:C316,">0",X305:X316), IF(FORECAST($C302,X$305:X$316,$C$305:$C$316)<0,0, IF(FORECAST($C302,X$305:X$316,$C$305:$C$316)>100,100, FORECAST($C302,X$305:X$316,$C$305:$C$316)))) -> 70.20410796 | AB302: =IF(MAX(C305:C316)-MIN(C305:C316)<5,AVERAGEIF(C305:C316,">0",AB305:AB316), IF(FORECAST($C302,AB$305:AB$316,$C$305:$C$316)<0,0, IF(FORECAST($C302,AB$305:AB$316,$C$305:$C$316)>100,100, FORECAST($C302,AB$305:AB$316,$C$305:$C$316)))) -> 1.085958664
B304: Survey | C304: Year | D304: Improved | E304: Not shared | H304: Open defecation | I304: Improved | J304: Not shared | M304: Open defecation | N304: Improved | O304: Not shared | R304: Open defecation | S304: Improved | T304: Not shared | W304: Open defecation | X304: Improved | Y304: Not shared | AB304: Open defecation
B305: MICS00 | C305: 2000 | D305: =IF(ISERROR(INDIRECT(CONCATENATE($B305,"!M122"))),"",INDIRECT(CONCATENATE($B305,"!M122"))) -> 12.5474258 | E305: =IF(ISERROR(INDIRECT(CONCATENATE($B305,"!M129"))),"",INDIRECT(CONCATENATE($B305,"!M129"))) -> N/A | H305: =IF(ISERROR(INDIRECT(CONCATENATE($B305,"!M127"))),"",INDIRECT(CONCATENATE($B305,"!M127"))) -> 42.9203301 | I305: =IF(ISERROR(INDIRECT(CONCATENATE($B305,"!N122"))),"",INDIRECT(CONCATENATE($B305,"!N122"))) -> 16.09142172 | J305: =IF(ISERROR(INDIRECT(CONCATENATE($B305,"!N129"))),"",INDIRECT(CONCATENATE($B305,"!N129"))) -> N/A | M305: =IF(ISERROR(INDIRECT(CONCATENATE($B305,"!N127"))),"",INDIRECT(CONCATENATE($B305,"!N127"))) -> 25.93392317 | N305: =IF(ISERROR(INDIRECT(CONCATENATE($B305,"!O122"))),"",INDIRECT(CONCATENATE($B305,"!O122"))) -> 24.461007 | O305: =IF(ISERROR(INDIRECT(CONCATENATE($B305,"!O129"))),"",INDIRECT(CONCATENATE($B305,"!O129"))) -> N/A | R305: =IF(ISERROR(INDIRECT(CONCATENATE($B305,"!O127"))),"",INDIRECT(CONCATENATE($B305,"!O127"))) -> 8.629582085 | S305: =IF(ISERROR(INDIRECT(CONCATENATE($B305,"!P122"))),"",INDIRECT(CONCATENATE($B305,"!P122"))) -> 33.79452368 | T305: =IF(ISERROR(INDIRECT(CONCATENATE($B305,"!P129"))),"",INDIRECT(CONCATENATE($B305,"!P129"))) -> N/A | W305: =IF(ISERROR(INDIRECT(CONCATENATE($B305,"!P127"))),"",INDIRECT(CONCATENATE($B305,"!P127"))) -> 8.923288881 | X305: =IF(ISERROR(INDIRECT(CONCATENATE($B305,"!Q122"))),"",INDIRECT(CONCATENATE($B305,"!Q122"))) -> 65.68212454 | Y305: =IF(ISERROR(INDIRECT(CONCATENATE($B305,"!Q129"))),"",INDIRECT(CONCATENATE($B305,"!Q129"))) -> N/A | AB305: =IF(ISERROR(INDIRECT(CONCATENATE($B305,"!Q2127"))),"",INDIRECT(CONCATENATE($B305,"!Q127"))) -> 1.692668602
B306: DHS03 | C306: 2003 | D306: 7.214951704 | E306: N/A | H306: 58.90157842 | I306: 14.31775726 | J306: N/A | M306: 23.94251945 | N306: 19.99319282 | O306: N/A | R306: 10.57135023 | S306: 35.07280487 | T306: N/A | W306: 12.39398895 | X306: 65.30952708 | Y306: N/A | AB306: 3.721301087
B307: DHS09 | C307: 2009 | D307: 15.44650318 | E307: 40.0683962 | H307: 53.50527894 | I307: 21.74299113 | J307: 66.01664085 | M307: 15.79991364 | N307: 28.45214898 | O307: 66.56526293 | R307: 9.470573028 | S307: 43.47320867 | T307: 70.03618113 | W307: 7.20599533 | X307: 68.91590832 | Y307: 58.46025933 | AB307: 2.156322765
B308: DHS14 | C308: 2014 | D308: 16.0315044 | E308: 49.34434503 | H308: 57.52318941 | I308: 22.62827478 | J308: 51.80297301 | M308: 18.22249093 | N308: 26.79253407 | O308: 61.5990194 | R308: 6.751363967 | S308: 37.88666409 | T308: 64.0012745 | W308: 3.814033033 | X308: 65.6350343 | Y308: 73.71457264 | AB308: 1.149449115
B309: MIS15 | C309: 2015 | D309: 18.34588041 | E309: 51.82533086 | H309: 46.10721691 | I309: 27.5853864 | J309: 59.73578931 | M309: 13.96940187 | N309: 38.06386222 | O309: 60.41868739 | R309: 4.904940953 | S309: 48.47109867 | T309: 64.96518715 | W309: 4.810347904 | X309: 72.58770988 | Y309: 65.62021715 | AB309: 1.092454833
B318: =CONCATENATE("Rural use of sanitation facilities, ",C299,"–",C300) -> Rural use of sanitation facilities, 2000–2020 | S318: Data points used for regression

Sheet Hygiene
B4: Access to hygiene facilities by wealth quintile (%)
B5: =IF(ISERROR(INDIRECT(CONCATENATE($E$32,"!A2"))),"",INDIRECT(CONCATENATE($E$32,"!A2"))) -> 
B7: =CONCATENATE("National ",IF(ISERROR(INDIRECT(CONCATENATE($E$32,"!A2"))),"",INDIRECT(CONCATENATE($E$32,"!A210")))) -> National | K7: =CONCATENATE("Urban ",IF(ISERROR(INDIRECT(CONCATENATE($E$32,"!A2"))),"",INDIRECT(CONCATENATE($E$32,"!A210")))) -> Urban | S7: =CONCATENATE("Rural ",IF(ISERROR(INDIRECT(CONCATENATE($E$32,"!A2"))),"",INDIRECT(CONCATENATE($E$32,"!A210")))) -> Rural
E32: =INDEX(B88:B100,A88) -> 0 | G32: =IF(ISERROR(INDIRECT(CONCATENATE($E$32,"!A2"))),"",INDIRECT(CONCATENATE($E$32,"!A2"))) ->  | K32: Poorest | N32: Poor | Q32: Middle | T32: Rich | W32: Richest
K33: Basic | L33: Limited | M33: No facility | N33: Basic | O33: Limited | P33: No facility | Q33: Basic | R33: Limited | S33: No facility | T33: Basic | U33: Limited | V33: No facility | W33: Basic | X33: Limited | Y33: No facility
B34: >>> Select Survey : | G34: NATIONAL | J34: =IF(ISERROR(INDIRECT(CONCATENATE(#REF!,"!A2"))),"",INDIRECT(CONCATENATE(#REF!,"!A210"))) ->  | K34: =IF(ISERROR(INDIRECT(CONCATENATE($E$32,"!C222"))),"",INDIRECT(CONCATENATE($E$32,"!C222"))) ->  | L34: =IF(ISERROR(INDIRECT(CONCATENATE($E$32,"!C223"))),"",INDIRECT(CONCATENATE($E$32,"!C223"))) ->  | M34: =IF(ISERROR(INDIRECT(CONCATENATE($E$32,"!C224"))),"",INDIRECT(CONCATENATE($E$32,"!C224"))) ->  | N34: =IF(ISERROR(INDIRECT(CONCATENATE($E$32,"!D222"))),"",INDIRECT(CONCATENATE($E$32,"!D222"))) ->  | O34: =IF(ISERROR(INDIRECT(CONCATENATE($E$32,"!D223"))),"",INDIRECT(CONCATENATE($E$32,"!D223"))) ->  | P34: =IF(ISERROR(INDIRECT(CONCATENATE($E$32,"!D224"))),"",INDIRECT(CONCATENATE($E$32,"!D224"))) ->  | Q34: =IF(ISERROR(INDIRECT(CONCATENATE($E$32,"!E222"))),"",INDIRECT(CONCATENATE($E$32,"!E222"))) ->  | R34: =IF(ISERROR(INDIRECT(CONCATENATE($E$32,"!E223"))),"",INDIRECT(CONCATENATE($E$32,"!E223"))) ->  | S34: =IF(ISERROR(INDIRECT(CONCATENATE($E$32,"!E224"))),"",INDIRECT(CONCATENATE($E$32,"!E224"))) ->  | T34: =IF(ISERROR(INDIRECT(CONCATENATE($E$32,"!F222"))),"",INDIRECT(CONCATENATE($E$32,"!F222"))) ->  | U34: =IF(ISERROR(INDIRECT(CONCATENATE($E$32,"!F223"))),"",INDIRECT(CONCATENATE($E$32,"!F223"))) ->  | V34: =IF(ISERROR(INDIRECT(CONCATENATE($E$32,"!F224"))),"",INDIRECT(CONCATENATE($E$32,"!F224"))) ->  | W34: =IF(ISERROR(INDIRECT(CONCATENATE($E$32,"!G222"))),"",INDIRECT(CONCATENATE($E$32,"!G222"))) ->  | X34: =IF(ISERROR(INDIRECT(CONCATENATE($E$32,"!G223"))),"",INDIRECT(CONCATENATE($E$32,"!G223"))) ->  | Y34: =IF(ISERROR(INDIRECT(CONCATENATE($E$32,"!G224"))),"",INDIRECT(CONCATENATE($E$32,"!G224"))) -> 
G37: URBAN | J37: =IF(ISERROR(INDIRECT(CONCATENATE(#REF!,"!A2"))),"",INDIRECT(CONCATENATE(#REF!,"!A210"))) ->  | K37: =IF(ISERROR(INDIRECT(CONCATENATE($E$32,"!H222"))),"",INDIRECT(CONCATENATE($E$32,"!H222"))) ->  | L37: =IF(ISERROR(INDIRECT(CONCATENATE($E$32,"!H223"))),"",INDIRECT(CONCATENATE($E$32,"!H223"))) ->  | M37: =IF(ISERROR(INDIRECT(CONCATENATE($E$32,"!H224"))),"",INDIRECT(CONCATENATE($E$32,"!H224"))) ->  | N37: =IF(ISERROR(INDIRECT(CONCATENATE($E$32,"!I222"))),"",INDIRECT(CONCATENATE($E$32,"!I222"))) ->  | O37: =IF(ISERROR(INDIRECT(CONCATENATE($E$32,"!I223"))),"",INDIRECT(CONCATENATE($E$32,"!I223"))) ->  | P37: =IF(ISERROR(INDIRECT(CONCATENATE($E$32,"!I224"))),"",INDIRECT(CONCATENATE($E$32,"!I224"))) ->  | Q37: =IF(ISERROR(INDIRECT(CONCATENATE($E$32,"!J222"))),"",INDIRECT(CONCATENATE($E$32,"!J222"))) ->  | R37: =IF(ISERROR(INDIRECT(CONCATENATE($E$32,"!J223"))),"",INDIRECT(CONCATENATE($E$32,"!J223"))) ->  | S37: =IF(ISERROR(INDIRECT(CONCATENATE($E$32,"!J224"))),"",INDIRECT(CONCATENATE($E$32,"!J224"))) ->  | T37: =IF(ISERROR(INDIRECT(CONCATENATE($E$32,"!K222"))),"",INDIRECT(CONCATENATE($E$32,"!K222"))) ->  | U37: =IF(ISERROR(INDIRECT(CONCATENATE($E$32,"!K223"))),"",INDIRECT(CONCATENATE($E$32,"!K223"))) ->  | V37: =IF(ISERROR(INDIRECT(CONCATENATE($E$32,"!K224"))),"",INDIRECT(CONCATENATE($E$32,"!K224"))) ->  | W37: =IF(ISERROR(INDIRECT(CONCATENATE($E$32,"!L222"))),"",INDIRECT(CONCATENATE($E$32,"!L222"))) ->  | X37: =IF(ISERROR(INDIRECT(CONCATENATE($E$32,"!L223"))),"",INDIRECT(CONCATENATE($E$32,"!L223"))) ->  | Y37: =IF(ISERROR(INDIRECT(CONCATENATE($E$32,"!L224"))),"",INDIRECT(CONCATENATE($E$32,"!L224"))) -> 
G40: RURAL | J40: =IF(ISERROR(INDIRECT(CONCATENATE(#REF!,"!A2"))),"",INDIRECT(CONCATENATE(#REF!,"!A210"))) ->  | K40: =IF(ISERROR(INDIRECT(CONCATENATE($E$32,"!M222"))),"",INDIRECT(CONCATENATE($E$32,"!M222"))) ->  | L40: =IF(ISERROR(INDIRECT(CONCATENATE($E$32,"!M223"))),"",INDIRECT(CONCATENATE($E$32,"!M223"))) ->  | M40: =IF(ISERROR(INDIRECT(CONCATENATE($E$32,"!M224"))),"",INDIRECT(CONCATENATE($E$32,"!M224"))) ->  | N40: =IF(ISERROR(INDIRECT(CONCATENATE($E$32,"!N222"))),"",INDIRECT(CONCATENATE($E$32,"!N222"))) ->  | O40: =IF(ISERROR(INDIRECT(CONCATENATE($E$32,"!N223"))),"",INDIRECT(CONCATENATE($E$32,"!N223"))) ->  | P40: =IF(ISERROR(INDIRECT(CONCATENATE($E$32,"!N224"))),"",INDIRECT(CONCATENATE($E$32,"!N224"))) ->  | Q40: =IF(ISERROR(INDIRECT(CONCATENATE($E$32,"!O222"))),"",INDIRECT(CONCATENATE($E$32,"!O222"))) ->  | R40: =IF(ISERROR(INDIRECT(CONCATENATE($E$32,"!O223"))),"",INDIRECT(CONCATENATE($E$32,"!O223"))) ->  | S40: =IF(ISERROR(INDIRECT(CONCATENATE($E$32,"!O224"))),"",INDIRECT(CONCATENATE($E$32,"!O224"))) ->  | T40: =IF(ISERROR(INDIRECT(CONCATENATE($E$32,"!P222"))),"",INDIRECT(CONCATENATE($E$32,"!P222"))) ->  | U40: =IF(ISERROR(INDIRECT(CONCATENATE($E$32,"!P223"))),"",INDIRECT(CONCATENATE($E$32,"!P223"))) ->  | V40: =IF(ISERROR(INDIRECT(CONCATENATE($E$32,"!P224"))),"",INDIRECT(CONCATENATE($E$32,"!P224"))) ->  | W40: =IF(ISERROR(INDIRECT(CONCATENATE($E$32,"!Q222"))),"",INDIRECT(CONCATENATE($E$32,"!Q222"))) ->  | X40: =IF(ISERROR(INDIRECT(CONCATENATE($E$32,"!Q223"))),"",INDIRECT(CONCATENATE($E$32,"!Q223"))) ->  | Y40: =IF(ISERROR(INDIRECT(CONCATENATE($E$32,"!Q224"))),"",INDIRECT(CONCATENATE($E$32,"!Q224"))) -> 
A88: 2 | B88: Template

Sheet MICS00
A2: =A1026 -> Kenya
A3: =A1034 -> 2000
A4: Use of drinking water sources
A5: by wealth quintile and sub-national region
A6: Notes:
A7: WHO/UNICEF JMP customised wealth index excludes water,
A8: sanitation and hygiene assets.
A9: Survey used for analysis: | B9: =A1025 -> MICS00
A10: =B1028 -> 
A11: =B1027 -> 
A14: Use of drinking water sources | C14: NATIONAL wealth index quintile | H14: URBAN wealth index quintile | M14: RURAL wealth index quintile | R14: SUB-REGIONS: | BA14: Raw numbers of respondents: | BB14: Use of drinking water sources | BC14: NATIONAL wealth index quintile | BH14: URBAN wealth index quintile | BM14: RURAL wealth index quintile | BR14: SUB-REGIONS:
A15: Weighted percentage (used in graphs) | C15: Poorest | D15: Poor | E15: Middle | F15: Rich | G15: Richest | H15: Poorest | I15: Poor | J15: Middle | K15: Rich | L15: Richest | M15: Poorest | N15: Poor | O15: Middle | P15: Rich | Q15: Richest | R15: eastern | S15: central | T15: coast | U15: nairobi | V15: north eastern' | W15: nyanza | X15: rift valley | Y15: western | BA15: Water data, raw numbers (weighted) | BC15: Poorest | BD15: Poor | BE15: Middle | BF15: Rich | BG15: Richest | BH15: Poorest | BI15: Poor | BJ15: Middle | BK15: Rich | BL15: Richest | BM15: Poorest | BN15: Poor | BO15: Middle | BP15: Rich | BQ15: Richest | BR15: eastern | BS15: central | BT15: coast | BU15: nairobi | BV15: north eastern' | BW15: nyanza | BX15: rift valley | BY15: western
A16: Water | B16: Improved | C16: 35.22727488 | D16: 36.33130036 | E16: 44.89403712 | F16: 64.10618021 | G16: 93.65159144 | H16: 92.30391587 | I16: 94.15680288 | J16: 94.92557925 | K16: 99.46685068 | L16: 100 | M16: 33.68414787 | N16: 36.28925214 | O16: 41.10433044 | P16: 43.72602421 | Q16: 61.18207091 | R16: 36.98070204 | S16: 48.65572295 | T16: 70.52036845 | U16: 98.14654407 | V16: 80.22046319 | W16: 44.48077951 | X16: 49.51192827 | Y16: 49.93400453 | BA16: Water | BB16: Improved | BC16: N/A | BD16: N/A | BE16: N/A | BF16: N/A | BG16: N/A | BH16: N/A | BI16: N/A | BJ16: N/A | BK16: N/A | BL16: N/A | BM16: N/A | BN16: N/A | BO16: N/A | BP16: N/A | BQ16: N/A | BR16: N/A | BS16: N/A | BT16: N/A | BU16: N/A | BV16: N/A | BW16: N/A | BX16: N/A | BY16: N/A
B17: Not Improved | C17: 64.77272512 | D17: 63.66869964 | E17: 55.10596288 | F17: 35.89381979 | G17: 6.348408559 | H17: 7.696084133 | I17: 5.843197118 | J17: 5.074420751 | K17: 0.5331493206 | L17: 0 | M17: 66.31585213 | N17: 63.71074786 | O17: 58.89566956 | P17: 56.27397579 | Q17: 38.81792909 | R17: 63.01929796 | S17: 51.34427705 | T17: 29.47963155 | U17: 1.853455934 | V17: 19.77953681 | W17: 55.51922049 | X17: 50.48807173 | Y17: 50.06599547 | BB17: Not Improved | BC17: N/A | BD17: N/A | BE17: N/A | BF17: N/A | BG17: N/A | BH17: N/A | BI17: N/A | BJ17: N/A | BK17: N/A | BL17: N/A | BM17: N/A | BN17: N/A | BO17: N/A | BP17: N/A | BQ17: N/A | BR17: N/A | BS17: N/A | BT17: N/A | BU17: N/A | BV17: N/A | BW17: N/A | BX17: N/A | BY17: N/A
A18: Water ladder | B18: Basic | C18: =C16*C23/100 -> 27.04505515 | D18: =D16*D23/100 -> 29.25276901 | E18: =E16*E23/100 -> 35.48010323 | F18: 56.31042487 | G18: 88.0944991 | H18: 86.17902865 | I18: 84.901148 | J18: 89.56823613 | K18: 93.54849029 | L18: 98.30668862 | M18: 25.19976628 | N18: 29.21955206 | O18: 34.14182432 | P18: 33.1299396 | Q18: 53.40711159 | R18: 22.75110659 | S18: 45.64749472 | T18: 65.46451463 | U18: 90.0871018 | V18: 78.58307548 | W18: 35.83216949 | X18: 42.34569096 | Y18: 45.18315485 | BA18: Water ladder | BB18: Basic | BC18: N/A | BD18: N/A | BE18: N/A | BF18: N/A | BG18: N/A | BH18: N/A | BI18: N/A | BJ18: N/A | BK18: N/A | BL18: N/A | BM18: N/A | BN18: N/A | BO18: N/A | BP18: N/A | BQ18: N/A | BR18: N/A | BS18: N/A | BT18: N/A | BU18: N/A | BV18: N/A | BW18: N/A | BX18: N/A | BY18: N/A
B19: Limited | C19: =C16*C22/100 -> 8.182219728 | D19: =D16*D22/100 -> 7.078531351 | E19: =E16*E22/100 -> 9.413933889 | F19: 7.795755345 | G19: 5.557092336 | H19: 6.124887216 | I19: 9.255654881 | J19: 5.357343116 | K19: 5.918360386 | L19: 1.693311375 | M19: 8.484381586 | N19: 7.069700074 | O19: 6.962506118 | P19: 10.59608461 | Q19: 7.774959324 | R19: 14.22959545 | S19: 3.008228223 | T19: 5.05585382 | U19: 8.05944227 | V19: 1.637387708 | W19: 8.648610018 | X19: 7.166237311 | Y19: 4.750849687 | BB19: Limited | BC19: N/A | BD19: N/A | BE19: N/A | BF19: N/A | BG19: N/A | BH19: N/A | BI19: N/A | BJ19: N/A | BK19: N/A | BL19: N/A | BM19: N/A | BN19: N/A | BO19: N/A | BP19: N/A | BQ19: N/A | BR19: N/A | BS19: N/A | BT19: N/A | BU19: N/A | BV19: N/A | BW19: N/A | BX19: N/A | BY19: N/A
B20: Unimproved | C20: =100-C18-C19-C21 -> 21.38165365 | D20: =100-D18-D19-D21 -> 24.31225172 | E20: =100-E18-E19-E21 -> 18.59754971 | F20: 11.86662302 | G20: 2.375737721 | H20: 4.567647739 | I20: 2.961492348 | J20: 3.643511742 | K20: 0.4761825328 | L20: 1.088018564e-14 | M20: 21.89744892 | N20: 22.91828429 | O20: 24.28300251 | P20: 16.98268228 | Q20: 11.26889358 | R20: 23.52844559 | S20: 7.217499434 | T20: 7.511150642 | U20: 1.150177602 | V20: 18.14610582 | W20: 18.00329406 | X20: 14.36094842 | Y20: 34.78964981 | BB20: Unimproved | BC20: N/A | BD20: N/A | BE20: N/A | BF20: N/A | BG20: N/A | BH20: N/A | BI20: N/A | BJ20: N/A | BK20: N/A | BL20: N/A | BM20: N/A | BN20: N/A | BO20: N/A | BP20: N/A | BQ20: N/A | BR20: N/A | BS20: N/A | BT20: N/A | BU20: N/A | BV20: N/A | BW20: N/A | BX20: N/A | BY20: N/A
B21: Surface water | C21: 43.39107147 | D21: 39.35644792 | E21: 36.50841316 | F21: 24.02719676 | G21: 3.972670838 | H21: 3.128436394 | I21: 2.881704769 | J21: 1.430909008 | K21: 0.05696678778 | L21: 0 | M21: 44.41840321 | N21: 40.79246357 | O21: 34.61266706 | P21: 39.29129351 | Q21: 27.54903551 | R21: 39.49085237 | S21: 44.12677762 | T21: 21.9684809 | U21: 0.7032783318 | V21: 1.633430995 | W21: 37.51592642 | X21: 36.12712331 | Y21: 15.27634565 | BB21: Surface water | BC21: N/A | BD21: N/A | BE21: N/A | BF21: N/A | BG21: N/A | BH21: N/A | BI21: N/A | BJ21: N/A | BK21: N/A | BL21: N/A | BM21: N/A | BN21: N/A | BO21: N/A | BP21: N/A | BQ21: N/A | BR21: N/A | BS21: N/A | BT21: N/A | BU21: N/A | BV21: N/A | BW21: N/A | BX21: N/A | BY21: N/A
A22: Improved water point at more than 30 minutes | B22: Yes | C22: 23.2269449 | D22: 19.48328654 | E22: 20.96922997 | F22: 12.16069234 | G22: 5.93379381 | H22: 6.635565955 | I22: 9.830043712 | J22: 5.643729707 | K22: 5.950083214 | L22: 1.693311375 | M22: 25.18805469 | N22: 19.48152596 | O22: 16.93861947 | P22: 24.23290203 | Q22: 12.7079048 | R22: 38.47843514 | S22: 6.182681174 | T22: 7.16935253 | U22: 8.211641425 | V22: 2.041109766 | W22: 19.44347674 | X22: 14.47375928 | Y22: 9.514257331 | BA22: Improved water point at more than 30 minutes | BB22: Yes | BC22: N/A | BD22: N/A | BE22: N/A | BF22: N/A | BG22: N/A | BH22: N/A | BI22: N/A | BJ22: N/A | BK22: N/A | BL22: N/A | BM22: N/A | BN22: N/A | BO22: N/A | BP22: N/A | BQ22: N/A | BR22: N/A | BS22: N/A | BT22: N/A | BU22: N/A | BV22: N/A | BW22: N/A | BX22: N/A | BY22: N/A
B23: No | C23: 76.7730551 | D23: 80.51671346 | E23: 79.03077003 | F23: 87.83930766 | G23: 94.06620619 | H23: 93.36443405 | I23: 90.16995629 | J23: 94.35627029 | K23: 94.04991679 | L23: 98.30668862 | M23: 74.81194531 | N23: 80.51847404 | O23: 83.06138053 | P23: 75.76709797 | Q23: 87.2920952 | R23: 61.52156486 | S23: 93.81731883 | T23: 92.83064747 | U23: 91.78835857 | V23: 97.95889023 | W23: 80.55652326 | X23: 85.52624072 | Y23: 90.48574267 | BB23: No | BC23: N/A | BD23: N/A | BE23: N/A | BF23: N/A | BG23: N/A | BH23: N/A | BI23: N/A | BJ23: N/A | BK23: N/A | BL23: N/A | BM23: N/A | BN23: N/A | BO23: N/A | BP23: N/A | BQ23: N/A | BR23: N/A | BS23: N/A | BT23: N/A | BU23: N/A | BV23: N/A | BW23: N/A | BX23: N/A | BY23: N/A
A24: Manually calculated ratios | B24: Improved wells
B25: Improved springs
B26: Other
C27: NATIONAL wealth index quintile | H27: URBAN wealth index quintile | M27: RURAL wealth index quintile | R27: SUB-REGIONS: | BA27: Raw numbers of respondents: | BB27: Use of drinking water sources | BC27: NATIONAL wealth index quintile | BH27: URBAN wealth index quintile | BM27: RURAL wealth index quintile | BR27: SUB-REGIONS:
A28: Percentage based on weighted population | C28: Poorest | D28: Poor | E28: Middle | F28: Rich | G28: Richest | H28: Poorest | I28: Poor | J28: Middle | K28: Rich | L28: Richest | M28: Poorest | N28: Poor | O28: Middle | P28: Rich | Q28: Richest | R28: eastern | S28: central | T28: coast | U28: nairobi | V28: north eastern' | W28: nyanza | X28: rift valley | Y28: western | BA28: Water data, raw numbers (weighted) | BC28: Poorest | BD28: Poor | BE28: Middle | BF28: Rich | BG28: Richest | BH28: Poorest | BI28: Poor | BJ28: Middle | BK28: Rich | BL28: Richest | BM28: Poorest | BN28: Poor | BO28: Middle | BP28: Rich | BQ28: Richest | BR28: eastern | BS28: central | BT28: coast | BU28: nairobi | BV28: north eastern' | BW28: nyanza | BX28: rift valley | BY28: western
A29: Piped water | B29: Yes | C29: 8.4 | D29: 10.1 | E29: 21 | F29: 39.4 | G29: 82.7 | H29: 76.2 | I29: 78.8 | J29: 85.3 | K29: 92 | L29: 98.5 | M29: 8.7 | N29: 9.3 | O29: 11 | P29: 22.1 | Q29: 34.2 | R29: 25.5 | S29: 29.8 | T29: 47.8 | U29: 93.2 | V29: 55.8 | W29: 11.3 | X29: 21.9 | Y29: 14.1 | BA29: Piped water | BB29: Yes | BC29: N/A | BD29: N/A | BE29: N/A | BF29: N/A | BG29: N/A | BH29: N/A | BI29: N/A | BJ29: N/A | BK29: N/A | BL29: N/A | BM29: N/A | BN29: N/A | BO29: N/A | BP29: N/A | BQ29: N/A | BR29: N/A | BS29: N/A | BT29: N/A | BU29: N/A | BV29: N/A | BW29: N/A | BX29: N/A | BY29: N/A
B30: No | C30: 91.6 | D30: 89.9 | E30: 79 | F30: 60.6 | G30: 17.3 | H30: 23.8 | I30: 21.2 | J30: 14.7 | K30: 8 | L30: 1.5 | M30: 91.3 | N30: 90.7 | O30: 89 | P30: 77.9 | Q30: 65.8 | R30: 74.5 | S30: 70.2 | T30: 52.2 | U30: 6.8 | V30: 44.2 | W30: 88.7 | X30: 78.1 | Y30: 85.9 | BB30: No | BC30: N/A | BD30: N/A | BE30: N/A | BF30: N/A | BG30: N/A | BH30: N/A | BI30: N/A | BJ30: N/A | BK30: N/A | BL30: N/A | BM30: N/A | BN30: N/A | BO30: N/A | BP30: N/A | BQ30: N/A | BR30: N/A | BS30: N/A | BT30: N/A | BU30: N/A | BV30: N/A | BW30: N/A | BX30: N/A | BY30: N/A
A31: Piped water on premises | B31: Yes | C31: 2.7 | D31: 5.3 | E31: 12.4 | F31: 20.4 | G31: 62.6 | H31: 22.7 | I31: 37.3 | J31: 52.2 | K31: 77.4 | L31: 96.4 | M31: 2.9 | N31: 4 | O31: 6.9 | P31: 12.8 | Q31: 25 | R31: 13.4 | S31: 26.5 | T31: 14.9 | U31: 64.7 | V31: 54.2 | W31: 5.3 | X31: 15.7 | Y31: 9.4 | BA31: Piped water on premises | BB31: Yes | BC31: N/A | BD31: N/A | BE31: N/A | BF31: N/A | BG31: N/A | BH31: N/A | BI31: N/A | BJ31: N/A | BK31: N/A | BL31: N/A | BM31: N/A | BN31: N/A | BO31: N/A | BP31: N/A | BQ31: N/A | BR31: N/A | BS31: N/A | BT31: N/A | BU31: N/A | BV31: N/A | BW31: N/A | BX31: N/A | BY31: N/A
B32: No | C32: 97.3 | D32: 94.7 | E32: 87.6 | F32: 79.6 | G32: 37.4 | H32: 77.3 | I32: 62.7 | J32: 47.8 | K32: 22.6 | L32: 3.6 | M32: 97.1 | N32: 96 | O32: 93.1 | P32: 87.2 | Q32: 75 | R32: 86.6 | S32: 73.5 | T32: 85.1 | U32: 35.3 | V32: 45.8 | W32: 94.7 | X32: 84.3 | Y32: 90.6 | BB32: No | BC32: N/A | BD32: N/A | BE32: N/A | BF32: N/A | BG32: N/A | BH32: N/A | BI32: N/A | BJ32: N/A | BK32: N/A | BL32: N/A | BM32: N/A | BN32: N/A | BO32: N/A | BP32: N/A | BQ32: N/A | BR32: N/A | BS32: N/A | BT32: N/A | BU32: N/A | BV32: N/A | BW32: N/A | BX32: N/A | BY32: N/A
A33: Piped water into dwelling | B33: Yes | C33: N/A | D33: N/A | E33: N/A | F33: N/A | G33: N/A | H33: N/A | I33: N/A | J33: N/A | K33: N/A | L33: N/A | M33: N/A | N33: N/A | O33: N/A | P33: N/A | Q33: N/A | R33: N/A | S33: N/A | T33: N/A | U33: N/A | V33: N/A | W33: N/A | X33: N/A | Y33: N/A | BA33: Piped water into dwelling | BB33: Yes | BC33: N/A | BD33: N/A | BE33: N/A | BF33: N/A | BG33: N/A | BH33: N/A | BI33: N/A | BJ33: N/A | BK33: N/A | BL33: N/A | BM33: N/A | BN33: N/A | BO33: N/A | BP33: N/A | BQ33: N/A | BR33: N/A | BS33: N/A | BT33: N/A | BU33: N/A | BV33: N/A | BW33: N/A | BX33: N/A | BY33: N/A
B34: No | C34: N/A | D34: N/A | E34: N/A | F34: N/A | G34: N/A | H34: N/A | I34: N/A | J34: N/A | K34: N/A | L34: N/A | M34: N/A | N34: N/A | O34: N/A | P34: N/A | Q34: N/A | R34: N/A | S34: N/A | T34: N/A | U34: N/A | V34: N/A | W34: N/A | X34: N/A | Y34: N/A | BB34: No | BC34: N/A | BD34: N/A | BE34: N/A | BF34: N/A | BG34: N/A | BH34: N/A | BI34: N/A | BJ34: N/A | BK34: N/A | BL34: N/A | BM34: N/A | BN34: N/A | BO34: N/A | BP34: N/A | BQ34: N/A | BR34: N/A | BS34: N/A | BT34: N/A | BU34: N/A | BV34: N/A | BW34: N/A | BX34: N/A | BY34: N/A
A35: Water source on premises | B35: Yes | C35: 3.8 | D35: 6.5 | E35: 14.5 | F35: 26.5 | G35: 67.9 | H35: 33.2 | I35: 45.5 | J35: 59 | K35: 82.9 | L35: 97.5 | M35: 3.4 | N35: 5.1 | O35: 9 | P35: 14.5 | Q35: 31 | R35: 15.2 | S35: 30.2 | T35: 21 | U35: 66.6 | V35: 63.9 | W35: 7.5 | X35: 21.1 | Y35: 9.9 | BA35: Water source on premises | BB35: Yes | BC35: N/A | BD35: N/A | BE35: N/A | BF35: N/A | BG35: N/A | BH35: N/A | BI35: N/A | BJ35: N/A | BK35: N/A | BL35: N/A | BM35: N/A | BN35: N/A | BO35: N/A | BP35: N/A | BQ35: N/A | BR35: N/A | BS35: N/A | BT35: N/A | BU35: N/A | BV35: N/A | BW35: N/A | BX35: N/A | BY35: N/A
B36: No | C36: 96.2 | D36: 93.5 | E36: 85.5 | F36: 73.5 | G36: 32.1 | H36: 66.8 | I36: 54.5 | J36: 41 | K36: 17.1 | L36: 2.5 | M36: 96.6 | N36: 94.9 | O36: 91 | P36: 85.5 | Q36: 69 | R36: 84.8 | S36: 69.8 | T36: 79 | U36: 33.4 | V36: 36.1 | W36: 92.5 | X36: 78.9 | Y36: 90.1 | BB36: No | BC36: N/A | BD36: N/A | BE36: N/A | BF36: N/A | BG36: N/A | BH36: N/A | BI36: N/A | BJ36: N/A | BK36: N/A | BL36: N/A | BM36: N/A | BN36: N/A | BO36: N/A | BP36: N/A | BQ36: N/A | BR36: N/A | BS36: N/A | BT36: N/A | BU36: N/A | BV36: N/A | BW36: N/A | BX36: N/A | BY36: N/A
A37: Improved Water source on premises | B37: Yes | C37: 10.5 | D37: 16.7 | E37: 31.7 | F37: 40.7 | G37: 72.2 | H37: 35.7 | I37: 47.4 | J37: 61.8 | K37: 82.9 | L37: 97.5 | M37: 9.8 | N37: 13.3 | O37: 20.8 | P37: 32.2 | Q37: 50.3 | R37: 41 | S37: 61.5 | T37: 29.7 | U37: 67.9 | V37: 72.1 | W37: 15.4 | X37: 41.7 | Y37: 19.7 | BA37: Improved water source on premises | BB37: Yes | BC37: N/A | BD37: N/A | BE37: N/A | BF37: N/A | BG37: N/A | BH37: N/A | BI37: N/A | BJ37: N/A | BK37: N/A | BL37: N/A | BM37: N/A | BN37: N/A | BO37: N/A | BP37: N/A | BQ37: N/A | BR37: N/A | BS37: N/A | BT37: N/A | BU37: N/A | BV37: N/A | BW37: N/A | BX37: N/A | BY37: N/A
B38: No | C38: 89.5 | D38: 83.3 | E38: 68.3 | F38: 59.3 | G38: 27.8 | H38: 64.3 | I38: 52.6 | J38: 38.2 | K38: 17.1 | L38: 2.5 | M38: 90.2 | N38: 86.7 | O38: 79.2 | P38: 67.8 | Q38: 49.7 | R38: 59 | S38: 38.5 | T38: 70.3 | U38: 32.1 | V38: 27.9 | W38: 84.6 | X38: 58.3 | Y38: 80.3 | BB38: No | BC38: N/A | BD38: N/A | BE38: N/A | BF38: N/A | BG38: N/A | BH38: N/A | BI38: N/A | BJ38: N/A | BK38: N/A | BL38: N/A | BM38: N/A | BN38: N/A | BO38: N/A | BP38: N/A | BQ38: N/A | BR38: N/A | BS38: N/A | BT38: N/A | BU38: N/A | BV38: N/A | BW38: N/A | BX38: N/A | BY38: N/A
A39: Piped water on premises available when needed | B39: Yes | C39: N/A | D39: N/A | E39: N/A | F39: N/A | G39: N/A | H39: N/A | I39: N/A | J39: N/A | K39: N/A | L39: N/A | M39: N/A | N39: N/A | O39: N/A | P39: N/A | Q39: N/A | R39: N/A | S39: N/A | T39: N/A | U39: N/A | V39: N/A | W39: N/A | X39: N/A | Y39: N/A | BA39: Piped water on premises available when needed | BB39: Yes | BC39: N/A | BD39: N/A | BE39: N/A | BF39: N/A | BG39: N/A | BH39: N/A | BI39: N/A | BJ39: N/A | BK39: N/A | BL39: N/A | BM39: N/A | BN39: N/A | BO39: N/A | BP39: N/A | BQ39: N/A | BR39: N/A | BS39: N/A | BT39: N/A | BU39: N/A | BV39: N/A | BW39: N/A | BX39: N/A | BY39: N/A
B40: No | C40: N/A | D40: N/A | E40: N/A | F40: N/A | G40: N/A | H40: N/A | I40: N/A | J40: N/A | K40: N/A | L40: N/A | M40: N/A | N40: N/A | O40: N/A | P40: N/A | Q40: N/A | R40: N/A | S40: N/A | T40: N/A | U40: N/A | V40: N/A | W40: N/A | X40: N/A | Y40: N/A | BB40: No | BC40: N/A | BD40: N/A | BE40: N/A | BF40: N/A | BG40: N/A | BH40: N/A | BI40: N/A | BJ40: N/A | BK40: N/A | BL40: N/A | BM40: N/A | BN40: N/A | BO40: N/A | BP40: N/A | BQ40: N/A | BR40: N/A | BS40: N/A | BT40: N/A | BU40: N/A | BV40: N/A | BW40: N/A | BX40: N/A | BY40: N/A
A41: Water point at more than 30 minutes | B41: Yes | C41: 34.4 | D41: 24.5 | E41: 26.1 | F41: 21.2 | G41: 8.2 | H41: 7.5 | I41: 10.6 | J41: 6.2 | K41: 5.9 | L41: 1.7 | M41: 36.8 | N41: 25.4 | O41: 22.7 | P41: 28.3 | Q41: 24.4 | R41: 49.1 | S41: 12.8 | T41: 16.6 | U41: 8.4 | V41: 5.6 | W41: 24.7 | X41: 24.9 | Y41: 13 | BA41: Water point at more than 30 minutes | BB41: Yes | BC41: N/A | BD41: N/A | BE41: N/A | BF41: N/A | BG41: N/A | BH41: N/A | BI41: N/A | BJ41: N/A | BK41: N/A | BL41: N/A | BM41: N/A | BN41: N/A | BO41: N/A | BP41: N/A | BQ41: N/A | BR41: N/A | BS41: N/A | BT41: N/A | BU41: N/A | BV41: N/A | BW41: N/A | BX41: N/A | BY41: N/A
B42: No | C42: 65.6 | D42: 75.5 | E42: 73.9 | F42: 78.8 | G42: 91.8 | H42: 92.5 | I42: 89.4 | J42: 93.8 | K42: 94.1 | L42: 98.3 | M42: 63.2 | N42: 74.6 | O42: 77.3 | P42: 71.7 | Q42: 75.6 | R42: 50.9 | S42: 87.2 | T42: 83.4 | U42: 91.6 | V42: 94.4 | W42: 75.3 | X42: 75.1 | Y42: 87 | BB42: No | BC42: N/A | BD42: N/A | BE42: N/A | BF42: N/A | BG42: N/A | BH42: N/A | BI42: N/A | BJ42: N/A | BK42: N/A | BL42: N/A | BM42: N/A | BN42: N/A | BO42: N/A | BP42: N/A | BQ42: N/A | BR42: N/A | BS42: N/A | BT42: N/A | BU42: N/A | BV42: N/A | BW42: N/A | BX42: N/A | BY42: N/A
A43: Water source available when needed | B43: Yes | C43: N/A | D43: N/A | E43: N/A | F43: N/A | G43: N/A | H43: N/A | I43: N/A | J43: N/A | K43: N/A | L43: N/A | M43: N/A | N43: N/A | O43: N/A | P43: N/A | Q43: N/A | R43: N/A | S43: N/A | T43: N/A | U43: N/A | V43: N/A | W43: N/A | X43: N/A | Y43: N/A | BA43: Water source available when needed | BB43: Yes | BC43: N/A | BD43: N/A | BE43: N/A | BF43: N/A | BG43: N/A | BH43: N/A | BI43: N/A | BJ43: N/A | BK43: N/A | BL43: N/A | BM43: N/A | BN43: N/A | BO43: N/A | BP43: N/A | BQ43: N/A | BR43: N/A | BS43: N/A | BT43: N/A | BU43: N/A | BV43: N/A | BW43: N/A | BX43: N/A | BY43: N/A
B44: No | C44: N/A | D44: N/A | E44: N/A | F44: N/A | G44: N/A | H44: N/A | I44: N/A | J44: N/A | K44: N/A | L44: N/A | M44: N/A | N44: N/A | O44: N/A | P44: N/A | Q44: N/A | R44: N/A | S44: N/A | T44: N/A | U44: N/A | V44: N/A | W44: N/A | X44: N/A | Y44: N/A | BB44: No | BC44: N/A | BD44: N/A | BE44: N/A | BF44: N/A | BG44: N/A | BH44: N/A | BI44: N/A | BJ44: N/A | BK44: N/A | BL44: N/A | BM44: N/A | BN44: N/A | BO44: N/A | BP44: N/A | BQ44: N/A | BR44: N/A | BS44: N/A | BT44: N/A | BU44: N/A | BV44: N/A | BW44: N/A | BX44: N/A | BY44: N/A
A45: Improved water source available when needed | B45: Yes | C45: N/A | D45: N/A | E45: N/A | F45: N/A | G45: N/A | H45: N/A | I45: N/A | J45: N/A | K45: N/A | L45: N/A | M45: N/A | N45: N/A | O45: N/A | P45: N/A | Q45: N/A | R45: N/A | S45: N/A | T45: N/A | U45: N/A | V45: N/A | W45: N/A | X45: N/A | Y45: N/A | BA45: Improved water source available when needed | BB45: Yes | BC45: N/A | BD45: N/A | BE45: N/A | BF45: N/A | BG45: N/A | BH45: N/A | BI45: N/A | BJ45: N/A | BK45: N/A | BL45: N/A | BM45: N/A | BN45: N/A | BO45: N/A | BP45: N/A | BQ45: N/A | BR45: N/A | BS45: N/A | BT45: N/A | BU45: N/A | BV45: N/A | BW45: N/A | BX45: N/A | BY45: N/A
B46: No | C46: N/A | D46: N/A | E46: N/A | F46: N/A | G46: N/A | H46: N/A | I46: N/A | J46: N/A | K46: N/A | L46: N/A | M46: N/A | N46: N/A | O46: N/A | P46: N/A | Q46: N/A | R46: N/A | S46: N/A | T46: N/A | U46: N/A | V46: N/A | W46: N/A | X46: N/A | Y46: N/A | BB46: No | BC46: N/A | BD46: N/A | BE46: N/A | BF46: N/A | BG46: N/A | BH46: N/A | BI46: N/A | BJ46: N/A | BK46: N/A | BL46: N/A | BM46: N/A | BN46: N/A | BO46: N/A | BP46: N/A | BQ46: N/A | BR46: N/A | BS46: N/A | BT46: N/A | BU46: N/A | BV46: N/A | BW46: N/A | BX46: N/A | BY46: N/A
A47: Microbiological quality at point of collection | B47: Not contaminated (No E. coli in 100 mL) | C47: N/A | D47: N/A | E47: N/A | F47: N/A | G47: N/A | H47: N/A | I47: N/A | J47: N/A | K47: N/A | L47: N/A | M47: N/A | N47: N/A | O47: N/A | P47: N/A | Q47: N/A | R47: N/A | S47: N/A | T47: N/A | U47: N/A | V47: N/A | W47: N/A | X47: N/A | Y47: N/A | BA47: Microbiological quality at point of collection | BB47: Not contaminated (No E. coli in 100 mL) | BC47: N/A | BD47: N/A | BE47: N/A | BF47: N/A | BG47: N/A | BH47: N/A | BI47: N/A | BJ47: N/A | BK47: N/A | BL47: N/A | BM47: N/A | BN47: N/A | BO47: N/A | BP47: N/A | BQ47: N/A | BR47: N/A | BS47: N/A | BT47: N/A | BU47: N/A | BV47: N/A | BW47: N/A | BX47: N/A | BY47: N/A
B48: Contaminated (E. coli detected in 100 mL) | C48: N/A | D48: N/A | E48: N/A | F48: N/A | G48: N/A | H48: N/A | I48: N/A | J48: N/A | K48: N/A | L48: N/A | M48: N/A | N48: N/A | O48: N/A | P48: N/A | Q48: N/A | R48: N/A | S48: N/A | T48: N/A | U48: N/A | V48: N/A | W48: N/A | X48: N/A | Y48: N/A | BB48: Contaminated (E. coli detected in 100 mL) | BC48: N/A | BD48: N/A | BE48: N/A | BF48: N/A | BG48: N/A | BH48: N/A | BI48: N/A | BJ48: N/A | BK48: N/A | BL48: N/A | BM48: N/A | BN48: N/A | BO48: N/A | BP48: N/A | BQ48: N/A | BR48: N/A | BS48: N/A | BT48: N/A | BU48: N/A | BV48: N/A | BW48: N/A | BX48: N/A | BY48: N/A
B49: Highly contaminated (>100 CFU/100 mL) | C49: N/A | D49: N/A | E49: N/A | F49: N/A | G49: N/A | H49: N/A | I49: N/A | J49: N/A | K49: N/A | L49: N/A | M49: N/A | N49: N/A | O49: N/A | P49: N/A | Q49: N/A | R49: N/A | S49: N/A | T49: N/A | U49: N/A | V49: N/A | W49: N/A | X49: N/A | Y49: N/A | BB49: Highly contaminated (>100 CFU/100 mL) | BC49: N/A | BD49: N/A | BE49: N/A | BF49: N/A | BG49: N/A | BH49: N/A | BI49: N/A | BJ49: N/A | BK49: N/A | BL49: N/A | BM49: N/A | BN49: N/A | BO49: N/A | BP49: N/A | BQ49: N/A | BR49: N/A | BS49: N/A | BT49: N/A | BU49: N/A | BV49: N/A | BW49: N/A | BX49: N/A | BY49: N/A
A50: Microbiological quality of improved water sources at point of collection | B50: Not contaminated (No E. coli in 100 mL) | C50: N/A | D50: N/A | E50: N/A | F50: N/A | G50: N/A | H50: N/A | I50: N/A | J50: N/A | K50: N/A | L50: N/A | M50: N/A | N50: N/A | O50: N/A | P50: N/A | Q50: N/A | R50: N/A | S50: N/A | T50: N/A | U50: N/A | V50: N/A | W50: N/A | X50: N/A | Y50: N/A | BA50: Microbiological quality of improved water sources at point of collection | BB50: Not contaminated (No E. coli in 100 mL) | BC50: N/A | BD50: N/A | BE50: N/A | BF50: N/A | BG50: N/A | BH50: N/A | BI50: N/A | BJ50: N/A | BK50: N/A | BL50: N/A | BM50: N/A | BN50: N/A | BO50: N/A | BP50: N/A | BQ50: N/A | BR50: N/A | BS50: N/A | BT50: N/A | BU50: N/A | BV50: N/A | BW50: N/A | BX50: N/A | BY50: N/A
B51: Contaminated (E. coli detected in 100 mL) | C51: N/A | D51: N/A | E51: N/A | F51: N/A | G51: N/A | H51: N/A | I51: N/A | J51: N/A | K51: N/A | L51: N/A | M51: N/A | N51: N/A | O51: N/A | P51: N/A | Q51: N/A | R51: N/A | S51: N/A | T51: N/A | U51: N/A | V51: N/A | W51: N/A | X51: N/A | Y51: N/A | BB51: Contaminated (E. coli detected in 100 mL) | BC51: N/A | BD51: N/A | BE51: N/A | BF51: N/A | BG51: N/A | BH51: N/A | BI51: N/A | BJ51: N/A | BK51: N/A | BL51: N/A | BM51: N/A | BN51: N/A | BO51: N/A | BP51: N/A | BQ51: N/A | BR51: N/A | BS51: N/A | BT51: N/A | BU51: N/A | BV51: N/A | BW51: N/A | BX51: N/A | BY51: N/A
B52: Highly contaminated (>100 CFU/100 mL) | C52: N/A | D52: N/A | E52: N/A | F52: N/A | G52: N/A | H52: N/A | I52: N/A | J52: N/A | K52: N/A | L52: N/A | M52: N/A | N52: N/A | O52: N/A | P52: N/A | Q52: N/A | R52: N/A | S52: N/A | T52: N/A | U52: N/A | V52: N/A | W52: N/A | X52: N/A | Y52: N/A | BB52: Highly contaminated (>100 CFU/100 mL) | BC52: N/A | BD52: N/A | BE52: N/A | BF52: N/A | BG52: N/A | BH52: N/A | BI52: N/A | BJ52: N/A | BK52: N/A | BL52: N/A | BM52: N/A | BN52: N/A | BO52: N/A | BP52: N/A | BQ52: N/A | BR52: N/A | BS52: N/A | BT52: N/A | BU52: N/A | BV52: N/A | BW52: N/A | BX52: N/A | BY52: N/A
A53: Microbiological quality of piped on premises at point of collection | B53: Not contaminated (No E. coli in 100 mL) | C53: N/A | D53: N/A | E53: N/A | F53: N/A | G53: N/A | H53: N/A | I53: N/A | J53: N/A | K53: N/A | L53: N/A | M53: N/A | N53: N/A | O53: N/A | P53: N/A | Q53: N/A | R53: N/A | S53: N/A | T53: N/A | U53: N/A | V53: N/A | W53: N/A | X53: N/A | Y53: N/A | BA53: Microbiological quality of piped on premises at point of collection | BB53: Not contaminated (No E. coli in 100 mL) | BC53: N/A | BD53: N/A | BE53: N/A | BF53: N/A | BG53: N/A | BH53: N/A | BI53: N/A | BJ53: N/A | BK53: N/A | BL53: N/A | BM53: N/A | BN53: N/A | BO53: N/A | BP53: N/A | BQ53: N/A | BR53: N/A | BS53: N/A | BT53: N/A | BU53: N/A | BV53: N/A | BW53: N/A | BX53: N/A | BY53: N/A
B54: Contaminated (E. coli detected in 100 mL) | C54: N/A | D54: N/A | E54: N/A | F54: N/A | G54: N/A | H54: N/A | I54: N/A | J54: N/A | K54: N/A | L54: N/A | M54: N/A | N54: N/A | O54: N/A | P54: N/A | Q54: N/A | R54: N/A | S54: N/A | T54: N/A | U54: N/A | V54: N/A | W54: N/A | X54: N/A | Y54: N/A | BB54: Contaminated (E. coli detected in 100 mL) | BC54: N/A | BD54: N/A | BE54: N/A | BF54: N/A | BG54: N/A | BH54: N/A | BI54: N/A | BJ54: N/A | BK54: N/A | BL54: N/A | BM54: N/A | BN54: N/A | BO54: N/A | BP54: N/A | BQ54: N/A | BR54: N/A | BS54: N/A | BT54: N/A | BU54: N/A | BV54: N/A | BW54: N/A | BX54: N/A | BY54: N/A
B55: Highly contaminated (>100 CFU/100 mL) | C55: N/A | D55: N/A | E55: N/A | F55: N/A | G55: N/A | H55: N/A | I55: N/A | J55: N/A | K55: N/A | L55: N/A | M55: N/A | N55: N/A | O55: N/A | P55: N/A | Q55: N/A | R55: N/A | S55: N/A | T55: N/A | U55: N/A | V55: N/A | W55: N/A | X55: N/A | Y55: N/A | BB55: Highly contaminated (>100 CFU/100 mL) | BC55: N/A | BD55: N/A | BE55: N/A | BF55: N/A | BG55: N/A | BH55: N/A | BI55: N/A | BJ55: N/A | BK55: N/A | BL55: N/A | BM55: N/A | BN55: N/A | BO55: N/A | BP55: N/A | BQ55: N/A | BR55: N/A | BS55: N/A | BT55: N/A | BU55: N/A | BV55: N/A | BW55: N/A | BX55: N/A | BY55: N/A
C56: NATIONAL wealth index quintile | H56: URBAN wealth index quintile | M56: RURAL wealth index quintile | R56: SUB-REGIONS: | BA56: Raw numbers of respondents: | BB56: Use of drinking water sources | BC56: NATIONAL wealth index quintile | BH56: URBAN wealth index quintile | BM56: RURAL wealth index quintile | BR56: SUB-REGIONS:
A57: Percentage based on weighted population | C57: Poorest | D57: Poor | E57: Middle | F57: Rich | G57: Richest | H57: Poorest | I57: Poor | J57: Middle | K57: Rich | L57: Richest | M57: Poorest | N57: Poor | O57: Middle | P57: Rich | Q57: Richest | R57: eastern | S57: central | T57: coast | U57: nairobi | V57: north eastern' | W57: nyanza | X57: rift valley | Y57: western | BA57: Water data, raw numbers (weighted) | BC57: Poorest | BD57: Poor | BE57: Middle | BF57: Rich | BG57: Richest | BH57: Poorest | BI57: Poor | BJ57: Middle | BK57: Rich | BL57: Richest | BM57: Poorest | BN57: Poor | BO57: Middle | BP57: Rich | BQ57: Richest | BR57: eastern | BS57: central | BT57: coast | BU57: nairobi | BV57: north eastern' | BW57: nyanza | BX57: rift valley | BY57: western
A58: main source of water | B58: piped into dwelling | C58: 1.6 | D58: 2.4 | E58: 4.9 | F58: 9.1 | G58: 38.7 | H58: 6.2 | I58: 11.4 | J58: 18.4 | K58: 40.3 | L58: 89.2 | M58: 1.8 | N58: 2.2 | O58: 2.9 | P58: 4.9 | Q58: 14 | R58: 5.2 | S58: 13.6 | T58: 12.5 | U58: 36 | V58: 12.1 | W58: 3.5 | X58: 8.6 | Y58: 5.8
B59: piped into yard or plot | C59: 1 | D59: 2.9 | E59: 7.5 | F59: 11.4 | G59: 24 | H59: 16.5 | I59: 25.9 | J59: 34.1 | K59: 37.1 | L59: 7.2 | M59: 1.1 | N59: 1.8 | O59: 4 | P59: 7.9 | Q59: 11 | R59: 8.1 | S59: 13 | T59: 2.5 | U59: 28.9 | V59: 42.1 | W59: 1.9 | X59: 7.1 | Y59: 3.6
B60: public tap | C60: 5.7 | D60: 4.9 | E60: 8.6 | F60: 19 | G60: 20.2 | H60: 53.5 | I60: 41.5 | J60: 33.3 | K60: 14.6 | L60: 2.1 | M60: 5.8 | N60: 5.3 | O60: 4.2 | P60: 9.4 | Q60: 9.2 | R60: 12.1 | S60: 3.3 | T60: 33 | U60: 28.6 | V60: 1.6 | W60: 6 | X60: 6.2 | Y60: 4.7
B61: tubewell/borehole with pump | C61: 9.8 | D61: 7.8 | E61: 7 | F61: 8.1 | G61: 1.5 | H61: 1.2 | I61: 1.2 | J61: 0.3 | K61: 0.2 | L61: 0.1 | M61: 9 | N61: 9.7 | O61: 8.1 | P61: 7.1 | Q61: 9.1 | R61: 5.6 | S61: 3.7 | T61: 10.1 | U61: 0.2 | V61: 4.3 | W61: 11.5 | X61: 4.4 | Y61: 14.8
B62: protected dug well | C62: 6.5 | D62: 7.6 | E62: 7.4 | F62: 7.1 | G62: 1.3 | H62: 4.6 | I62: 1.2 | J62: 0 | K62: 0.6 | L62: 0 | M62: 6 | N62: 6.5 | O62: 10 | P62: 5.9 | Q62: 8.2 | R62: 2.9 | S62: 6.8 | T62: 2.4 | U62: 0 | V62: 14.6 | W62: 2.6 | X62: 13.2 | Y62: 9.1
B63: protected spring | C63: 8.1 | D63: 9.9 | E63: 7.2 | F63: 4.9 | G63: 0.6 | H63: 1 | I63: 0.8 | J63: 0.3 | K63: 0.4 | L63: 0 | M63: 7.9 | N63: 9.4 | O63: 10.5 | P63: 5.8 | Q63: 5.2 | R63: 0.9 | S63: 6 | T63: 0.2 | U63: 0 | V63: 0 | W63: 16 | X63: 6.3 | Y63: 11.1
B64: rainwater collection | C64: 1.3 | D64: 0.7 | E64: 1.6 | F64: 1.8 | G64: 1.3 | H64: 0.1 | I64: 0.3 | J64: 2.1 | K64: 0 | L64: 0 | M64: 1.3 | N64: 1 | O64: 1 | P64: 1.6 | Q64: 3 | R64: 0.6 | S64: 1.7 | T64: 3.9 | U64: 0 | V64: 0 | W64: 2.1 | X64: 1.4 | Y64: 0.3
B65: bottled water | C65: 0.1 | D65: 0 | E65: 0.1 | F65: 0.1 | G65: 0 | H65: 0 | I65: 0 | J65: 0 | K65: 0 | L65: 0 | M65: 0.1 | N65: 0.1 | O65: 0 | P65: 0.1 | Q65: 0.1 | R65: 0.1 | S65: 0.1 | T65: 0 | U65: 0 | V65: 0 | W65: 0 | X65: 0.1 | Y65: 0.1
B66: unprotected dug well/unprotected spring | C66: 20.8 | D66: 23.2 | E66: 17.4 | F66: 10.1 | G66: 1.3 | H66: 2.1 | I66: 1.1 | J66: 0.4 | K66: 0.4 | L66: 0 | M66: 21.4 | N66: 21.5 | O66: 23.7 | P66: 15.2 | Q66: 10.2 | R66: 21.5 | S66: 7.4 | T66: 6.6 | U66: 0 | V66: 6.8 | W66: 17.6 | X66: 12.7 | Y66: 34
B67: pond, river or stream | C67: 43.4 | D67: 39.3 | E67: 36.4 | F67: 24 | G67: 4 | H67: 3.1 | I67: 2.9 | J67: 1.4 | K67: 0.1 | L67: 0 | M67: 44.4 | N67: 40.8 | O67: 34.4 | P67: 39.3 | Q67: 27.5 | R67: 39.5 | S67: 43.7 | T67: 22 | U67: 0.7 | V67: 1.6 | W67: 37.5 | X67: 36.2 | Y67: 15.3
B68: tanker truck vendor | C68: 1 | D68: 0.3 | E68: 0.6 | F68: 2.7 | G68: 6.1 | H68: 9.2 | I68: 11.7 | J68: 7 | K68: 6.3 | L68: 1.3 | M68: 0.6 | N68: 0.3 | O68: 0.4 | P68: 1.2 | Q68: 1.2 | R68: 1.3 | S68: 0.6 | T68: 6.1 | U68: 4.7 | V68: 5.6 | W68: 0.9 | X68: 2.3 | Y68: 0.5
B69: other | C69: 0.6 | D69: 1.2 | E69: 1.3 | F69: 1.7 | G69: 0.9 | H69: 2.4 | I69: 1.8 | J69: 2.6 | K69: 0.1 | L69: 0 | M69: 0.5 | N69: 1.4 | O69: 0.8 | P69: 1.6 | Q69: 1.1 | R69: 2 | S69: 0.2 | T69: 0.7 | U69: 0.9 | V69: 11.3 | W69: 0.5 | X69: 1.6 | Y69: 0.8
A108: =A1026 -> Kenya
A109: =A1034 -> 2000
A110: Use of sanitation facilities
A111: by wealth quintile and sub-national region
A112: Notes:
A113: WHO/UNICEF JMP customised wealth index excludes water,
A114: sanitation and hygiene assets.
A115: Survey used for analysis: | B115: =A1025 -> MICS00
A116: =B1030 -> Ratio of Improved latrines based on: | B116: DHS09
A117: =B1029 -> Ratio of Shared improved based on: | B117: DHS09
A120: Use of sanitation facilities | C120: NATIONAL wealth index quintile | H120: URBAN wealth index quintile | M120: RURAL wealth index quintile | R120: SUB-REGIONS: | BA120: Raw numbers of respondents: | BB120: Use of sanitation facilities | BC120: NATIONAL wealth index quintile | BH120: URBAN wealth index quintile | BM120: RURAL wealth index quintile | BR120: SUB-REGIONS:
A121: Weighted percentage (used in graphs) | C121: Poorest | D121: Poor | E121: Middle | F121: Rich | G121: Richest | H121: Poorest | I121: Poor | J121: Middle | K121: Rich | L121: Richest | M121: Poorest | N121: Poor | O121: Middle | P121: Rich | Q121: Richest | R121: eastern | S121: central | T121: coast | U121: nairobi | V121: north eastern' | W121: nyanza | X121: rift valley | Y121: western | BA121: Sanitation data, raw numbers (weighted) | BC121: Poorest | BD121: Poor | BE121: Middle | BF121: Rich | BG121: Richest | BH121: Poorest | BI121: Poor | BJ121: Middle | BK121: Rich | BL121: Richest | BM121: Poorest | BN121: Poor | BO121: Middle | BP121: Rich | BQ121: Richest | BR121: eastern | BS121: central | BT121: coast | BU121: nairobi | BV121: north eastern' | BW121: nyanza | BX121: rift valley | BY121: western
A122: Sanitation | B122: Improved | C122: =C153+C154+C155+C156*'DHS09'!C130/100 -> 13.26213474 | D122: =D153+D154+D155+D156*'DHS09'!D130/100 -> 19.2880099 | E122: =E153+E154+E155+E156*'DHS09'!E130/100 -> 26.93365409 | F122: =F153+F154+F155+F156*'DHS09'!F130/100 -> 55.34859595 | G122: =G153+G154+G155+G156*'DHS09'!G130/100 -> 85.20126014 | H122: =H153+H154+H155+H156*'DHS09'!H130/100 -> 45.41027312 | I122: =I153+I154+I155+I156*'DHS09'!I130/100 -> 65.5687628 | J122: =J153+J154+J155+J156*'DHS09'!J130/100 -> 84.80623786 | K122: =K153+K154+K155+K156*'DHS09'!K130/100 -> 88.51439948 | L122: =L153+L154+L155+L156*'DHS09'!L130/100 -> 97.72097043 | M122: =M153+M154+M155+M156*'DHS09'!M130/100 -> 12.5474258 | N122: =N153+N154+N155+N156*'DHS09'!N130/100 -> 16.09142172 | O122: =O153+O154+O155+O156*'DHS09'!O130/100 -> 24.461007 | P122: =P153+P154+P155+P156*'DHS09'!P130/100 -> 33.79452368 | Q122: =Q153+Q154+Q155+Q156*'DHS09'!Q130/100 -> 65.68212454 | R122: =R153+R154+R155+R156*'DHS09'!R130/100 -> 39.52582906 | S122: =S153+S154+S155+S156*'DHS09'!S130/100 -> 52.52032473 | T122: =T153+T154+T155+T156*'DHS09'!T130/100 -> 29.71431096 | U122: =U153+U154+U155+U156*'DHS09'!U130/100 -> 82.31838664 | V122: =V153+V154+V155+V156*'DHS09'!V130/100 -> 57.33698298 | W122: =W153+W154+W155+W156*'DHS09'!W130/100 -> 25.8220063 | X122: =X153+X154+X155+X156*'DHS09'!X130/100 -> 33.20774533 | Y122: =Y153+Y154+Y155+Y156*'DHS09'!Y130/100 -> 44.83831573 | BA122: Sanitation | BB122: Improved | BC122: N/A | BD122: N/A | BE122: N/A | BF122: N/A | BG122: N/A | BH122: N/A | BI122: N/A | BJ122: N/A | BK122: N/A | BL122: N/A | BM122: N/A | BN122: N/A | BO122: N/A | BP122: N/A | BQ122: N/A | BR122: N/A | BS122: N/A | BT122: N/A | BU122: N/A | BV122: N/A | BW122: N/A | BX122: N/A | BY122: N/A
B123: Not Improved | C123: =100-C122 -> 86.73786526 | D123: =100-D122 -> 80.7119901 | E123: 73.06634591 | F123: 44.65140405 | G123: 14.79873986 | H123: 54.58972688 | I123: 34.4312372 | J123: 15.19376214 | K123: 11.48560052 | L123: 2.279029569 | M123: 87.4525742 | N123: 83.90857828 | O123: 75.538993 | P123: 66.20547632 | Q123: 34.31787546 | R123: 60.47417094 | S123: 47.47967527 | T123: 70.28568904 | U123: 17.68161336 | V123: 42.66301702 | W123: 74.1779937 | X123: 66.79225467 | Y123: 55.16168427 | BB123: Not Improved | BC123: N/A | BD123: N/A | BE123: N/A | BF123: N/A | BG123: N/A | BH123: N/A | BI123: N/A | BJ123: N/A | BK123: N/A | BL123: N/A | BM123: N/A | BN123: N/A | BO123: N/A | BP123: N/A | BQ123: N/A | BR123: N/A | BS123: N/A | BT123: N/A | BU123: N/A | BV123: N/A | BW123: N/A | BX123: N/A | BY123: N/A
A124: Sanitation ladder | B124: Basic | C124: =C122*'DHS09'!C129/100 -> 6.445912869 | D124: =D122*'DHS09'!D129/100 -> 12.47672162 | E124: =E122*'DHS09'!E129/100 -> 17.17321559 | F124: =F122*'DHS09'!F129/100 -> 29.3966502 | G124: =G122*'DHS09'!G129/100 -> 43.52684878 | H124: =H122*'DHS09'!H129/100 -> 2.23725238 | I124: =I122*'DHS09'!I129/100 -> 10.60073463 | J124: =J122*'DHS09'!J129/100 -> 17.40487062 | K124: =K122*'DHS09'!K129/100 -> 49.32831046 | L124: =L122*'DHS09'!L129/100 -> 92.12094406 | M124: =M122*'DHS09'!M129/100 -> 5.027552284 | N124: =N122*'DHS09'!N129/100 -> 10.62301608 | O124: =O122*'DHS09'!O129/100 -> 16.28253362 | P124: =P122*'DHS09'!P129/100 -> 23.66839381 | Q124: =Q122*'DHS09'!Q129/100 -> 38.39794033 | R124: =R122*'DHS09'!R129/100 -> 20.92230963 | S124: =S122*'DHS09'!S129/100 -> 21.42840002 | T124: =T122*'DHS09'!T129/100 -> 17.36944255 | U124: =U122*'DHS09'!U129/100 -> 40.95000958 | V124: =V122*'DHS09'!V129/100 -> 16.50620562 | W124: =W122*'DHS09'!W129/100 -> 15.70826219 | X124: =X122*'DHS09'!X129/100 -> 19.32993421 | Y124: =Y122*'DHS09'!Y129/100 -> 26.66422392 | BA124: Sanitation ladder | BB124: Basic | BC124: N/A | BD124: N/A | BE124: N/A | BF124: N/A | BG124: N/A | BH124: N/A | BI124: N/A | BJ124: N/A | BK124: N/A | BL124: N/A | BM124: N/A | BN124: N/A | BO124: N/A | BP124: N/A | BQ124: N/A | BR124: N/A | BS124: N/A | BT124: N/A | BU124: N/A | BV124: N/A | BW124: N/A | BX124: N/A | BY124: N/A
B125: Limited | C125: =C122*'DHS09'!C128/100 -> 6.816221872 | D125: =D122*'DHS09'!D128/100 -> 6.811288277 | E125: =E122*'DHS09'!E128/100 -> 9.760438503 | F125: =F122*'DHS09'!F128/100 -> 25.95194575 | G125: =G122*'DHS09'!G128/100 -> 41.67441136 | H125: =H122*'DHS09'!H128/100 -> 43.17302074 | I125: =I122*'DHS09'!I128/100 -> 54.96802817 | J125: =J122*'DHS09'!J128/100 -> 67.40136724 | K125: =K122*'DHS09'!K128/100 -> 39.18608903 | L125: =L122*'DHS09'!L128/100 -> 5.600026367 | M125: =M122*'DHS09'!M128/100 -> 7.519873521 | N125: =N122*'DHS09'!N128/100 -> 5.468405634 | O125: =O122*'DHS09'!O128/100 -> 8.178473373 | P125: =P122*'DHS09'!P128/100 -> 10.12612986 | Q125: =Q122*'DHS09'!Q128/100 -> 27.2841842 | R125: =R122*'DHS09'!R128/100 -> 18.60351942 | S125: =S122*'DHS09'!S128/100 -> 31.09192472 | T125: =T122*'DHS09'!T128/100 -> 12.34486841 | U125: =U122*'DHS09'!U128/100 -> 41.36837706 | V125: =V122*'DHS09'!V128/100 -> 40.83077736 | W125: =W122*'DHS09'!W128/100 -> 10.11374411 | X125: =X122*'DHS09'!X128/100 -> 13.87781112 | Y125: =Y122*'DHS09'!Y128/100 -> 18.17409181 | BB125: Limited | BC125: N/A | BD125: N/A | BE125: N/A | BF125: N/A | BG125: N/A | BH125: N/A | BI125: N/A | BJ125: N/A | BK125: N/A | BL125: N/A | BM125: N/A | BN125: N/A | BO125: N/A | BP125: N/A | BQ125: N/A | BR125: N/A | BS125: N/A | BT125: N/A | BU125: N/A | BV125: N/A | BW125: N/A | BX125: N/A | BY125: N/A
B126: Unimproved | C126: =100-(C124+C125+C127) -> 46.82997049 | D126: =100-(D124+D125+D127) -> 62.87409056 | E126: 64.46451765 | F126: 41.08589111 | G126: 14.62163634 | H126: 48.95907572 | I126: 34.27096909 | J126: 15.19376214 | K126: 11.48560052 | L126: 1.924728668 | M126: 44.5322441 | N126: 57.97465512 | O126: 66.90941092 | P126: 57.28218744 | Q126: 32.62520686 | R126: 46.36893806 | S126: 47.47967527 | T126: 40.39355001 | U126: 16.43465336 | V126: 42.66301702 | W126: 49.8770614 | X126: 46.18230217 | Y126: 50.37209677 | BB126: Unimproved | BC126: N/A | BD126: N/A | BE126: N/A | BF126: N/A | BG126: N/A | BH126: N/A | BI126: N/A | BJ126: N/A | BK126: N/A | BL126: N/A | BM126: N/A | BN126: N/A | BO126: N/A | BP126: N/A | BQ126: N/A | BR126: N/A | BS126: N/A | BT126: N/A | BU126: N/A | BV126: N/A | BW126: N/A | BX126: N/A | BY126: N/A
B127: Open defecation | C127: =C160 -> 39.90789477 | D127: =D160 -> 17.83789954 | E127: 8.601828255 | F127: 3.565512939 | G127: 0.1771035242 | H127: 5.630651167 | I127: 0.1602681134 | J127: 0 | K127: 0 | L127: 0.3543009006 | M127: 42.9203301 | N127: 25.93392317 | O127: 8.629582085 | P127: 8.923288881 | Q127: 1.692668602 | R127: 14.10523288 | S127: 0 | T127: 29.89213903 | U127: 1.246960002 | V127: 0 | W127: 24.3009323 | X127: 20.6099525 | Y127: 4.789587503 | BB127: Open defecation | BC127: N/A | BD127: N/A | BE127: N/A | BF127: N/A | BG127: N/A | BH127: N/A | BI127: N/A | BJ127: N/A | BK127: N/A | BL127: N/A | BM127: N/A | BN127: N/A | BO127: N/A | BP127: N/A | BQ127: N/A | BR127: N/A | BS127: N/A | BT127: N/A | BU127: N/A | BV127: N/A | BW127: N/A | BX127: N/A | BY127: N/A
A128: Shared among Improved Sanitation | B128: Yes | C128: N/A | D128: N/A | E128: N/A | F128: N/A | G128: N/A | H128: N/A | I128: N/A | J128: N/A | K128: N/A | L128: N/A | M128: N/A | N128: N/A | O128: N/A | P128: N/A | Q128: N/A | R128: N/A | S128: N/A | T128: N/A | U128: N/A | V128: N/A | W128: N/A | X128: N/A | Y128: N/A | BA128: Shared among improved sanitation facilities | BB128: Yes | BC128: N/A | BD128: N/A | BE128: N/A | BF128: N/A | BG128: N/A | BH128: N/A | BI128: N/A | BJ128: N/A | BK128: N/A | BL128: N/A | BM128: N/A | BN128: N/A | BO128: N/A | BP128: N/A | BQ128: N/A | BR128: N/A | BS128: N/A | BT128: N/A | BU128: N/A | BV128: N/A | BW128: N/A | BX128: N/A | BY128: N/A
B129: No | C129: N/A | D129: N/A | E129: N/A | F129: N/A | G129: N/A | H129: N/A | I129: N/A | J129: N/A | K129: N/A | L129: N/A | M129: N/A | N129: N/A | O129: N/A | P129: N/A | Q129: N/A | R129: N/A | S129: N/A | T129: N/A | U129: N/A | V129: N/A | W129: N/A | X129: N/A | Y129: N/A | BB129: No | BC129: N/A | BD129: N/A | BE129: N/A | BF129: N/A | BG129: N/A | BH129: N/A | BI129: N/A | BJ129: N/A | BK129: N/A | BL129: N/A | BM129: N/A | BN129: N/A | BO129: N/A | BP129: N/A | BQ129: N/A | BR129: N/A | BS129: N/A | BT129: N/A | BU129: N/A | BV129: N/A | BW129: N/A | BX129: N/A | BY129: N/A
A130: Manually calculated ratios | B130: Improved latrines
B131: Other
B132: Other
C133: NATIONAL wealth index quintile | H133: URBAN wealth index quintile | M133: RURAL wealth index quintile | R133: SUB-REGIONS: | BA133: Raw numbers of respondents: | BB133: Use of sanitation facilities | BC133: NATIONAL wealth index quintile | BH133: URBAN wealth index quintile | BM133: RURAL wealth index quintile | BR133: SUB-REGIONS:
A134: Percentage based on weighted population | C134: Poorest | D134: Poor | E134: Middle | F134: Rich | G134: Richest | H134: Poorest | I134: Poor | J134: Middle | K134: Rich | L134: Richest | M134: Poorest | N134: Poor | O134: Middle | P134: Rich | Q134: Richest | R134: eastern | S134: central | T134: coast | U134: nairobi | V134: north eastern' | W134: nyanza | X134: rift valley | Y134: western | BA134: Sanitation data, raw numbers (weighted) | BC134: Poorest | BD134: Poor | BE134: Middle | BF134: Rich | BG134: Richest | BH134: Poorest | BI134: Poor | BJ134: Middle | BK134: Rich | BL134: Richest | BM134: Poorest | BN134: Poor | BO134: Middle | BP134: Rich | BQ134: Richest | BR134: eastern | BS134: central | BT134: coast | BU134: nairobi | BV134: north eastern' | BW134: nyanza | BX134: rift valley | BY134: western
A135: Sanitation type | B135: Sewer connection | C135: N/A | D135: N/A | E135: N/A | F135: N/A | G135: N/A | H135: N/A | I135: N/A | J135: N/A | K135: N/A | L135: N/A | M135: N/A | N135: N/A | O135: N/A | P135: N/A | Q135: N/A | R135: N/A | S135: N/A | T135: N/A | U135: N/A | V135: N/A | W135: N/A | X135: N/A | Y135: N/A | BA135: Sanitation type | BB135: Sewer connection | BC135: N/A | BD135: N/A | BE135: N/A | BF135: N/A | BG135: N/A | BH135: N/A | BI135: N/A | BJ135: N/A | BK135: N/A | BL135: N/A | BM135: N/A | BN135: N/A | BO135: N/A | BP135: N/A | BQ135: N/A | BR135: N/A | BS135: N/A | BT135: N/A | BU135: N/A | BV135: N/A | BW135: N/A | BX135: N/A | BY135: N/A
B136: Septic tank connection | C136: N/A | D136: N/A | E136: N/A | F136: N/A | G136: N/A | H136: N/A | I136: N/A | J136: N/A | K136: N/A | L136: N/A | M136: N/A | N136: N/A | O136: N/A | P136: N/A | Q136: N/A | R136: N/A | S136: N/A | T136: N/A | U136: N/A | V136: N/A | W136: N/A | X136: N/A | Y136: N/A | BB136: Septic tank connection | BC136: N/A | BD136: N/A | BE136: N/A | BF136: N/A | BG136: N/A | BH136: N/A | BI136: N/A | BJ136: N/A | BK136: N/A | BL136: N/A | BM136: N/A | BN136: N/A | BO136: N/A | BP136: N/A | BQ136: N/A | BR136: N/A | BS136: N/A | BT136: N/A | BU136: N/A | BV136: N/A | BW136: N/A | BX136: N/A | BY136: N/A
B137: Improved latrines | C137: N/A | D137: N/A | E137: N/A | F137: N/A | G137: N/A | H137: N/A | I137: N/A | J137: N/A | K137: N/A | L137: N/A | M137: N/A | N137: N/A | O137: N/A | P137: N/A | Q137: N/A | R137: N/A | S137: N/A | T137: N/A | U137: N/A | V137: N/A | W137: N/A | X137: N/A | Y137: N/A | BB137: Improved latrines | BC137: N/A | BD137: N/A | BE137: N/A | BF137: N/A | BG137: N/A | BH137: N/A | BI137: N/A | BJ137: N/A | BK137: N/A | BL137: N/A | BM137: N/A | BN137: N/A | BO137: N/A | BP137: N/A | BQ137: N/A | BR137: N/A | BS137: N/A | BT137: N/A | BU137: N/A | BV137: N/A | BW137: N/A | BX137: N/A | BY137: N/A
B138: Unimproved facilities | C138: N/A | D138: N/A | E138: N/A | F138: N/A | G138: N/A | H138: N/A | I138: N/A | J138: N/A | K138: N/A | L138: N/A | M138: N/A | N138: N/A | O138: N/A | P138: N/A | Q138: N/A | R138: N/A | S138: N/A | T138: N/A | U138: N/A | V138: N/A | W138: N/A | X138: N/A | Y138: N/A | BB138: Unimproved facilities | BC138: N/A | BD138: N/A | BE138: N/A | BF138: N/A | BG138: N/A | BH138: N/A | BI138: N/A | BJ138: N/A | BK138: N/A | BL138: N/A | BM138: N/A | BN138: N/A | BO138: N/A | BP138: N/A | BQ138: N/A | BR138: N/A | BS138: N/A | BT138: N/A | BU138: N/A | BV138: N/A | BW138: N/A | BX138: N/A | BY138: N/A
B139: Open defecation | C139: =C160 -> 39.90789477 | D139: =D160 -> 17.83789954 | E139: 8.601828255 | F139: 3.565512939 | G139: 0.1771035242 | H139: 5.630651167 | I139: 0.1602681134 | J139: 0 | K139: 0 | L139: 0.3543009006 | M139: 42.9203301 | N139: 25.93392317 | O139: 8.629582085 | P139: 8.923288881 | Q139: 1.692668602 | R139: 14.10523288 | S139: 0 | T139: 29.89213903 | U139: 1.246960002 | V139: 0 | W139: 24.3009323 | X139: 20.6099525 | Y139: 4.789587503 | BB139: Open defecation | BC139: N/A | BD139: N/A | BE139: N/A | BF139: N/A | BG139: N/A | BH139: N/A | BI139: N/A | BJ139: N/A | BK139: N/A | BL139: N/A | BM139: N/A | BN139: N/A | BO139: N/A | BP139: N/A | BQ139: N/A | BR139: N/A | BS139: N/A | BT139: N/A | BU139: N/A | BV139: N/A | BW139: N/A | BX139: N/A | BY139: N/A
A140: Septic tank emptying practices | B140: Not emptied/treated and disposed in situ | C140: N/A | D140: N/A | E140: N/A | F140: N/A | G140: N/A | H140: N/A | I140: N/A | J140: N/A | K140: N/A | L140: N/A | M140: N/A | N140: N/A | O140: N/A | P140: N/A | Q140: N/A | R140: N/A | S140: N/A | T140: N/A | U140: N/A | V140: N/A | W140: N/A | X140: N/A | Y140: N/A | BA140: Septic tank emptying practices | BB140: Not emptied/treated and disposed in situ | BC140: N/A | BD140: N/A | BE140: N/A | BF140: N/A | BG140: N/A | BH140: N/A | BI140: N/A | BJ140: N/A | BK140: N/A | BL140: N/A | BM140: N/A | BN140: N/A | BO140: N/A | BP140: N/A | BQ140: N/A | BR140: N/A | BS140: N/A | BT140: N/A | BU140: N/A | BV140: N/A | BW140: N/A | BX140: N/A | BY140: N/A
B141: Emptied and buried on site | C141: N/A | D141: N/A | E141: N/A | F141: N/A | G141: N/A | H141: N/A | I141: N/A | J141: N/A | K141: N/A | L141: N/A | M141: N/A | N141: N/A | O141: N/A | P141: N/A | Q141: N/A | R141: N/A | S141: N/A | T141: N/A | U141: N/A | V141: N/A | W141: N/A | X141: N/A | Y141: N/A | BB141: Emptied and buried on site | BC141: N/A | BD141: N/A | BE141: N/A | BF141: N/A | BG141: N/A | BH141: N/A | BI141: N/A | BJ141: N/A | BK141: N/A | BL141: N/A | BM141: N/A | BN141: N/A | BO141: N/A | BP141: N/A | BQ141: N/A | BR141: N/A | BS141: N/A | BT141: N/A | BU141: N/A | BV141: N/A | BW141: N/A | BX141: N/A | BY141: N/A
B142: Emptied and discharged locally | C142: N/A | D142: N/A | E142: N/A | F142: N/A | G142: N/A | H142: N/A | I142: N/A | J142: N/A | K142: N/A | L142: N/A | M142: N/A | N142: N/A | O142: N/A | P142: N/A | Q142: N/A | R142: N/A | S142: N/A | T142: N/A | U142: N/A | V142: N/A | W142: N/A | X142: N/A | Y142: N/A | BB142: Emptied and discharged locally | BC142: N/A | BD142: N/A | BE142: N/A | BF142: N/A | BG142: N/A | BH142: N/A | BI142: N/A | BJ142: N/A | BK142: N/A | BL142: N/A | BM142: N/A | BN142: N/A | BO142: N/A | BP142: N/A | BQ142: N/A | BR142: N/A | BS142: N/A | BT142: N/A | BU142: N/A | BV142: N/A | BW142: N/A | BX142: N/A | BY142: N/A
B143: Emptied and removed offsite | C143: N/A | D143: N/A | E143: N/A | F143: N/A | G143: N/A | H143: N/A | I143: N/A | J143: N/A | K143: N/A | L143: N/A | M143: N/A | N143: N/A | O143: N/A | P143: N/A | Q143: N/A | R143: N/A | S143: N/A | T143: N/A | U143: N/A | V143: N/A | W143: N/A | X143: N/A | Y143: N/A | BB143: Emptied and removed offsite | BC143: N/A | BD143: N/A | BE143: N/A | BF143: N/A | BG143: N/A | BH143: N/A | BI143: N/A | BJ143: N/A | BK143: N/A | BL143: N/A | BM143: N/A | BN143: N/A | BO143: N/A | BP143: N/A | BQ143: N/A | BR143: N/A | BS143: N/A | BT143: N/A | BU143: N/A | BV143: N/A | BW143: N/A | BX143: N/A | BY143: N/A
A144: Latrine emptying practices | B144: Not emptied/treated and disposed in situ | C144: N/A | D144: N/A | E144: N/A | F144: N/A | G144: N/A | H144: N/A | I144: N/A | J144: N/A | K144: N/A | L144: N/A | M144: N/A | N144: N/A | O144: N/A | P144: N/A | Q144: N/A | R144: N/A | S144: N/A | T144: N/A | U144: N/A | V144: N/A | W144: N/A | X144: N/A | Y144: N/A | BA144: Latrine emptying practices | BB144: Not emptied/treated and disposed in situ | BC144: N/A | BD144: N/A | BE144: N/A | BF144: N/A | BG144: N/A | BH144: N/A | BI144: N/A | BJ144: N/A | BK144: N/A | BL144: N/A | BM144: N/A | BN144: N/A | BO144: N/A | BP144: N/A | BQ144: N/A | BR144: N/A | BS144: N/A | BT144: N/A | BU144: N/A | BV144: N/A | BW144: N/A | BX144: N/A | BY144: N/A
B145: Emptied and buried on site | C145: N/A | D145: N/A | E145: N/A | F145: N/A | G145: N/A | H145: N/A | I145: N/A | J145: N/A | K145: N/A | L145: N/A | M145: N/A | N145: N/A | O145: N/A | P145: N/A | Q145: N/A | R145: N/A | S145: N/A | T145: N/A | U145: N/A | V145: N/A | W145: N/A | X145: N/A | Y145: N/A | BB145: Emptied and buried on site | BC145: N/A | BD145: N/A | BE145: N/A | BF145: N/A | BG145: N/A | BH145: N/A | BI145: N/A | BJ145: N/A | BK145: N/A | BL145: N/A | BM145: N/A | BN145: N/A | BO145: N/A | BP145: N/A | BQ145: N/A | BR145: N/A | BS145: N/A | BT145: N/A | BU145: N/A | BV145: N/A | BW145: N/A | BX145: N/A | BY145: N/A
B146: Emptied and discharged locally | C146: N/A | D146: N/A | E146: N/A | F146: N/A | G146: N/A | H146: N/A | I146: N/A | J146: N/A | K146: N/A | L146: N/A | M146: N/A | N146: N/A | O146: N/A | P146: N/A | Q146: N/A | R146: N/A | S146: N/A | T146: N/A | U146: N/A | V146: N/A | W146: N/A | X146: N/A | Y146: N/A | BB146: Emptied and discharged locally | BC146: N/A | BD146: N/A | BE146: N/A | BF146: N/A | BG146: N/A | BH146: N/A | BI146: N/A | BJ146: N/A | BK146: N/A | BL146: N/A | BM146: N/A | BN146: N/A | BO146: N/A | BP146: N/A | BQ146: N/A | BR146: N/A | BS146: N/A | BT146: N/A | BU146: N/A | BV146: N/A | BW146: N/A | BX146: N/A | BY146: N/A
B147: Emptied and removed offsite | C147: N/A | D147: N/A | E147: N/A | F147: N/A | G147: N/A | H147: N/A | I147: N/A | J147: N/A | K147: N/A | L147: N/A | M147: N/A | N147: N/A | O147: N/A | P147: N/A | Q147: N/A | R147: N/A | S147: N/A | T147: N/A | U147: N/A | V147: N/A | W147: N/A | X147: N/A | Y147: N/A | BB147: Emptied and removed offsite | BC147: N/A | BD147: N/A | BE147: N/A | BF147: N/A | BG147: N/A | BH147: N/A | BI147: N/A | BJ147: N/A | BK147: N/A | BL147: N/A | BM147: N/A | BN147: N/A | BO147: N/A | BP147: N/A | BQ147: N/A | BR147: N/A | BS147: N/A | BT147: N/A | BU147: N/A | BV147: N/A | BW147: N/A | BX147: N/A | BY147: N/A
A148: Shared among improved sanitation facilities | B148: Yes | C148: N/A | D148: N/A | E148: N/A | F148: N/A | G148: N/A | H148: N/A | I148: N/A | J148: N/A | K148: N/A | L148: N/A | M148: N/A | N148: N/A | O148: N/A | P148: N/A | Q148: N/A | R148: N/A | S148: N/A | T148: N/A | U148: N/A | V148: N/A | W148: N/A | X148: N/A | Y148: N/A | BA148: Shared among improved sanitation facilities | BB148: Yes | BC148: N/A | BD148: N/A | BE148: N/A | BF148: N/A | BG148: N/A | BH148: N/A | BI148: N/A | BJ148: N/A | BK148: N/A | BL148: N/A | BM148: N/A | BN148: N/A | BO148: N/A | BP148: N/A | BQ148: N/A | BR148: N/A | BS148: N/A | BT148: N/A | BU148: N/A | BV148: N/A | BW148: N/A | BX148: N/A | BY148: N/A
B149: No | C149: N/A | D149: N/A | E149: N/A | F149: N/A | G149: N/A | H149: N/A | I149: N/A | J149: N/A | K149: N/A | L149: N/A | M149: N/A | N149: N/A | O149: N/A | P149: N/A | Q149: N/A | R149: N/A | S149: N/A | T149: N/A | U149: N/A | V149: N/A | W149: N/A | X149: N/A | Y149: N/A | BB149: No | BC149: N/A | BD149: N/A | BE149: N/A | BF149: N/A | BG149: N/A | BH149: N/A | BI149: N/A | BJ149: N/A | BK149: N/A | BL149: N/A | BM149: N/A | BN149: N/A | BO149: N/A | BP149: N/A | BQ149: N/A | BR149: N/A | BS149: N/A | BT149: N/A | BU149: N/A | BV149: N/A | BW149: N/A | BX149: N/A | BY149: N/A
B150: DK/missing | C150: N/A | D150: N/A | E150: N/A | F150: N/A | G150: N/A | H150: N/A | I150: N/A | J150: N/A | K150: N/A | L150: N/A | M150: N/A | N150: N/A | O150: N/A | P150: N/A | Q150: N/A | R150: N/A | S150: N/A | T150: N/A | U150: N/A | V150: N/A | W150: N/A | X150: N/A | Y150: N/A | BB150: DK/missing | BC150: N/A | BD150: N/A | BE150: N/A | BF150: N/A | BG150: N/A | BH150: N/A | BI150: N/A | BJ150: N/A | BK150: N/A | BL150: N/A | BM150: N/A | BN150: N/A | BO150: N/A | BP150: N/A | BQ150: N/A | BR150: N/A | BS150: N/A | BT150: N/A | BU150: N/A | BV150: N/A | BW150: N/A | BX150: N/A | BY150: N/A
A151: Shared among all sanitation facilities | B151: Yes | C151: N/A | D151: N/A | E151: N/A | F151: N/A | G151: N/A | H151: N/A | I151: N/A | J151: N/A | K151: N/A | L151: N/A | M151: N/A | N151: N/A | O151: N/A | P151: N/A | Q151: N/A | R151: N/A | S151: N/A | T151: N/A | U151: N/A | V151: N/A | W151: N/A | X151: N/A | Y151: N/A | BA151: Shared among all sanitation facilities | BB151: Yes | BC151: N/A | BD151: N/A | BE151: N/A | BF151: N/A | BG151: N/A | BH151: N/A | BI151: N/A | BJ151: N/A | BK151: N/A | BL151: N/A | BM151: N/A | BN151: N/A | BO151: N/A | BP151: N/A | BQ151: N/A | BR151: N/A | BS151: N/A | BT151: N/A | BU151: N/A | BV151: N/A | BW151: N/A | BX151: N/A | BY151: N/A
B152: No | C152: N/A | D152: N/A | E152: N/A | F152: N/A | G152: N/A | H152: N/A | I152: N/A | J152: N/A | K152: N/A | L152: N/A | M152: N/A | N152: N/A | O152: N/A | P152: N/A | Q152: N/A | R152: N/A | S152: N/A | T152: N/A | U152: N/A | V152: N/A | W152: N/A | X152: N/A | Y152: N/A | BB152: No | BC152: N/A | BD152: N/A | BE152: N/A | BF152: N/A | BG152: N/A | BH152: N/A | BI152: N/A | BJ152: N/A | BK152: N/A | BL152: N/A | BM152: N/A | BN152: N/A | BO152: N/A | BP152: N/A | BQ152: N/A | BR152: N/A | BS152: N/A | BT152: N/A | BU152: N/A | BV152: N/A | BW152: N/A | BX152: N/A | BY152: N/A
A153: type of toilet facility | B153: flush to sewage system/septic tank | C153: 3.899028532 | D153: 5.969541736 | E153: 4.815176833 | F153: 6.501331254 | G153: 47.20419452 | H153: 2.154312201 | I153: 14.99144481 | J153: 36.52134467 | K153: 65.82803105 | L153: 85.57194838 | M153: 3.887316814 | N153: 4.671445562 | O153: 6.947045566 | P153: 4.383079538 | Q153: 9.724815187 | R153: 7.140070053 | S153: 8.845445802 | T153: 12.93010537 | U153: 46.13683092 | V153: 30.72814905 | W153: 5.814932735 | X153: 10.11395663 | Y153: 9.532480499 | BA153: type of toilet facility | BB153: flush to sewage system/septic tank | BC153: 351.2308171 | BD153: 536.0301492 | BE153: 437.4534817 | BF153: 585.6523239 | BG153: 4255.959603 | BH153: 43.05855957 | BI153: 302.0199936 | BJ153: 710.0922705 | BK153: 1330.384623 | BL153: 1704.73118 | BM153: 275.9965786 | BN153: 322.033517 | BO153: 487.3203447 | BP153: 308.2155056 | BQ153: 676.4167609 | BR153: 504.9692152 | BS153: 483.7637031 | BT153: 507.7566537 | BU153: 2619.872536 | BV153: 121.2303236 | BW153: 426.1440722 | BX153: 998.7881722 | BY153: 497.7446572
B154: pour flush latrine | C154: 0.4740171883 | D154: 0.1244309335 | E154: 0.02865356767 | F154: 0.5338064419 | G154: 6.02252515 | H154: 1.601486654 | I154: 3.345783125 | J154: 4.447065447 | K154: 6.826273931 | L154: 10.53401881 | M154: 0.6014181483 | N154: 0.1553014151 | O154: 0.04376997432 | P154: 0 | Q154: 0.8250679429 | R154: 0.08051344407 | S154: 0.2617556296 | T154: 2.377032726 | U154: 6.68665349 | V154: 1.941093342 | W154: 0.5638624724 | X154: 0.6488777506 | Y154: 0.7936948996 | BB154: pour flush latrine | BC154: 42.70023751 | BD154: 11.17317456 | BE154: 2.603144884 | BF154: 48.08630279 | BG154: 542.9946217 | BH154: 32.00915283 | BI154: 67.40467052 | BJ154: 86.46523914 | BK154: 137.9590081 | BL154: 209.8546388 | BM154: 42.70023751 | BN154: 10.70594963 | BO154: 3.07036981 | BP154: 0 | BQ154: 57.38821507 | BR154: 5.694175318 | BS154: 14.31560099 | BT154: 93.3444971 | BU154: 379.7005448 | BV154: 7.65810442 | BW154: 41.32234389 | BX154: 64.07892045 | BY154: 41.44329441
B155: improved pit latrine | C155: 1.306041592 | D155: 2.614969521 | E155: 3.336209273 | F155: 14.54238807 | G155: 8.930742556 | H155: 8.347240946 | I155: 13.23614015 | J155: 7.546241594 | K155: 4.072849691 | L155: 0.8080219729 | M155: 1.32704277 | N155: 1.845435915 | O155: 3.198671063 | P155: 4.469082419 | Q155: 18.98385929 | R155: 8.317415258 | S155: 6.254372626 | T155: 4.279732138 | U155: 6.924291315 | V155: 2.588124457 | W155: 4.578370829 | X155: 7.105247108 | Y155: 4.217016831 | BB155: improved pit latrine | BC155: 117.650346 | BD155: 234.8090631 | BE155: 303.0909171 | BF155: 1310.006064 | BG155: 805.2013158 | BH155: 166.8375509 | BI155: 266.6573512 | BJ155: 146.72318 | BK155: 82.31229937 | BL155: 16.09710048 | BM155: 94.2190415 | BN155: 127.218055 | BO155: 224.3799137 | BP155: 314.2631762 | BQ155: 1320.436467 | BR155: 588.2349367 | BS155: 342.0560738 | BT155: 168.0622398 | BU155: 393.1947706 | BV155: 10.21080589 | BW155: 335.523329 | BX155: 701.6677083 | BY155: 220.1942713
B156: traditional pit latrine | C156: 48.10053794 | D156: 65.63847491 | E156: 76.79510199 | F156: 69.80017223 | G156: 35.58410233 | H156: 71.92685125 | I156: 64.65934028 | J156: 49.30403643 | K156: 22.12107455 | L156: 2.403778067 | M156: 44.43301543 | N156: 61.59546181 | O156: 73.11403389 | P156: 76.18384744 | Q156: 65.05814012 | R156: 60.69860284 | S156: 82.69947586 | T156: 46.53270395 | U156: 36.26855246 | V156: 39.69165393 | W156: 61.22325458 | X156: 52.73582811 | Y156: 77.60558807 | BB156: traditional pit latrine | BC156: 4332.97451 | BD156: 5893.953514 | BE156: 6976.749953 | BF156: 6287.732693 | BG156: 3208.284847 | BH156: 1437.612714 | BI156: 1302.63719 | BJ156: 958.6288645 | BK156: 447.0669553 | BL156: 47.88713473 | BM156: 3154.710774 | BN156: 4246.18096 | BO156: 5128.792644 | BP156: 5357.202135 | BQ156: 4525.167375 | BR156: 4292.804638 | BS156: 4522.892976 | BT156: 1827.308392 | BU156: 2059.503928 | BV156: 156.5936185 | BW156: 4486.711749 | BX156: 5207.845286 | BY156: 4052.226159
B157: open pit | C157: 6.069910155 | D157: 7.733850082 | E157: 6.278389185 | F157: 4.694404491 | G157: 1.588856227 | H157: 8.401882529 | I157: 2.588270657 | J157: 0.9377783079 | K157: 0.9214188602 | L157: 0.3279318694 | M157: 6.523111764 | N157: 5.693141766 | O157: 8.066897425 | P157: 6.040701719 | Q157: 3.68522254 | R157: 9.54136559 | S157: 1.85474573 | T157: 3.85188827 | U157: 2.357202251 | V157: 15.52874674 | W157: 3.385111907 | X157: 8.460376025 | Y157: 3.061632196 | BB157: open pit | BC157: 546.7873564 | BD157: 694.4547833 | BE157: 570.3847032 | BF157: 422.8809135 | BG157: 143.2522678 | BH157: 167.9296804 | BI157: 52.14370579 | BJ157: 18.23342305 | BK157: 18.62187678 | BL157: 6.532931566 | BM157: 463.1360434 | BN157: 392.4657671 | BO157: 565.8755505 | BP157: 424.7784961 | BQ157: 256.3283975 | BR157: 674.7967258 | BS157: 101.4373592 | BT157: 151.2610952 | BU157: 133.8533514 | BV157: 61.26483536 | BW157: 248.0760206 | BX157: 835.4913723 | BY157: 159.8651126
B158: bucket | C158: 0 | D158: 0 | E158: 0.1446408941 | F158: 0.2398642046 | G158: 0.3259097056 | H158: 1.490565278 | I158: 1.018752863 | J158: 0.509765499 | K158: 0.1931978102 | L158: 0 | M158: 0 | N158: 0 | O158: 0 | P158: 0 | Q158: 0 | R158: 0 | S158: 0 | T158: 0.01529696727 | U158: 0.3795095659 | V158: 7.257623584 | W158: 0 | X158: 0.1351634658 | Y158: 0 | BB158: bucket | BC158: 0 | BD158: 0 | BE158: 13.14046502 | BF158: 21.60742521 | BG158: 29.38422221 | BH158: 29.79215074 | BI158: 20.52395463 | BJ158: 9.911478996 | BK158: 3.904528081 | BL158: 0 | BM158: 0 | BN158: 0 | BO158: 0 | BP158: 0 | BQ158: 0 | BR158: 0 | BS158: 0 | BT158: 0.6007017493 | BU158: 21.55038977 | BV158: 28.63316154 | BW158: 0 | BX158: 13.34785938 | BY158: 0
B159: other | C159: 0.2425698191 | D159: 0.08083328163 | E159: 0 | F159: 0.1225203746 | G159: 0.1665659851 | H159: 0.4470099777 | I159: 0 | J159: 0.7337680583 | K159: 0.03715411119 | L159: 0 | M159: 0.307764982 | N159: 0.10529037 | O159: 0 | P159: 0 | Q159: 0.03022631655 | R159: 0.1167999278 | S159: 0.0842043484 | T159: 0.1211015448 | U159: 0 | V159: 2.264608899 | W159: 0.1335351694 | X159: 0.1905984084 | Y159: 0 | BB159: other | BC159: 21.85108292 | BD159: 7.258358836 | BE159: 0 | BF159: 11.03686911 | BG159: 15.01769304 | BH159: 8.934455156 | BI159: 0 | BJ159: 14.26680839 | BK159: 0.7508846521 | BL159: 0 | BM159: 21.85108292 | BN159: 7.258358836 | BO159: 0 | BP159: 0 | BQ159: 2.102413952 | BR159: 8.260474682 | BS159: 4.605195522 | BT159: 4.755577266 | BU159: 0 | BV159: 8.934455156 | BW159: 9.786049724 | BX159: 18.82225156 | BY159: 0
B160: no facilities/bush/field | C160: 39.90789477 | D160: 17.83789954 | E160: 8.601828255 | F160: 3.565512939 | G160: 0.1771035242 | H160: 5.630651167 | I160: 0.1602681134 | J160: 0 | K160: 0 | L160: 0.3543009006 | M160: 42.9203301 | N160: 25.93392317 | O160: 8.629582085 | P160: 8.923288881 | Q160: 1.692668602 | R160: 14.10523288 | S160: 0 | T160: 29.89213903 | U160: 1.246960002 | V160: 0 | W160: 24.3009323 | X160: 20.6099525 | Y160: 4.789587503 | BB160: no facilities/bush/field | BC160: 3594.96792 | BD160: 1601.739693 | BE160: 781.4665691 | BF160: 321.1882086 | BG160: 15.96776414 | BH160: 112.5406654 | BI160: 3.228786498 | BJ160: 0 | BK160: 0 | BL160: 7.058245182 | BM160: 3047.31125 | BN160: 1787.796171 | BO160: 605.3466724 | BP160: 627.4802842 | BQ160: 117.7348249 | BR160: 997.5684168 | BS160: 0 | BT160: 1173.844455 | BU160: 70.80842352 | BV160: 0 | BW160: 1780.880145 | BX160: 2035.304039 | BY160: 250.0914206
BB161: Total | BC161: 9008.16227 | BD161: 8979.418737 | BE161: 9084.889234 | BF161: 9008.1908 | BG161: 9016.062335 | BH161: 1998.714929 | BI161: 2014.615652 | BJ161: 1944.321265 | BK161: 2021.000175 | BL161: 1992.161231 | BM161: 7099.925008 | BN161: 6893.658779 | BO161: 7014.785495 | BP161: 7031.939597 | BQ161: 6955.574454 | BR161: 7072.328583 | BS161: 5469.070909 | BT161: 3926.933612 | BU161: 5678.483944 | BV161: 394.5253045 | BW161: 7328.443709 | BX161: 9875.345609 | BY161: 5221.564915
A208: =A1026 -> Kenya
A209: =A1034 -> 2000
A210: Access to hygiene facilities
A211: by wealth quintile and sub-national region
A212: Notes:
A213: WHO/UNICEF JMP customised wealth index excludes water,
A214: sanitation and hygiene assets.
A215: Survey used for analysis: | B215: =A1025 -> MICS00
A220: Access to handwashing | C220: NATIONAL wealth index quintile | H220: URBAN wealth index quintile | M220: RURAL wealth index quintile | R220: SUB-REGIONS: | BA220: Raw numbers of respondents: | BB220: Access to handwashing | BC220: NATIONAL wealth index quintile | BH220: URBAN wealth index quintile | BM220: RURAL wealth index quintile | BR220: SUB-REGIONS:
A221: Weighted percentage (used in graphs) | C221: Poorest | D221: Poor | E221: Middle | F221: Rich | G221: Richest | H221: Poorest | I221: Poor | J221: Middle | K221: Rich | L221: Richest | M221: Poorest | N221: Poor | O221: Middle | P221: Rich | Q221: Richest | R221: eastern | S221: central | T221: coast | U221: nairobi | V221: north eastern' | W221: nyanza | X221: rift valley | Y221: western | BA221: Hygiene data, raw numbers (weighted) | BC221: Poorest | BD221: Poor | BE221: Middle | BF221: Rich | BG221: Richest | BH221: Poorest | BI221: Poor | BJ221: Middle | BK221: Rich | BL221: Richest | BM221: Poorest | BN221: Poor | BO221: Middle | BP221: Rich | BQ221: Richest | BR221: eastern | BS221: central | BT221: coast | BU221: nairobi | BV221: north eastern' | BW221: nyanza | BX221: rift valley | BY221: western
A222: Hygiene ladder | B222: Basic | C222: N/A | D222: N/A | E222: N/A | F222: N/A | G222: N/A | H222: N/A | I222: N/A | J222: N/A | K222: N/A | L222: N/A | M222: N/A | N222: N/A | O222: N/A | P222: N/A | Q222: N/A | R222: N/A | S222: N/A | T222: N/A | U222: N/A | V222: N/A | W222: N/A | X222: N/A | Y222: N/A | BA222: Hygiene ladder | BB222: Basic | BC222: N/A | BD222: N/A | BE222: N/A | BF222: N/A | BG222: N/A | BH222: N/A | BI222: N/A | BJ222: N/A | BK222: N/A | BL222: N/A | BM222: N/A | BN222: N/A | BO222: N/A | BP222: N/A | BQ222: N/A | BR222: N/A | BS222: N/A | BT222: N/A | BU222: N/A | BV222: N/A | BW222: N/A | BX222: N/A | BY222: N/A
B223: Limited | C223: N/A | D223: N/A | E223: N/A | F223: N/A | G223: N/A | H223: N/A | I223: N/A | J223: N/A | K223: N/A | L223: N/A | M223: N/A | N223: N/A | O223: N/A | P223: N/A | Q223: N/A | R223: N/A | S223: N/A | T223: N/A | U223: N/A | V223: N/A | W223: N/A | X223: N/A | Y223: N/A | BB223: Limited | BC223: N/A | BD223: N/A | BE223: N/A | BF223: N/A | BG223: N/A | BH223: N/A | BI223: N/A | BJ223: N/A | BK223: N/A | BL223: N/A | BM223: N/A | BN223: N/A | BO223: N/A | BP223: N/A | BQ223: N/A | BR223: N/A | BS223: N/A | BT223: N/A | BU223: N/A | BV223: N/A | BW223: N/A | BX223: N/A | BY223: N/A
B224: No facility | C224: N/A | D224: N/A | E224: N/A | F224: N/A | G224: N/A | H224: N/A | I224: N/A | J224: N/A | K224: N/A | L224: N/A | M224: N/A | N224: N/A | O224: N/A | P224: N/A | Q224: N/A | R224: N/A | S224: N/A | T224: N/A | U224: N/A | V224: N/A | W224: N/A | X224: N/A | Y224: N/A | BB224: No facility | BC224: N/A | BD224: N/A | BE224: N/A | BF224: N/A | BG224: N/A | BH224: N/A | BI224: N/A | BJ224: N/A | BK224: N/A | BL224: N/A | BM224: N/A | BN224: N/A | BO224: N/A | BP224: N/A | BQ224: N/A | BR224: N/A | BS224: N/A | BT224: N/A | BU224: N/A | BV224: N/A | BW224: N/A | BX224: N/A | BY224: N/A
BA225: Observed handwashing place | BB225: Fixed | BC225: N/A | BD225: N/A | BE225: N/A | BF225: N/A | BG225: N/A | BH225: N/A | BI225: N/A | BJ225: N/A | BK225: N/A | BL225: N/A | BM225: N/A | BN225: N/A | BO225: N/A | BP225: N/A | BQ225: N/A | BR225: N/A | BS225: N/A | BT225: N/A | BU225: N/A | BV225: N/A | BW225: N/A | BX225: N/A | BY225: N/A
BB226: Mobile | BC226: N/A | BD226: N/A | BE226: N/A | BF226: N/A | BG226: N/A | BH226: N/A | BI226: N/A | BJ226: N/A | BK226: N/A | BL226: N/A | BM226: N/A | BN226: N/A | BO226: N/A | BP226: N/A | BQ226: N/A | BR226: N/A | BS226: N/A | BT226: N/A | BU226: N/A | BV226: N/A | BW226: N/A | BX226: N/A | BY226: N/A
BA227: Water / Soap | BB227: Water and soap | BC227: N/A | BD227: N/A | BE227: N/A | BF227: N/A | BG227: N/A | BH227: N/A | BI227: N/A | BJ227: N/A | BK227: N/A | BL227: N/A | BM227: N/A | BN227: N/A | BO227: N/A | BP227: N/A | BQ227: N/A | BR227: N/A | BS227: N/A | BT227: N/A | BU227: N/A | BV227: N/A | BW227: N/A | BX227: N/A | BY227: N/A
BB228: Water only | BC228: N/A | BD228: N/A | BE228: N/A | BF228: N/A | BG228: N/A | BH228: N/A | BI228: N/A | BJ228: N/A | BK228: N/A | BL228: N/A | BM228: N/A | BN228: N/A | BO228: N/A | BP228: N/A | BQ228: N/A | BR228: N/A | BS228: N/A | BT228: N/A | BU228: N/A | BV228: N/A | BW228: N/A | BX228: N/A | BY228: N/A
BB229: Soap only | BC229: N/A | BD229: N/A | BE229: N/A | BF229: N/A | BG229: N/A | BH229: N/A | BI229: N/A | BJ229: N/A | BK229: N/A | BL229: N/A | BM229: N/A | BN229: N/A | BO229: N/A | BP229: N/A | BQ229: N/A | BR229: N/A | BS229: N/A | BT229: N/A | BU229: N/A | BV229: N/A | BW229: N/A | BX229: N/A | BY229: N/A
BB230: Neither | BC230: N/A | BD230: N/A | BE230: N/A | BF230: N/A | BG230: N/A | BH230: N/A | BI230: N/A | BJ230: N/A | BK230: N/A | BL230: N/A | BM230: N/A | BN230: N/A | BO230: N/A | BP230: N/A | BQ230: N/A | BR230: N/A | BS230: N/A | BT230: N/A | BU230: N/A | BV230: N/A | BW230: N/A | BX230: N/A | BY230: N/A
BA259: Raw numbers of respondents: | BB259: Menstrual health and hygiene | BC259: NATIONAL wealth index quintile | BH259: URBAN wealth index quintile | BM259: RURAL wealth index quintile | BR259: SUB-REGIONS:
BA260: MHH data, raw numbers (weighted) | BC260: Poorest | BD260: Poor | BE260: Middle | BF260: Rich | BG260: Richest | BH260: Poorest | BI260: Poor | BJ260: Middle | BK260: Rich | BL260: Richest | BM260: Poorest | BN260: Poor | BO260: Middle | BP260: Rich | BQ260: Richest | BR260: eastern | BS260: central | BT260: coast | BU260: nairobi | BV260: north eastern' | BW260: nyanza | BX260: rift valley | BY260: western
BA261: Private place to wash and change | BB261: Yes | BC261: N/A | BD261: N/A | BE261: N/A | BF261: N/A | BG261: N/A | BH261: N/A | BI261: N/A | BJ261: N/A | BK261: N/A | BL261: N/A | BM261: N/A | BN261: N/A | BO261: N/A | BP261: N/A | BQ261: N/A | BR261: N/A | BS261: N/A | BT261: N/A | BU261: N/A | BV261: N/A | BW261: N/A | BX261: N/A | BY261: N/A
BB262: No | BC262: N/A | BD262: N/A | BE262: N/A | BF262: N/A | BG262: N/A | BH262: N/A | BI262: N/A | BJ262: N/A | BK262: N/A | BL262: N/A | BM262: N/A | BN262: N/A | BO262: N/A | BP262: N/A | BQ262: N/A | BR262: N/A | BS262: N/A | BT262: N/A | BU262: N/A | BV262: N/A | BW262: N/A | BX262: N/A | BY262: N/A
BB263: DK/not sure/missing | BC263: N/A | BD263: N/A | BE263: N/A | BF263: N/A | BG263: N/A | BH263: N/A | BI263: N/A | BJ263: N/A | BK263: N/A | BL263: N/A | BM263: N/A | BN263: N/A | BO263: N/A | BP263: N/A | BQ263: N/A | BR263: N/A | BS263: N/A | BT263: N/A | BU263: N/A | BV263: N/A | BW263: N/A | BX263: N/A | BY263: N/A
BA264: Use of menstrual materials | BB264: Materials reusable | BC264: N/A | BD264: N/A | BE264: N/A | BF264: N/A | BG264: N/A | BH264: N/A | BI264: N/A | BJ264: N/A | BK264: N/A | BL264: N/A | BM264: N/A | BN264: N/A | BO264: N/A | BP264: N/A | BQ264: N/A | BR264: N/A | BS264: N/A | BT264: N/A | BU264: N/A | BV264: N/A | BW264: N/A | BX264: N/A | BY264: N/A
BB265: Materials not reusable | BC265: N/A | BD265: N/A | BE265: N/A | BF265: N/A | BG265: N/A | BH265: N/A | BI265: N/A | BJ265: N/A | BK265: N/A | BL265: N/A | BM265: N/A | BN265: N/A | BO265: N/A | BP265: N/A | BQ265: N/A | BR265: N/A | BS265: N/A | BT265: N/A | BU265: N/A | BV265: N/A | BW265: N/A | BX265: N/A | BY265: N/A
BB266: No materials used | BC266: N/A | BD266: N/A | BE266: N/A | BF266: N/A | BG266: N/A | BH266: N/A | BI266: N/A | BJ266: N/A | BK266: N/A | BL266: N/A | BM266: N/A | BN266: N/A | BO266: N/A | BP266: N/A | BQ266: N/A | BR266: N/A | BS266: N/A | BT266: N/A | BU266: N/A | BV266: N/A | BW266: N/A | BX266: N/A | BY266: N/A
BB267: DK/not sure/missing | BC267: N/A | BD267: N/A | BE267: N/A | BF267: N/A | BG267: N/A | BH267: N/A | BI267: N/A | BJ267: N/A | BK267: N/A | BL267: N/A | BM267: N/A | BN267: N/A | BO267: N/A | BP267: N/A | BQ267: N/A | BR267: N/A | BS267: N/A | BT267: N/A | BU267: N/A | BV267: N/A | BW267: N/A | BX267: N/A | BY267: N/A
BA268: Use of menstrual materials with private place to wash and change | BB268: Materials reusable | BC268: N/A | BD268: N/A | BE268: N/A | BF268: N/A | BG268: N/A | BH268: N/A | BI268: N/A | BJ268: N/A | BK268: N/A | BL268: N/A | BM268: N/A | BN268: N/A | BO268: N/A | BP268: N/A | BQ268: N/A | BR268: N/A | BS268: N/A | BT268: N/A | BU268: N/A | BV268: N/A | BW268: N/A | BX268: N/A | BY268: N/A
BB269: Materials not reusable | BC269: N/A | BD269: N/A | BE269: N/A | BF269: N/A | BG269: N/A | BH269: N/A | BI269: N/A | BJ269: N/A | BK269: N/A | BL269: N/A | BM269: N/A | BN269: N/A | BO269: N/A | BP269: N/A | BQ269: N/A | BR269: N/A | BS269: N/A | BT269: N/A | BU269: N/A | BV269: N/A | BW269: N/A | BX269: N/A | BY269: N/A
BB270: No materials used | BC270: N/A | BD270: N/A | BE270: N/A | BF270: N/A | BG270: N/A | BH270: N/A | BI270: N/A | BJ270: N/A | BK270: N/A | BL270: N/A | BM270: N/A | BN270: N/A | BO270: N/A | BP270: N/A | BQ270: N/A | BR270: N/A | BS270: N/A | BT270: N/A | BU270: N/A | BV270: N/A | BW270: N/A | BX270: N/A | BY270: N/A
BA271: Awareness of menstruation before menarche | BB271: Yes | BC271: N/A | BD271: N/A | BE271: N/A | BF271: N/A | BG271: N/A | BH271: N/A | BI271: N/A | BJ271: N/A | BK271: N/A | BL271: N/A | BM271: N/A | BN271: N/A | BO271: N/A | BP271: N/A | BQ271: N/A | BR271: N/A | BS271: N/A | BT271: N/A | BU271: N/A | BV271: N/A | BW271: N/A | BX271: N/A | BY271: N/A
BB272: No | BC272: N/A | BD272: N/A | BE272: N/A | BF272: N/A | BG272: N/A | BH272: N/A | BI272: N/A | BJ272: N/A | BK272: N/A | BL272: N/A | BM272: N/A | BN272: N/A | BO272: N/A | BP272: N/A | BQ272: N/A | BR272: N/A | BS272: N/A | BT272: N/A | BU272: N/A | BV272: N/A | BW272: N/A | BX272: N/A | BY272: N/A
BB273: DK/not sure/missing | BC273: N/A | BD273: N/A | BE273: N/A | BF273: N/A | BG273: N/A | BH273: N/A | BI273: N/A | BJ273: N/A | BK273: N/A | BL273: N/A | BM273: N/A | BN273: N/A | BO273: N/A | BP273: N/A | BQ273: N/A | BR273: N/A | BS273: N/A | BT273: N/A | BU273: N/A | BV273: N/A | BW273: N/A | BX273: N/A | BY273: N/A
BA274: Participation in (all) activities during menstruation | BB274: Yes | BC274: N/A | BD274: N/A | BE274: N/A | BF274: N/A | BG274: N/A | BH274: N/A | BI274: N/A | BJ274: N/A | BK274: N/A | BL274: N/A | BM274: N/A | BN274: N/A | BO274: N/A | BP274: N/A | BQ274: N/A | BR274: N/A | BS274: N/A | BT274: N/A | BU274: N/A | BV274: N/A | BW274: N/A | BX274: N/A | BY274: N/A
BB275: No | BC275: N/A | BD275: N/A | BE275: N/A | BF275: N/A | BG275: N/A | BH275: N/A | BI275: N/A | BJ275: N/A | BK275: N/A | BL275: N/A | BM275: N/A | BN275: N/A | BO275: N/A | BP275: N/A | BQ275: N/A | BR275: N/A | BS275: N/A | BT275: N/A | BU275: N/A | BV275: N/A | BW275: N/A | BX275: N/A | BY275: N/A
BB276: DK/not sure/missing/no such activity | BC276: N/A | BD276: N/A | BE276: N/A | BF276: N/A | BG276: N/A | BH276: N/A | BI276: N/A | BJ276: N/A | BK276: N/A | BL276: N/A | BM276: N/A | BN276: N/A | BO276: N/A | BP276: N/A | BQ276: N/A | BR276: N/A | BS276: N/A | BT276: N/A | BU276: N/A | BV276: N/A | BW276: N/A | BX276: N/A | BY276: N/A
BA277: Participation in specific activities during menstruation | BB277: Did not go to school (amongst those usually attending school) | BC277: N/A | BD277: N/A | BE277: N/A | BF277: N/A | BG277: N/A | BH277: N/A | BI277: N/A | BJ277: N/A | BK277: N/A | BL277: N/A | BM277: N/A | BN277: N/A | BO277: N/A | BP277: N/A | BQ277: N/A | BR277: N/A | BS277: N/A | BT277: N/A | BU277: N/A | BV277: N/A | BW277: N/A | BX277: N/A | BY277: N/A
BB278: Did not go to work (amongst those who usually work) | BC278: N/A | BD278: N/A | BE278: N/A | BF278: N/A | BG278: N/A | BH278: N/A | BI278: N/A | BJ278: N/A | BK278: N/A | BL278: N/A | BM278: N/A | BN278: N/A | BO278: N/A | BP278: N/A | BQ278: N/A | BR278: N/A | BS278: N/A | BT278: N/A | BU278: N/A | BV278: N/A | BW278: N/A | BX278: N/A | BY278: N/A
BB279: Did not participate in social activities | BC279: N/A | BD279: N/A | BE279: N/A | BF279: N/A | BG279: N/A | BH279: N/A | BI279: N/A | BJ279: N/A | BK279: N/A | BL279: N/A | BM279: N/A | BN279: N/A | BO279: N/A | BP279: N/A | BQ279: N/A | BR279: N/A | BS279: N/A | BT279: N/A | BU279: N/A | BV279: N/A | BW279: N/A | BX279: N/A | BY279: N/A
BB280: Did not cook food | BC280: N/A | BD280: N/A | BE280: N/A | BF280: N/A | BG280: N/A | BH280: N/A | BI280: N/A | BJ280: N/A | BK280: N/A | BL280: N/A | BM280: N/A | BN280: N/A | BO280: N/A | BP280: N/A | BQ280: N/A | BR280: N/A | BS280: N/A | BT280: N/A | BU280: N/A | BV280: N/A | BW280: N/A | BX280: N/A | BY280: N/A
BB281: Did not eat with others | BC281: N/A | BD281: N/A | BE281: N/A | BF281: N/A | BG281: N/A | BH281: N/A | BI281: N/A | BJ281: N/A | BK281: N/A | BL281: N/A | BM281: N/A | BN281: N/A | BO281: N/A | BP281: N/A | BQ281: N/A | BR281: N/A | BS281: N/A | BT281: N/A | BU281: N/A | BV281: N/A | BW281: N/A | BX281: N/A | BY281: N/A
BB282: Did not bathe in regular place | BC282: N/A | BD282: N/A | BE282: N/A | BF282: N/A | BG282: N/A | BH282: N/A | BI282: N/A | BJ282: N/A | BK282: N/A | BL282: N/A | BM282: N/A | BN282: N/A | BO282: N/A | BP282: N/A | BQ282: N/A | BR282: N/A | BS282: N/A | BT282: N/A | BU282: N/A | BV282: N/A | BW282: N/A | BX282: N/A | BY282: N/A
BB283: Did not participate in other activities | BC283: N/A | BD283: N/A | BE283: N/A | BF283: N/A | BG283: N/A | BH283: N/A | BI283: N/A | BJ283: N/A | BK283: N/A | BL283: N/A | BM283: N/A | BN283: N/A | BO283: N/A | BP283: N/A | BQ283: N/A | BR283: N/A | BS283: N/A | BT283: N/A | BU283: N/A | BV283: N/A | BW283: N/A | BX283: N/A | BY283: N/A
BB284: DK/not sure/missing/no such activity | BC284: N/A | BD284: N/A | BE284: N/A | BF284: N/A | BG284: N/A | BH284: N/A | BI284: N/A | BJ284: N/A | BK284: N/A | BL284: N/A | BM284: N/A | BN284: N/A | BO284: N/A | BP284: N/A | BQ284: N/A | BR284: N/A | BS284: N/A | BT284: N/A | BU284: N/A | BV284: N/A | BW284: N/A | BX284: N/A | BY284: N/A
BA339: Raw numbers of respondents: | BB339: Basic water, sanitation and hygiene | BC339: NATIONAL wealth index quintile | BH339: URBAN wealth index quintile | BM339: RURAL wealth index quintile | BR339: SUB-REGIONS:
BA340: WatSan data, raw numbers (weighted) | BC340: Poorest | BD340: Poor | BE340: Middle | BF340: Rich | BG340: Richest | BH340: Poorest | BI340: Poor | BJ340: Middle | BK340: Rich | BL340: Richest | BM340: Poorest | BN340: Poor | BO340: Middle | BP340: Rich | BQ340: Richest | BR340: eastern | BS340: central | BT340: coast | BU340: nairobi | BV340: north eastern' | BW340: nyanza | BX340: rift valley | BY340: western
BA341: Use of Basic Water Sanitation and Hygiene | BB341: Yes | BC341: N/A | BD341: N/A | BE341: N/A | BF341: N/A | BG341: N/A | BH341: N/A | BI341: N/A | BJ341: N/A | BK341: N/A | BL341: N/A | BM341: N/A | BN341: N/A | BO341: N/A | BP341: N/A | BQ341: N/A | BR341: N/A | BS341: N/A | BT341: N/A | BU341: N/A | BV341: N/A | BW341: N/A | BX341: N/A | BY341: N/A
BB342: No | BC342: N/A | BD342: N/A | BE342: N/A | BF342: N/A | BG342: N/A | BH342: N/A | BI342: N/A | BJ342: N/A | BK342: N/A | BL342: N/A | BM342: N/A | BN342: N/A | BO342: N/A | BP342: N/A | BQ342: N/A | BR342: N/A | BS342: N/A | BT342: N/A | BU342: N/A | BV342: N/A | BW342: N/A | BX342: N/A | BY342: N/A
BA343: Use of Basic Water and Sanitation | BB343: Yes | BC343: N/A | BD343: N/A | BE343: N/A | BF343: N/A | BG343: N/A | BH343: N/A | BI343: N/A | BJ343: N/A | BK343: N/A | BL343: N/A | BM343: N/A | BN343: N/A | BO343: N/A | BP343: N/A | BQ343: N/A | BR343: N/A | BS343: N/A | BT343: N/A | BU343: N/A | BV343: N/A | BW343: N/A | BX343: N/A | BY343: N/A
BB344: No | BC344: N/A | BD344: N/A | BE344: N/A | BF344: N/A | BG344: N/A | BH344: N/A | BI344: N/A | BJ344: N/A | BK344: N/A | BL344: N/A | BM344: N/A | BN344: N/A | BO344: N/A | BP344: N/A | BQ344: N/A | BR344: N/A | BS344: N/A | BT344: N/A | BU344: N/A | BV344: N/A | BW344: N/A | BX344: N/A | BY344: N/A
BA345: Use of Basic Water and Hygiene | BB345: Yes | BC345: N/A | BD345: N/A | BE345: N/A | BF345: N/A | BG345: N/A | BH345: N/A | BI345: N/A | BJ345: N/A | BK345: N/A | BL345: N/A | BM345: N/A | BN345: N/A | BO345: N/A | BP345: N/A | BQ345: N/A | BR345: N/A | BS345: N/A | BT345: N/A | BU345: N/A | BV345: N/A | BW345: N/A | BX345: N/A | BY345: N/A
BB346: No | BC346: N/A | BD346: N/A | BE346: N/A | BF346: N/A | BG346: N/A | BH346: N/A | BI346: N/A | BJ346: N/A | BK346: N/A | BL346: N/A | BM346: N/A | BN346: N/A | BO346: N/A | BP346: N/A | BQ346: N/A | BR346: N/A | BS346: N/A | BT346: N/A | BU346: N/A | BV346: N/A | BW346: N/A | BX346: N/A | BY346: N/A
BA347: Use of Basic Sanitation and Hygiene | BB347: Yes | BC347: N/A | BD347: N/A | BE347: N/A | BF347: N/A | BG347: N/A | BH347: N/A | BI347: N/A | BJ347: N/A | BK347: N/A | BL347: N/A | BM347: N/A | BN347: N/A | BO347: N/A | BP347: N/A | BQ347: N/A | BR347: N/A | BS347: N/A | BT347: N/A | BU347: N/A | BV347: N/A | BW347: N/A | BX347: N/A | BY347: N/A
BB348: No | BC348: N/A | BD348: N/A | BE348: N/A | BF348: N/A | BG348: N/A | BH348: N/A | BI348: N/A | BJ348: N/A | BK348: N/A | BL348: N/A | BM348: N/A | BN348: N/A | BO348: N/A | BP348: N/A | BQ348: N/A | BR348: N/A | BS348: N/A | BT348: N/A | BU348: N/A | BV348: N/A | BW348: N/A | BX348: N/A | BY348: N/A
BA349: Use of Basic Water | BB349: Yes | BC349: N/A | BD349: N/A | BE349: N/A | BF349: N/A | BG349: N/A | BH349: N/A | BI349: N/A | BJ349: N/A | BK349: N/A | BL349: N/A | BM349: N/A | BN349: N/A | BO349: N/A | BP349: N/A | BQ349: N/A | BR349: N/A | BS349: N/A | BT349: N/A | BU349: N/A | BV349: N/A | BW349: N/A | BX349: N/A | BY349: N/A
BB350: No | BC350: N/A | BD350: N/A | BE350: N/A | BF350: N/A | BG350: N/A | BH350: N/A | BI350: N/A | BJ350: N/A | BK350: N/A | BL350: N/A | BM350: N/A | BN350: N/A | BO350: N/A | BP350: N/A | BQ350: N/A | BR350: N/A | BS350: N/A | BT350: N/A | BU350: N/A | BV350: N/A | BW350: N/A | BX350: N/A | BY350: N/A
BA351: Use of Basic Sanitation | BB351: Yes | BC351: N/A | BD351: N/A | BE351: N/A | BF351: N/A | BG351: N/A | BH351: N/A | BI351: N/A | BJ351: N/A | BK351: N/A | BL351: N/A | BM351: N/A | BN351: N/A | BO351: N/A | BP351: N/A | BQ351: N/A | BR351: N/A | BS351: N/A | BT351: N/A | BU351: N/A | BV351: N/A | BW351: N/A | BX351: N/A | BY351: N/A
BB352: No | BC352: N/A | BD352: N/A | BE352: N/A | BF352: N/A | BG352: N/A | BH352: N/A | BI352: N/A | BJ352: N/A | BK352: N/A | BL352: N/A | BM352: N/A | BN352: N/A | BO352: N/A | BP352: N/A | BQ352: N/A | BR352: N/A | BS352: N/A | BT352: N/A | BU352: N/A | BV352: N/A | BW352: N/A | BX352: N/A | BY352: N/A
BA353: Access to Basic Hygiene | BB353: Yes | BC353: N/A | BD353: N/A | BE353: N/A | BF353: N/A | BG353: N/A | BH353: N/A | BI353: N/A | BJ353: N/A | BK353: N/A | BL353: N/A | BM353: N/A | BN353: N/A | BO353: N/A | BP353: N/A | BQ353: N/A | BR353: N/A | BS353: N/A | BT353: N/A | BU353: N/A | BV353: N/A | BW353: N/A | BX353: N/A | BY353: N/A
BB354: No | BC354: N/A | BD354: N/A | BE354: N/A | BF354: N/A | BG354: N/A | BH354: N/A | BI354: N/A | BJ354: N/A | BK354: N/A | BL354: N/A | BM354: N/A | BN354: N/A | BO354: N/A | BP354: N/A | BQ354: N/A | BR354: N/A | BS354: N/A | BT354: N/A | BU354: N/A | BV354: N/A | BW354: N/A | BX354: N/A | BY354: N/A
C399: INITIAL (national) Wealth Index | H399: URBAN Wealth Index | M399: RURAL Wealth Index
C400: Component Matrix | H400: Component Matrix | M400: Component Matrix
E401: Component | J401: Component | O401: Component
B402: Note: The INITIAL (national) Wealth Index is based on the first component of the Principal Component Analysis (PCA) which has been obtained at national level. The final national-level (NATIONAL) Wealth Index is based on the URBAN and RURAL specific wealth indexes. Regression procedures are used to establish the relationships between the two sets of scores (urban and rural) and the initial (national) wealth factors. This allows best use of the available information for each area and a better precision of the FINAL (NATIONAL) Wealth Index. For dependency reasons, all WASH variables (contained in the generic MICS and DHS scripts) have been excluded from the sets of asset variables used in the PCAs. The PCA can extracts as many components as there are asset variables in the input. Only the first of the components is used to represent the Wealth Index. The scores represent the weights of the asset variables on the Wealth Index (correlations between the variables and the component). The communalities are the proportion of each variable's variance that can be explained by the component. Proportion of explained variance is the part of the model's total variance that is explained by the component. For more information on the procedure used: The DHS Wealth Index, DHS Comparative Reports No. 6, Shea Oscar Rutstein, Kiersten Johnson, ORC Macro International Inc., 2004. The DHS Wealth Index: Approaches for Rural and Urban Areas, Shea O. Rutstein, ORC Macro International Inc., 2008. MICS Methodological Paper No. 4, Review of options for reporting water, sanitation and hygiene coverage by wealth quintile, UNICEF, 2016. | E402: 1 | J402: 1 | O402: 1
C403: Has dung floor | E403: -0.8604800018 | H403: Has dung floor | J403: 0.760860998 | M403: Has dung floor | O403: -0.8212106188
C404: Has cement floor | E404: 0.817106921 | H404: Has stone with mud wall | J404: 0.6759977173 | M404: Has cement floor | O404: 0.7618785604
C405: Household fuel type: wood | E405: -0.7737022762 | H405: Has cement floor | J405: -0.6659058296 | M405: Has stone with mud wall | O405: -0.7529644703
C406: Has stone with mud wall | E406: -0.7527018297 | H406: Household light: kerozene | J406: 0.662382322 | M406: Has wood roof | O406: -0.6138897863
C407: Has wood roof | E407: -0.5521046736 | H407: Household light: electricity | J407: -0.6249801127 | M407: Has metal roof | O407: 0.597045968
C408: Household light: kerozene | E408: -0.5393149768 | H408: Household fuel type: wood | J408: 0.4675382647 | M408: Household fuel type: wood | O408: -0.5535446187
C409: Household light: electricity | E409: 0.5384393435 | H409: Has cement roof | J409: -0.4508138026 | M409: Has cement wall | O409: 0.5110245969
C410: Household fuel type: charcoal | E410: 0.4989211477 | H410: Has stone with lime/cement wall | J410: -0.3974167467 | M410: Household fuel type: charcoal | O410: 0.4639972896
C411: Has cement wall | E411: 0.4874279549 | H411: having radio | J411: 0.3972229924 | M411: Has stone with lime/cement wall | O411: 0.369995037
C412: Has stone with lime/cement wall | E412: 0.4757346189 | H412: Household fuel type: natural gas | J412: -0.3849239494 | M412: having radio | O412: -0.3697635255
C413: Household fuel type: kerosene | E413: 0.4246988523 | H413: Has wood roof | J413: 0.3461936805 | M413: Persons per sleeping rooms | O413: -0.3523386325
C414: Has metal roof | E414: 0.4125766995 | H414: Has cement wall | J414: -0.2889043344 | M414: Has stone wall | O414: 0.2718388361
C415: having radio | E415: -0.3695884244 | H415: Persons per sleeping rooms | J415: 0.2248685446 | M415: Household fuel type: kerosene | O415: 0.2417607797
C416: Has cement roof | E416: 0.3215923243 | H416: Has metal roof | J416: 0.1990138964 | M416: Household light: kerozene | O416: -0.2374409943
C417: Household fuel type: natural gas | E417: 0.2786566226 | H417: Has stone wall | J417: 0.1955719402 | M417: Has stone floor | O417: 0.2127689262
C418: Persons per sleeping rooms | E418: -0.2080658431 | H418: Household light: firewood | J418: -0.1903814318 | M418: Household light: electricity | O418: 0.2031351792
C419: Household light: firewood | E419: 0.1815253495 | H419: Has wood floor | J419: -0.1214712612 | M419: having a bicycle | O419: -0.1427726717
... 131 more rows

Sheet DHS03
A2: =A1026 -> Kenya
A3: =A1034 -> 2003
A4: Use of drinking water sources
A5: by wealth quintile and sub-national region
A6: Notes:
A7: WHO/UNICEF JMP customised wealth index excludes water,
A8: sanitation and hygiene assets.
A9: Survey used for analysis: | B9: =A1025 -> DHS03
A10: Time improved source based on: | B10: DHS09
A11: =B1027 -> 
A14: Use of drinking water sources | C14: NATIONAL wealth index quintile | H14: URBAN wealth index quintile | M14: RURAL wealth index quintile | R14: SUB-REGIONS: | BA14: Raw numbers of respondents: | BB14: Use of drinking water sources | BC14: NATIONAL wealth index quintile | BH14: URBAN wealth index quintile | BM14: RURAL wealth index quintile | BR14: SUB-REGIONS:
A15: Weighted percentage (used in graphs) | C15: Poorest | D15: Poor | E15: Middle | F15: Rich | G15: Richest | H15: Poorest | I15: Poor | J15: Middle | K15: Rich | L15: Richest | M15: Poorest | N15: Poor | O15: Middle | P15: Rich | Q15: Richest | R15: Central | S15: Coast | T15: Eastern | U15: Nairobi | V15: North Eastern | W15: Nyanza | X15: Rift Valley | Y15: Western | BA15: Water data, raw numbers (weighted) | BC15: Poorest | BD15: Poor | BE15: Middle | BF15: Rich | BG15: Richest | BH15: Poorest | BI15: Poor | BJ15: Middle | BK15: Rich | BL15: Richest | BM15: Poorest | BN15: Poor | BO15: Middle | BP15: Rich | BQ15: Richest | BR15: Central | BS15: Coast | BT15: Eastern | BU15: Nairobi | BV15: North Eastern | BW15: Nyanza | BX15: Rift Valley | BY15: Western
A16: Water | B16: Improved | C16: =C58+C59+C60+C63+C64+C69+C70+C65*'DHS09'!C25/100 -> 24.96639832 | D16: =D58+D59+D60+D63+D64+D69+D70+D65*'DHS09'!D25/100 -> 41.67809545 | E16: =E58+E59+E60+E63+E64+E69+E70+E65*'DHS09'!E25/100 -> 43.97652751 | F16: =F58+F59+F60+F63+F64+F69+F70+F65*'DHS09'!F25/100 -> 55.02574756 | G16: =G58+G59+G60+G63+G64+G69+G70+G65*'DHS09'!G25/100 -> 85.19261016 | H16: =H58+H59+H60+H63+H64+H69+H70+H65*'DHS09'!H25/100 -> 49.25431596 | I16: =I58+I59+I60+I63+I64+I69+I70+I65*'DHS09'!I25/100 -> 75.01841 | J16: =J58+J59+J60+J63+J64+J69+J70+J65*'DHS09'!J25/100 -> 80.71428535 | K16: =K58+K59+K60+K63+K64+K69+K70+K65*'DHS09'!K25/100 -> 94.66996055 | L16: =L58+L59+L60+L63+L64+L69+L70+L65*'DHS09'!L25/100 -> 96.93168968 | M16: =M58+M59+M60+M63+M64+M69+M70+M65*'DHS09'!M25/100 -> 22.27355505 | N16: =N58+N59+N60+N63+N64+N69+N70+N65*'DHS09'!N25/100 -> 39.24706379 | O16: =O58+O59+O60+O63+O64+O69+O70+O65*'DHS09'!O25/100 -> 44.86162053 | P16: =P58+P59+P60+P63+P64+P69+P70+P65*'DHS09'!P25/100 -> 42.64626209 | Q16: =Q58+Q59+Q60+Q63+Q64+Q69+Q70+Q65*'DHS09'!Q25/100 -> 65.33566585 | R16: =R58+R59+R60+R63+R64+R69+R70+R65*'DHS09'!R25/100 -> 54.53195113 | S16: =S58+S59+S60+S63+S64+S69+S70+S65*'DHS09'!S25/100 -> 57.88842616 | T16: =T58+T59+T60+T63+T64+T69+T70+T65*'DHS09'!T25/100 -> 41.74497531 | U16: =U58+U59+U60+U63+U64+U69+U70+U65*'DHS09'!U25/100 -> 95.04405542 | V16: =V58+V59+V60+V63+V64+V69+V70+V65*'DHS09'!V25/100 -> 11.16641476 | W16: =W58+W59+W60+W63+W64+W69+W70+W65*'DHS09'!W25/100 -> 53.20329311 | X16: =X58+X59+X60+X63+X64+X69+X70+X65*'DHS09'!X25/100 -> 38.66456954 | Y16: =Y58+Y59+Y60+Y63+Y64+Y69+Y70+Y65*'DHS09'!Y25/100 -> 57.26331675 | BA16: Water | BB16: Improved | BC16: N/A | BD16: N/A | BE16: N/A | BF16: N/A | BG16: N/A | BH16: N/A | BI16: N/A | BJ16: N/A | BK16: N/A | BL16: N/A | BM16: N/A | BN16: N/A | BO16: N/A | BP16: N/A | BQ16: N/A | BR16: N/A | BS16: N/A | BT16: N/A | BU16: N/A | BV16: N/A | BW16: N/A | BX16: N/A | BY16: N/A
B17: Not Improved | C17: =100-C16 -> 75.03360168 | D17: =100-D16 -> 58.32190455 | E17: 56.02347249 | F17: 44.97425244 | G17: 14.80738984 | H17: 50.74568404 | I17: 24.98159 | J17: 19.28571465 | K17: 5.33003945 | L17: 3.068310317 | M17: 77.72644495 | N17: 60.75293621 | O17: 55.13837947 | P17: 57.35373791 | Q17: 34.66433415 | R17: 45.46804887 | S17: 42.11157384 | T17: 58.25502469 | U17: 4.955944582 | V17: 88.83358524 | W17: 46.79670689 | X17: 61.33543046 | Y17: 42.73668325 | BB17: Not Improved | BC17: N/A | BD17: N/A | BE17: N/A | BF17: N/A | BG17: N/A | BH17: N/A | BI17: N/A | BJ17: N/A | BK17: N/A | BL17: N/A | BM17: N/A | BN17: N/A | BO17: N/A | BP17: N/A | BQ17: N/A | BR17: N/A | BS17: N/A | BT17: N/A | BU17: N/A | BV17: N/A | BW17: N/A | BX17: N/A | BY17: N/A
A18: Water ladder | B18: Basic | C18: =C16*'DHS09'!C23/100 -> 17.60131081 | D18: =D16*'DHS09'!D23/100 -> 33.63422303 | E18: =E16*'DHS09'!E23/100 -> 38.30355546 | F18: =F16*'DHS09'!F23/100 -> 50.84379075 | G18: =G16*'DHS09'!G23/100 -> 83.0627949 | H18: =H16*'DHS09'!H23/100 -> 47.23488901 | I18: =I16*'DHS09'!I23/100 -> 71.49254473 | J18: =J16*'DHS09'!J23/100 -> 80.06857107 | K18: =K16*'DHS09'!K23/100 -> 93.72326094 | L18: =L16*'DHS09'!L23/100 -> 95.28385096 | M18: =M16*'DHS09'!M23/100 -> 14.92328188 | N18: =N16*'DHS09'!N23/100 -> 32.81054533 | O18: =O16*'DHS09'!O23/100 -> 35.88929643 | P18: =P16*'DHS09'!P23/100 -> 37.78458821 | Q18: =Q16*'DHS09'!Q23/100 -> 60.95817624 | R18: =R16*'DHS09'!R23/100 -> 52.62333284 | S18: =S16*'DHS09'!S23/100 -> 53.08368679 | T18: =T16*'DHS09'!T23/100 -> 35.02403429 | U18: =U16*'DHS09'!U23/100 -> 94.47379109 | V18: =V16*'DHS09'!V23/100 -> 6.889677906 | W18: =W16*'DHS09'!W23/100 -> 43.99912341 | X18: =X16*'DHS09'!X23/100 -> 34.29547318 | Y18: =Y16*'DHS09'!Y23/100 -> 49.30371572 | BA18: Water ladder | BB18: Basic | BC18: N/A | BD18: N/A | BE18: N/A | BF18: N/A | BG18: N/A | BH18: N/A | BI18: N/A | BJ18: N/A | BK18: N/A | BL18: N/A | BM18: N/A | BN18: N/A | BO18: N/A | BP18: N/A | BQ18: N/A | BR18: N/A | BS18: N/A | BT18: N/A | BU18: N/A | BV18: N/A | BW18: N/A | BX18: N/A | BY18: N/A
B19: Limited | C19: =C16*'DHS09'!C22/100 -> 7.365087503 | D19: =D16*'DHS09'!D22/100 -> 8.043872422 | E19: =E16*'DHS09'!E22/100 -> 5.672972049 | F19: =F16*'DHS09'!F22/100 -> 4.181956815 | G19: =G16*'DHS09'!G22/100 -> 2.129815254 | H19: =H16*'DHS09'!H22/100 -> 2.019426955 | I19: =I16*'DHS09'!I22/100 -> 3.52586527 | J19: =J16*'DHS09'!J22/100 -> 0.6457142828 | K19: =K16*'DHS09'!K22/100 -> 0.9466996055 | L19: =L16*'DHS09'!L22/100 -> 1.647838725 | M19: =M16*'DHS09'!M22/100 -> 7.350273165 | N19: =N16*'DHS09'!N22/100 -> 6.436518462 | O19: =O16*'DHS09'!O22/100 -> 8.972324106 | P19: =P16*'DHS09'!P22/100 -> 4.861673878 | Q19: =Q16*'DHS09'!Q22/100 -> 4.377489612 | R19: =R16*'DHS09'!R22/100 -> 1.908618289 | S19: =S16*'DHS09'!S22/100 -> 4.804739371 | T19: =T16*'DHS09'!T22/100 -> 6.720941025 | U19: =U16*'DHS09'!U22/100 -> 0.5702643325 | V19: =V16*'DHS09'!V22/100 -> 4.276736852 | W19: =W16*'DHS09'!W22/100 -> 9.204169709 | X19: =X16*'DHS09'!X22/100 -> 4.369096358 | Y19: =Y16*'DHS09'!Y22/100 -> 7.959601028 | BB19: Limited | BC19: N/A | BD19: N/A | BE19: N/A | BF19: N/A | BG19: N/A | BH19: N/A | BI19: N/A | BJ19: N/A | BK19: N/A | BL19: N/A | BM19: N/A | BN19: N/A | BO19: N/A | BP19: N/A | BQ19: N/A | BR19: N/A | BS19: N/A | BT19: N/A | BU19: N/A | BV19: N/A | BW19: N/A | BX19: N/A | BY19: N/A
B20: Unimproved | C20: =100-(C18+C19+C21) -> 21.48323515 | D20: =100-(D18+D19+D21) -> 18.97762867 | E20: 19.26715475 | F20: 20.2117975 | G20: 10.38255606 | H20: 36.58765579 | I20: 21.30222174 | J20: 17.21836426 | K20: 5.253103659 | L20: 3.068310317 | M20: 22.13678589 | N20: 18.24081262 | O20: 18.81046483 | P20: 18.35541311 | Q20: 14.56952528 | R20: 17.09117761 | S20: 15.57273294 | T20: 19.98777606 | U20: 4.91846464 | V20: 33.68193785 | W20: 15.97583182 | X20: 20.28154436 | Y20: 16.27986653 | BB20: Unimproved | BC20: N/A | BD20: N/A | BE20: N/A | BF20: N/A | BG20: N/A | BH20: N/A | BI20: N/A | BJ20: N/A | BK20: N/A | BL20: N/A | BM20: N/A | BN20: N/A | BO20: N/A | BP20: N/A | BQ20: N/A | BR20: N/A | BS20: N/A | BT20: N/A | BU20: N/A | BV20: N/A | BW20: N/A | BX20: N/A | BY20: N/A
B21: Surface water | C21: =C66+C67+C68 -> 53.55036654 | D21: 39.34427588 | E21: 36.75631774 | F21: 24.76245494 | G21: 4.424833785 | H21: 14.15802824 | I21: 3.679368264 | J21: 2.06735039 | K21: 0.07693579099 | L21: 0 | M21: 55.58965906 | N21: 42.51212359 | O21: 36.32791464 | P21: 38.9983248 | Q21: 20.09480887 | R21: 28.37687126 | S21: 26.53884089 | T21: 38.26724863 | U21: 0.0374799422 | V21: 55.1516474 | W21: 30.82087506 | X21: 41.0538861 | Y21: 26.45681671 | BB21: Surface water | BC21: N/A | BD21: N/A | BE21: N/A | BF21: N/A | BG21: N/A | BH21: N/A | BI21: N/A | BJ21: N/A | BK21: N/A | BL21: N/A | BM21: N/A | BN21: N/A | BO21: N/A | BP21: N/A | BQ21: N/A | BR21: N/A | BS21: N/A | BT21: N/A | BU21: N/A | BV21: N/A | BW21: N/A | BX21: N/A | BY21: N/A
A22: Improved water point at more than 30 minutes | B22: Yes | C22: N/A | D22: N/A | E22: N/A | F22: N/A | G22: N/A | H22: N/A | I22: N/A | J22: N/A | K22: N/A | L22: N/A | M22: N/A | N22: N/A | O22: N/A | P22: N/A | Q22: N/A | R22: N/A | S22: N/A | T22: N/A | U22: N/A | V22: N/A | W22: N/A | X22: N/A | Y22: N/A | BA22: Improved water point at more than 30 minutes | BB22: Yes | BC22: N/A | BD22: N/A | BE22: N/A | BF22: N/A | BG22: N/A | BH22: N/A | BI22: N/A | BJ22: N/A | BK22: N/A | BL22: N/A | BM22: N/A | BN22: N/A | BO22: N/A | BP22: N/A | BQ22: N/A | BR22: N/A | BS22: N/A | BT22: N/A | BU22: N/A | BV22: N/A | BW22: N/A | BX22: N/A | BY22: N/A
B23: No | C23: N/A | D23: N/A | E23: N/A | F23: N/A | G23: N/A | H23: N/A | I23: N/A | J23: N/A | K23: N/A | L23: N/A | M23: N/A | N23: N/A | O23: N/A | P23: N/A | Q23: N/A | R23: N/A | S23: N/A | T23: N/A | U23: N/A | V23: N/A | W23: N/A | X23: N/A | Y23: N/A | BB23: No | BC23: N/A | BD23: N/A | BE23: N/A | BF23: N/A | BG23: N/A | BH23: N/A | BI23: N/A | BJ23: N/A | BK23: N/A | BL23: N/A | BM23: N/A | BN23: N/A | BO23: N/A | BP23: N/A | BQ23: N/A | BR23: N/A | BS23: N/A | BT23: N/A | BU23: N/A | BV23: N/A | BW23: N/A | BX23: N/A | BY23: N/A
A24: Manually calculated ratios | B24: Improved wells
B25: Improved springs
B26: Other
C27: NATIONAL wealth index quintile | H27: URBAN wealth index quintile | M27: RURAL wealth index quintile | R27: SUB-REGIONS: | BA27: Raw numbers of respondents: | BB27: Use of drinking water sources | BC27: NATIONAL wealth index quintile | BH27: URBAN wealth index quintile | BM27: RURAL wealth index quintile | BR27: SUB-REGIONS:
A28: Percentage based on weighted population | C28: Poorest | D28: Poor | E28: Middle | F28: Rich | G28: Richest | H28: Poorest | I28: Poor | J28: Middle | K28: Rich | L28: Richest | M28: Poorest | N28: Poor | O28: Middle | P28: Rich | Q28: Richest | R28: Central | S28: Coast | T28: Eastern | U28: Nairobi | V28: North Eastern | W28: Nyanza | X28: Rift Valley | Y28: Western | BA28: Water data, raw numbers (weighted) | BC28: Poorest | BD28: Poor | BE28: Middle | BF28: Rich | BG28: Richest | BH28: Poorest | BI28: Poor | BJ28: Middle | BK28: Rich | BL28: Richest | BM28: Poorest | BN28: Poor | BO28: Middle | BP28: Rich | BQ28: Richest | BR28: Central | BS28: Coast | BT28: Eastern | BU28: Nairobi | BV28: North Eastern | BW28: Nyanza | BX28: Rift Valley | BY28: Western
A29: Piped water | B29: Yes | C29: 7.531127707 | D29: 11.24554307 | E29: 16.28777125 | F29: 30.01128445 | G29: 72.32817789 | H29: 36.24751592 | I29: 61.90103347 | J29: 71.48670002 | K29: 88.82853043 | L29: 92.40094649 | M29: 7.10613691 | N29: 9.862921316 | O29: 12.61047453 | P29: 18.68601341 | Q29: 35.86611824 | R29: 31.98656716 | S29: 54.61259406 | T29: 26.22383503 | U29: 93.29351361 | V29: 2.173700494 | W29: 14.64265388 | X29: 17.3768974 | Y29: 7.192107345 | BA29: Piped water | BB29: Yes | BC29: N/A | BD29: N/A | BE29: N/A | BF29: N/A | BG29: N/A | BH29: N/A | BI29: N/A | BJ29: N/A | BK29: N/A | BL29: N/A | BM29: N/A | BN29: N/A | BO29: N/A | BP29: N/A | BQ29: N/A | BR29: N/A | BS29: N/A | BT29: N/A | BU29: N/A | BV29: N/A | BW29: N/A | BX29: N/A | BY29: N/A
B30: No | C30: 92.46887229 | D30: 88.75445693 | E30: 83.71222875 | F30: 69.98871555 | G30: 27.67182211 | H30: 63.75248408 | I30: 38.09896653 | J30: 28.51329998 | K30: 11.17146957 | L30: 7.599053513 | M30: 92.89386309 | N30: 90.13707868 | O30: 87.38952547 | P30: 81.31398659 | Q30: 64.13388176 | R30: 68.01343284 | S30: 45.38740594 | T30: 73.77616497 | U30: 6.706486393 | V30: 97.82629951 | W30: 85.35734612 | X30: 82.6231026 | Y30: 92.80789266 | BB30: No | BC30: N/A | BD30: N/A | BE30: N/A | BF30: N/A | BG30: N/A | BH30: N/A | BI30: N/A | BJ30: N/A | BK30: N/A | BL30: N/A | BM30: N/A | BN30: N/A | BO30: N/A | BP30: N/A | BQ30: N/A | BR30: N/A | BS30: N/A | BT30: N/A | BU30: N/A | BV30: N/A | BW30: N/A | BX30: N/A | BY30: N/A
A31: Piped water on premises | B31: Yes | C31: 1.55801428 | D31: 5.717075513 | E31: 8.987256608 | F31: 16.9859811 | G31: 57.26030935 | H31: 9.567694629 | I31: 24.52051554 | J31: 51.07971144 | K31: 76.15701812 | L31: 87.53724471 | M31: 1.08528418 | N31: 4.624793421 | O31: 6.634942474 | P31: 11.22190679 | Q31: 27.42443086 | R31: 29.2085805 | S31: 19.80564214 | T31: 16.71751238 | U31: 81.01206881 | V31: 1.986668496 | W31: 3.094786933 | X31: 11.29682647 | Y31: 3.512239633 | BA31: Piped water on premises | BB31: Yes | BC31: N/A | BD31: N/A | BE31: N/A | BF31: N/A | BG31: N/A | BH31: N/A | BI31: N/A | BJ31: N/A | BK31: N/A | BL31: N/A | BM31: N/A | BN31: N/A | BO31: N/A | BP31: N/A | BQ31: N/A | BR31: N/A | BS31: N/A | BT31: N/A | BU31: N/A | BV31: N/A | BW31: N/A | BX31: N/A | BY31: N/A
B32: No | C32: 98.44198572 | D32: 94.28292449 | E32: 91.01274339 | F32: 83.0140189 | G32: 42.73969065 | H32: 90.43230537 | I32: 75.47948446 | J32: 48.92028856 | K32: 23.84298188 | L32: 12.46275529 | M32: 98.91471582 | N32: 95.37520658 | O32: 93.36505753 | P32: 88.77809321 | Q32: 72.57556914 | R32: 70.7914195 | S32: 80.19435786 | T32: 83.28248762 | U32: 18.98793119 | V32: 98.0133315 | W32: 96.90521307 | X32: 88.70317353 | Y32: 96.48776037 | BB32: No | BC32: N/A | BD32: N/A | BE32: N/A | BF32: N/A | BG32: N/A | BH32: N/A | BI32: N/A | BJ32: N/A | BK32: N/A | BL32: N/A | BM32: N/A | BN32: N/A | BO32: N/A | BP32: N/A | BQ32: N/A | BR32: N/A | BS32: N/A | BT32: N/A | BU32: N/A | BV32: N/A | BW32: N/A | BX32: N/A | BY32: N/A
A33: Piped water into dwelling | B33: Yes | C33: N/A | D33: N/A | E33: N/A | F33: N/A | G33: N/A | H33: N/A | I33: N/A | J33: N/A | K33: N/A | L33: N/A | M33: N/A | N33: N/A | O33: N/A | P33: N/A | Q33: N/A | R33: N/A | S33: N/A | T33: N/A | U33: N/A | V33: N/A | W33: N/A | X33: N/A | Y33: N/A | BA33: Piped water into dwelling | BB33: Yes | BC33: N/A | BD33: N/A | BE33: N/A | BF33: N/A | BG33: N/A | BH33: N/A | BI33: N/A | BJ33: N/A | BK33: N/A | BL33: N/A | BM33: N/A | BN33: N/A | BO33: N/A | BP33: N/A | BQ33: N/A | BR33: N/A | BS33: N/A | BT33: N/A | BU33: N/A | BV33: N/A | BW33: N/A | BX33: N/A | BY33: N/A
B34: No | C34: N/A | D34: N/A | E34: N/A | F34: N/A | G34: N/A | H34: N/A | I34: N/A | J34: N/A | K34: N/A | L34: N/A | M34: N/A | N34: N/A | O34: N/A | P34: N/A | Q34: N/A | R34: N/A | S34: N/A | T34: N/A | U34: N/A | V34: N/A | W34: N/A | X34: N/A | Y34: N/A | BB34: No | BC34: N/A | BD34: N/A | BE34: N/A | BF34: N/A | BG34: N/A | BH34: N/A | BI34: N/A | BJ34: N/A | BK34: N/A | BL34: N/A | BM34: N/A | BN34: N/A | BO34: N/A | BP34: N/A | BQ34: N/A | BR34: N/A | BS34: N/A | BT34: N/A | BU34: N/A | BV34: N/A | BW34: N/A | BX34: N/A | BY34: N/A
A35: Water source on premises | B35: Yes | C35: 1.9 | D35: 6 | E35: 9.1 | F35: 17.7 | G35: 59 | H35: 11 | I35: 26.9 | J35: 54.3 | K35: 78.1 | L35: 88.9 | M35: 1.3 | N35: 4.9 | O35: 6.9 | P35: 11.5 | Q35: 27.9 | R35: 29.5 | S35: 21.4 | T35: 17.7 | U35: 81.9 | V35: 3.5 | W35: 3.7 | X35: 11.7 | Y35: 3.7 | BA35: Water source on premises | BB35: Yes | BC35: N/A | BD35: N/A | BE35: N/A | BF35: N/A | BG35: N/A | BH35: N/A | BI35: N/A | BJ35: N/A | BK35: N/A | BL35: N/A | BM35: N/A | BN35: N/A | BO35: N/A | BP35: N/A | BQ35: N/A | BR35: N/A | BS35: N/A | BT35: N/A | BU35: N/A | BV35: N/A | BW35: N/A | BX35: N/A | BY35: N/A
B36: No | C36: 98.1 | D36: 94 | E36: 90.9 | F36: 82.3 | G36: 41 | H36: 89 | I36: 73.1 | J36: 45.7 | K36: 21.9 | L36: 11.1 | M36: 98.7 | N36: 95.1 | O36: 93.1 | P36: 88.5 | Q36: 72.1 | R36: 70.5 | S36: 78.6 | T36: 82.3 | U36: 18.1 | V36: 96.5 | W36: 96.3 | X36: 88.3 | Y36: 96.3 | BB36: No | BC36: N/A | BD36: N/A | BE36: N/A | BF36: N/A | BG36: N/A | BH36: N/A | BI36: N/A | BJ36: N/A | BK36: N/A | BL36: N/A | BM36: N/A | BN36: N/A | BO36: N/A | BP36: N/A | BQ36: N/A | BR36: N/A | BS36: N/A | BT36: N/A | BU36: N/A | BV36: N/A | BW36: N/A | BX36: N/A | BY36: N/A
A37: Improved Water source on premises | B37: Yes | C37: N/A | D37: N/A | E37: N/A | F37: N/A | G37: N/A | H37: N/A | I37: N/A | J37: N/A | K37: N/A | L37: N/A | M37: N/A | N37: N/A | O37: N/A | P37: N/A | Q37: N/A | R37: N/A | S37: N/A | T37: N/A | U37: N/A | V37: N/A | W37: N/A | X37: N/A | Y37: N/A | BA37: Improved water source on premises | BB37: Yes | BC37: N/A | BD37: N/A | BE37: N/A | BF37: N/A | BG37: N/A | BH37: N/A | BI37: N/A | BJ37: N/A | BK37: N/A | BL37: N/A | BM37: N/A | BN37: N/A | BO37: N/A | BP37: N/A | BQ37: N/A | BR37: N/A | BS37: N/A | BT37: N/A | BU37: N/A | BV37: N/A | BW37: N/A | BX37: N/A | BY37: N/A
B38: No | C38: N/A | D38: N/A | E38: N/A | F38: N/A | G38: N/A | H38: N/A | I38: N/A | J38: N/A | K38: N/A | L38: N/A | M38: N/A | N38: N/A | O38: N/A | P38: N/A | Q38: N/A | R38: N/A | S38: N/A | T38: N/A | U38: N/A | V38: N/A | W38: N/A | X38: N/A | Y38: N/A | BB38: No | BC38: N/A | BD38: N/A | BE38: N/A | BF38: N/A | BG38: N/A | BH38: N/A | BI38: N/A | BJ38: N/A | BK38: N/A | BL38: N/A | BM38: N/A | BN38: N/A | BO38: N/A | BP38: N/A | BQ38: N/A | BR38: N/A | BS38: N/A | BT38: N/A | BU38: N/A | BV38: N/A | BW38: N/A | BX38: N/A | BY38: N/A
A39: Piped water on premises available when needed | B39: Yes | C39: N/A | D39: N/A | E39: N/A | F39: N/A | G39: N/A | H39: N/A | I39: N/A | J39: N/A | K39: N/A | L39: N/A | M39: N/A | N39: N/A | O39: N/A | P39: N/A | Q39: N/A | R39: N/A | S39: N/A | T39: N/A | U39: N/A | V39: N/A | W39: N/A | X39: N/A | Y39: N/A | BA39: Piped water on premises available when needed | BB39: Yes | BC39: N/A | BD39: N/A | BE39: N/A | BF39: N/A | BG39: N/A | BH39: N/A | BI39: N/A | BJ39: N/A | BK39: N/A | BL39: N/A | BM39: N/A | BN39: N/A | BO39: N/A | BP39: N/A | BQ39: N/A | BR39: N/A | BS39: N/A | BT39: N/A | BU39: N/A | BV39: N/A | BW39: N/A | BX39: N/A | BY39: N/A
B40: No | C40: N/A | D40: N/A | E40: N/A | F40: N/A | G40: N/A | H40: N/A | I40: N/A | J40: N/A | K40: N/A | L40: N/A | M40: N/A | N40: N/A | O40: N/A | P40: N/A | Q40: N/A | R40: N/A | S40: N/A | T40: N/A | U40: N/A | V40: N/A | W40: N/A | X40: N/A | Y40: N/A | BB40: No | BC40: N/A | BD40: N/A | BE40: N/A | BF40: N/A | BG40: N/A | BH40: N/A | BI40: N/A | BJ40: N/A | BK40: N/A | BL40: N/A | BM40: N/A | BN40: N/A | BO40: N/A | BP40: N/A | BQ40: N/A | BR40: N/A | BS40: N/A | BT40: N/A | BU40: N/A | BV40: N/A | BW40: N/A | BX40: N/A | BY40: N/A
A41: Water point at more than 30 minutes | B41: Yes | C41: 33.1062599 | D41: 25.92447754 | E41: 21.91707029 | F41: 17.57314061 | G41: 4.682958149 | H41: 11.92633485 | I41: 4.83117005 | J41: 3.571715257 | K41: 0.792222227 | L41: 0.6263725537 | M41: 35.29904944 | N41: 26.74964954 | O41: 22.08764781 | P41: 23.6845152 | Q41: 16.00448383 | R41: 9.274594523 | S41: 14.04849859 | T41: 34.64838531 | U41: 0.5296820645 | V41: 57.22439273 | W41: 23.55373979 | X41: 26.9987684 | Y41: 7.645946144 | BA41: Water point at more than 30 minutes | BB41: Yes | BC41: N/A | BD41: N/A | BE41: N/A | BF41: N/A | BG41: N/A | BH41: N/A | BI41: N/A | BJ41: N/A | BK41: N/A | BL41: N/A | BM41: N/A | BN41: N/A | BO41: N/A | BP41: N/A | BQ41: N/A | BR41: N/A | BS41: N/A | BT41: N/A | BU41: N/A | BV41: N/A | BW41: N/A | BX41: N/A | BY41: N/A
B42: No | C42: 66.8937401 | D42: 74.07552246 | E42: 78.08292971 | F42: 82.42685939 | G42: 95.31704185 | H42: 88.07366515 | I42: 95.16882995 | J42: 96.42828474 | K42: 99.20777777 | L42: 99.37362745 | M42: 64.70095056 | N42: 73.25035046 | O42: 77.91235219 | P42: 76.3154848 | Q42: 83.99551617 | R42: 90.72540548 | S42: 85.95150141 | T42: 65.35161469 | U42: 99.47031794 | V42: 42.77560727 | W42: 76.44626021 | X42: 73.0012316 | Y42: 92.35405386 | BB42: No | BC42: N/A | BD42: N/A | BE42: N/A | BF42: N/A | BG42: N/A | BH42: N/A | BI42: N/A | BJ42: N/A | BK42: N/A | BL42: N/A | BM42: N/A | BN42: N/A | BO42: N/A | BP42: N/A | BQ42: N/A | BR42: N/A | BS42: N/A | BT42: N/A | BU42: N/A | BV42: N/A | BW42: N/A | BX42: N/A | BY42: N/A
A43: Water source available when needed | B43: Yes | C43: N/A | D43: N/A | E43: N/A | F43: N/A | G43: N/A | H43: N/A | I43: N/A | J43: N/A | K43: N/A | L43: N/A | M43: N/A | N43: N/A | O43: N/A | P43: N/A | Q43: N/A | R43: N/A | S43: N/A | T43: N/A | U43: N/A | V43: N/A | W43: N/A | X43: N/A | Y43: N/A | BA43: Water source available when needed | BB43: Yes | BC43: N/A | BD43: N/A | BE43: N/A | BF43: N/A | BG43: N/A | BH43: N/A | BI43: N/A | BJ43: N/A | BK43: N/A | BL43: N/A | BM43: N/A | BN43: N/A | BO43: N/A | BP43: N/A | BQ43: N/A | BR43: N/A | BS43: N/A | BT43: N/A | BU43: N/A | BV43: N/A | BW43: N/A | BX43: N/A | BY43: N/A
B44: No | C44: N/A | D44: N/A | E44: N/A | F44: N/A | G44: N/A | H44: N/A | I44: N/A | J44: N/A | K44: N/A | L44: N/A | M44: N/A | N44: N/A | O44: N/A | P44: N/A | Q44: N/A | R44: N/A | S44: N/A | T44: N/A | U44: N/A | V44: N/A | W44: N/A | X44: N/A | Y44: N/A | BB44: No | BC44: N/A | BD44: N/A | BE44: N/A | BF44: N/A | BG44: N/A | BH44: N/A | BI44: N/A | BJ44: N/A | BK44: N/A | BL44: N/A | BM44: N/A | BN44: N/A | BO44: N/A | BP44: N/A | BQ44: N/A | BR44: N/A | BS44: N/A | BT44: N/A | BU44: N/A | BV44: N/A | BW44: N/A | BX44: N/A | BY44: N/A
A45: Improved water source available when needed | B45: Yes | C45: N/A | D45: N/A | E45: N/A | F45: N/A | G45: N/A | H45: N/A | I45: N/A | J45: N/A | K45: N/A | L45: N/A | M45: N/A | N45: N/A | O45: N/A | P45: N/A | Q45: N/A | R45: N/A | S45: N/A | T45: N/A | U45: N/A | V45: N/A | W45: N/A | X45: N/A | Y45: N/A | BA45: Improved water source available when needed | BB45: Yes | BC45: N/A | BD45: N/A | BE45: N/A | BF45: N/A | BG45: N/A | BH45: N/A | BI45: N/A | BJ45: N/A | BK45: N/A | BL45: N/A | BM45: N/A | BN45: N/A | BO45: N/A | BP45: N/A | BQ45: N/A | BR45: N/A | BS45: N/A | BT45: N/A | BU45: N/A | BV45: N/A | BW45: N/A | BX45: N/A | BY45: N/A
B46: No | C46: N/A | D46: N/A | E46: N/A | F46: N/A | G46: N/A | H46: N/A | I46: N/A | J46: N/A | K46: N/A | L46: N/A | M46: N/A | N46: N/A | O46: N/A | P46: N/A | Q46: N/A | R46: N/A | S46: N/A | T46: N/A | U46: N/A | V46: N/A | W46: N/A | X46: N/A | Y46: N/A | BB46: No | BC46: N/A | BD46: N/A | BE46: N/A | BF46: N/A | BG46: N/A | BH46: N/A | BI46: N/A | BJ46: N/A | BK46: N/A | BL46: N/A | BM46: N/A | BN46: N/A | BO46: N/A | BP46: N/A | BQ46: N/A | BR46: N/A | BS46: N/A | BT46: N/A | BU46: N/A | BV46: N/A | BW46: N/A | BX46: N/A | BY46: N/A
A47: Microbiological quality at point of collection | B47: Not contaminated (No E. coli in 100 mL) | C47: N/A | D47: N/A | E47: N/A | F47: N/A | G47: N/A | H47: N/A | I47: N/A | J47: N/A | K47: N/A | L47: N/A | M47: N/A | N47: N/A | O47: N/A | P47: N/A | Q47: N/A | R47: N/A | S47: N/A | T47: N/A | U47: N/A | V47: N/A | W47: N/A | X47: N/A | Y47: N/A | BA47: Microbiological quality at point of collection | BB47: Not contaminated (No E. coli in 100 mL) | BC47: N/A | BD47: N/A | BE47: N/A | BF47: N/A | BG47: N/A | BH47: N/A | BI47: N/A | BJ47: N/A | BK47: N/A | BL47: N/A | BM47: N/A | BN47: N/A | BO47: N/A | BP47: N/A | BQ47: N/A | BR47: N/A | BS47: N/A | BT47: N/A | BU47: N/A | BV47: N/A | BW47: N/A | BX47: N/A | BY47: N/A
B48: Contaminated (E. coli detected in 100 mL) | C48: N/A | D48: N/A | E48: N/A | F48: N/A | G48: N/A | H48: N/A | I48: N/A | J48: N/A | K48: N/A | L48: N/A | M48: N/A | N48: N/A | O48: N/A | P48: N/A | Q48: N/A | R48: N/A | S48: N/A | T48: N/A | U48: N/A | V48: N/A | W48: N/A | X48: N/A | Y48: N/A | BB48: Contaminated (E. coli detected in 100 mL) | BC48: N/A | BD48: N/A | BE48: N/A | BF48: N/A | BG48: N/A | BH48: N/A | BI48: N/A | BJ48: N/A | BK48: N/A | BL48: N/A | BM48: N/A | BN48: N/A | BO48: N/A | BP48: N/A | BQ48: N/A | BR48: N/A | BS48: N/A | BT48: N/A | BU48: N/A | BV48: N/A | BW48: N/A | BX48: N/A | BY48: N/A
B49: Highly contaminated (>100 CFU/100 mL) | C49: N/A | D49: N/A | E49: N/A | F49: N/A | G49: N/A | H49: N/A | I49: N/A | J49: N/A | K49: N/A | L49: N/A | M49: N/A | N49: N/A | O49: N/A | P49: N/A | Q49: N/A | R49: N/A | S49: N/A | T49: N/A | U49: N/A | V49: N/A | W49: N/A | X49: N/A | Y49: N/A | BB49: Highly contaminated (>100 CFU/100 mL) | BC49: N/A | BD49: N/A | BE49: N/A | BF49: N/A | BG49: N/A | BH49: N/A | BI49: N/A | BJ49: N/A | BK49: N/A | BL49: N/A | BM49: N/A | BN49: N/A | BO49: N/A | BP49: N/A | BQ49: N/A | BR49: N/A | BS49: N/A | BT49: N/A | BU49: N/A | BV49: N/A | BW49: N/A | BX49: N/A | BY49: N/A
A50: Microbiological quality of improved water sources at point of collection | B50: Not contaminated (No E. coli in 100 mL) | C50: N/A | D50: N/A | E50: N/A | F50: N/A | G50: N/A | H50: N/A | I50: N/A | J50: N/A | K50: N/A | L50: N/A | M50: N/A | N50: N/A | O50: N/A | P50: N/A | Q50: N/A | R50: N/A | S50: N/A | T50: N/A | U50: N/A | V50: N/A | W50: N/A | X50: N/A | Y50: N/A | BA50: Microbiological quality of improved water sources at point of collection | BB50: Not contaminated (No E. coli in 100 mL) | BC50: N/A | BD50: N/A | BE50: N/A | BF50: N/A | BG50: N/A | BH50: N/A | BI50: N/A | BJ50: N/A | BK50: N/A | BL50: N/A | BM50: N/A | BN50: N/A | BO50: N/A | BP50: N/A | BQ50: N/A | BR50: N/A | BS50: N/A | BT50: N/A | BU50: N/A | BV50: N/A | BW50: N/A | BX50: N/A | BY50: N/A
B51: Contaminated (E. coli detected in 100 mL) | C51: N/A | D51: N/A | E51: N/A | F51: N/A | G51: N/A | H51: N/A | I51: N/A | J51: N/A | K51: N/A | L51: N/A | M51: N/A | N51: N/A | O51: N/A | P51: N/A | Q51: N/A | R51: N/A | S51: N/A | T51: N/A | U51: N/A | V51: N/A | W51: N/A | X51: N/A | Y51: N/A | BB51: Contaminated (E. coli detected in 100 mL) | BC51: N/A | BD51: N/A | BE51: N/A | BF51: N/A | BG51: N/A | BH51: N/A | BI51: N/A | BJ51: N/A | BK51: N/A | BL51: N/A | BM51: N/A | BN51: N/A | BO51: N/A | BP51: N/A | BQ51: N/A | BR51: N/A | BS51: N/A | BT51: N/A | BU51: N/A | BV51: N/A | BW51: N/A | BX51: N/A | BY51: N/A
B52: Highly contaminated (>100 CFU/100 mL) | C52: N/A | D52: N/A | E52: N/A | F52: N/A | G52: N/A | H52: N/A | I52: N/A | J52: N/A | K52: N/A | L52: N/A | M52: N/A | N52: N/A | O52: N/A | P52: N/A | Q52: N/A | R52: N/A | S52: N/A | T52: N/A | U52: N/A | V52: N/A | W52: N/A | X52: N/A | Y52: N/A | BB52: Highly contaminated (>100 CFU/100 mL) | BC52: N/A | BD52: N/A | BE52: N/A | BF52: N/A | BG52: N/A | BH52: N/A | BI52: N/A | BJ52: N/A | BK52: N/A | BL52: N/A | BM52: N/A | BN52: N/A | BO52: N/A | BP52: N/A | BQ52: N/A | BR52: N/A | BS52: N/A | BT52: N/A | BU52: N/A | BV52: N/A | BW52: N/A | BX52: N/A | BY52: N/A
A53: Microbiological quality of piped on premises at point of collection | B53: Not contaminated (No E. coli in 100 mL) | C53: N/A | D53: N/A | E53: N/A | F53: N/A | G53: N/A | H53: N/A | I53: N/A | J53: N/A | K53: N/A | L53: N/A | M53: N/A | N53: N/A | O53: N/A | P53: N/A | Q53: N/A | R53: N/A | S53: N/A | T53: N/A | U53: N/A | V53: N/A | W53: N/A | X53: N/A | Y53: N/A | BA53: Microbiological quality of piped on premises at point of collection | BB53: Not contaminated (No E. coli in 100 mL) | BC53: N/A | BD53: N/A | BE53: N/A | BF53: N/A | BG53: N/A | BH53: N/A | BI53: N/A | BJ53: N/A | BK53: N/A | BL53: N/A | BM53: N/A | BN53: N/A | BO53: N/A | BP53: N/A | BQ53: N/A | BR53: N/A | BS53: N/A | BT53: N/A | BU53: N/A | BV53: N/A | BW53: N/A | BX53: N/A | BY53: N/A
B54: Contaminated (E. coli detected in 100 mL) | C54: N/A | D54: N/A | E54: N/A | F54: N/A | G54: N/A | H54: N/A | I54: N/A | J54: N/A | K54: N/A | L54: N/A | M54: N/A | N54: N/A | O54: N/A | P54: N/A | Q54: N/A | R54: N/A | S54: N/A | T54: N/A | U54: N/A | V54: N/A | W54: N/A | X54: N/A | Y54: N/A | BB54: Contaminated (E. coli detected in 100 mL) | BC54: N/A | BD54: N/A | BE54: N/A | BF54: N/A | BG54: N/A | BH54: N/A | BI54: N/A | BJ54: N/A | BK54: N/A | BL54: N/A | BM54: N/A | BN54: N/A | BO54: N/A | BP54: N/A | BQ54: N/A | BR54: N/A | BS54: N/A | BT54: N/A | BU54: N/A | BV54: N/A | BW54: N/A | BX54: N/A | BY54: N/A
B55: Highly contaminated (>100 CFU/100 mL) | C55: N/A | D55: N/A | E55: N/A | F55: N/A | G55: N/A | H55: N/A | I55: N/A | J55: N/A | K55: N/A | L55: N/A | M55: N/A | N55: N/A | O55: N/A | P55: N/A | Q55: N/A | R55: N/A | S55: N/A | T55: N/A | U55: N/A | V55: N/A | W55: N/A | X55: N/A | Y55: N/A | BB55: Highly contaminated (>100 CFU/100 mL) | BC55: N/A | BD55: N/A | BE55: N/A | BF55: N/A | BG55: N/A | BH55: N/A | BI55: N/A | BJ55: N/A | BK55: N/A | BL55: N/A | BM55: N/A | BN55: N/A | BO55: N/A | BP55: N/A | BQ55: N/A | BR55: N/A | BS55: N/A | BT55: N/A | BU55: N/A | BV55: N/A | BW55: N/A | BX55: N/A | BY55: N/A
C56: NATIONAL wealth index quintile | H56: URBAN wealth index quintile | M56: RURAL wealth index quintile | R56: SUB-REGIONS: | BA56: Raw numbers of respondents: | BB56: Use of drinking water sources | BC56: NATIONAL wealth index quintile | BH56: URBAN wealth index quintile | BM56: RURAL wealth index quintile | BR56: SUB-REGIONS:
A57: Percentage based on weighted population | C57: Poorest | D57: Poor | E57: Middle | F57: Rich | G57: Richest | H57: Poorest | I57: Poor | J57: Middle | K57: Rich | L57: Richest | M57: Poorest | N57: Poor | O57: Middle | P57: Rich | Q57: Richest | R57: Central | S57: Coast | T57: Eastern | U57: Nairobi | V57: North Eastern | W57: Nyanza | X57: Rift Valley | Y57: Western | BA57: Water data, raw numbers (weighted) | BC57: Poorest | BD57: Poor | BE57: Middle | BF57: Rich | BG57: Richest | BH57: Poorest | BI57: Poor | BJ57: Middle | BK57: Rich | BL57: Richest | BM57: Poorest | BN57: Poor | BO57: Middle | BP57: Rich | BQ57: Richest | BR57: Central | BS57: Coast | BT57: Eastern | BU57: Nairobi | BV57: North Eastern | BW57: Nyanza | BX57: Rift Valley | BY57: Western
A58: Source of drinking water | B58: Piped into dwelling | C58: 0.06892895223 | D58: 0.9644353364 | E58: 2.646389808 | F58: 4.223742975 | G58: 29.24394926 | H58: 1.136621335 | I58: 4.13677666 | J58: 10.19116163 | K58: 32.25823976 | L58: 70.21814134 | M58: 0.08648509564 | N58: 0.548317795 | O58: 2.044933549 | P58: 2.941310695 | Q58: 11.36091484 | R58: 12.79410793 | S58: 8.815147274 | T58: 3.10149251 | U58: 42.23299994 | V58: 0.550246014 | W58: 0.6323849848 | X58: 4.217159865 | Y58: 1.408567579
B59: Piped into compound/plot | C59: 1.492984424 | D59: 4.755912502 | E59: 6.3408668 | F59: 12.78101286 | G59: 28.03485405 | H59: 8.431073294 | I59: 20.42344912 | J59: 40.88854981 | K59: 43.89877836 | L59: 17.31910337 | M59: 1.002206896 | N59: 4.079820598 | O59: 4.590008924 | P59: 8.280596097 | Q59: 16.1014213 | R59: 16.46192485 | S59: 10.99049487 | T59: 13.61601987 | U59: 38.849068 | V59: 1.436422482 | W59: 2.462401949 | X59: 7.102670897 | Y59: 2.107156577
B60: Public tap | C60: 5.988061777 | D60: 5.531631931 | E60: 7.300514644 | F60: 13.03970032 | G60: 15.07273517 | H60: 26.6798213 | I60: 37.44105455 | J60: 20.40698858 | K60: 12.67151232 | L60: 4.863701774 | M60: 6.039758314 | N60: 5.241916473 | O60: 5.975532057 | P60: 7.464106617 | Q60: 8.45335525 | R60: 2.782499784 | S60: 34.80695192 | T60: 9.50632265 | U60: 12.29205668 | V60: 0.1870319985 | W60: 11.54786695 | X60: 6.092452083 | Y60: 3.68351854
B61: Open well in compound/plot | C61: 0.479047974 | D61: 1.301435696 | E61: 2.167273678 | F61: 3.652297365 | G61: 1.267397837 | H61: 6.065886934 | I61: 2.734551002 | J61: 1.554376226 | K61: 0.6658668866 | L61: 0.03442342736 | M61: 0.4444426959 | N61: 0.7620584349 | O61: 1.527928942 | P61: 2.745999897 | Q61: 2.834903419 | R61: 2.418555829 | S61: 1.067104871 | T61: 0.5474957078 | U61: 0.100578288 | V61: 4.350381196 | W61: 0.4772615885 | X61: 3.259779052 | Y61: 2.322250684
B62: Open public well | C62: 8.821870826 | D62: 6.072240092 | E62: 7.169535758 | F62: 5.811119838 | G62: 2.189337053 | H62: 13.00591988 | I62: 4.682665421 | J62: 3.901290998 | K62: 1.439638931 | L62: 0 | M62: 9.45851632 | N62: 6.221249483 | O62: 5.658129155 | P62: 6.245351791 | Q62: 4.236579438 | R62: 3.474277348 | S62: 10.93751503 | T62: 7.184977002 | U62: 0.0282117848 | V62: 24.72785613 | W62: 5.355722158 | X62: 6.172191442 | Y62: 3.692270799
B63: Covered well in compound/plot | C63: 2.159749421 | D63: 4.3825072 | E63: 5.124600727 | F63: 9.823070968 | G63: 5.767284056 | H63: 2.956152675 | I63: 8.697372662 | J63: 2.751893171 | K63: 2.025534202 | L63: 0.7073763551 | M63: 1.57113578 | N63: 3.993364803 | O63: 4.400487667 | P63: 6.067163362 | Q63: 13.73984803 | R63: 8.453202921 | S63: 0.7420961371 | T63: 1.813896261 | U63: 0.1629487267 | V63: 1.541042394 | W63: 1.153157336 | X63: 13.37599528 | Y63: 3.941225383
B64: Covered public well | C64: 6.472650546 | D64: 8.861274587 | E64: 7.960610244 | F64: 5.25549188 | G64: 4.317662752 | H64: 4.354654099 | I64: 2.262425966 | J64: 5.149379544 | K64: 2.813358965 | L64: 0.5713224188 | M64: 6.312661322 | N64: 8.725497205 | O64: 9.438352389 | P64: 6.306267127 | Q64: 6.500210829 | R64: 4.687368683 | S64: 2.038197838 | T64: 7.991071469 | U64: 0.06889959843 | V64: 5.677783687 | W64: 9.06294024 | X64: 5.361550212 | Y64: 13.53715107
B65: Spring | C65: 15.86844382 | D65: 23.84965306 | E65: 19.67865389 | F65: 10.81215997 | G65: 1.940647771 | H65: 6.60317752 | I65: 2.155538129 | J65: 1.041086327 | K65: 0.7482367612 | L65: 0 | M65: 13.79168063 | N65: 23.89659531 | O65: 25.42324161 | P65: 15.64071299 | Q65: 8.732593218 | R65: 6.976984085 | S65: 1.150386734 | T65: 12.94585852 | U65: 0 | V65: 0 | W65: 36.3837436 | X65: 3.493727931 | Y65: 41.05785009
B66: River, stream | C66: 38.48969272 | D66: 33.56129765 | E66: 32.10085924 | F66: 21.88791029 | G66: 3.881604066 | H66: 10.4041023 | I66: 3.028782799 | J66: 1.785525431 | K66: 0.07693579099 | L66: 0 | M66: 39.58623825 | N66: 34.91794859 | O66: 32.10399962 | P66: 33.69032769 | Q66: 18.23233851 | R66: 25.68175049 | S66: 13.03800939 | T66: 32.04709323 | U66: 0 | V66: 21.7727319 | W66: 23.62019533 | X66: 36.11161234 | Y66: 26.26111365
B67: Pond, lake | C67: 3.860792775 | D67: 2.046678202 | E67: 1.561488867 | F67: 0.8564836295 | G67: 0.2889112245 | H67: 0 | I67: 0.1719451428 | J67: 0 | K67: 0 | L67: 0 | M67: 3.826729057 | N67: 2.811697331 | O67: 1.107734754 | P67: 1.949243886 | Q67: 1.031214311 | R67: 0.08064602351 | S67: 2.421454999 | T67: 0.3934468332 | U67: 0 | V67: 0.2902501349 | W67: 6.949948069 | X67: 1.438757625 | Y67: 0.1957030675
B68: Dam | C68: 11.19988104 | D68: 3.736300026 | E68: 3.093969636 | F68: 2.018061018 | G68: 0.2543184938 | H68: 3.753925942 | I68: 0.4786403216 | J68: 0.2818249586 | K68: 0 | L68: 0 | M68: 12.17669176 | N68: 4.782477668 | O68: 3.116180264 | P68: 3.358753224 | Q68: 0.8312560487 | R68: 2.614474747 | S68: 11.0793765 | T68: 5.826708564 | U68: 0.0374799422 | V68: 33.08866536 | W68: 0.2507316613 | X68: 3.50351614 | Y68: 0
B69: Rainwater | C69: 0.252601786 | D69: 1.81477502 | E69: 1.973961448 | F69: 4.496648575 | G69: 1.078868323 | H69: 1.92274897 | I69: 0.4028236311 | J69: 0.08978030855 | K69: 0.2241757354 | L69: 0.746195188 | M69: 0.2843397925 | N69: 1.184122089 | O69: 1.818056191 | P69: 2.818539697 | Q69: 5.070459969 | R69: 7.711203652 | S69: 0.3589518609 | T69: 1.281679575 | U69: 0.01523198474 | V69: 1.773888182 | W69: 1.503615631 | X69: 1.04578741 | Y69: 0.8460846845
B70: Bottled water | C70: 0 | D70: 0 | E70: 0 | F70: 0 | G70: 0.6322923652 | H70: 0 | I70: 0.09068561832 | J70: 0.1954459758 | K70: 0.3754644967 | L70: 2.505849234 | M70: 0 | N70: 0 | O70: 0 | P70: 0 | Q70: 0 | R70: 0 | S70: 0.1070891681 | T70: 0 | U70: 1.422850488 | V70: 0 | W70: 0.02359776739 | X70: 0 | Y70: 0.06641427088
B71: Other | C71: 4.845293936 | D71: 3.121858702 | E71: 2.881275261 | F71: 5.342300314 | G71: 6.030137582 | H71: 14.68591575 | I71: 13.29328897 | J71: 11.76269704 | K71: 2.802257797 | L71: 3.03388689 | M71: 5.419114092 | N71: 2.834934224 | O71: 2.795414879 | P71: 2.491626926 | Q71: 2.87490484 | R71: 5.863003662 | S71: 2.447223401 | T71: 3.743937797 | U71: 4.789674567 | V71: 4.603700522 | W71: 0.5764327346 | X71: 8.824799724 | Y71: 0.8806936015
A108: =A1026 -> Kenya
A109: =A1034 -> 2003
A110: Use of sanitation facilities
A111: by wealth quintile and sub-national region
A112: Notes:
A113: WHO/UNICEF JMP customised wealth index excludes water,
A114: sanitation and hygiene assets.
A115: Survey used for analysis: | B115: =A1025 -> DHS03
A116: =B1030 -> Ratio of Improved latrines based on: | B116: DHS09
A117: =B1029 -> Ratio of Shared improved based on: | B117: DHS09
A120: Use of sanitation facilities | C120: NATIONAL wealth index quintile | H120: URBAN wealth index quintile | M120: RURAL wealth index quintile | R120: SUB-REGIONS: | BA120: Raw numbers of respondents: | BB120: Use of sanitation facilities | BC120: NATIONAL wealth index quintile | BH120: URBAN wealth index quintile | BM120: RURAL wealth index quintile | BR120: SUB-REGIONS:
A121: Weighted percentage (used in graphs) | C121: Poorest | D121: Poor | E121: Middle | F121: Rich | G121: Richest | H121: Poorest | I121: Poor | J121: Middle | K121: Rich | L121: Richest | M121: Poorest | N121: Poor | O121: Middle | P121: Rich | Q121: Richest | R121: Central | S121: Coast | T121: Eastern | U121: Nairobi | V121: North Eastern | W121: Nyanza | X121: Rift Valley | Y121: Western | BA121: Sanitation data, raw numbers (weighted) | BC121: Poorest | BD121: Poor | BE121: Middle | BF121: Rich | BG121: Richest | BH121: Poorest | BI121: Poor | BJ121: Middle | BK121: Rich | BL121: Richest | BM121: Poorest | BN121: Poor | BO121: Middle | BP121: Rich | BQ121: Richest | BR121: Central | BS121: Coast | BT121: Eastern | BU121: Nairobi | BV121: North Eastern | BW121: Nyanza | BX121: Rift Valley | BY121: Western
A122: Sanitation | B122: Improved | C122: =C153+C155+C154*'DHS09'!C130/100 -> 8.492381941 | D122: =D153+D155+D154*'DHS09'!D130/100 -> 16.03691079 | E122: =E153+E155+E154*'DHS09'!E130/100 -> 24.73888625 | F122: =F153+F155+F154*'DHS09'!F130/100 -> 54.34970186 | G122: =G153+G155+G154*'DHS09'!G130/100 -> 83.98028508 | H122: =H153+H155+H154*'DHS09'!H130/100 -> 43.05135889 | I122: =I153+I155+I154*'DHS09'!I130/100 -> 62.56024211 | J122: =J153+J155+J154*'DHS09'!J130/100 -> 83.77215475 | K122: =K153+K155+K154*'DHS09'!K130/100 -> 87.73555527 | L122: =L153+L155+L154*'DHS09'!L130/100 -> 97.02553792 | M122: =M153+M155+M154*'DHS09'!M130/100 -> 7.214951704 | N122: =N153+N155+N154*'DHS09'!N130/100 -> 14.31775726 | O122: =O153+O155+O154*'DHS09'!O130/100 -> 19.99319282 | P122: =P153+P155+P154*'DHS09'!P130/100 -> 35.07280487 | Q122: =Q153+Q155+Q154*'DHS09'!Q130/100 -> 65.30952708 | R122: =R153+R155+R154*'DHS09'!R130/100 -> 47.31954581 | S122: =S153+S155+S154*'DHS09'!S130/100 -> 40.95014461 | T122: =T153+T155+T154*'DHS09'!T130/100 -> 28.20889072 | U122: =U153+U155+U154*'DHS09'!U130/100 -> 87.42355876 | V122: =V153+V155+V154*'DHS09'!V130/100 -> 10.1673574 | W122: =W153+W155+W154*'DHS09'!W130/100 -> 23.2974171 | X122: =X153+X155+X154*'DHS09'!X130/100 -> 31.85541559 | Y122: =Y153+Y155+Y154*'DHS09'!Y130/100 -> 43.97183777 | BA122: Sanitation | BB122: Improved | BC122: N/A | BD122: N/A | BE122: N/A | BF122: N/A | BG122: N/A | BH122: N/A | BI122: N/A | BJ122: N/A | BK122: N/A | BL122: N/A | BM122: N/A | BN122: N/A | BO122: N/A | BP122: N/A | BQ122: N/A | BR122: N/A | BS122: N/A | BT122: N/A | BU122: N/A | BV122: N/A | BW122: N/A | BX122: N/A | BY122: N/A
B123: Not Improved | C123: =100-C122 -> 91.50761806 | D123: =100-D122 -> 83.96308921 | E123: 75.26111375 | F123: 45.65029814 | G123: 16.01971492 | H123: 56.94864111 | I123: 37.43975789 | J123: 16.22784525 | K123: 12.26444473 | L123: 2.974462082 | M123: 92.7850483 | N123: 85.68224274 | O123: 80.00680718 | P123: 64.92719513 | Q123: 34.69047292 | R123: 52.68045419 | S123: 59.04985539 | T123: 71.79110928 | U123: 12.57644124 | V123: 89.8326426 | W123: 76.7025829 | X123: 68.14458441 | Y123: 56.02816223 | BB123: Not Improved | BC123: N/A | BD123: N/A | BE123: N/A | BF123: N/A | BG123: N/A | BH123: N/A | BI123: N/A | BJ123: N/A | BK123: N/A | BL123: N/A | BM123: N/A | BN123: N/A | BO123: N/A | BP123: N/A | BQ123: N/A | BR123: N/A | BS123: N/A | BT123: N/A | BU123: N/A | BV123: N/A | BW123: N/A | BX123: N/A | BY123: N/A
A124: Sanitation ladder | B124: Basic | C124: =C122*'DHS09'!C129/100 -> 4.127627649 | D124: =D122*'DHS09'!D129/100 -> 10.37370225 | E124: =E122*'DHS09'!E129/100 -> 15.77380572 | F124: =F122*'DHS09'!F129/100 -> 28.86611931 | G124: =G122*'DHS09'!G129/100 -> 42.90308809 | H124: =H122*'DHS09'!H129/100 -> 2.121034483 | I124: =I122*'DHS09'!I129/100 -> 10.11433641 | J124: =J122*'DHS09'!J129/100 -> 17.19264469 | K124: =K122*'DHS09'!K129/100 -> 48.8942673 | L124: =L122*'DHS09'!L129/100 -> 91.46536421 | M124: =M122*'DHS09'!M129/100 -> 2.890915434 | N124: =N122*'DHS09'!N129/100 -> 9.452102389 | O124: =O122*'DHS09'!O129/100 -> 13.30852137 | P124: =P122*'DHS09'!P129/100 -> 24.56365315 | Q124: =Q122*'DHS09'!Q129/100 -> 38.1801189 | R124: =R122*'DHS09'!R129/100 -> 25.04777794 | S124: =S122*'DHS09'!S129/100 -> 16.70774284 | T124: =T122*'DHS09'!T129/100 -> 16.48945208 | U124: =U122*'DHS09'!U129/100 -> 43.48962261 | V124: =V122*'DHS09'!V129/100 -> 2.926985048 | W124: =W122*'DHS09'!W129/100 -> 14.17248265 | X124: =X122*'DHS09'!X129/100 -> 18.54275505 | Y124: =Y122*'DHS09'!Y129/100 -> 26.14895116 | BA124: Sanitation ladder | BB124: Basic | BC124: N/A | BD124: N/A | BE124: N/A | BF124: N/A | BG124: N/A | BH124: N/A | BI124: N/A | BJ124: N/A | BK124: N/A | BL124: N/A | BM124: N/A | BN124: N/A | BO124: N/A | BP124: N/A | BQ124: N/A | BR124: N/A | BS124: N/A | BT124: N/A | BU124: N/A | BV124: N/A | BW124: N/A | BX124: N/A | BY124: N/A
B125: Limited | C125: =C122*'DHS09'!C128/100 -> 4.364754292 | D125: =D122*'DHS09'!D128/100 -> 5.663208543 | E125: =E122*'DHS09'!E128/100 -> 8.965080527 | F125: =F122*'DHS09'!F128/100 -> 25.48358255 | G125: =G122*'DHS09'!G128/100 -> 41.07719699 | H125: =H122*'DHS09'!H128/100 -> 40.93032441 | I125: =I122*'DHS09'!I128/100 -> 52.4459057 | J125: =J122*'DHS09'!J128/100 -> 66.57951006 | K125: =K122*'DHS09'!K128/100 -> 38.84128797 | L125: =L122*'DHS09'!L128/100 -> 5.560173709 | M125: =M122*'DHS09'!M128/100 -> 4.32403627 | N125: =N122*'DHS09'!N128/100 -> 4.865654871 | O125: =O122*'DHS09'!O128/100 -> 6.68467145 | P125: =P122*'DHS09'!P128/100 -> 10.50915172 | Q125: =Q122*'DHS09'!Q128/100 -> 27.12940819 | R125: =R122*'DHS09'!R128/100 -> 22.27176787 | S125: =S122*'DHS09'!S128/100 -> 24.24240177 | T125: =T122*'DHS09'!T128/100 -> 11.71943864 | U125: =U122*'DHS09'!U128/100 -> 43.93393615 | V125: =V122*'DHS09'!V128/100 -> 7.240372352 | W125: =W122*'DHS09'!W128/100 -> 9.124934459 | X125: =X122*'DHS09'!X128/100 -> 13.31266054 | Y125: =Y122*'DHS09'!Y128/100 -> 17.8228866 | BB125: Limited | BC125: N/A | BD125: N/A | BE125: N/A | BF125: N/A | BG125: N/A | BH125: N/A | BI125: N/A | BJ125: N/A | BK125: N/A | BL125: N/A | BM125: N/A | BN125: N/A | BO125: N/A | BP125: N/A | BQ125: N/A | BR125: N/A | BS125: N/A | BT125: N/A | BU125: N/A | BV125: N/A | BW125: N/A | BX125: N/A | BY125: N/A
B126: Unimproved | C126: =100-(C124+C125+C127) -> 37.63394254 | D126: =100-(D124+D125+D127) -> 66.5336438 | E126: 62.56811778 | F126: 39.65297374 | G126: 14.52381231 | H126: 42.05125395 | I126: 34.40133459 | J126: 14.8360954 | K126: 11.82954871 | L126: 2.974462082 | M126: 33.88346987 | N126: 61.73972329 | O126: 69.43545695 | P126: 52.53320618 | Q126: 30.96917183 | R126: 52.51992801 | S126: 19.69260066 | T126: 59.74559898 | U126: 10.32992528 | V126: 9.092314817 | W126: 52.17167071 | X126: 41.19402024 | Y126: 53.65971339 | BB126: Unimproved | BC126: N/A | BD126: N/A | BE126: N/A | BF126: N/A | BG126: N/A | BH126: N/A | BI126: N/A | BJ126: N/A | BK126: N/A | BL126: N/A | BM126: N/A | BN126: N/A | BO126: N/A | BP126: N/A | BQ126: N/A | BR126: N/A | BS126: N/A | BT126: N/A | BU126: N/A | BV126: N/A | BW126: N/A | BX126: N/A | BY126: N/A
B127: Open defecation | C127: =C156 -> 53.87367552 | D127: =D156 -> 17.42944541 | E127: 12.69299597 | F127: 5.997324399 | G127: 1.495902608 | H127: 14.89738716 | I127: 3.038423305 | J127: 1.391749849 | K127: 0.4348960199 | L127: 0 | M127: 58.90157842 | N127: 23.94251945 | O127: 10.57135023 | P127: 12.39398895 | Q127: 3.721301087 | R127: 0.1605261761 | S127: 39.35725473 | T127: 12.0455103 | U127: 2.246515954 | V127: 80.74032778 | W127: 24.53091219 | X127: 26.95056417 | Y127: 2.368448843 | BB127: Open defecation | BC127: N/A | BD127: N/A | BE127: N/A | BF127: N/A | BG127: N/A | BH127: N/A | BI127: N/A | BJ127: N/A | BK127: N/A | BL127: N/A | BM127: N/A | BN127: N/A | BO127: N/A | BP127: N/A | BQ127: N/A | BR127: N/A | BS127: N/A | BT127: N/A | BU127: N/A | BV127: N/A | BW127: N/A | BX127: N/A | BY127: N/A
A128: Shared among Improved Sanitation | B128: Yes | C128: N/A | D128: N/A | E128: N/A | F128: N/A | G128: N/A | H128: N/A | I128: N/A | J128: N/A | K128: N/A | L128: N/A | M128: N/A | N128: N/A | O128: N/A | P128: N/A | Q128: N/A | R128: N/A | S128: N/A | T128: N/A | U128: N/A | V128: N/A | W128: N/A | X128: N/A | Y128: N/A | BA128: Shared among improved sanitation facilities | BB128: Yes | BC128: N/A | BD128: N/A | BE128: N/A | BF128: N/A | BG128: N/A | BH128: N/A | BI128: N/A | BJ128: N/A | BK128: N/A | BL128: N/A | BM128: N/A | BN128: N/A | BO128: N/A | BP128: N/A | BQ128: N/A | BR128: N/A | BS128: N/A | BT128: N/A | BU128: N/A | BV128: N/A | BW128: N/A | BX128: N/A | BY128: N/A
B129: No | C129: N/A | D129: N/A | E129: N/A | F129: N/A | G129: N/A | H129: N/A | I129: N/A | J129: N/A | K129: N/A | L129: N/A | M129: N/A | N129: N/A | O129: N/A | P129: N/A | Q129: N/A | R129: N/A | S129: N/A | T129: N/A | U129: N/A | V129: N/A | W129: N/A | X129: N/A | Y129: N/A | BB129: No | BC129: N/A | BD129: N/A | BE129: N/A | BF129: N/A | BG129: N/A | BH129: N/A | BI129: N/A | BJ129: N/A | BK129: N/A | BL129: N/A | BM129: N/A | BN129: N/A | BO129: N/A | BP129: N/A | BQ129: N/A | BR129: N/A | BS129: N/A | BT129: N/A | BU129: N/A | BV129: N/A | BW129: N/A | BX129: N/A | BY129: N/A
A130: Manually calculated ratios | B130: Improved latrines
B131: Other
B132: Other
C133: NATIONAL wealth index quintile | H133: URBAN wealth index quintile | M133: RURAL wealth index quintile | R133: SUB-REGIONS: | BA133: Raw numbers of respondents: | BB133: Use of sanitation facilities | BC133: NATIONAL wealth index quintile | BH133: URBAN wealth index quintile | BM133: RURAL wealth index quintile | BR133: SUB-REGIONS:
A134: Percentage based on weighted population | C134: Poorest | D134: Poor | E134: Middle | F134: Rich | G134: Richest | H134: Poorest | I134: Poor | J134: Middle | K134: Rich | L134: Richest | M134: Poorest | N134: Poor | O134: Middle | P134: Rich | Q134: Richest | R134: Central | S134: Coast | T134: Eastern | U134: Nairobi | V134: North Eastern | W134: Nyanza | X134: Rift Valley | Y134: Western | BA134: Sanitation data, raw numbers (weighted) | BC134: Poorest | BD134: Poor | BE134: Middle | BF134: Rich | BG134: Richest | BH134: Poorest | BI134: Poor | BJ134: Middle | BK134: Rich | BL134: Richest | BM134: Poorest | BN134: Poor | BO134: Middle | BP134: Rich | BQ134: Richest | BR134: Central | BS134: Coast | BT134: Eastern | BU134: Nairobi | BV134: North Eastern | BW134: Nyanza | BX134: Rift Valley | BY134: Western
A135: Sanitation type | B135: Sewer connection | C135: N/A | D135: N/A | E135: N/A | F135: N/A | G135: N/A | H135: N/A | I135: N/A | J135: N/A | K135: N/A | L135: N/A | M135: N/A | N135: N/A | O135: N/A | P135: N/A | Q135: N/A | R135: N/A | S135: N/A | T135: N/A | U135: N/A | V135: N/A | W135: N/A | X135: N/A | Y135: N/A | BA135: Sanitation type | BB135: Sewer connection | BC135: N/A | BD135: N/A | BE135: N/A | BF135: N/A | BG135: N/A | BH135: N/A | BI135: N/A | BJ135: N/A | BK135: N/A | BL135: N/A | BM135: N/A | BN135: N/A | BO135: N/A | BP135: N/A | BQ135: N/A | BR135: N/A | BS135: N/A | BT135: N/A | BU135: N/A | BV135: N/A | BW135: N/A | BX135: N/A | BY135: N/A
B136: Septic tank connection | C136: N/A | D136: N/A | E136: N/A | F136: N/A | G136: N/A | H136: N/A | I136: N/A | J136: N/A | K136: N/A | L136: N/A | M136: N/A | N136: N/A | O136: N/A | P136: N/A | Q136: N/A | R136: N/A | S136: N/A | T136: N/A | U136: N/A | V136: N/A | W136: N/A | X136: N/A | Y136: N/A | BB136: Septic tank connection | BC136: N/A | BD136: N/A | BE136: N/A | BF136: N/A | BG136: N/A | BH136: N/A | BI136: N/A | BJ136: N/A | BK136: N/A | BL136: N/A | BM136: N/A | BN136: N/A | BO136: N/A | BP136: N/A | BQ136: N/A | BR136: N/A | BS136: N/A | BT136: N/A | BU136: N/A | BV136: N/A | BW136: N/A | BX136: N/A | BY136: N/A
B137: Improved latrines | C137: N/A | D137: N/A | E137: N/A | F137: N/A | G137: N/A | H137: N/A | I137: N/A | J137: N/A | K137: N/A | L137: N/A | M137: N/A | N137: N/A | O137: N/A | P137: N/A | Q137: N/A | R137: N/A | S137: N/A | T137: N/A | U137: N/A | V137: N/A | W137: N/A | X137: N/A | Y137: N/A | BB137: Improved latrines | BC137: N/A | BD137: N/A | BE137: N/A | BF137: N/A | BG137: N/A | BH137: N/A | BI137: N/A | BJ137: N/A | BK137: N/A | BL137: N/A | BM137: N/A | BN137: N/A | BO137: N/A | BP137: N/A | BQ137: N/A | BR137: N/A | BS137: N/A | BT137: N/A | BU137: N/A | BV137: N/A | BW137: N/A | BX137: N/A | BY137: N/A
B138: Unimproved facilities | C138: N/A | D138: N/A | E138: N/A | F138: N/A | G138: N/A | H138: N/A | I138: N/A | J138: N/A | K138: N/A | L138: N/A | M138: N/A | N138: N/A | O138: N/A | P138: N/A | Q138: N/A | R138: N/A | S138: N/A | T138: N/A | U138: N/A | V138: N/A | W138: N/A | X138: N/A | Y138: N/A | BB138: Unimproved facilities | BC138: N/A | BD138: N/A | BE138: N/A | BF138: N/A | BG138: N/A | BH138: N/A | BI138: N/A | BJ138: N/A | BK138: N/A | BL138: N/A | BM138: N/A | BN138: N/A | BO138: N/A | BP138: N/A | BQ138: N/A | BR138: N/A | BS138: N/A | BT138: N/A | BU138: N/A | BV138: N/A | BW138: N/A | BX138: N/A | BY138: N/A
B139: Open defecation | C139: 53.85223606 | D139: 17.40101818 | E139: 12.68865851 | F139: 5.980190617 | G139: 1.493635657 | H139: 14.88151845 | I139: 3.033510625 | J139: 1.387573925 | K139: 0.4348960199 | L139: 0 | M139: 58.87218653 | N139: 23.89318245 | O139: 10.56969871 | P139: 12.39398895 | Q139: 3.706919367 | R139: 0.1602658081 | S139: 39.35725473 | T139: 12.01472522 | U139: 2.23762892 | V139: 80.51518026 | W139: 24.53091219 | X139: 26.93662799 | Y139: 2.364245515 | BB139: Open defecation | BC139: N/A | BD139: N/A | BE139: N/A | BF139: N/A | BG139: N/A | BH139: N/A | BI139: N/A | BJ139: N/A | BK139: N/A | BL139: N/A | BM139: N/A | BN139: N/A | BO139: N/A | BP139: N/A | BQ139: N/A | BR139: N/A | BS139: N/A | BT139: N/A | BU139: N/A | BV139: N/A | BW139: N/A | BX139: N/A | BY139: N/A
A140: Septic tank emptying practices | B140: Not emptied/treated and disposed in situ | C140: N/A | D140: N/A | E140: N/A | F140: N/A | G140: N/A | H140: N/A | I140: N/A | J140: N/A | K140: N/A | L140: N/A | M140: N/A | N140: N/A | O140: N/A | P140: N/A | Q140: N/A | R140: N/A | S140: N/A | T140: N/A | U140: N/A | V140: N/A | W140: N/A | X140: N/A | Y140: N/A | BA140: Septic tank emptying practices | BB140: Not emptied/treated and disposed in situ | BC140: N/A | BD140: N/A | BE140: N/A | BF140: N/A | BG140: N/A | BH140: N/A | BI140: N/A | BJ140: N/A | BK140: N/A | BL140: N/A | BM140: N/A | BN140: N/A | BO140: N/A | BP140: N/A | BQ140: N/A | BR140: N/A | BS140: N/A | BT140: N/A | BU140: N/A | BV140: N/A | BW140: N/A | BX140: N/A | BY140: N/A
B141: Emptied and buried on site | C141: N/A | D141: N/A | E141: N/A | F141: N/A | G141: N/A | H141: N/A | I141: N/A | J141: N/A | K141: N/A | L141: N/A | M141: N/A | N141: N/A | O141: N/A | P141: N/A | Q141: N/A | R141: N/A | S141: N/A | T141: N/A | U141: N/A | V141: N/A | W141: N/A | X141: N/A | Y141: N/A | BB141: Emptied and buried on site | BC141: N/A | BD141: N/A | BE141: N/A | BF141: N/A | BG141: N/A | BH141: N/A | BI141: N/A | BJ141: N/A | BK141: N/A | BL141: N/A | BM141: N/A | BN141: N/A | BO141: N/A | BP141: N/A | BQ141: N/A | BR141: N/A | BS141: N/A | BT141: N/A | BU141: N/A | BV141: N/A | BW141: N/A | BX141: N/A | BY141: N/A
B142: Emptied and discharged locally | C142: N/A | D142: N/A | E142: N/A | F142: N/A | G142: N/A | H142: N/A | I142: N/A | J142: N/A | K142: N/A | L142: N/A | M142: N/A | N142: N/A | O142: N/A | P142: N/A | Q142: N/A | R142: N/A | S142: N/A | T142: N/A | U142: N/A | V142: N/A | W142: N/A | X142: N/A | Y142: N/A | BB142: Emptied and discharged locally | BC142: N/A | BD142: N/A | BE142: N/A | BF142: N/A | BG142: N/A | BH142: N/A | BI142: N/A | BJ142: N/A | BK142: N/A | BL142: N/A | BM142: N/A | BN142: N/A | BO142: N/A | BP142: N/A | BQ142: N/A | BR142: N/A | BS142: N/A | BT142: N/A | BU142: N/A | BV142: N/A | BW142: N/A | BX142: N/A | BY142: N/A
B143: Emptied and removed offsite | C143: N/A | D143: N/A | E143: N/A | F143: N/A | G143: N/A | H143: N/A | I143: N/A | J143: N/A | K143: N/A | L143: N/A | M143: N/A | N143: N/A | O143: N/A | P143: N/A | Q143: N/A | R143: N/A | S143: N/A | T143: N/A | U143: N/A | V143: N/A | W143: N/A | X143: N/A | Y143: N/A | BB143: Emptied and removed offsite | BC143: N/A | BD143: N/A | BE143: N/A | BF143: N/A | BG143: N/A | BH143: N/A | BI143: N/A | BJ143: N/A | BK143: N/A | BL143: N/A | BM143: N/A | BN143: N/A | BO143: N/A | BP143: N/A | BQ143: N/A | BR143: N/A | BS143: N/A | BT143: N/A | BU143: N/A | BV143: N/A | BW143: N/A | BX143: N/A | BY143: N/A
A144: Latrine emptying practices | B144: Not emptied/treated and disposed in situ | C144: N/A | D144: N/A | E144: N/A | F144: N/A | G144: N/A | H144: N/A | I144: N/A | J144: N/A | K144: N/A | L144: N/A | M144: N/A | N144: N/A | O144: N/A | P144: N/A | Q144: N/A | R144: N/A | S144: N/A | T144: N/A | U144: N/A | V144: N/A | W144: N/A | X144: N/A | Y144: N/A | BA144: Latrine emptying practices | BB144: Not emptied/treated and disposed in situ | BC144: N/A | BD144: N/A | BE144: N/A | BF144: N/A | BG144: N/A | BH144: N/A | BI144: N/A | BJ144: N/A | BK144: N/A | BL144: N/A | BM144: N/A | BN144: N/A | BO144: N/A | BP144: N/A | BQ144: N/A | BR144: N/A | BS144: N/A | BT144: N/A | BU144: N/A | BV144: N/A | BW144: N/A | BX144: N/A | BY144: N/A
B145: Emptied and buried on site | C145: N/A | D145: N/A | E145: N/A | F145: N/A | G145: N/A | H145: N/A | I145: N/A | J145: N/A | K145: N/A | L145: N/A | M145: N/A | N145: N/A | O145: N/A | P145: N/A | Q145: N/A | R145: N/A | S145: N/A | T145: N/A | U145: N/A | V145: N/A | W145: N/A | X145: N/A | Y145: N/A | BB145: Emptied and buried on site | BC145: N/A | BD145: N/A | BE145: N/A | BF145: N/A | BG145: N/A | BH145: N/A | BI145: N/A | BJ145: N/A | BK145: N/A | BL145: N/A | BM145: N/A | BN145: N/A | BO145: N/A | BP145: N/A | BQ145: N/A | BR145: N/A | BS145: N/A | BT145: N/A | BU145: N/A | BV145: N/A | BW145: N/A | BX145: N/A | BY145: N/A
B146: Emptied and discharged locally | C146: N/A | D146: N/A | E146: N/A | F146: N/A | G146: N/A | H146: N/A | I146: N/A | J146: N/A | K146: N/A | L146: N/A | M146: N/A | N146: N/A | O146: N/A | P146: N/A | Q146: N/A | R146: N/A | S146: N/A | T146: N/A | U146: N/A | V146: N/A | W146: N/A | X146: N/A | Y146: N/A | BB146: Emptied and discharged locally | BC146: N/A | BD146: N/A | BE146: N/A | BF146: N/A | BG146: N/A | BH146: N/A | BI146: N/A | BJ146: N/A | BK146: N/A | BL146: N/A | BM146: N/A | BN146: N/A | BO146: N/A | BP146: N/A | BQ146: N/A | BR146: N/A | BS146: N/A | BT146: N/A | BU146: N/A | BV146: N/A | BW146: N/A | BX146: N/A | BY146: N/A
B147: Emptied and removed offsite | C147: N/A | D147: N/A | E147: N/A | F147: N/A | G147: N/A | H147: N/A | I147: N/A | J147: N/A | K147: N/A | L147: N/A | M147: N/A | N147: N/A | O147: N/A | P147: N/A | Q147: N/A | R147: N/A | S147: N/A | T147: N/A | U147: N/A | V147: N/A | W147: N/A | X147: N/A | Y147: N/A | BB147: Emptied and removed offsite | BC147: N/A | BD147: N/A | BE147: N/A | BF147: N/A | BG147: N/A | BH147: N/A | BI147: N/A | BJ147: N/A | BK147: N/A | BL147: N/A | BM147: N/A | BN147: N/A | BO147: N/A | BP147: N/A | BQ147: N/A | BR147: N/A | BS147: N/A | BT147: N/A | BU147: N/A | BV147: N/A | BW147: N/A | BX147: N/A | BY147: N/A
A148: Shared among improved sanitation facilities | B148: Yes | C148: N/A | D148: N/A | E148: N/A | F148: N/A | G148: N/A | H148: N/A | I148: N/A | J148: N/A | K148: N/A | L148: N/A | M148: N/A | N148: N/A | O148: N/A | P148: N/A | Q148: N/A | R148: N/A | S148: N/A | T148: N/A | U148: N/A | V148: N/A | W148: N/A | X148: N/A | Y148: N/A | BA148: Shared among improved sanitation facilities | BB148: Yes | BC148: N/A | BD148: N/A | BE148: N/A | BF148: N/A | BG148: N/A | BH148: N/A | BI148: N/A | BJ148: N/A | BK148: N/A | BL148: N/A | BM148: N/A | BN148: N/A | BO148: N/A | BP148: N/A | BQ148: N/A | BR148: N/A | BS148: N/A | BT148: N/A | BU148: N/A | BV148: N/A | BW148: N/A | BX148: N/A | BY148: N/A
B149: No | C149: N/A | D149: N/A | E149: N/A | F149: N/A | G149: N/A | H149: N/A | I149: N/A | J149: N/A | K149: N/A | L149: N/A | M149: N/A | N149: N/A | O149: N/A | P149: N/A | Q149: N/A | R149: N/A | S149: N/A | T149: N/A | U149: N/A | V149: N/A | W149: N/A | X149: N/A | Y149: N/A | BB149: No | BC149: N/A | BD149: N/A | BE149: N/A | BF149: N/A | BG149: N/A | BH149: N/A | BI149: N/A | BJ149: N/A | BK149: N/A | BL149: N/A | BM149: N/A | BN149: N/A | BO149: N/A | BP149: N/A | BQ149: N/A | BR149: N/A | BS149: N/A | BT149: N/A | BU149: N/A | BV149: N/A | BW149: N/A | BX149: N/A | BY149: N/A
B150: DK/missing | C150: N/A | D150: N/A | E150: N/A | F150: N/A | G150: N/A | H150: N/A | I150: N/A | J150: N/A | K150: N/A | L150: N/A | M150: N/A | N150: N/A | O150: N/A | P150: N/A | Q150: N/A | R150: N/A | S150: N/A | T150: N/A | U150: N/A | V150: N/A | W150: N/A | X150: N/A | Y150: N/A | BB150: DK/missing | BC150: N/A | BD150: N/A | BE150: N/A | BF150: N/A | BG150: N/A | BH150: N/A | BI150: N/A | BJ150: N/A | BK150: N/A | BL150: N/A | BM150: N/A | BN150: N/A | BO150: N/A | BP150: N/A | BQ150: N/A | BR150: N/A | BS150: N/A | BT150: N/A | BU150: N/A | BV150: N/A | BW150: N/A | BX150: N/A | BY150: N/A
A151: Shared among all sanitation facilities | B151: Yes | C151: 45.62371825 | D151: 32.07542911 | E151: 33.26827544 | F151: 40.26213057 | G151: 54.02448379 | H151: 63.86765592 | I151: 80.15455901 | J151: 80.86331616 | K151: 67.58800785 | L151: 16.93714585 | M151: 47.65273994 | N151: 36.37804669 | O151: 28.01366313 | P151: 31.38979009 | Q151: 37.14615729 | R151: 32.18110888 | S151: 47.26016757 | T151: 31.69923034 | U151: 55.28421856 | V151: 53.08850798 | W151: 46.67653383 | X151: 41.28431298 | Y151: 44.86256626 | BA151: Shared among all sanitation facilities | BB151: Yes | BC151: N/A | BD151: N/A | BE151: N/A | BF151: N/A | BG151: N/A | BH151: N/A | BI151: N/A | BJ151: N/A | BK151: N/A | BL151: N/A | BM151: N/A | BN151: N/A | BO151: N/A | BP151: N/A | BQ151: N/A | BR151: N/A | BS151: N/A | BT151: N/A | BU151: N/A | BV151: N/A | BW151: N/A | BX151: N/A | BY151: N/A
B152: No | C152: 54.37628175 | D152: 67.92457089 | E152: 66.73172456 | F152: 59.45028274 | G152: 45.8913806 | H152: 36.13234408 | I152: 19.67869766 | J152: 19.13668384 | K152: 32.41199215 | L152: 82.80935368 | M152: 52.34726006 | N152: 63.62195331 | O152: 71.98633687 | P152: 68.61020991 | Q152: 62.50280652 | R152: 67.57443502 | S152: 52.73983243 | T152: 68.30076966 | U152: 44.48910608 | V152: 46.91149202 | W152: 53.32346617 | X152: 58.71568702 | Y152: 54.9556645 | BB152: No | BC152: N/A | BD152: N/A | BE152: N/A | BF152: N/A | BG152: N/A | BH152: N/A | BI152: N/A | BJ152: N/A | BK152: N/A | BL152: N/A | BM152: N/A | BN152: N/A | BO152: N/A | BP152: N/A | BQ152: N/A | BR152: N/A | BS152: N/A | BT152: N/A | BU152: N/A | BV152: N/A | BW152: N/A | BX152: N/A | BY152: N/A
A153: Type of toilet facility | B153: Flush toilet | C153: 0.327608987 | D153: 0.2840040022 | E153: 0.08071835922 | F153: 1.73271048 | G153: 42.78161298 | H153: 1.672122782 | I153: 10.72639632 | J153: 30.38108827 | K153: 61.66928679 | L153: 91.33702114 | M153: 0.01721011892 | N153: 0.565351762 | O153: 0.2229463352 | P153: 0.2740712751 | Q153: 6.589498447 | R153: 8.22856211 | S153: 11.2301082 | T153: 3.11312521 | U153: 71.15968679 | V153: 0.5831272381 | W153: 1.565702902 | X153: 3.131007322 | Y153: 1.412646131 | BA153: Type of toilet facility | BB153: Flush toilet | BC153: 24.749714 | BD153: 22.064303 | BE153: 6.104144 | BF153: 132.102328 | BG153: 3262.651246 | BH153: 25.457808 | BI153: 163.338654 | BJ153: 461.830444 | BK153: 939.596691 | BL153: 1389.743412 | BM153: 1.03679 | BN153: 34.749263 | BO153: 13.720412 | BP153: 16.741422 | BQ153: 401.456839 | BR153: 427.570537 | BS153: 346.896322 | BT153: 196.821979 | BU153: 2024.663222 | BV153: 6.234507 | BW153: 91.624579 | BX153: 290.525817 | BY153: 63.334772
B154: Traditional pit toilet | C154: 44.51567992 | D154: 79.14701928 | E154: 82.35183352 | F154: 75.90434137 | G154: 39.5544706 | H154: 73.82272686 | I154: 68.70964069 | J154: 50.23048148 | K154: 24.23238234 | L154: 4.477681016 | M154: 39.77612702 | N154: 72.88543613 | O154: 86.03524267 | P154: 77.84676321 | Q154: 69.69261798 | R154: 86.76234577 | S154: 35.45927335 | T154: 76.18186904 | U154: 22.82718483 | V154: 13.40880774 | W154: 68.66877734 | X154: 57.82875048 | Y154: 88.00769188 | BB154: Traditional pit toilet | BC154: 3363.004039 | BD154: 6148.940866 | BE154: 6227.671813 | BF154: 5786.968057 | BG154: 3016.539906 | BH154: 1123.939478 | BI154: 1046.291773 | BJ154: 763.565984 | BK154: 369.205928 | BL154: 68.130399 | BM154: 2396.235083 | BN154: 4479.892625 | BO154: 5294.722495 | BP154: 4755.206519 | BQ154: 4245.934397 | BR154: 4508.323845 | BS154: 1095.331522 | BT154: 4816.467446 | BU154: 649.487985 | BV154: 143.360317 | BW154: 4018.481288 | BX154: 5365.923248 | BY154: 3945.74903
B155: Ventilated improved pit latrine | C155: 1.146878216 | D155: 2.996643372 | E155: 4.5475815 | F155: 15.8925714 | G155: 15.58371579 | H155: 7.194077927 | I155: 15.70895886 | J155: 16.41754507 | K155: 13.15401042 | L155: 4.185297848 | M155: 1.171616953 | N155: 2.606692653 | O155: 2.976566049 | P155: 9.311938272 | Q155: 19.99658248 | R155: 4.802872785 | S155: 13.78738045 | T155: 8.515440331 | U155: 2.05808012 | V155: 2.125197888 | W155: 5.059121198 | X155: 11.90332809 | Y155: 8.203368033 | BB155: Ventilated improved pit latrine | BC155: 86.642641 | BD155: 232.809562 | BE155: 343.900602 | BF155: 1211.654055 | BG155: 1188.459859 | BH155: 109.528712 | BI155: 239.211765 | BJ155: 249.567167 | BK155: 200.415236 | BL155: 63.681627 | BM155: 70.581775 | BN155: 160.219981 | BO155: 183.181807 | BP155: 568.812212 | BQ155: 1218.266437 | BR155: 249.565704 | BS155: 425.89007 | BT155: 538.374047 | BU155: 58.5573 | BV155: 22.721561 | BW155: 296.058626 | BX155: 1104.508474 | BY155: 367.790937
B156: No facility, bush, field | C156: 53.87367552 | D156: 17.42944541 | E156: 12.69299597 | F156: 5.997324399 | G156: 1.495902608 | H156: 14.89738716 | I156: 3.038423305 | J156: 1.391749849 | K156: 0.4348960199 | L156: 0 | M156: 58.90157842 | N156: 23.94251945 | O156: 10.57135023 | P156: 12.39398895 | Q156: 3.721301087 | R156: 0.1605261761 | S156: 39.35725473 | T156: 12.0455103 | U156: 2.246515954 | V156: 80.74032778 | W156: 24.53091219 | X156: 26.95056417 | Y156: 2.368448843 | BB156: No facility, bush, field | BC156: 4069.967901 | BD156: 1354.095582 | BE156: 959.879214 | BF156: 457.237677 | BG156: 114.081919 | BH156: 226.810391 | BI156: 46.268286 | BJ156: 21.156334 | BK156: 6.6261 | BL156: 0 | BM156: 3548.410548 | BN156: 1471.623441 | BO156: 650.574859 | BP156: 757.076783 | BQ156: 226.715551 | BR156: 8.341222 | BS156: 1215.73957 | BT156: 761.55664 | BU156: 63.91875 | BV156: 863.23551 | BW156: 1435.543422 | BX156: 2500.739816 | BY156: 106.187363
B157: Other | C157: 0.1361573641 | D157: 0.1428879375 | E157: 0.3268706469 | F157: 0.4730523568 | G157: 0.5842980301 | H157: 2.413685272 | I157: 1.816580818 | J157: 1.579135325 | K157: 0.5094244293 | L157: 0 | M157: 0.1334674858 | N157: 0 | O157: 0.1938947164 | P157: 0.1732382946 | Q157: 0 | R157: 0.04569316321 | S157: 0.165983277 | T157: 0.1440551228 | U157: 1.708532307 | V157: 3.142539354 | W157: 0.1754863768 | X157: 0.1863499297 | Y157: 0.007845115648 | BB157: Other | BC157: 10.286213 | BD157: 11.10098 | BE157: 24.718856 | BF157: 36.065643 | BG157: 44.560281 | BH157: 36.747981 | BI157: 27.6624 | BJ157: 24.004827 | BK157: 7.761619 | BL157: 0 | BM157: 8.040488 | BN157: 0 | BO157: 11.932537 | BP157: 10.582121 | BQ157: 0 | BR157: 2.374297 | BS157: 5.127198 | BT157: 9.107637 | BU157: 48.611829 | BV157: 33.598471 | BW157: 10.269423 | BX157: 17.291389 | BY157: 0.351729
BB158: Total | BC158: 7554.650508 | BD158: 7769.011293 | BE158: 7562.274629 | BF158: 7624.02776 | BG158: 7626.293211 | BH158: 1522.48437 | BI158: 1522.772878 | BJ158: 1520.124756 | BK158: 1523.605574 | BL158: 1521.555438 | BM158: 6024.304684 | BN158: 6146.48531 | BO158: 6154.13211 | BP158: 6108.419057 | BQ158: 6092.373224 | BR158: 5196.175605 | BS158: 3088.984682 | BT158: 6322.327749 | BU158: 2845.239086 | BV158: 1069.150366 | BW158: 5851.977338 | BX158: 9278.988744 | BY158: 4483.413831
A208: =A1026 -> Kenya
A209: =A1034 -> 2003
A210: Access to hygiene facilities
A211: by wealth quintile and sub-national region
A212: Notes:
A213: WHO/UNICEF JMP customised wealth index excludes water,
A214: sanitation and hygiene assets.
A215: Survey used for analysis: | B215: =A1025 -> DHS03
A220: Access to handwashing | C220: NATIONAL wealth index quintile | H220: URBAN wealth index quintile | M220: RURAL wealth index quintile | R220: SUB-REGIONS: | BA220: Raw numbers of respondents: | BB220: Access to handwashing | BC220: NATIONAL wealth index quintile | BH220: URBAN wealth index quintile | BM220: RURAL wealth index quintile | BR220: SUB-REGIONS:
A221: Weighted percentage (used in graphs) | C221: Poorest | D221: Poor | E221: Middle | F221: Rich | G221: Richest | H221: Poorest | I221: Poor | J221: Middle | K221: Rich | L221: Richest | M221: Poorest | N221: Poor | O221: Middle | P221: Rich | Q221: Richest | R221: Central | S221: Coast | T221: Eastern | U221: Nairobi | V221: North Eastern | W221: Nyanza | X221: Rift Valley | Y221: Western | BA221: Hygiene data, raw numbers (weighted) | BC221: Poorest | BD221: Poor | BE221: Middle | BF221: Rich | BG221: Richest | BH221: Poorest | BI221: Poor | BJ221: Middle | BK221: Rich | BL221: Richest | BM221: Poorest | BN221: Poor | BO221: Middle | BP221: Rich | BQ221: Richest | BR221: Central | BS221: Coast | BT221: Eastern | BU221: Nairobi | BV221: North Eastern | BW221: Nyanza | BX221: Rift Valley | BY221: Western
A222: Hygiene ladder | B222: Basic | C222: N/A | D222: N/A | E222: N/A | F222: N/A | G222: N/A | H222: N/A | I222: N/A | J222: N/A | K222: N/A | L222: N/A | M222: N/A | N222: N/A | O222: N/A | P222: N/A | Q222: N/A | R222: N/A | S222: N/A | T222: N/A | U222: N/A | V222: N/A | W222: N/A | X222: N/A | Y222: N/A | BA222: Hygiene ladder | BB222: Basic | BC222: N/A | BD222: N/A | BE222: N/A | BF222: N/A | BG222: N/A | BH222: N/A | BI222: N/A | BJ222: N/A | BK222: N/A | BL222: N/A | BM222: N/A | BN222: N/A | BO222: N/A | BP222: N/A | BQ222: N/A | BR222: N/A | BS222: N/A | BT222: N/A | BU222: N/A | BV222: N/A | BW222: N/A | BX222: N/A | BY222: N/A
B223: Limited | C223: N/A | D223: N/A | E223: N/A | F223: N/A | G223: N/A | H223: N/A | I223: N/A | J223: N/A | K223: N/A | L223: N/A | M223: N/A | N223: N/A | O223: N/A | P223: N/A | Q223: N/A | R223: N/A | S223: N/A | T223: N/A | U223: N/A | V223: N/A | W223: N/A | X223: N/A | Y223: N/A | BB223: Limited | BC223: N/A | BD223: N/A | BE223: N/A | BF223: N/A | BG223: N/A | BH223: N/A | BI223: N/A | BJ223: N/A | BK223: N/A | BL223: N/A | BM223: N/A | BN223: N/A | BO223: N/A | BP223: N/A | BQ223: N/A | BR223: N/A | BS223: N/A | BT223: N/A | BU223: N/A | BV223: N/A | BW223: N/A | BX223: N/A | BY223: N/A
B224: No facility | C224: N/A | D224: N/A | E224: N/A | F224: N/A | G224: N/A | H224: N/A | I224: N/A | J224: N/A | K224: N/A | L224: N/A | M224: N/A | N224: N/A | O224: N/A | P224: N/A | Q224: N/A | R224: N/A | S224: N/A | T224: N/A | U224: N/A | V224: N/A | W224: N/A | X224: N/A | Y224: N/A | BB224: No facility | BC224: N/A | BD224: N/A | BE224: N/A | BF224: N/A | BG224: N/A | BH224: N/A | BI224: N/A | BJ224: N/A | BK224: N/A | BL224: N/A | BM224: N/A | BN224: N/A | BO224: N/A | BP224: N/A | BQ224: N/A | BR224: N/A | BS224: N/A | BT224: N/A | BU224: N/A | BV224: N/A | BW224: N/A | BX224: N/A | BY224: N/A
BA225: Observed handwashing place | BB225: Fixed | BC225: N/A | BD225: N/A | BE225: N/A | BF225: N/A | BG225: N/A | BH225: N/A | BI225: N/A | BJ225: N/A | BK225: N/A | BL225: N/A | BM225: N/A | BN225: N/A | BO225: N/A | BP225: N/A | BQ225: N/A | BR225: N/A | BS225: N/A | BT225: N/A | BU225: N/A | BV225: N/A | BW225: N/A | BX225: N/A | BY225: N/A
BB226: Mobile | BC226: N/A | BD226: N/A | BE226: N/A | BF226: N/A | BG226: N/A | BH226: N/A | BI226: N/A | BJ226: N/A | BK226: N/A | BL226: N/A | BM226: N/A | BN226: N/A | BO226: N/A | BP226: N/A | BQ226: N/A | BR226: N/A | BS226: N/A | BT226: N/A | BU226: N/A | BV226: N/A | BW226: N/A | BX226: N/A | BY226: N/A
BA227: Water / Soap | BB227: Water and soap | BC227: N/A | BD227: N/A | BE227: N/A | BF227: N/A | BG227: N/A | BH227: N/A | BI227: N/A | BJ227: N/A | BK227: N/A | BL227: N/A | BM227: N/A | BN227: N/A | BO227: N/A | BP227: N/A | BQ227: N/A | BR227: N/A | BS227: N/A | BT227: N/A | BU227: N/A | BV227: N/A | BW227: N/A | BX227: N/A | BY227: N/A
BB228: Water only | BC228: N/A | BD228: N/A | BE228: N/A | BF228: N/A | BG228: N/A | BH228: N/A | BI228: N/A | BJ228: N/A | BK228: N/A | BL228: N/A | BM228: N/A | BN228: N/A | BO228: N/A | BP228: N/A | BQ228: N/A | BR228: N/A | BS228: N/A | BT228: N/A | BU228: N/A | BV228: N/A | BW228: N/A | BX228: N/A | BY228: N/A
BB229: Soap only | BC229: N/A | BD229: N/A | BE229: N/A | BF229: N/A | BG229: N/A | BH229: N/A | BI229: N/A | BJ229: N/A | BK229: N/A | BL229: N/A | BM229: N/A | BN229: N/A | BO229: N/A | BP229: N/A | BQ229: N/A | BR229: N/A | BS229: N/A | BT229: N/A | BU229: N/A | BV229: N/A | BW229: N/A | BX229: N/A | BY229: N/A
BB230: Neither | BC230: N/A | BD230: N/A | BE230: N/A | BF230: N/A | BG230: N/A | BH230: N/A | BI230: N/A | BJ230: N/A | BK230: N/A | BL230: N/A | BM230: N/A | BN230: N/A | BO230: N/A | BP230: N/A | BQ230: N/A | BR230: N/A | BS230: N/A | BT230: N/A | BU230: N/A | BV230: N/A | BW230: N/A | BX230: N/A | BY230: N/A
BA259: Raw numbers of respondents: | BB259: Menstrual health and hygiene | BC259: NATIONAL wealth index quintile | BH259: URBAN wealth index quintile | BM259: RURAL wealth index quintile | BR259: SUB-REGIONS:
BA260: MHH data, raw numbers (weighted) | BC260: Poorest | BD260: Poor | BE260: Middle | BF260: Rich | BG260: Richest | BH260: Poorest | BI260: Poor | BJ260: Middle | BK260: Rich | BL260: Richest | BM260: Poorest | BN260: Poor | BO260: Middle | BP260: Rich | BQ260: Richest | BR260: Central | BS260: Coast | BT260: Eastern | BU260: Nairobi | BV260: North Eastern | BW260: Nyanza | BX260: Rift Valley | BY260: Western
BA261: Private place to wash and change | BB261: Yes | BC261: N/A | BD261: N/A | BE261: N/A | BF261: N/A | BG261: N/A | BH261: N/A | BI261: N/A | BJ261: N/A | BK261: N/A | BL261: N/A | BM261: N/A | BN261: N/A | BO261: N/A | BP261: N/A | BQ261: N/A | BR261: N/A | BS261: N/A | BT261: N/A | BU261: N/A | BV261: N/A | BW261: N/A | BX261: N/A | BY261: N/A
BB262: No | BC262: N/A | BD262: N/A | BE262: N/A | BF262: N/A | BG262: N/A | BH262: N/A | BI262: N/A | BJ262: N/A | BK262: N/A | BL262: N/A | BM262: N/A | BN262: N/A | BO262: N/A | BP262: N/A | BQ262: N/A | BR262: N/A | BS262: N/A | BT262: N/A | BU262: N/A | BV262: N/A | BW262: N/A | BX262: N/A | BY262: N/A
BB263: DK/not sure/missing | BC263: N/A | BD263: N/A | BE263: N/A | BF263: N/A | BG263: N/A | BH263: N/A | BI263: N/A | BJ263: N/A | BK263: N/A | BL263: N/A | BM263: N/A | BN263: N/A | BO263: N/A | BP263: N/A | BQ263: N/A | BR263: N/A | BS263: N/A | BT263: N/A | BU263: N/A | BV263: N/A | BW263: N/A | BX263: N/A | BY263: N/A
BA264: Use of menstrual materials | BB264: Materials reusable | BC264: N/A | BD264: N/A | BE264: N/A | BF264: N/A | BG264: N/A | BH264: N/A | BI264: N/A | BJ264: N/A | BK264: N/A | BL264: N/A | BM264: N/A | BN264: N/A | BO264: N/A | BP264: N/A | BQ264: N/A | BR264: N/A | BS264: N/A | BT264: N/A | BU264: N/A | BV264: N/A | BW264: N/A | BX264: N/A | BY264: N/A
BB265: Materials not reusable | BC265: N/A | BD265: N/A | BE265: N/A | BF265: N/A | BG265: N/A | BH265: N/A | BI265: N/A | BJ265: N/A | BK265: N/A | BL265: N/A | BM265: N/A | BN265: N/A | BO265: N/A | BP265: N/A | BQ265: N/A | BR265: N/A | BS265: N/A | BT265: N/A | BU265: N/A | BV265: N/A | BW265: N/A | BX265: N/A | BY265: N/A
BB266: No materials used | BC266: N/A | BD266: N/A | BE266: N/A | BF266: N/A | BG266: N/A | BH266: N/A | BI266: N/A | BJ266: N/A | BK266: N/A | BL266: N/A | BM266: N/A | BN266: N/A | BO266: N/A | BP266: N/A | BQ266: N/A | BR266: N/A | BS266: N/A | BT266: N/A | BU266: N/A | BV266: N/A | BW266: N/A | BX266: N/A | BY266: N/A
BB267: DK/not sure/missing | BC267: N/A | BD267: N/A | BE267: N/A | BF267: N/A | BG267: N/A | BH267: N/A | BI267: N/A | BJ267: N/A | BK267: N/A | BL267: N/A | BM267: N/A | BN267: N/A | BO267: N/A | BP267: N/A | BQ267: N/A | BR267: N/A | BS267: N/A | BT267: N/A | BU267: N/A | BV267: N/A | BW267: N/A | BX267: N/A | BY267: N/A
BA268: Use of menstrual materials with private place to wash and change | BB268: Materials reusable | BC268: N/A | BD268: N/A | BE268: N/A | BF268: N/A | BG268: N/A | BH268: N/A | BI268: N/A | BJ268: N/A | BK268: N/A | BL268: N/A | BM268: N/A | BN268: N/A | BO268: N/A | BP268: N/A | BQ268: N/A | BR268: N/A | BS268: N/A | BT268: N/A | BU268: N/A | BV268: N/A | BW268: N/A | BX268: N/A | BY268: N/A
BB269: Materials not reusable | BC269: N/A | BD269: N/A | BE269: N/A | BF269: N/A | BG269: N/A | BH269: N/A | BI269: N/A | BJ269: N/A | BK269: N/A | BL269: N/A | BM269: N/A | BN269: N/A | BO269: N/A | BP269: N/A | BQ269: N/A | BR269: N/A | BS269: N/A | BT269: N/A | BU269: N/A | BV269: N/A | BW269: N/A | BX269: N/A | BY269: N/A
BB270: No materials used | BC270: N/A | BD270: N/A | BE270: N/A | BF270: N/A | BG270: N/A | BH270: N/A | BI270: N/A | BJ270: N/A | BK270: N/A | BL270: N/A | BM270: N/A | BN270: N/A | BO270: N/A | BP270: N/A | BQ270: N/A | BR270: N/A | BS270: N/A | BT270: N/A | BU270: N/A | BV270: N/A | BW270: N/A | BX270: N/A | BY270: N/A
BA271: Awareness of menstruation before menarche | BB271: Yes | BC271: N/A | BD271: N/A | BE271: N/A | BF271: N/A | BG271: N/A | BH271: N/A | BI271: N/A | BJ271: N/A | BK271: N/A | BL271: N/A | BM271: N/A | BN271: N/A | BO271: N/A | BP271: N/A | BQ271: N/A | BR271: N/A | BS271: N/A | BT271: N/A | BU271: N/A | BV271: N/A | BW271: N/A | BX271: N/A | BY271: N/A
BB272: No | BC272: N/A | BD272: N/A | BE272: N/A | BF272: N/A | BG272: N/A | BH272: N/A | BI272: N/A | BJ272: N/A | BK272: N/A | BL272: N/A | BM272: N/A | BN272: N/A | BO272: N/A | BP272: N/A | BQ272: N/A | BR272: N/A | BS272: N/A | BT272: N/A | BU272: N/A | BV272: N/A | BW272: N/A | BX272: N/A | BY272: N/A
BB273: DK/not sure/missing | BC273: N/A | BD273: N/A | BE273: N/A | BF273: N/A | BG273: N/A | BH273: N/A | BI273: N/A | BJ273: N/A | BK273: N/A | BL273: N/A | BM273: N/A | BN273: N/A | BO273: N/A | BP273: N/A | BQ273: N/A | BR273: N/A | BS273: N/A | BT273: N/A | BU273: N/A | BV273: N/A | BW273: N/A | BX273: N/A | BY273: N/A
BA274: Participation in (all) activities during menstruation | BB274: Yes | BC274: N/A | BD274: N/A | BE274: N/A | BF274: N/A | BG274: N/A | BH274: N/A | BI274: N/A | BJ274: N/A | BK274: N/A | BL274: N/A | BM274: N/A | BN274: N/A | BO274: N/A | BP274: N/A | BQ274: N/A | BR274: N/A | BS274: N/A | BT274: N/A | BU274: N/A | BV274: N/A | BW274: N/A | BX274: N/A | BY274: N/A
BB275: No | BC275: N/A | BD275: N/A | BE275: N/A | BF275: N/A | BG275: N/A | BH275: N/A | BI275: N/A | BJ275: N/A | BK275: N/A | BL275: N/A | BM275: N/A | BN275: N/A | BO275: N/A | BP275: N/A | BQ275: N/A | BR275: N/A | BS275: N/A | BT275: N/A | BU275: N/A | BV275: N/A | BW275: N/A | BX275: N/A | BY275: N/A
BB276: DK/not sure/missing/no such activity | BC276: N/A | BD276: N/A | BE276: N/A | BF276: N/A | BG276: N/A | BH276: N/A | BI276: N/A | BJ276: N/A | BK276: N/A | BL276: N/A | BM276: N/A | BN276: N/A | BO276: N/A | BP276: N/A | BQ276: N/A | BR276: N/A | BS276: N/A | BT276: N/A | BU276: N/A | BV276: N/A | BW276: N/A | BX276: N/A | BY276: N/A
BA277: Participation in specific activities during menstruation | BB277: Did not go to school (amongst those usually attending school) | BC277: N/A | BD277: N/A | BE277: N/A | BF277: N/A | BG277: N/A | BH277: N/A | BI277: N/A | BJ277: N/A | BK277: N/A | BL277: N/A | BM277: N/A | BN277: N/A | BO277: N/A | BP277: N/A | BQ277: N/A | BR277: N/A | BS277: N/A | BT277: N/A | BU277: N/A | BV277: N/A | BW277: N/A | BX277: N/A | BY277: N/A
BB278: Did not go to work (amongst those who usually work) | BC278: N/A | BD278: N/A | BE278: N/A | BF278: N/A | BG278: N/A | BH278: N/A | BI278: N/A | BJ278: N/A | BK278: N/A | BL278: N/A | BM278: N/A | BN278: N/A | BO278: N/A | BP278: N/A | BQ278: N/A | BR278: N/A | BS278: N/A | BT278: N/A | BU278: N/A | BV278: N/A | BW278: N/A | BX278: N/A | BY278: N/A
BB279: Did not participate in social activities | BC279: N/A | BD279: N/A | BE279: N/A | BF279: N/A | BG279: N/A | BH279: N/A | BI279: N/A | BJ279: N/A | BK279: N/A | BL279: N/A | BM279: N/A | BN279: N/A | BO279: N/A | BP279: N/A | BQ279: N/A | BR279: N/A | BS279: N/A | BT279: N/A | BU279: N/A | BV279: N/A | BW279: N/A | BX279: N/A | BY279: N/A
BB280: Did not cook food | BC280: N/A | BD280: N/A | BE280: N/A | BF280: N/A | BG280: N/A | BH280: N/A | BI280: N/A | BJ280: N/A | BK280: N/A | BL280: N/A | BM280: N/A | BN280: N/A | BO280: N/A | BP280: N/A | BQ280: N/A | BR280: N/A | BS280: N/A | BT280: N/A | BU280: N/A | BV280: N/A | BW280: N/A | BX280: N/A | BY280: N/A
BB281: Did not eat with others | BC281: N/A | BD281: N/A | BE281: N/A | BF281: N/A | BG281: N/A | BH281: N/A | BI281: N/A | BJ281: N/A | BK281: N/A | BL281: N/A | BM281: N/A | BN281: N/A | BO281: N/A | BP281: N/A | BQ281: N/A | BR281: N/A | BS281: N/A | BT281: N/A | BU281: N/A | BV281: N/A | BW281: N/A | BX281: N/A | BY281: N/A
BB282: Did not bathe in regular place | BC282: N/A | BD282: N/A | BE282: N/A | BF282: N/A | BG282: N/A | BH282: N/A | BI282: N/A | BJ282: N/A | BK282: N/A | BL282: N/A | BM282: N/A | BN282: N/A | BO282: N/A | BP282: N/A | BQ282: N/A | BR282: N/A | BS282: N/A | BT282: N/A | BU282: N/A | BV282: N/A | BW282: N/A | BX282: N/A | BY282: N/A
BB283: Did not participate in other activities | BC283: N/A | BD283: N/A | BE283: N/A | BF283: N/A | BG283: N/A | BH283: N/A | BI283: N/A | BJ283: N/A | BK283: N/A | BL283: N/A | BM283: N/A | BN283: N/A | BO283: N/A | BP283: N/A | BQ283: N/A | BR283: N/A | BS283: N/A | BT283: N/A | BU283: N/A | BV283: N/A | BW283: N/A | BX283: N/A | BY283: N/A
BB284: DK/not sure/missing/no such activity | BC284: N/A | BD284: N/A | BE284: N/A | BF284: N/A | BG284: N/A | BH284: N/A | BI284: N/A | BJ284: N/A | BK284: N/A | BL284: N/A | BM284: N/A | BN284: N/A | BO284: N/A | BP284: N/A | BQ284: N/A | BR284: N/A | BS284: N/A | BT284: N/A | BU284: N/A | BV284: N/A | BW284: N/A | BX284: N/A | BY284: N/A
BA339: Raw numbers of respondents: | BB339: Basic water, sanitation and hygiene | BC339: NATIONAL wealth index quintile | BH339: URBAN wealth index quintile | BM339: RURAL wealth index quintile | BR339: SUB-REGIONS:
BA340: WatSan data, raw numbers (weighted) | BC340: Poorest | BD340: Poor | BE340: Middle | BF340: Rich | BG340: Richest | BH340: Poorest | BI340: Poor | BJ340: Middle | BK340: Rich | BL340: Richest | BM340: Poorest | BN340: Poor | BO340: Middle | BP340: Rich | BQ340: Richest | BR340: Central | BS340: Coast | BT340: Eastern | BU340: Nairobi | BV340: North Eastern | BW340: Nyanza | BX340: Rift Valley | BY340: Western
BA341: Use of Basic Water Sanitation and Hygiene | BB341: Yes | BC341: N/A | BD341: N/A | BE341: N/A | BF341: N/A | BG341: N/A | BH341: N/A | BI341: N/A | BJ341: N/A | BK341: N/A | BL341: N/A | BM341: N/A | BN341: N/A | BO341: N/A | BP341: N/A | BQ341: N/A | BR341: N/A | BS341: N/A | BT341: N/A | BU341: N/A | BV341: N/A | BW341: N/A | BX341: N/A | BY341: N/A
BB342: No | BC342: N/A | BD342: N/A | BE342: N/A | BF342: N/A | BG342: N/A | BH342: N/A | BI342: N/A | BJ342: N/A | BK342: N/A | BL342: N/A | BM342: N/A | BN342: N/A | BO342: N/A | BP342: N/A | BQ342: N/A | BR342: N/A | BS342: N/A | BT342: N/A | BU342: N/A | BV342: N/A | BW342: N/A | BX342: N/A | BY342: N/A
BA343: Use of Basic Water and Sanitation | BB343: Yes | BC343: N/A | BD343: N/A | BE343: N/A | BF343: N/A | BG343: N/A | BH343: N/A | BI343: N/A | BJ343: N/A | BK343: N/A | BL343: N/A | BM343: N/A | BN343: N/A | BO343: N/A | BP343: N/A | BQ343: N/A | BR343: N/A | BS343: N/A | BT343: N/A | BU343: N/A | BV343: N/A | BW343: N/A | BX343: N/A | BY343: N/A
BB344: No | BC344: N/A | BD344: N/A | BE344: N/A | BF344: N/A | BG344: N/A | BH344: N/A | BI344: N/A | BJ344: N/A | BK344: N/A | BL344: N/A | BM344: N/A | BN344: N/A | BO344: N/A | BP344: N/A | BQ344: N/A | BR344: N/A | BS344: N/A | BT344: N/A | BU344: N/A | BV344: N/A | BW344: N/A | BX344: N/A | BY344: N/A
BA345: Use of Basic Water and Hygiene | BB345: Yes | BC345: N/A | BD345: N/A | BE345: N/A | BF345: N/A | BG345: N/A | BH345: N/A | BI345: N/A | BJ345: N/A | BK345: N/A | BL345: N/A | BM345: N/A | BN345: N/A | BO345: N/A | BP345: N/A | BQ345: N/A | BR345: N/A | BS345: N/A | BT345: N/A | BU345: N/A | BV345: N/A | BW345: N/A | BX345: N/A | BY345: N/A
BB346: No | BC346: N/A | BD346: N/A | BE346: N/A | BF346: N/A | BG346: N/A | BH346: N/A | BI346: N/A | BJ346: N/A | BK346: N/A | BL346: N/A | BM346: N/A | BN346: N/A | BO346: N/A | BP346: N/A | BQ346: N/A | BR346: N/A | BS346: N/A | BT346: N/A | BU346: N/A | BV346: N/A | BW346: N/A | BX346: N/A | BY346: N/A
BA347: Use of Basic Sanitation and Hygiene | BB347: Yes | BC347: N/A | BD347: N/A | BE347: N/A | BF347: N/A | BG347: N/A | BH347: N/A | BI347: N/A | BJ347: N/A | BK347: N/A | BL347: N/A | BM347: N/A | BN347: N/A | BO347: N/A | BP347: N/A | BQ347: N/A | BR347: N/A | BS347: N/A | BT347: N/A | BU347: N/A | BV347: N/A | BW347: N/A | BX347: N/A | BY347: N/A
BB348: No | BC348: N/A | BD348: N/A | BE348: N/A | BF348: N/A | BG348: N/A | BH348: N/A | BI348: N/A | BJ348: N/A | BK348: N/A | BL348: N/A | BM348: N/A | BN348: N/A | BO348: N/A | BP348: N/A | BQ348: N/A | BR348: N/A | BS348: N/A | BT348: N/A | BU348: N/A | BV348: N/A | BW348: N/A | BX348: N/A | BY348: N/A
BA349: Use of Basic Water | BB349: Yes | BC349: N/A | BD349: N/A | BE349: N/A | BF349: N/A | BG349: N/A | BH349: N/A | BI349: N/A | BJ349: N/A | BK349: N/A | BL349: N/A | BM349: N/A | BN349: N/A | BO349: N/A | BP349: N/A | BQ349: N/A | BR349: N/A | BS349: N/A | BT349: N/A | BU349: N/A | BV349: N/A | BW349: N/A | BX349: N/A | BY349: N/A
BB350: No | BC350: N/A | BD350: N/A | BE350: N/A | BF350: N/A | BG350: N/A | BH350: N/A | BI350: N/A | BJ350: N/A | BK350: N/A | BL350: N/A | BM350: N/A | BN350: N/A | BO350: N/A | BP350: N/A | BQ350: N/A | BR350: N/A | BS350: N/A | BT350: N/A | BU350: N/A | BV350: N/A | BW350: N/A | BX350: N/A | BY350: N/A
BA351: Use of Basic Sanitation | BB351: Yes | BC351: N/A | BD351: N/A | BE351: N/A | BF351: N/A | BG351: N/A | BH351: N/A | BI351: N/A | BJ351: N/A | BK351: N/A | BL351: N/A | BM351: N/A | BN351: N/A | BO351: N/A | BP351: N/A | BQ351: N/A | BR351: N/A | BS351: N/A | BT351: N/A | BU351: N/A | BV351: N/A | BW351: N/A | BX351: N/A | BY351: N/A
BB352: No | BC352: N/A | BD352: N/A | BE352: N/A | BF352: N/A | BG352: N/A | BH352: N/A | BI352: N/A | BJ352: N/A | BK352: N/A | BL352: N/A | BM352: N/A | BN352: N/A | BO352: N/A | BP352: N/A | BQ352: N/A | BR352: N/A | BS352: N/A | BT352: N/A | BU352: N/A | BV352: N/A | BW352: N/A | BX352: N/A | BY352: N/A
BA353: Access to Basic Hygiene | BB353: Yes | BC353: N/A | BD353: N/A | BE353: N/A | BF353: N/A | BG353: N/A | BH353: N/A | BI353: N/A | BJ353: N/A | BK353: N/A | BL353: N/A | BM353: N/A | BN353: N/A | BO353: N/A | BP353: N/A | BQ353: N/A | BR353: N/A | BS353: N/A | BT353: N/A | BU353: N/A | BV353: N/A | BW353: N/A | BX353: N/A | BY353: N/A
BB354: No | BC354: N/A | BD354: N/A | BE354: N/A | BF354: N/A | BG354: N/A | BH354: N/A | BI354: N/A | BJ354: N/A | BK354: N/A | BL354: N/A | BM354: N/A | BN354: N/A | BO354: N/A | BP354: N/A | BQ354: N/A | BR354: N/A | BS354: N/A | BT354: N/A | BU354: N/A | BV354: N/A | BW354: N/A | BX354: N/A | BY354: N/A
C399: INITIAL (national) Wealth Index | H399: URBAN Wealth Index | M399: RURAL Wealth Index
C400: Component Matrix | H400: Component Matrix | M400: Component Matrix
E401: Component | J401: Component | O401: Component
B402: Note: The INITIAL (national) Wealth Index is based on the first component of the Principal Component Analysis (PCA) which has been obtained at national level. The final national-level (NATIONAL) Wealth Index is based on the URBAN and RURAL specific wealth indexes. Regression procedures are used to establish the relationships between the two sets of scores (urban and rural) and the initial (national) wealth factors. This allows best use of the available information for each area and a better precision of the FINAL (NATIONAL) Wealth Index. For dependency reasons, all WASH variables (contained in the generic MICS and DHS scripts) have been excluded from the sets of asset variables used in the PCAs. The PCA can extracts as many components as there are asset variables in the input. Only the first of the components is used to represent the Wealth Index. The scores represent the weights of the asset variables on the Wealth Index (correlations between the variables and the component). The communalities are the proportion of each variable's variance that can be explained by the component. Proportion of explained variance is the part of the model's total variance that is explained by the component. For more information on the procedure used: The DHS Wealth Index, DHS Comparative Reports No. 6, Shea Oscar Rutstein, Kiersten Johnson, ORC Macro International Inc., 2004. The DHS Wealth Index: Approaches for Rural and Urban Areas, Shea O. Rutstein, ORC Macro International Inc., 2008. MICS Methodological Paper No. 4, Review of options for reporting water, sanitation and hygiene coverage by wealth quintile, UNICEF, 2016. | E402: 1 | J402: 1 | O402: 1
C403: if household has electric | E403: 0.8047470161 | H403: if household has electric | J403: 0.7346267827 | M403: if floor is earth/mud/dung/sand | O403: -0.6873446205
C404: if household has phone | E404: 0.746472531 | H404: if household has fridge | J404: 0.7285028594 | M404: if uses wood, straw or dung (+11) for cooking fuel | O404: -0.6629187838
C405: if floor is earth/mud/dung/sand | E405: -0.7302947955 | H405: if household has phone | J405: 0.7100809888 | M405: if household has electric | O405: 0.6292558338
C406: if household has tv | E406: 0.7043812632 | H406: if household has tv | J406: 0.6857851681 | M406: if floor is of cement | O406: 0.6282248845
C407: if household has fridge | E407: 0.6931593548 | H407: if uses LPG, natural gas or biogas for cooking | J407: 0.6854986551 | M407: if family rents home formally | O407: 0.6135685154
C408: if uses wood, straw or dung (+11) for cooking fuel | E408: -0.6877606185 | H408: if waste is collected by a private company | J408: 0.6549833638 | M408: if family owns household structure | O408: -0.6128011472
C409: if waste is collected by a private company | E409: 0.6499566834 | H409: if household has car or truck | J409: 0.614075294 | M409: if family rents land formally | O409: 0.5649211505
C410: if uses LPG, natural gas or biogas for cooking | E410: 0.6346896874 | H410: if roof is made of tile | J410: 0.5569122373 | M410: if household has phone | O410: 0.5300270103
C411: if household has car or truck | E411: 0.5540500779 | H411: if floor is earth/mud/dung/sand | J411: -0.5156024366 | M411: if household has tv | O411: 0.5190756253
C412: if floor is of cement | E412: 0.512694459 | H412: if roof made of corrugated iron | J412: -0.4949478013 | M412: if family owns household land | O412: -0.5008011536
C413: if roof is made of tile | E413: 0.5085823019 | H413: if uses wood, straw or dung (+11) for cooking fuel | J413: -0.4051716628 | M413: if household has fridge | O413: 0.4307462559
C414: if roof is made of concrete | E414: 0.3951136344 | H414: if roof is made of concrete | J414: 0.3773470634 | M414: if uses LPG, natural gas or biogas for cooking | O414: 0.4120522144
C415: if uses kerosene for cooking | E415: 0.3412066918 | H415: if has parquet/polished wood flooring | J415: 0.3545749274 | M415: if uses kerosene for cooking | O415: 0.4000765161
C416: if household has radio | E416: 0.3166438341 | H416: if household has radio | J416: 0.3482606117 | M416: if uses charcoal or lignite/coal for cooking | O416: 0.3800305135
C417: if flooring is of ceramic tiles | E417: 0.3027900284 | H417: if waste is dumped/buried/burned in the compound/yard | J417: -0.327405196 | M417: if household has car or truck | O417: 0.3616498371
C418: if has parquet/polished wood flooring | E418: 0.2970853983 | H418: if flooring is of ceramic tiles | J418: 0.3262929188 | M418: if roof is made of tile | O418: 0.3149915637
C419: if waste is dumped/buried/burned in the compound/yard | E419: -0.2849326109 | H419: number of members per sleeping room | J419: -0.2332774925 | M419: if household has radio | O419: 0.2806920024
C420: number of members per sleeping room | E420: -0.2533668381 | H420: if waste is dumped in the street or in an empty plot | J420: -0.2172756714 | M420: if roof made of corrugated iron | O420: 0.273469809
... 184 more rows

Sheet DHS09
A2: =A1026 -> Kenya
A3: =A1034 -> 2009
A4: Use of drinking water sources
A5: by wealth quintile and sub-national region
A6: Notes:
A7: WHO/UNICEF JMP customised wealth index excludes water,
A8: sanitation and hygiene assets.
A9: Survey used for analysis: | B9: =A1025 -> DHS09
A10: =B1028 -> 
A11: =B1027 -> 
A14: Use of drinking water sources | C14: NATIONAL wealth index quintile | H14: URBAN wealth index quintile | M14: RURAL wealth index quintile | R14: SUB-REGIONS: | BA14: Raw numbers of respondents: | BB14: Use of drinking water sources | BC14: NATIONAL wealth index quintile | BH14: URBAN wealth index quintile | BM14: RURAL wealth index quintile | BR14: SUB-REGIONS:
A15: Weighted percentage (used in graphs) | C15: Poorest | D15: Poor | E15: Middle | F15: Rich | G15: Richest | H15: Poorest | I15: Poor | J15: Middle | K15: Rich | L15: Richest | M15: Poorest | N15: Poor | O15: Middle | P15: Rich | Q15: Richest | R15: Central | S15: Coast | T15: Eastern | U15: Nairobi | V15: Northeastern | W15: Nyanza | X15: Rift Valley | Y15: Western | BA15: Water data, raw numbers (weighted) | BC15: Poorest | BD15: Poor | BE15: Middle | BF15: Rich | BG15: Richest | BH15: Poorest | BI15: Poor | BJ15: Middle | BK15: Rich | BL15: Richest | BM15: Poorest | BN15: Poor | BO15: Middle | BP15: Rich | BQ15: Richest | BR15: Central | BS15: Coast | BT15: Eastern | BU15: Nairobi | BV15: Northeastern | BW15: Nyanza | BX15: Rift Valley | BY15: Western
A16: Water | B16: Improved | C16: 44 | D16: 48.7 | E16: 54.1 | F16: 71.4 | G16: 91.2 | H16: 82.7 | I16: 92.7 | J16: 96.4 | K16: 93.4 | L16: 99.5 | M16: 41.9 | N16: 49.1 | O16: 50.5 | P16: 54.4 | Q16: 76 | R16: 67.8 | S16: 63.4 | T16: 50.3 | U16: 98.7 | V16: 74.5 | W16: 56.7 | X16: 54.3 | Y16: 74.9 | BA16: Water | BB16: Improved | BC16: N/A | BD16: N/A | BE16: N/A | BF16: N/A | BG16: N/A | BH16: N/A | BI16: N/A | BJ16: N/A | BK16: N/A | BL16: N/A | BM16: N/A | BN16: N/A | BO16: N/A | BP16: N/A | BQ16: N/A | BR16: N/A | BS16: N/A | BT16: N/A | BU16: N/A | BV16: N/A | BW16: N/A | BX16: N/A | BY16: N/A
B17: Not Improved | C17: 56 | D17: 51.3 | E17: 45.9 | F17: 28.6 | G17: 8.8 | H17: 17.3 | I17: 7.3 | J17: 3.6 | K17: 6.6 | L17: 0.5 | M17: 58.1 | N17: 50.9 | O17: 49.5 | P17: 45.6 | Q17: 24 | R17: 32.2 | S17: 36.6 | T17: 49.7 | U17: 1.3 | V17: 25.5 | W17: 43.3 | X17: 45.7 | Y17: 25.1 | BB17: Not Improved | BC17: N/A | BD17: N/A | BE17: N/A | BF17: N/A | BG17: N/A | BH17: N/A | BI17: N/A | BJ17: N/A | BK17: N/A | BL17: N/A | BM17: N/A | BN17: N/A | BO17: N/A | BP17: N/A | BQ17: N/A | BR17: N/A | BS17: N/A | BT17: N/A | BU17: N/A | BV17: N/A | BW17: N/A | BX17: N/A | BY17: N/A
A18: Water ladder | B18: Basic | C18: 31 | D18: 39.3 | E18: 47.1 | F18: 65.9 | G18: 89 | H18: 79.3 | I18: 88.4 | J18: 95.6 | K18: 92.5 | L18: 97.8 | M18: 28.1 | N18: 41 | O18: 40.4 | P18: 48.1 | Q18: 70.8 | R18: 65.5 | S18: 58.1 | T18: 42.2 | U18: 98.1 | V18: 46 | W18: 46.9 | X18: 48.2 | Y18: 64.5 | BA18: Water ladder | BB18: Basic | BC18: N/A | BD18: N/A | BE18: N/A | BF18: N/A | BG18: N/A | BH18: N/A | BI18: N/A | BJ18: N/A | BK18: N/A | BL18: N/A | BM18: N/A | BN18: N/A | BO18: N/A | BP18: N/A | BQ18: N/A | BR18: N/A | BS18: N/A | BT18: N/A | BU18: N/A | BV18: N/A | BW18: N/A | BX18: N/A | BY18: N/A
B19: Limited | C19: 13 | D19: 9.4 | E19: 7 | F19: 5.4 | G19: 2.3 | H19: 3.4 | I19: 4.4 | J19: 0.8 | K19: 0.9 | L19: 1.7 | M19: 13.8 | N19: 8 | O19: 10.1 | P19: 6.2 | Q19: 5.1 | R19: 2.3 | S19: 5.2 | T19: 8.1 | U19: 0.6 | V19: 28.5 | W19: 9.8 | X19: 6.1 | Y19: 10.4 | BB19: Limited | BC19: N/A | BD19: N/A | BE19: N/A | BF19: N/A | BG19: N/A | BH19: N/A | BI19: N/A | BJ19: N/A | BK19: N/A | BL19: N/A | BM19: N/A | BN19: N/A | BO19: N/A | BP19: N/A | BQ19: N/A | BR19: N/A | BS19: N/A | BT19: N/A | BU19: N/A | BV19: N/A | BW19: N/A | BX19: N/A | BY19: N/A
B20: Unimproved | C20: 14.9 | D20: 15.9 | E20: 15.1 | F20: 13 | G20: 4.1 | H20: 11.3 | I20: 5.3 | J20: 2.6 | K20: 6 | L20: 0.5 | M20: 14.8 | N20: 15.2 | O20: 16.1 | P20: 17.5 | Q20: 8.4 | R20: 10.1 | S20: 16.8 | T20: 22.5 | U20: 1.3 | V20: 6.4 | W20: 11.9 | X20: 9.1 | Y20: 13.9 | BB20: Unimproved | BC20: N/A | BD20: N/A | BE20: N/A | BF20: N/A | BG20: N/A | BH20: N/A | BI20: N/A | BJ20: N/A | BK20: N/A | BL20: N/A | BM20: N/A | BN20: N/A | BO20: N/A | BP20: N/A | BQ20: N/A | BR20: N/A | BS20: N/A | BT20: N/A | BU20: N/A | BV20: N/A | BW20: N/A | BX20: N/A | BY20: N/A
B21: Surface water | C21: 41.1 | D21: 35.4 | E21: 30.8 | F21: 15.7 | G21: 4.6 | H21: 6.1 | I21: 2 | J21: 1 | K21: 0.6 | L21: 0 | M21: 43.3 | N21: 35.8 | O21: 33.3 | P21: 28.1 | Q21: 15.7 | R21: 22.1 | S21: 19.8 | T21: 27.2 | U21: 0 | V21: 19.2 | W21: 31.4 | X21: 36.6 | Y21: 11.1 | BB21: Surface water | BC21: N/A | BD21: N/A | BE21: N/A | BF21: N/A | BG21: N/A | BH21: N/A | BI21: N/A | BJ21: N/A | BK21: N/A | BL21: N/A | BM21: N/A | BN21: N/A | BO21: N/A | BP21: N/A | BQ21: N/A | BR21: N/A | BS21: N/A | BT21: N/A | BU21: N/A | BV21: N/A | BW21: N/A | BX21: N/A | BY21: N/A
A22: Improved water point at more than 30 minutes | B22: Yes | C22: 29.5 | D22: 19.3 | E22: 12.9 | F22: 7.6 | G22: 2.5 | H22: 4.1 | I22: 4.7 | J22: 0.8 | K22: 1 | L22: 1.7 | M22: 33 | N22: 16.4 | O22: 20 | P22: 11.4 | Q22: 6.7 | R22: 3.5 | S22: 8.3 | T22: 16.1 | U22: 0.6 | V22: 38.3 | W22: 17.3 | X22: 11.3 | Y22: 13.9 | BA22: Improved water point at more than 30 minutes | BB22: Yes | BC22: N/A | BD22: N/A | BE22: N/A | BF22: N/A | BG22: N/A | BH22: N/A | BI22: N/A | BJ22: N/A | BK22: N/A | BL22: N/A | BM22: N/A | BN22: N/A | BO22: N/A | BP22: N/A | BQ22: N/A | BR22: N/A | BS22: N/A | BT22: N/A | BU22: N/A | BV22: N/A | BW22: N/A | BX22: N/A | BY22: N/A
B23: No | C23: 70.5 | D23: 80.7 | E23: 87.1 | F23: 92.4 | G23: 97.5 | H23: 95.9 | I23: 95.3 | J23: 99.2 | K23: 99 | L23: 98.3 | M23: 67 | N23: 83.6 | O23: 80 | P23: 88.6 | Q23: 93.3 | R23: 96.5 | S23: 91.7 | T23: 83.9 | U23: 99.4 | V23: 61.7 | W23: 82.7 | X23: 88.7 | Y23: 86.1 | BB23: No | BC23: N/A | BD23: N/A | BE23: N/A | BF23: N/A | BG23: N/A | BH23: N/A | BI23: N/A | BJ23: N/A | BK23: N/A | BL23: N/A | BM23: N/A | BN23: N/A | BO23: N/A | BP23: N/A | BQ23: N/A | BR23: N/A | BS23: N/A | BT23: N/A | BU23: N/A | BV23: N/A | BW23: N/A | BX23: N/A | BY23: N/A
A24: Manually calculated ratios | B24: Improved wells
B25: Improved springs | C25: =C64/(C64+C65)*100 -> 53.76344086 | D25: 64.43514644 | E25: 64.17910448 | F25: 50 | G25: 53.84615385 | H25: 57.14285714 | I25: 72.54901961 | J25: 100 | K25: 53.84615385 | L25: 0 | M25: 50.58823529 | N25: 64.75409836 | O25: 65.27196653 | P25: 56.06060606 | Q25: 47.05882353 | R25: 23.52941176 | S25: 2.564102564 | T25: 34.25414365 | U25: 50 | V25: 50 | W25: =W64/(W64+W65)*100 -> 73.70689655 | X25: =X64/(X64+X65)*100 -> 42.04545455 | Y25: =Y64/(Y64+Y65)*100 -> 77.14285714
B26: Other
C27: NATIONAL wealth index quintile | H27: URBAN wealth index quintile | M27: RURAL wealth index quintile | R27: SUB-REGIONS: | BA27: Raw numbers of respondents: | BB27: Use of drinking water sources | BC27: NATIONAL wealth index quintile | BH27: URBAN wealth index quintile | BM27: RURAL wealth index quintile | BR27: SUB-REGIONS:
A28: Percentage based on weighted population | C28: Poorest | D28: Poor | E28: Middle | F28: Rich | G28: Richest | H28: Poorest | I28: Poor | J28: Middle | K28: Rich | L28: Richest | M28: Poorest | N28: Poor | O28: Middle | P28: Rich | Q28: Richest | R28: Central | S28: Coast | T28: Eastern | U28: Nairobi | V28: Northeastern | W28: Nyanza | X28: Rift Valley | Y28: Western | BA28: Water data, raw numbers (weighted) | BC28: Poorest | BD28: Poor | BE28: Middle | BF28: Rich | BG28: Richest | BH28: Poorest | BI28: Poor | BJ28: Middle | BK28: Rich | BL28: Richest | BM28: Poorest | BN28: Poor | BO28: Middle | BP28: Rich | BQ28: Richest | BR28: Central | BS28: Coast | BT28: Eastern | BU28: Nairobi | BV28: Northeastern | BW28: Nyanza | BX28: Rift Valley | BY28: Western
A29: Piped water | B29: Yes | C29: 8 | D29: 10.5 | E29: 16.5 | F29: 38.1 | G29: 71.1 | H29: 65 | I29: 71.2 | J29: 78.4 | K29: 79.6 | L29: 95.2 | M29: 7.8 | N29: 9.2 | O29: 11.7 | P29: 17.8 | Q29: 38.6 | R29: 36.2 | S29: 49.9 | T29: 29 | U29: 94.4 | V29: 14.8 | W29: 15 | X29: 23.9 | Y29: 8.6 | BA29: Piped water | BB29: Yes | BC29: N/A | BD29: N/A | BE29: N/A | BF29: N/A | BG29: N/A | BH29: N/A | BI29: N/A | BJ29: N/A | BK29: N/A | BL29: N/A | BM29: N/A | BN29: N/A | BO29: N/A | BP29: N/A | BQ29: N/A | BR29: N/A | BS29: N/A | BT29: N/A | BU29: N/A | BV29: N/A | BW29: N/A | BX29: N/A | BY29: N/A
B30: No | C30: 92 | D30: 89.5 | E30: 83.5 | F30: 61.9 | G30: 28.9 | H30: 35 | I30: 28.8 | J30: 21.6 | K30: 20.4 | L30: 4.8 | M30: 92.2 | N30: 90.8 | O30: 88.3 | P30: 82.2 | Q30: 61.4 | R30: 63.8 | S30: 50.1 | T30: 71 | U30: 5.6 | V30: 85.2 | W30: 85 | X30: 76.1 | Y30: 91.4 | BB30: No | BC30: N/A | BD30: N/A | BE30: N/A | BF30: N/A | BG30: N/A | BH30: N/A | BI30: N/A | BJ30: N/A | BK30: N/A | BL30: N/A | BM30: N/A | BN30: N/A | BO30: N/A | BP30: N/A | BQ30: N/A | BR30: N/A | BS30: N/A | BT30: N/A | BU30: N/A | BV30: N/A | BW30: N/A | BX30: N/A | BY30: N/A
A31: Piped water on premises | B31: Yes | C31: 1 | D31: 5.6 | E31: 10 | F31: 24.2 | G31: 57.8 | H31: 26.7 | I31: 39.6 | J31: 61.5 | K31: 63.9 | L31: 90.5 | M31: 0.9 | N31: 3.9 | O31: 7 | P31: 12.7 | Q31: 29.9 | R31: 30.4 | S31: 20.3 | T31: 21.1 | U31: 82.5 | V31: 9.7 | W31: 5.5 | X31: 16.6 | Y31: 4.8 | BA31: Piped water on premises | BB31: Yes | BC31: N/A | BD31: N/A | BE31: N/A | BF31: N/A | BG31: N/A | BH31: N/A | BI31: N/A | BJ31: N/A | BK31: N/A | BL31: N/A | BM31: N/A | BN31: N/A | BO31: N/A | BP31: N/A | BQ31: N/A | BR31: N/A | BS31: N/A | BT31: N/A | BU31: N/A | BV31: N/A | BW31: N/A | BX31: N/A | BY31: N/A
B32: No | C32: 99 | D32: 94.4 | E32: 90 | F32: 75.8 | G32: 42.2 | H32: 73.3 | I32: 60.4 | J32: 38.5 | K32: 36.1 | L32: 9.5 | M32: 99.1 | N32: 96.1 | O32: 93 | P32: 87.3 | Q32: 70.1 | R32: 69.6 | S32: 79.7 | T32: 78.9 | U32: 17.5 | V32: 90.3 | W32: 94.5 | X32: 83.4 | Y32: 95.2 | BB32: No | BC32: N/A | BD32: N/A | BE32: N/A | BF32: N/A | BG32: N/A | BH32: N/A | BI32: N/A | BJ32: N/A | BK32: N/A | BL32: N/A | BM32: N/A | BN32: N/A | BO32: N/A | BP32: N/A | BQ32: N/A | BR32: N/A | BS32: N/A | BT32: N/A | BU32: N/A | BV32: N/A | BW32: N/A | BX32: N/A | BY32: N/A
A33: Piped water into dwelling | B33: Yes | C33: N/A | D33: N/A | E33: N/A | F33: N/A | G33: N/A | H33: N/A | I33: N/A | J33: N/A | K33: N/A | L33: N/A | M33: N/A | N33: N/A | O33: N/A | P33: N/A | Q33: N/A | R33: N/A | S33: N/A | T33: N/A | U33: N/A | V33: N/A | W33: N/A | X33: N/A | Y33: N/A | BA33: Piped water into dwelling | BB33: Yes | BC33: N/A | BD33: N/A | BE33: N/A | BF33: N/A | BG33: N/A | BH33: N/A | BI33: N/A | BJ33: N/A | BK33: N/A | BL33: N/A | BM33: N/A | BN33: N/A | BO33: N/A | BP33: N/A | BQ33: N/A | BR33: N/A | BS33: N/A | BT33: N/A | BU33: N/A | BV33: N/A | BW33: N/A | BX33: N/A | BY33: N/A
B34: No | C34: N/A | D34: N/A | E34: N/A | F34: N/A | G34: N/A | H34: N/A | I34: N/A | J34: N/A | K34: N/A | L34: N/A | M34: N/A | N34: N/A | O34: N/A | P34: N/A | Q34: N/A | R34: N/A | S34: N/A | T34: N/A | U34: N/A | V34: N/A | W34: N/A | X34: N/A | Y34: N/A | BB34: No | BC34: N/A | BD34: N/A | BE34: N/A | BF34: N/A | BG34: N/A | BH34: N/A | BI34: N/A | BJ34: N/A | BK34: N/A | BL34: N/A | BM34: N/A | BN34: N/A | BO34: N/A | BP34: N/A | BQ34: N/A | BR34: N/A | BS34: N/A | BT34: N/A | BU34: N/A | BV34: N/A | BW34: N/A | BX34: N/A | BY34: N/A
A35: Water source on premises | B35: Yes | C35: 7.1 | D35: 16 | E35: 22.6 | F35: 42 | G35: 69.3 | H35: 34.5 | I35: 49.6 | J35: 71.3 | K35: 71.6 | L35: 93.9 | M35: 5.8 | N35: 14.6 | O35: 18 | P35: 27.1 | Q35: 51.9 | R35: 50.8 | S35: 25.7 | T35: 26.1 | U35: 90.2 | V35: 13.5 | W35: 17.8 | X35: 34.5 | Y35: 11.7 | BA35: Water source on premises | BB35: Yes | BC35: N/A | BD35: N/A | BE35: N/A | BF35: N/A | BG35: N/A | BH35: N/A | BI35: N/A | BJ35: N/A | BK35: N/A | BL35: N/A | BM35: N/A | BN35: N/A | BO35: N/A | BP35: N/A | BQ35: N/A | BR35: N/A | BS35: N/A | BT35: N/A | BU35: N/A | BV35: N/A | BW35: N/A | BX35: N/A | BY35: N/A
B36: No | C36: 92.9 | D36: 84 | E36: 77.4 | F36: 58 | G36: 30.7 | H36: 65.5 | I36: 50.4 | J36: 28.7 | K36: 28.4 | L36: 6.1 | M36: 94.2 | N36: 85.4 | O36: 82 | P36: 72.9 | Q36: 48.1 | R36: 49.2 | S36: 74.3 | T36: 73.9 | U36: 9.8 | V36: 86.5 | W36: 82.2 | X36: 65.5 | Y36: 88.3 | BB36: No | BC36: N/A | BD36: N/A | BE36: N/A | BF36: N/A | BG36: N/A | BH36: N/A | BI36: N/A | BJ36: N/A | BK36: N/A | BL36: N/A | BM36: N/A | BN36: N/A | BO36: N/A | BP36: N/A | BQ36: N/A | BR36: N/A | BS36: N/A | BT36: N/A | BU36: N/A | BV36: N/A | BW36: N/A | BX36: N/A | BY36: N/A
A37: Improved Water source on premises | B37: Yes | C37: 4.8 | D37: 12 | E37: 19.1 | F37: 39.3 | G37: 68.6 | H37: 34 | I37: 48.7 | J37: 71 | K37: 71.3 | L37: 93.8 | M37: 3.6 | N37: 11.6 | O37: 12.6 | P37: 24 | Q37: 49.7 | R37: 47.8 | S37: 25.1 | T37: 24 | U37: 90.1 | V37: 12.8 | W37: 16.1 | X37: 28.9 | Y37: 10.6 | BA37: Improved water source on premises | BB37: Yes | BC37: N/A | BD37: N/A | BE37: N/A | BF37: N/A | BG37: N/A | BH37: N/A | BI37: N/A | BJ37: N/A | BK37: N/A | BL37: N/A | BM37: N/A | BN37: N/A | BO37: N/A | BP37: N/A | BQ37: N/A | BR37: N/A | BS37: N/A | BT37: N/A | BU37: N/A | BV37: N/A | BW37: N/A | BX37: N/A | BY37: N/A
B38: No | C38: 95.2 | D38: 88 | E38: 80.9 | F38: 60.7 | G38: 31.4 | H38: 66 | I38: 51.3 | J38: 29 | K38: 28.7 | L38: 6.2 | M38: 96.4 | N38: 88.4 | O38: 87.4 | P38: 76 | Q38: 50.3 | R38: 52.2 | S38: 74.9 | T38: 76 | U38: 9.9 | V38: 87.2 | W38: 83.9 | X38: 71.1 | Y38: 89.4 | BB38: No | BC38: N/A | BD38: N/A | BE38: N/A | BF38: N/A | BG38: N/A | BH38: N/A | BI38: N/A | BJ38: N/A | BK38: N/A | BL38: N/A | BM38: N/A | BN38: N/A | BO38: N/A | BP38: N/A | BQ38: N/A | BR38: N/A | BS38: N/A | BT38: N/A | BU38: N/A | BV38: N/A | BW38: N/A | BX38: N/A | BY38: N/A
A39: Piped water on premises available when needed | B39: Yes | C39: N/A | D39: N/A | E39: N/A | F39: N/A | G39: N/A | H39: N/A | I39: N/A | J39: N/A | K39: N/A | L39: N/A | M39: N/A | N39: N/A | O39: N/A | P39: N/A | Q39: N/A | R39: N/A | S39: N/A | T39: N/A | U39: N/A | V39: N/A | W39: N/A | X39: N/A | Y39: N/A | BA39: Piped water on premises available when needed | BB39: Yes | BC39: N/A | BD39: N/A | BE39: N/A | BF39: N/A | BG39: N/A | BH39: N/A | BI39: N/A | BJ39: N/A | BK39: N/A | BL39: N/A | BM39: N/A | BN39: N/A | BO39: N/A | BP39: N/A | BQ39: N/A | BR39: N/A | BS39: N/A | BT39: N/A | BU39: N/A | BV39: N/A | BW39: N/A | BX39: N/A | BY39: N/A
B40: No | C40: N/A | D40: N/A | E40: N/A | F40: N/A | G40: N/A | H40: N/A | I40: N/A | J40: N/A | K40: N/A | L40: N/A | M40: N/A | N40: N/A | O40: N/A | P40: N/A | Q40: N/A | R40: N/A | S40: N/A | T40: N/A | U40: N/A | V40: N/A | W40: N/A | X40: N/A | Y40: N/A | BB40: No | BC40: N/A | BD40: N/A | BE40: N/A | BF40: N/A | BG40: N/A | BH40: N/A | BI40: N/A | BJ40: N/A | BK40: N/A | BL40: N/A | BM40: N/A | BN40: N/A | BO40: N/A | BP40: N/A | BQ40: N/A | BR40: N/A | BS40: N/A | BT40: N/A | BU40: N/A | BV40: N/A | BW40: N/A | BX40: N/A | BY40: N/A
A41: Water point at more than 30 minutes | B41: Yes | C41: 36.6 | D41: 22.9 | E41: 19.7 | F41: 12.1 | G41: 3.7 | H41: 6.5 | I41: 4.5 | J41: 1 | K41: 1.9 | L41: 1.8 | M41: 40.2 | N41: 21.3 | O41: 22.3 | P41: 19.6 | Q41: 10.8 | R41: 8.1 | S41: 21.4 | T41: 27 | U41: 0.7 | V41: 41.1 | W41: 21.9 | X41: 19.6 | Y41: 14.4 | BA41: Water point at more than 30 minutes | BB41: Yes | BC41: N/A | BD41: N/A | BE41: N/A | BF41: N/A | BG41: N/A | BH41: N/A | BI41: N/A | BJ41: N/A | BK41: N/A | BL41: N/A | BM41: N/A | BN41: N/A | BO41: N/A | BP41: N/A | BQ41: N/A | BR41: N/A | BS41: N/A | BT41: N/A | BU41: N/A | BV41: N/A | BW41: N/A | BX41: N/A | BY41: N/A
B42: No | C42: 63.4 | D42: 77.1 | E42: 80.3 | F42: 87.9 | G42: 96.3 | H42: 93.5 | I42: 95.5 | J42: 99 | K42: 98.1 | L42: 98.2 | M42: 59.8 | N42: 78.7 | O42: 77.7 | P42: 80.4 | Q42: 89.2 | R42: 91.9 | S42: 78.6 | T42: 73 | U42: 99.3 | V42: 58.9 | W42: 78.1 | X42: 80.4 | Y42: 85.6 | BB42: No | BC42: N/A | BD42: N/A | BE42: N/A | BF42: N/A | BG42: N/A | BH42: N/A | BI42: N/A | BJ42: N/A | BK42: N/A | BL42: N/A | BM42: N/A | BN42: N/A | BO42: N/A | BP42: N/A | BQ42: N/A | BR42: N/A | BS42: N/A | BT42: N/A | BU42: N/A | BV42: N/A | BW42: N/A | BX42: N/A | BY42: N/A
A43: Water source available when needed | B43: Yes | C43: N/A | D43: N/A | E43: N/A | F43: N/A | G43: N/A | H43: N/A | I43: N/A | J43: N/A | K43: N/A | L43: N/A | M43: N/A | N43: N/A | O43: N/A | P43: N/A | Q43: N/A | R43: N/A | S43: N/A | T43: N/A | U43: N/A | V43: N/A | W43: N/A | X43: N/A | Y43: N/A | BA43: Water source available when needed | BB43: Yes | BC43: N/A | BD43: N/A | BE43: N/A | BF43: N/A | BG43: N/A | BH43: N/A | BI43: N/A | BJ43: N/A | BK43: N/A | BL43: N/A | BM43: N/A | BN43: N/A | BO43: N/A | BP43: N/A | BQ43: N/A | BR43: N/A | BS43: N/A | BT43: N/A | BU43: N/A | BV43: N/A | BW43: N/A | BX43: N/A | BY43: N/A
B44: No | C44: N/A | D44: N/A | E44: N/A | F44: N/A | G44: N/A | H44: N/A | I44: N/A | J44: N/A | K44: N/A | L44: N/A | M44: N/A | N44: N/A | O44: N/A | P44: N/A | Q44: N/A | R44: N/A | S44: N/A | T44: N/A | U44: N/A | V44: N/A | W44: N/A | X44: N/A | Y44: N/A | BB44: No | BC44: N/A | BD44: N/A | BE44: N/A | BF44: N/A | BG44: N/A | BH44: N/A | BI44: N/A | BJ44: N/A | BK44: N/A | BL44: N/A | BM44: N/A | BN44: N/A | BO44: N/A | BP44: N/A | BQ44: N/A | BR44: N/A | BS44: N/A | BT44: N/A | BU44: N/A | BV44: N/A | BW44: N/A | BX44: N/A | BY44: N/A
A45: Improved water source available when needed | B45: Yes | C45: N/A | D45: N/A | E45: N/A | F45: N/A | G45: N/A | H45: N/A | I45: N/A | J45: N/A | K45: N/A | L45: N/A | M45: N/A | N45: N/A | O45: N/A | P45: N/A | Q45: N/A | R45: N/A | S45: N/A | T45: N/A | U45: N/A | V45: N/A | W45: N/A | X45: N/A | Y45: N/A | BA45: Improved water source available when needed | BB45: Yes | BC45: N/A | BD45: N/A | BE45: N/A | BF45: N/A | BG45: N/A | BH45: N/A | BI45: N/A | BJ45: N/A | BK45: N/A | BL45: N/A | BM45: N/A | BN45: N/A | BO45: N/A | BP45: N/A | BQ45: N/A | BR45: N/A | BS45: N/A | BT45: N/A | BU45: N/A | BV45: N/A | BW45: N/A | BX45: N/A | BY45: N/A
B46: No | C46: N/A | D46: N/A | E46: N/A | F46: N/A | G46: N/A | H46: N/A | I46: N/A | J46: N/A | K46: N/A | L46: N/A | M46: N/A | N46: N/A | O46: N/A | P46: N/A | Q46: N/A | R46: N/A | S46: N/A | T46: N/A | U46: N/A | V46: N/A | W46: N/A | X46: N/A | Y46: N/A | BB46: No | BC46: N/A | BD46: N/A | BE46: N/A | BF46: N/A | BG46: N/A | BH46: N/A | BI46: N/A | BJ46: N/A | BK46: N/A | BL46: N/A | BM46: N/A | BN46: N/A | BO46: N/A | BP46: N/A | BQ46: N/A | BR46: N/A | BS46: N/A | BT46: N/A | BU46: N/A | BV46: N/A | BW46: N/A | BX46: N/A | BY46: N/A
A47: Microbiological quality at point of collection | B47: Not contaminated (No E. coli in 100 mL) | C47: N/A | D47: N/A | E47: N/A | F47: N/A | G47: N/A | H47: N/A | I47: N/A | J47: N/A | K47: N/A | L47: N/A | M47: N/A | N47: N/A | O47: N/A | P47: N/A | Q47: N/A | R47: N/A | S47: N/A | T47: N/A | U47: N/A | V47: N/A | W47: N/A | X47: N/A | Y47: N/A | BA47: Microbiological quality at point of collection | BB47: Not contaminated (No E. coli in 100 mL) | BC47: N/A | BD47: N/A | BE47: N/A | BF47: N/A | BG47: N/A | BH47: N/A | BI47: N/A | BJ47: N/A | BK47: N/A | BL47: N/A | BM47: N/A | BN47: N/A | BO47: N/A | BP47: N/A | BQ47: N/A | BR47: N/A | BS47: N/A | BT47: N/A | BU47: N/A | BV47: N/A | BW47: N/A | BX47: N/A | BY47: N/A
B48: Contaminated (E. coli detected in 100 mL) | C48: N/A | D48: N/A | E48: N/A | F48: N/A | G48: N/A | H48: N/A | I48: N/A | J48: N/A | K48: N/A | L48: N/A | M48: N/A | N48: N/A | O48: N/A | P48: N/A | Q48: N/A | R48: N/A | S48: N/A | T48: N/A | U48: N/A | V48: N/A | W48: N/A | X48: N/A | Y48: N/A | BB48: Contaminated (E. coli detected in 100 mL) | BC48: N/A | BD48: N/A | BE48: N/A | BF48: N/A | BG48: N/A | BH48: N/A | BI48: N/A | BJ48: N/A | BK48: N/A | BL48: N/A | BM48: N/A | BN48: N/A | BO48: N/A | BP48: N/A | BQ48: N/A | BR48: N/A | BS48: N/A | BT48: N/A | BU48: N/A | BV48: N/A | BW48: N/A | BX48: N/A | BY48: N/A
B49: Highly contaminated (>100 CFU/100 mL) | C49: N/A | D49: N/A | E49: N/A | F49: N/A | G49: N/A | H49: N/A | I49: N/A | J49: N/A | K49: N/A | L49: N/A | M49: N/A | N49: N/A | O49: N/A | P49: N/A | Q49: N/A | R49: N/A | S49: N/A | T49: N/A | U49: N/A | V49: N/A | W49: N/A | X49: N/A | Y49: N/A | BB49: Highly contaminated (>100 CFU/100 mL) | BC49: N/A | BD49: N/A | BE49: N/A | BF49: N/A | BG49: N/A | BH49: N/A | BI49: N/A | BJ49: N/A | BK49: N/A | BL49: N/A | BM49: N/A | BN49: N/A | BO49: N/A | BP49: N/A | BQ49: N/A | BR49: N/A | BS49: N/A | BT49: N/A | BU49: N/A | BV49: N/A | BW49: N/A | BX49: N/A | BY49: N/A
A50: Microbiological quality of improved water sources at point of collection | B50: Not contaminated (No E. coli in 100 mL) | C50: N/A | D50: N/A | E50: N/A | F50: N/A | G50: N/A | H50: N/A | I50: N/A | J50: N/A | K50: N/A | L50: N/A | M50: N/A | N50: N/A | O50: N/A | P50: N/A | Q50: N/A | R50: N/A | S50: N/A | T50: N/A | U50: N/A | V50: N/A | W50: N/A | X50: N/A | Y50: N/A | BA50: Microbiological quality of improved water sources at point of collection | BB50: Not contaminated (No E. coli in 100 mL) | BC50: N/A | BD50: N/A | BE50: N/A | BF50: N/A | BG50: N/A | BH50: N/A | BI50: N/A | BJ50: N/A | BK50: N/A | BL50: N/A | BM50: N/A | BN50: N/A | BO50: N/A | BP50: N/A | BQ50: N/A | BR50: N/A | BS50: N/A | BT50: N/A | BU50: N/A | BV50: N/A | BW50: N/A | BX50: N/A | BY50: N/A
B51: Contaminated (E. coli detected in 100 mL) | C51: N/A | D51: N/A | E51: N/A | F51: N/A | G51: N/A | H51: N/A | I51: N/A | J51: N/A | K51: N/A | L51: N/A | M51: N/A | N51: N/A | O51: N/A | P51: N/A | Q51: N/A | R51: N/A | S51: N/A | T51: N/A | U51: N/A | V51: N/A | W51: N/A | X51: N/A | Y51: N/A | BB51: Contaminated (E. coli detected in 100 mL) | BC51: N/A | BD51: N/A | BE51: N/A | BF51: N/A | BG51: N/A | BH51: N/A | BI51: N/A | BJ51: N/A | BK51: N/A | BL51: N/A | BM51: N/A | BN51: N/A | BO51: N/A | BP51: N/A | BQ51: N/A | BR51: N/A | BS51: N/A | BT51: N/A | BU51: N/A | BV51: N/A | BW51: N/A | BX51: N/A | BY51: N/A
B52: Highly contaminated (>100 CFU/100 mL) | C52: N/A | D52: N/A | E52: N/A | F52: N/A | G52: N/A | H52: N/A | I52: N/A | J52: N/A | K52: N/A | L52: N/A | M52: N/A | N52: N/A | O52: N/A | P52: N/A | Q52: N/A | R52: N/A | S52: N/A | T52: N/A | U52: N/A | V52: N/A | W52: N/A | X52: N/A | Y52: N/A | BB52: Highly contaminated (>100 CFU/100 mL) | BC52: N/A | BD52: N/A | BE52: N/A | BF52: N/A | BG52: N/A | BH52: N/A | BI52: N/A | BJ52: N/A | BK52: N/A | BL52: N/A | BM52: N/A | BN52: N/A | BO52: N/A | BP52: N/A | BQ52: N/A | BR52: N/A | BS52: N/A | BT52: N/A | BU52: N/A | BV52: N/A | BW52: N/A | BX52: N/A | BY52: N/A
